Workbook

Sheet notes (hidden)
A1: FY21 Chapter 70
A3: Tabs | B3: What happens on this sheet | C3: Data source (if any) | D3: Notes
A4: Parameters | B4: Allows the user to adjust all of the policy levers in Chapter 70, except for changes to foundation. Foundation budget scenarios can be changed, but they must 1st be run separately and dropped into localcont (all the way to the right). Up to 11 alternatives can be included. | D4: Updated table for graph re: "additional increments toward target" to include 175%CEY increment
A5: Index | B5: Controls the district being viewed for all reports except regional dist members | C5: Dropdown box reads LEAs | D5: Changed LEA 603 label to "Hoosac Valley"
A6: Rates | B6: CY and PY foundation budget rates Used to calculate foundation budget report | C6: Copied in from found file | D6: Copied in FY21 rates
A7: Foundation Budget | B7: 1 district report showing build-up of foundation budget | C7: Rates, dist435 | D7: labels
A8: Municipal Contribution | B8: 1 city/town report showing build-up of required local contribution (municipal level) | C8: townwide contributions | D8: labels
A9: Regional Allocation | B9: 1 city/town report showing allocation of total municipal required local contribution based on proportion of foundation budget at each district to which it belongs | C9: localcont | D9: labels
A10: Summary | B10: 1 district report summarizing C70 calculation and comparison to PY | C10: aid436, disthist | D10: labels
A11: Regional Dist Members | B11: 1 regional district report summarizing enrollment and local contribution for each member town Changed in FY18 to vlookup on localcont | C11: localcont, leas | D11: Updated sheet to present foundation enrollment and local contribution for each town-to-regional-district combination
A12: LocalCont | B12: Results from distfrac get copied into the far right (up to 11 versions of foundation budget can be entered). Toggle is on parameters sheet. Data is organized in 5 row format for each city/town (municipality and its districts, blanks are 998 and total is 999). Used to calculate each municipal-district combination's RLC. | C12: found file, distfrac (allocate sheet) | D12: Copied in FY20 foundation budget, %s, RLCs and enro.
A14: Comparison to FY19 | B14: 2 year comparison for operating districts | C14: aid436, disthist, localcont
A15: Townwide Contributions | B15: Calculates municipal required local contributions | C15: DOR (EQV, Income, MRGFs), PY file (RLCs), parameters | D15: Copied FY20 RLCs into PY RLC column
A16: Aid436 | B16: Calculates district Ch 70 aid | C16: disthist, localcont, frac, parameters Starting w/ LEA 406, in col J (target aid %), formula changes to pull from frac tab. | D16: Added columns for minimum aid adjustment
A17: Frac | B17: Calculates target aid percentage for regional districts | D17: updated 1/13/2020
A18: DistHist | B18: ***Don't forget to copy in target aid %s from PY Historical C70 data used in summary report, and other places | D18: Copied in FY20 FB, RLC and Aid Copied in target aid %s from FY20***
A19: Dist435 | B19: Data source for foundation budget report, shows detailed enrollment and budget columns | C19: found20
A21: Data | B21: Source | C21: Year | D21: Notes
A22: Inflation | B22: BEA website | C22: Q3 2018 to Q3 2019 as of Dec 2018 (1.99%) | D22: Table 1.1.9. Implicit Price Deflators for Gross Domestic Product
A23: Wage Adjustment Factor Inputs | B23: EOLWD | C23: Calendar Year 2017 | D23: wagesense21
A24: EQV | B24: DOR | C24: 2018 EQV | D24: DOR file Dec. 2018
A25: Income | B25: DOR | C25: 2017 Income | D25: DOR file Dec. 2019
A26: Enrollment | B26: DESE | C26: FY21 | D26: found21multi
A27: Postgrad Enrollment | B27: DESE-CVTE office | C27: FY21 | D27: FY21
A28: MRGFs | B28: DOR/ANF | C28: FY21 | D28: DOR 1/8/2020

Sheet parameters (hidden)
A1: Cyr | B1: FY21 | C1: 21
A2: Pyr | B2: FY20 | C2: 20
A3: As of | B3: 2020-01-15
A5: Parameters | D5: Base | K5: Analysis of Aggregate Wealth Model Implementation
B6: Which version of foundation budget? | C6: 1 | D6: 1 | G6: FY20 C70 | H6: 5176002652
B7: Effort reduction | C7: 1 | D7: 0 | K7: Progress Towards Target Local Share
B8: Pct downpayment on target aid share | C8: 0 | D8: 0 | G8: FY20 foundation aid increase | H8: ='Aid436'!K448 -> 290761055
D9: 0 | L9: FY07 | M9: FY08 | N9: FY09 | O9: FY10 | P9: FY11 | Q9: FY12 | R9: FY13 | S9: FY14 | T9: FY15 | U9: FY16 | V9: FY17 | W9: FY18 | X9: FY19 | Y9: FY20 | Z9: FY21
G10: Minimum per pupil aid increase | H10: ='Aid436'!X448 -> 11928187 | K10: excess effort before effort reduction | L10: 621.084157 | M10: 494.058912 | N10: 372.382091 | O10: 228.110232 | P10: 366 | Q10: 293.3 | R10: 229.8 | S10: 234.5 | T10: 307.903014 | U10: 235.358789 | V10: 299.86437 | W10: 151.670894 | X10: 68.664221 | Y10: 21.435137 | Z10: ='Townwide Contributions'!V361/1000000 -> 29.71223
G11: Min aid adjustment increase | H11: ='Aid436'!AI448 -> 906487 | K11: effort reduction | L11: 124.2168314 | M11: 123.514728 | N11: 122.88609 | O11: 34.216535 | P11: 109.8 | Q11: 58.7 | R11: 34.5 | S11: 35.2 | T11: 153.951507 | U11: 117.6793945 | V11: 254.8847145 | W11: 128.9202599 | X11: 68.664221 | Y11: 21.435137 | Z11: ='Townwide Contributions'!V361/1000000 -> 29.71223
G12: Non-op reduction | H12: ='Aid436'!AK448 -> 63840.61 | K12: net excess after effort reduction | L12: 496.8673256 | M12: 370.544184 | N12: 249.496001 | O12: 193.893697 | P12: 256.2 | Q12: =Q10-Q11 -> 234.6 | R12: =R10-R11 -> 195.3 | S12: 199.3 | T12: 152.0806983 | U12: 117.4829132 | V12: 44.97879348 | W12: 22.74921402 | X12: 0 | Y12: 0 | Z12: ='Townwide Contributions'!AC361/1000000 -> 0
G13: FY20 Chapter 70 | H13: ='Aid436'!AM448 -> 5479225982 | K13: shortfall below target before increment | L13: -321.452322 | M13: -352.174875 | N13: -359.193563 | O13: -427.2 | P13: -228 | Q13: -211 | R13: -200 | S13: -180.2 | T13: -162.972215 | U13: -132.627218 | V13: -96.928091 | W13: -103.17317 | X13: -117.254713 | Y13: -207.485209 | Z13: ='Townwide Contributions'!AA361/1000000 -> -280.101486
B14: Per pupil guaranteed increase | C14: 30 | D14: 0 | G14: Devens | H14: =308558 -> 308558 | K14: additional increments toward target | L14: 0 | M14: -19.739149 | N14: -21.387588 | O14: -121.2 | P14: -10.6 | Q14: -10 | R14: -4.2 | S14: -3.9 | T14: -7.563093 | U14: -5.848739 | V14: -2.474215 | W14: -3.628178 | X14: -5.320349 | Y14: -19.253945 | Z14: =('Townwide Contributions'!T361/1000000*-1)+('Townwide Contributions'!W361/1000000*-1) -> -21.71278
B15: Which version of mrgf? | C15: 1 | D15: 1 | K15: net shortfall below target after increment | L15: -321.452322 | M15: -332.435726 | N15: -337.805975 | O15: -306 | P15: -217.4 | Q15: -200.9 | R15: -195.7 | S15: -176.3 | T15: -155.409122 | U15: -126.778479 | V15: -94.453876 | W15: -99.544992 | X15: -111.934364 | Y15: -188.231264 | Z15: ='Townwide Contributions'!AB361/1000000 -> -258.388706
B16: Below effort threshold 1 | C16: 2.5 | D16: 2.5 | G16: Change in C70 Appropriation | H16: =H13+H14-H6 -> 303531888.4 | K16: n of municipalities with effort too high | L16: 232 | M16: 218 | N16: 214 | O16: 193 | P16: 282 | Q16: 257 | R16: 249 | S16: 255 | T16: 279 | U16: 278 | V16: 303 | W16: 291 | X16: 0 | Y16: 0 | Z16: ='Townwide Contributions'!AC364 -> 0
B17: Below effort threshold 2 | C17: 7.5 | D17: 7.5 | G17: Percent Change | H17: =H16/H6 -> 0.05864214314
B18: Below effort contribution increment, 5-10% under | C18: 0.01 | D18: 0.01
B19: Below effort contribution increment, >10% under | C19: 0.02 | D19: 0.02 | G19: N of Foundation Aid Districts | H19: ='Aid436'!O448 -> 143
B20: Maximum local contribution pct of foundation | C20: 0.825 | D20: 0.825 | G20: N of Districts with an Aid Increase | H20: ='Comparison to FY20'!N331 -> 318
B21: Statewide target for local contribution % of foundation | C21: 0.59 | D21: 0.59 | G21: Total C70 Including Devens | H21: =H13+H14 -> 5479534540
B22: Cap contributions at fixed percentage of foundation | C22: 0.9 | D22: 0.9
B23: Percentage cut to base aid | C23: 0 | D23: 0
A24: Eqv/income percentages
B26: Target effort | C26: =C21*localcont!K1765 -> 7050981836
B27: Effort based upon following percentages | C27: ='Townwide Contributions'!K361 -> 7050981832
B28: Difference from target | C28: =IF(ABS(C27-C26)<10,0,C27-C26) -> 0
B29: Percentage of EQV | C29: 0.003741049384
B30: Percentage of INCOME | C30: =C29*1/C34 -> 0.01478907676
B32: Total EQV | C32: ='Townwide Contributions'!C361 -> 1249672575100
B33: Total Income | C33: ='Townwide Contributions'!E361 -> 3.16117557e+11
B34: State Average % of EQV | C34: =C33/C32 -> 0.252960306
A37: See Progress Towards Targets
K42: Progress Towards Target Aid Share
L44: FY07 | M44: FY08 | N44: FY09 | O44: FY10 | P44: FY11 | Q44: FY12 | R44: FY13 | S44: FY14 | T44: FY15 | U44: FY16 | V44: FY17 | W44: FY18 | X44: FY19 | Y44: FY20 | Z44: FY21
K45: aid above target | L45: 394.9 | M45: 421 | N45: 440.4 | O45: 413.5991456 | P45: 489.2905867 | Q45: 360.5802896 | R45: 372.9139726 | S45: 385.3 | T45: 404.6539336 | U45: 419.0730779 | V45: 488.1362137 | W45: 497.4038449 | X45: 487.8069694 | Y45: 518.4487954 | Z45: ='Aid436'!AT449/1000000 -> 579.4381995
K46: aid below target | L46: -176.3 | M46: -143 | N46: -105.5 | O46: -97.82363262 | P46: -75.73073977 | Q46: -110.4290612 | R46: -84.70629692 | S46: -66.9 | T46: -49.39921427 | U46: -44.48798888 | V46: -13.01302676 | W46: -7.202688836 | X46: -0.01809683687 | Y46: -0.001189981026 | Z46: ='Aid436'!AT450/1000000 -> -0.0004459086359
C50: =TEXT(effortred,"0%") -> 100%

Sheet Index
A1: Massachusetts Department of Elementary and Secondary Education | J1: 2020-01-22
A2: =parameters!B1& " Chapter 70 and Net School Spending Formula Spreadsheet" -> FY21 Chapter 70 and Net School Spending Formula Spreadsheet
B3: Select or type full district name below | C3: LEA code
A4: =C4 -> 999 | B4: Select a district | C4: =VLOOKUP(B4,leas!$E$4:$F$446,2,FALSE) -> 999
B6: Use the drop-down menu to select a municipal or regional district and then go to any of the first four links below.
B7: Only municipal district selections will activate the Municipal Contribution Requirement and Regional Allocation reports.
B8: A list of LEAs by code begins on row 26 of this sheet.
B10: We recommend that you save this workbook to your computer before proceeding, then leave this browser, and open the workbook using Excel or My Computer.
B12: Summary
B13: Foundation Budget
B14: Municipal Contribution Requirement
B15: Regional Allocation
B17: Regional District Detail | D17: (go to this sheet to see any particular regional district's comparison of enrollment and minimum contributions to the prior year)
B19: There are also a number of "hidden" sheets which contain the underlying spreadsheet calculations.
B20: They can be accessed by right-clicking on any of the tabs below and choosing a sheet to unhide.
B22: Questions or comments about Chapter 70 may be directed to:
B23: Rob O'Donnell | D23: rodonnell@doe.mass.edu | G23: 781-338-6512
B24: Rob Hanna | D24: robert.hanna@doe.mass.edu | G24: 781-338-6525
B26: District | D26: LEA Number
B27: Abington | D27: 1
B28: Acton | D28: 2
B29: Acton Boxborough | D29: 600
B30: Acushnet | D30: 3
B31: Adams | D31: 4
B32: Agawam | D32: 5
B33: Alford | D33: 6
B34: Amesbury | D34: 7
B35: Amherst | D35: 8
B36: Amherst Pelham | D36: 605
B37: Andover | D37: 9
B38: Arlington | D38: 10
B39: Ashburnham | D39: 11
B40: Ashburnham Westminster | D40: 610
B41: Ashby | D41: 12
B42: Ashfield | D42: 13
B43: Ashland | D43: 14
B44: Assabet Valley | D44: 801
B45: Athol | D45: 15
B46: Athol Royalston | D46: 615
B47: Attleboro | D47: 16
B48: Auburn | D48: 17
B49: Avon | D49: 18
B50: Ayer | D50: 19
B51: Ayer Shirley | D51: 616
B52: Barnstable | D52: 20
B53: Barre | D53: 21
B54: Becket | D54: 22
B55: Bedford | D55: 23
B56: Belchertown | D56: 24
B57: Bellingham | D57: 25
B58: Belmont | D58: 26
B59: Berkley | D59: 27
B60: Berkshire Hills | D60: 618
B61: Berlin | D61: 28
B62: Berlin Boylston | D62: 620
B63: Bernardston | D63: 29
B64: Beverly | D64: 30
B65: Billerica | D65: 31
B66: Blackstone | D66: 32
B67: Blackstone Millville | D67: 622
B68: Blackstone Valley | D68: 805
B69: Blandford | D69: 33
B70: Blue Hills | D70: 806
B71: Bolton | D71: 34
B72: Boston | D72: 35
B73: Bourne | D73: 36
B74: Boxborough | D74: 37
B75: Boxford | D75: 38
B76: Boylston | D76: 39
B77: Braintree | D77: 40
B78: Brewster | D78: 41
B79: Bridgewater | D79: 42
B80: Bridgewater Raynham | D80: 625
B81: Brimfield | D81: 43
B82: Bristol County | D82: 910
B83: Bristol Plymouth | D83: 810
B84: Brockton | D84: 44
B85: Brookfield | D85: 45
B86: Brookline | D86: 46
B87: Buckland | D87: 47
B88: Burlington | D88: 48
B89: Cambridge | D89: 49
B90: Canton | D90: 50
B91: Cape Cod | D91: 815
B92: Carlisle | D92: 51
B93: Carver | D93: 52
B94: Central Berkshire | D94: 635
B95: Charlemont | D95: 53
B96: Charlton | D96: 54
B97: Chatham | D97: 55
B98: Chelmsford | D98: 56
B99: Chelsea | D99: 57
B100: Cheshire | D100: 58
B101: Chester | D101: 59
B102: Chesterfield | D102: 60
B103: Chesterfield Goshen | D103: 632
B104: Chicopee | D104: 61
B105: Chilmark | D105: 62
B106: Clarksburg | D106: 63
B107: Clinton | D107: 64
B108: Cohasset | D108: 65
B109: Colrain | D109: 66
B110: Concord | D110: 67
B111: Concord Carlisle | D111: 640
B112: Conway | D112: 68
B113: Cummington | D113: 69
B114: Dalton | D114: 70
B115: Danvers | D115: 71
B116: Dartmouth | D116: 72
B117: Dedham | D117: 73
B118: Deerfield | D118: 74
B119: Dennis | D119: 75
B120: Dennis Yarmouth | D120: 645
B121: Dighton | D121: 76
B122: Dighton Rehoboth | D122: 650
B123: Douglas | D123: 77
B124: Dover | D124: 78
B125: Dover Sherborn | D125: 655
B126: Dracut | D126: 79
B127: Dudley | D127: 80
B128: Dudley Charlton | D128: 658
B129: Dunstable | D129: 81
B130: Duxbury | D130: 82
B131: East Bridgewater | D131: 83
B132: East Brookfield | D132: 84
B133: East Longmeadow | D133: 87
B134: Eastham | D134: 85
B135: Easthampton | D135: 86
B136: Easton | D136: 88
B137: Edgartown | D137: 89
B138: Egremont | D138: 90
B139: Erving | D139: 91
B140: Essex | D140: 92
B141: Essex North Shore | D141: 817
B142: Everett | D142: 93
B143: Fairhaven | D143: 94
B144: Fall River | D144: 95
B145: Falmouth | D145: 96
B146: Farmington River | D146: 662
B147: Fitchburg | D147: 97
B148: Florida | D148: 98
B149: Foxborough | D149: 99
B150: Framingham | D150: 100
B151: Franklin | D151: 101
B152: Franklin County | D152: 818
B153: Freetown | D153: 102
B154: Freetown Lakeville | D154: 665
B155: Frontier | D155: 670
B156: Gardner | D156: 103
B157: Gateway | D157: 672
B158: Gay Head | D158: 104
B159: Georgetown | D159: 105
B160: Gill | D160: 106
B161: Gill Montague | D161: 674
B162: Gloucester | D162: 107
B163: Goshen | D163: 108
B164: Gosnold | D164: 109
B165: Grafton | D165: 110
B166: Granby | D166: 111
B167: Granville | D167: 112
B168: Great Barrington | D168: 113
B169: Greater Fall River | D169: 821
B170: Greater Lawrence | D170: 823
B171: Greater Lowell | D171: 828
B172: Greater New Bedford | D172: 825
B173: Greenfield | D173: 114
B174: Groton | D174: 115
B175: Groton Dunstable | D175: 673
B176: Groveland | D176: 116
B177: Hadley | D177: 117
B178: Halifax | D178: 118
B179: Hamilton | D179: 119
B180: Hamilton Wenham | D180: 675
B181: Hampden | D181: 120
B182: Hampden Wilbraham | D182: 680
B183: Hampshire | D183: 683
B184: Hancock | D184: 121
B185: Hanover | D185: 122
B186: Hanson | D186: 123
B187: Hardwick | D187: 124
B188: Harvard | D188: 125
B189: Harwich | D189: 126
B190: Hatfield | D190: 127
B191: Haverhill | D191: 128
B192: Hawlemont | D192: 685
B193: Hawley | D193: 129
B194: Heath | D194: 130
B195: Hingham | D195: 131
B196: Hinsdale | D196: 132
B197: Holbrook | D197: 133
B198: Holden | D198: 134
B199: Holland | D199: 135
B200: Holliston | D200: 136
B201: Holyoke | D201: 137
B202: Hoosac Valley | D202: 603
B203: Hopedale | D203: 138
B204: Hopkinton | D204: 139
B205: Hubbardston | D205: 140
B206: Hudson | D206: 141
B207: Hull | D207: 142
... 257 more rows

Sheet MoreAboutData
B1: =CYr&" Chapter 70 and Net School Spending Formula" -> FY21 Chapter 70 and Net School Spending Formula | C1: FY18 Chapter 70 and Net School Spending Formula Spreadsheet | D1: FY18 Chapter 70 and Net School Spending Formula Spreadsheet | E1: FY18 Chapter 70 and Net School Spending Formula Spreadsheet | F1: FY18 Chapter 70 and Net School Spending Formula Spreadsheet | G1: Return to Index
B2: More about the data
A3: TABLE OF CONTENTS
A4: Index | E4: Back to the top
A5: Select the district you're interested in from the dropdown list on this sheet.
A6: Foundation Budget | E6: Back to the top
A7: This report displays the foundation enrollment and foundation budget for a single district. A district’s foundation budget is updated each year and it is derived by multiplying the number of pupils in thirteen enrollment categories by cost rates in eleven functional areas.
A9: Key Terms
A10: Foundation Enrollment: A count of the students for whom a school district is financially responsible on October 1st of any given year. Inflation: Foundation budget rates are adjusted each year by a statutorily defined inflationary factor. It affects all districts in the same way. Wage Adjustment Factor (WAF): Gives a district credit for having higher school costs if it is located in a geographic area where average wages are higher than in other areas of the state. Calculated using the latest available average wage data supplied by the state’s Executive Office of Labor and Workforce Development (EOLWD). Low Income Group: Determined based on the relative concentration of low income students served in the district. Corresponds to a foundation budget rate for low income students.
A11: Municipal Contribution | E11: Back to the top
A12: This report displays the required local contribution for a single municipality. Each municipality has a target local share of its foundation budget, based on local ability to pay. The required local contribution for each municipality is based on the previous year's required contribution, and includes some transition factors so that the shift toward the target levels occurs over a period of several years.
A14: Key Terms
A15: Equalized Valuation (EQV): Calculated by DOR every two years. Full and fair cash value of all taxable property for each municipality. Income: Derived annually by DOR from state income tax returns. Includes all forms of wage, pension, interest, business, investment, and capital gains income. Combined Effort Yield (CEY): Sum of property and income effort. Based on DESE-calculated property and income percentages, which, when applied to all municipalities in the Commonwealth, yields 59% of statewide foundation coming from local revenue. Target Local Contribution/Share: Calculated for each municipality as an equitable share of its foundation budget based on property wealth and income. Municipal Revenue Growth Factor (MRGF): Calculated each year by DOR and quantifies the most recent annual percentage change in each community's local revenues (such as the annual increase in the Proposition 2½ levy limit) that should be available for schools.
A16: Regional Allocation | E16: Back to the top
A17: This report displays the allocation of a municipality's required local contribution across the districts to which it belongs. The municipality's required contribution is allocated in direct proportion to the district's share of the municipality's foundation budget.
A18: Summary | E18: Back to the top
A19: This report displays the Chapter 70 aid calculation for a single district. The aid calculation begins with each district's prior year Chapter 70 amount. The difference between each district's foundation budget and its required contribution equals foundation aid. On the right-hand side, there is a comparison to the prior year.
A20: Key Terms
A21: Foundation Aid: The amount of aid needed by a district to reach its foundation budget, after factoring in this year's required local contribution. Foundation budget - Required Local Contribution = Foundation Aid Minimum Aid: A guaranteed per pupil aid increase over the prior year. Minimum Aid Adjustment: The minimum aid adjustment provides “hold harmless” aid to districts that otherwise would have lost aid due to the new foundation budget factors in the Student Opportunity Act. An aid adjustment increment is included in the total Chapter 70 aid amount to ensure that all operating districts receive Chapter 70 aid equal to or greater than the minimum aid adjustment. Required Net School Spending (NSS): The sum of this year's required local contribution and Chapter 70 aid. A district must spend this amount to be in compliance.
A22: Regional District Members | E22: Back to the top
A23: This report displays relevant data for municipal members of a single regional district.
A24: Key Terms
A25: Foundation Enrollment: Foundation enrollment for the selected district, in total and by member. Required Minimum Contribution: Total required minimum contribution for the selected district, in total and by member.
A26: Comparison to FY20 | E26: Back to the top
A27: This report displays prior year and current year foundation enrollment, foundation budget, required local contribution and Chapter 70 aid for all operating districts.
A29: Rates | E29: Back to the top
A30: This sheet displays the FY21 foundation budget rates.
A31: Townwide Contributions | E31: Back to the top
A32: This sheet calculates FY21 required local contributions for each municipality.
A33: Aid436 | E33: Back to the top
A34: This sheet calculates FY21 Chapter 70 aid for each district.

Sheet localcont
I1: c70fy20 | J1: c70fy20 | O1: c70fy20 | R1: c70fy20 | Z1: 2020-01-09 | AX1: 2019-03-21 | BD1: 2019-03-21 | CM1: Lookup table for foundation budget scenarios | CN1: 1 | CO1: 2
CN2: 2 | CO2: 8
D3: 1 | E3: 2 | F3: 3 | G3: 4 | H3: 5 | I3: 6 | J3: 7 | K3: 8 | L3: 9 | M3: 10 | N3: 11 | O3: 12 | P3: 13 | Q3: 14 | R3: 15 | S3: 16 | T3: 17 | U3: 18 | V3: 19 | W3: 20 | X3: 21 | Y3: 1 | Z3: 2 | AA3: 3 | AB3: 4 | AC3: 5 | AD3: 6 | AE3: 7 | AF3: 8 | AG3: 9 | AH3: 10 | AI3: 11 | AJ3: 12 | AK3: 13 | AL3: 14 | AM3: 15 | AN3: 16 | AO3: 17 | AP3: 18 | AQ3: 19 | AR3: 20 | AS3: 21 | AT3: 22 | AU3: 23 | AV3: 24 | AW3: 25 | AX3: 26 | AY3: 27 | AZ3: 28 | BA3: 29 | BB3: 30 | BC3: 31 | BD3: 32 | BE3: 33 | BF3: 34 | BG3: 35 | BH3: 36 | BI3: 37 | BJ3: 38 | BK3: 39 | BL3: 40 | BM3: 41 | BN3: 42 | BO3: 43 | BP3: 44 | BQ3: 45 | BR3: 46 | BS3: 47 | BT3: 48 | BU3: 49 | BV3: 50 | BW3: 51 | BX3: 52 | BY3: 53 | BZ3: 54 | CA3: 55 | CB3: 56 | CC3: 57 | CD3: 58 | CE3: 59 | CF3: 60 | CG3: 61 | CH3: 62 | CI3: 63 | CJ3: 64 | CK3: 65 | CL3: 66 | CN3: 3 | CO3: 14 | CR3: 62 | CS3: 63 | CT3: 64 | CU3: 65 | CV3: 66
G4: lea1755 | K4: found1755 | N4: prelcont1755 | O4: pynetJin | R4: pyenro | W4: enro1755 | CN4: 4 | CO4: 20
Z5: 1 | AF5: 2 | AL5: 3 | AR5: 4 | AX5: 5 | BD5: 6 | BJ5: 7 | BP5: 8 | BV5: 9 | CB5: 10 | CH5: 11 | CN5: 5 | CO5: 26 | CR5: FY19
T6: =parameters!$C$6 -> 1 | Z6: FY21 | CN6: 6 | CO6: 32 | CR6: FY19
I7: =PYr -> FY20 | J7: =PYr -> FY20 | K7: =CYr -> FY21 | L7: =CYr -> FY21 | M7: =CYr -> FY21 | N7: =CYr -> FY21 | O7: =PYr -> FY20 | CN7: 7 | CO7: 38 | CW7: FY19 | CX7: FY19
I8: Foundation | J8: Share of Total | K8: Foundation | L8: Share of Total | M8: Townwide | N8: Net Minimum | O8: Net Minimum | P8: =PYr&" to "&CYr -> FY20 to FY21 | Q8: Percent | R8: =PYr -> FY20 | S8: FY21 | W8: final | X8: foundation | AC8: final | AD8: foundation | AI8: final | AJ8: foundation | AO8: final | AP8: foundation | AU8: final | AV8: foundation | BA8: final | BB8: foundation | BG8: final | BH8: foundation | BM8: final | BN8: foundation | BS8: final | BT8: foundation | BY8: final | BZ8: foundation | CE8: final | CF8: foundation | CK8: final | CL8: foundation | CN8: 8 | CO8: 44 | CU8: final | CV8: foundation | CW8: Share of Total | CX8: Net Minimum
A9: TownLEA | B9: Town | C9: LEA | D9: Order | E9: Town | F9: City or Town | G9: LEA | H9: School District | I9: Budget | J9: Foundation | K9: Budget | L9: Foundation | M9: Contribution | N9: Contribution | O9: Contribution | P9: Change | Q9: Change | R9: Enrollment | S9: Enrollment | T9: Town | U9: LEA | V9: Order | W9: enrollment | X9: budget | Z9: Town | AA9: LEA | AB9: Order | AC9: enrollment | AD9: budget | AF9: Town | AG9: LEA | AH9: Order | AI9: enrollment | AJ9: budget | AL9: Town | AM9: LEA | AN9: Order | AO9: enrollment | AP9: budget | AR9: Town | AS9: LEA | AT9: Order | AU9: enrollment | AV9: budget | AX9: Town | AY9: LEA | AZ9: Order | BA9: enrollment | BB9: budget | BD9: Town | BE9: LEA | BF9: Order | BG9: enrollment | BH9: budget | BJ9: Town | BK9: LEA | BL9: Order | BM9: enrollment | BN9: budget | BP9: Town | BQ9: LEA | BR9: Order | BS9: enrollment | BT9: budget | BV9: Town | BW9: LEA | BX9: Order | BY9: enrollment | BZ9: budget | CB9: Town | CC9: LEA | CD9: Order | CE9: enrollment | CF9: budget | CH9: Town | CI9: LEA | CJ9: Order | CK9: enrollment | CL9: budget | CN9: 9 | CO9: 50 | CR9: Town | CS9: LEA | CT9: Order | CU9: enrollment | CV9: budget | CW9: Foundation | CX9: Contribution
A10: =B10&C10 -> 00010001 | B10: 0001 | C10: 0001 | D10: 1 | E10: 1 | F10: Abington | G10: 1 | H10: Abington | I10: 23388476.61 | J10: 0.9336205456 | K10: =X10 -> 25403702.41 | L10: =IF(K14>0, K10/K14, 0) -> 0.9428394164 | N10: =ROUND(M14*L10,0) -> 15436064 | O10: 14463601 | P10: =N10-O10 -> 972463 | Q10: =IF(O10>0,P10*100/O10,IF(P10>0,100,0)) -> 6.723519267 | R10: 2105 | S10: 2197 | T10: =VLOOKUP($D10, foundoptions, VLOOKUP($T$6, foundoptcell, 2, FALSE), FALSE) -> 1 | U10: =VLOOKUP($D10, foundoptions, VLOOKUP($T$6, foundoptcell, 2, FALSE)+1, FALSE) -> 1 | V10: =VLOOKUP($D10, foundoptions, VLOOKUP($T$6, foundoptcell, 2, FALSE)+2, FALSE) -> 1 | W10: =VLOOKUP($D10, foundoptions, VLOOKUP($T$6, foundoptcell, 2, FALSE)+3, FALSE) -> 2197 | X10: =VLOOKUP($D10, foundoptions, VLOOKUP($T$6, foundoptcell, 2, FALSE)+4, FALSE) -> 25403702.41 | Y10: =D10 -> 1 | Z10: 1 | AA10: 1 | AB10: 1 | AC10: 2197 | AD10: 25403702.41 | CN10: 10 | CO10: 56 | CR10: 1 | CS10: 1 | CT10: 1 | CU10: 2024 | CV10: 21515960.21 | CW10: 0.917737123 | CX10: 13701008
A11: 00010873 | B11: 0001 | C11: 0873 | D11: 2 | E11: 1 | F11: Abington | G11: 873 | H11: South Shore | I11: 1662896.479 | J11: 0.06637945444 | K11: =X11 -> 1540124.893 | L11: =IF(K14>0, K11/K14, 0) -> 0.0571605836 | N11: =ROUND(M14*L11,0) -> 935827 | O11: 1028347 | P11: =N11-O11 -> -92520 | Q11: -8.996963087 | R11: 94.64716007 | S11: 84.46580407 | T11: 1 | U11: 873 | V11: 2 | W11: 84.46580407 | X11: 1540124.893 | Y11: =D11 -> 2 | Z11: 1 | AA11: 873 | AB11: 2 | AC11: 84.46580407 | AD11: 1540124.893 | CN11: 11 | CO11: 62 | CR11: 1 | CS11: 873 | CT11: 2 | CU11: 115 | CV11: 1928618.495 | CW11: 0.08226287702 | CX11: 1228112
A12: 00010998 | B12: 0001 | C12: 0998 | D12: 3 | E12: 1 | G12: 998 | I12: 0 | J12: 0 | K12: =X12 -> 0 | L12: =IF(K14>0, K12/K14, 0) -> 0 | N12: =ROUND(M14*L12,0) -> 0 | O12: 0 | P12: =N12-O12 -> 0 | Q12: 0 | R12: 0 | S12: 0 | T12: 1 | U12: 998 | V12: 3 | W12: 0 | X12: 0 | Y12: 3 | Z12: 1 | AA12: 998 | AB12: 3 | AC12: 0 | AD12: 0 | CR12: 1 | CS12: 998 | CT12: 3 | CU12: 0 | CV12: 0 | CW12: 0 | CX12: 0
A13: 00010998 | B13: 0001 | C13: 0998 | D13: 4 | E13: 1 | G13: 998 | I13: 0 | J13: 0 | K13: =X13 -> 0 | L13: =IF(K14>0, K13/K14, 0) -> 0 | N13: =ROUND(M14*L13,0) -> 0 | O13: 0 | P13: =N13-O13 -> 0 | Q13: 0 | R13: 0 | S13: 0 | T13: 1 | U13: 998 | V13: 4 | W13: 0 | X13: 0 | Y13: 4 | Z13: 1 | AA13: 998 | AB13: 4 | AC13: 0 | AD13: 0 | CR13: 1 | CS13: 998 | CT13: 4 | CU13: 0 | CV13: 0 | CW13: 0 | CX13: 0
A14: 00010999 | B14: 0001 | C14: 0999 | D14: 5 | E14: 1 | F14: Abington | G14: 999 | H14: Total | I14: 25051373.09 | J14: 1 | K14: =SUM(K10:K13) -> 26943827.3 | L14: =SUM(L10:L13) -> 1 | M14: =VLOOKUP(E14,town351,24) -> 16371891 | N14: =SUM(N10:N13) -> 16371891 | O14: 15491948 | P14: =SUM(P10:P13) -> 879943 | Q14: 5.680002282 | R14: 2199.64716 | S14: 2281.465804 | T14: 1 | U14: 999 | V14: 5 | W14: 2281.465804 | X14: 26943827.3 | Y14: 5 | Z14: 1 | AA14: 999 | AB14: 5 | AC14: 2281.465804 | AD14: 26943827.3 | CR14: 1 | CS14: 999 | CT14: 5 | CU14: 2139 | CV14: 23444578.71 | CW14: 1 | CX14: 14929120
A15: 00020002 | B15: 0002 | C15: 0002 | D15: 6 | E15: 2 | F15: Acton | G15: 2 | H15: Acton | I15: 0 | J15: 0 | K15: =X15 -> 0 | L15: =IF(K19>0, K15/K19, 0) -> 0 | N15: =ROUND(M19*L15,0) -> 0 | O15: 0 | P15: =N15-O15 -> 0 | Q15: 0 | R15: 0 | S15: 0 | T15: 2 | U15: 2 | V15: 6 | W15: 0 | X15: 0 | Y15: 6 | Z15: 2 | AA15: 2 | AB15: 6 | AC15: 0 | AD15: 0 | CR15: 2 | CS15: 2 | CT15: 6 | CU15: 0 | CV15: 0 | CW15: 0 | CX15: 0
A16: 00020600 | B16: 0002 | C16: 0600 | D16: 7 | E16: 2 | F16: Acton | G16: 600 | H16: Acton Boxborough | I16: 48574850.57 | J16: 0.9880265875 | K16: 48847617.74 | L16: =IF(K19>0, K16/K19, 0) -> 0.9817995773 | N16: =ROUND(M19*L16,0) -> 38774483 | O16: 37733689 | P16: =N16-O16 -> 1040794 | Q16: 2.758261987 | R16: 4585.679103 | S16: 4437.978144 | T16: 2 | U16: 600 | V16: 7 | W16: 4437.978144 | X16: 48847617.74 | Y16: 7 | Z16: 2 | AA16: 600 | AB16: 7 | AC16: 4437.978144 | AD16: 48847617.74 | CR16: 2 | CS16: 600 | CT16: 7 | CU16: 4587.53929 | CV16: 46559239.31 | CW16: 0.9866805097 | CX16: 35990717
A17: 00020830 | B17: 0002 | C17: 0830 | D17: 8 | E17: 2 | F17: Acton | G17: 830 | H17: Minuteman | I17: 588654.9299 | J17: 0.01197341247 | K17: 905528.2893 | L17: =IF(K19>0, K17/K19, 0) -> 0.01820042272 | N17: =ROUND(M19*L17,0) -> 718794 | O17: 457276 | P17: =N17-O17 -> 261518 | Q17: 57.19040579 | R17: 32 | S17: 45.41075795 | T17: 2 | U17: 830 | V17: 8 | W17: 45.41075795 | X17: 905528.2893 | Y17: 8 | Z17: 2 | AA17: 830 | AB17: 8 | AC17: 45.41075795 | AD17: 905528.2893 | CR17: 2 | CS17: 830 | CT17: 8 | CU17: 35.1026393 | CV17: 628516.8595 | CW17: 0.01331949028 | CX17: 485849
A18: 00020998 | B18: 0002 | C18: 0998 | D18: 9 | E18: 2 | G18: 998 | I18: 0 | J18: 0 | K18: 0 | L18: =IF(K19>0, K18/K19, 0) -> 0 | N18: =ROUND(M19*L18,0) -> 0 | O18: 0 | P18: =N18-O18 -> 0 | Q18: 0 | R18: 0 | S18: 0 | T18: 2 | U18: 998 | V18: 9 | W18: 0 | X18: 0 | Y18: 9 | Z18: 2 | AA18: 998 | AB18: 9 | AC18: 0 | AD18: 0 | CR18: 2 | CS18: 998 | CT18: 9 | CU18: 0 | CV18: 0 | CW18: 0 | CX18: 0
A19: 00020999 | B19: 0002 | C19: 0999 | D19: 10 | E19: 2 | F19: Acton | G19: 999 | H19: Total | I19: 49163505.5 | J19: 1 | K19: =SUM(K15:K18) -> 49753146.03 | L19: =SUM(L15:L18) -> 1 | M19: =VLOOKUP(E19,town351,24) -> 39493277 | N19: =SUM(N15:N18) -> 39493277 | O19: 38190965 | P19: =SUM(P15:P18) -> 1302312 | Q19: =IF(O19>0,P19*100/O19,IF(P19>0,100,0)) -> 3.410000245 | R19: 4617.679103 | S19: 4483.388902 | T19: 2 | U19: 999 | V19: 10 | W19: 4483.388902 | X19: 49753146.03 | Y19: 10 | Z19: 2 | AA19: 999 | AB19: 10 | AC19: 4483.388902 | AD19: 49753146.03 | CR19: 2 | CS19: 999 | CT19: 10 | CU19: 4622.641929 | CV19: 47187756.17 | CW19: 1 | CX19: 36476566
A20: 00030003 | B20: 0003 | C20: 0003 | D20: 11 | E20: 3 | F20: Acushnet | G20: 3 | H20: Acushnet | I20: 13443441.48 | J20: 0.852640232 | K20: =X20 -> 14140972.61 | L20: =IF(K24>0, K20/K24, 0) -> 0.8530729518 | N20: =ROUND(M24*L20,0) -> 7863272 | O20: 7498601 | P20: =N20-O20 -> 364671 | Q20: 4.863187147 | R20: 1272 | S20: 1292 | T20: 3 | U20: 3 | V20: 11 | W20: 1292 | X20: 14140972.61 | Y20: 11 | Z20: 3 | AA20: 3 | AB20: 11 | AC20: 1292 | AD20: 14140972.61 | CR20: 3 | CS20: 3 | CT20: 11 | CU20: 1227 | CV20: 12395984.84 | CW20: 0.8408793154 | CX20: 7125126
A21: 00030855 | B21: 0003 | C21: 0855 | D21: 12 | E21: 3 | F21: Acushnet | G21: 855 | H21: Old Colony | I21: 2117481.57 | J21: 0.1342996865 | K21: 2259080.305 | L21: =IF(K24>0, K21/K24, 0) -> 0.1362820194 | N21: =ROUND(M24*L21,0) -> 1256191 | O21: 1181107 | P21: =N21-O21 -> 75084 | Q21: 6.357087038 | R21: 127 | S21: 128.5505376 | T21: 3 | U21: 855 | V21: 12 | W21: 128.5505376 | X21: 2259080.305 | Y21: 12 | Z21: 3 | AA21: 855 | AB21: 12 | AC21: 128.5505376 | AD21: 2259080.305 | CR21: 3 | CS21: 855 | CT21: 12 | CU21: 133 | CV21: 2136088.548 | CW21: 0.1449011675 | CX21: 1227809
A22: 00030910 | B22: 0003 | C22: 0910 | D22: 13 | E22: 3 | F22: Acushnet | G22: 910 | H22: Bristol County | I22: 205916.2044 | J22: 0.01306008142 | K22: 176457.4302 | L22: =IF(K24>0, K22/K24, 0) -> 0.01064502881 | N22: =ROUND(M24*L22,0) -> 98121 | O22: 114858 | P22: =N22-O22 -> -16737 | Q22: -14.57190618 | R22: 12 | S22: 10 | T22: 3 | U22: 910 | V22: 13 | W22: 10 | X22: 176457.4302 | Y22: 13 | Z22: 3 | AA22: 910 | AB22: 13 | AC22: 10 | AD22: 176457.4302 | CR22: 3 | CS22: 910 | CT22: 13 | CU22: 13 | CV22: 209619.7569 | CW22: 0.01421951704 | CX22: 120488
A23: 00030998 | B23: 0003 | C23: 0998 | D23: 14 | E23: 3 | G23: 998 | I23: 0 | J23: 0 | K23: 0 | L23: =IF(K24>0, K23/K24, 0) -> 0 | N23: =ROUND(M24*L23,0) -> 0 | O23: 0 | P23: =N23-O23 -> 0 | Q23: 0 | R23: 0 | S23: 0 | T23: 3 | U23: 998 | V23: 14 | W23: 0 | X23: 0 | Y23: 14 | Z23: 3 | AA23: 998 | AB23: 14 | AC23: 0 | AD23: 0 | CR23: 3 | CS23: 998 | CT23: 14 | CU23: 0 | CV23: 0 | CW23: 0 | CX23: 0
A24: 00030999 | B24: 0003 | C24: 0999 | D24: 15 | E24: 3 | F24: Acushnet | G24: 999 | H24: Total | I24: 15766839.26 | J24: 1 | K24: =SUM(K20:K23) -> 16576510.35 | L24: =SUM(L20:L23) -> 1 | M24: =VLOOKUP(E24,town351,24) -> 9217585 | N24: =SUM(N20:N23) -> 9217584 | O24: 8794566 | P24: =SUM(P20:P23) -> 423018 | Q24: 4.809992898 | R24: 1411 | S24: 1430.550538 | T24: 3 | U24: 999 | V24: 15 | W24: 1430.550538 | X24: 16576510.35 | Y24: 15 | Z24: 3 | AA24: 999 | AB24: 15 | AC24: 1430.550538 | AD24: 16576510.35 | CR24: 3 | CS24: 999 | CT24: 15 | CU24: 1373 | CV24: 14741693.14 | CW24: 1 | CX24: 8473423
A25: 00040004 | B25: 0004 | C25: 0004 | D25: 16 | E25: 4 | F25: Adams | G25: 4 | H25: Adams | I25: 0 | J25: 0 | K25: =X25 -> 0 | L25: =IF(K29>0, K25/K29, 0) -> 0 | N25: =ROUND(M29*L25,0) -> 0 | O25: 0 | P25: =N25-O25 -> 0 | Q25: 0 | R25: 0 | S25: 0 | T25: 4 | U25: 4 | V25: 16 | W25: 0 | X25: 0 | Y25: 16 | Z25: 4 | AA25: 4 | AB25: 16 | AC25: 0 | AD25: 0 | CR25: 4 | CS25: 4 | CT25: 16 | CU25: 0 | CV25: 0 | CW25: 0 | CX25: 0
A26: 00040603 | B26: 0004 | C26: 0603 | D26: 17 | E26: 4 | F26: Adams | G26: 603 | H26: Hoosac Valley | I26: 11341094.59 | J26: 0.827929119 | K26: 11176690.06 | L26: =IF(K29>0, K26/K29, 0) -> 0.8137133408 | N26: =ROUND(M29*L26,0) -> 3863738 | O26: 3804547 | P26: =N26-O26 -> 59191 | Q26: 1.555796262 | R26: 937.4886536 | S26: 901.7089494 | T26: 4 | U26: 603 | V26: 17 | W26: 901.7089494 | X26: 11176690.06 | Y26: 17 | Z26: 4 | AA26: 603 | AB26: 17 | AC26: 901.7089494 | AD26: 11176690.06 | CR26: 4 | CS26: 603 | CT26: 17 | CU26: 975.2043636 | CV26: 11011705.79 | CW26: 0.8352437046 | CX26: 3713168
A27: 00040851 | B27: 0004 | C27: 0851 | D27: 18 | E27: 4 | F27: Adams | G27: 851 | H27: Northern Berkshire | I27: 2357052.182 | J27: 0.172070881 | K27: 2558724.489 | L27: =IF(K29>0, K27/K29, 0) -> 0.1862866592 | N27: =ROUND(M29*L27,0) -> 884541 | O27: 790710 | P27: =N27-O27 -> 93831 | Q27: 11.86667678 | R27: 134 | S27: 141 | T27: 4 | U27: 851 | V27: 18 | W27: 141 | X27: 2558724.489 | Y27: 18 | Z27: 4 | AA27: 851 | AB27: 18 | AC27: 141 | AD27: 2558724.489 | CR27: 4 | CS27: 851 | CT27: 18 | CU27: 129 | CV27: 2172117.959 | CW27: 0.1647562954 | CX27: 732442
A28: 00040998 | B28: 0004 | C28: 0998 | D28: 19 | E28: 4 | G28: 998 | I28: 0 | J28: 0 | K28: 0 | L28: =IF(K29>0, K28/K29, 0) -> 0 | N28: =ROUND(M29*L28,0) -> 0 | O28: 0 | P28: =N28-O28 -> 0 | Q28: 0 | R28: 0 | S28: 0 | T28: 4 | U28: 998 | V28: 19 | W28: 0 | X28: 0 | Y28: 19 | Z28: 4 | AA28: 998 | AB28: 19 | AC28: 0 | AD28: 0 | CR28: 4 | CS28: 998 | CT28: 19 | CU28: 0 | CV28: 0 | CW28: 0 | CX28: 0
A29: 00040999 | B29: 0004 | C29: 0999 | D29: 20 | E29: 4 | F29: Adams | G29: 999 | H29: Total | I29: 13698146.77 | J29: 1 | K29: =SUM(K25:K28) -> 13735414.55 | L29: =SUM(L25:L28) -> 1 | M29: =VLOOKUP(E29,town351,24) -> 4748279 | N29: =SUM(N25:N28) -> 4748279 | O29: 4595257 | P29: =SUM(P25:P28) -> 153022 | Q29: 3.329998736 | R29: 1071.488654 | S29: 1042.708949 | T29: 4 | U29: 999 | V29: 20 | W29: 1042.708949 | X29: 13735414.55 | Y29: 20 | Z29: 4 | AA29: 999 | AB29: 20 | AC29: 1042.708949 | AD29: 13735414.55 | CR29: 4 | CS29: 999 | CT29: 20 | CU29: 1104.204364 | CV29: 13183823.75 | CW29: 1 | CX29: 4445610
A30: 00050005 | B30: 0005 | C30: 0005 | D30: 21 | E30: 5 | F30: Agawam | G30: 5 | H30: Agawam | I30: 42227451.05 | J30: 1 | K30: =X30 -> 42702195.18 | L30: =IF(K34>0, K30/K34, 0) -> 1 | N30: =ROUND(M34*L30,0) -> 23256462 | O30: 22951211 | P30: =N30-O30 -> 305251 | Q30: 1.329999537 | R30: 3677 | S30: 3623 | T30: 5 | U30: 5 | V30: 21 | W30: 3623 | X30: 42702195.18 | Y30: 21 | Z30: 5 | AA30: 5 | AB30: 21 | AC30: 3623 | AD30: 42702195.18 | CR30: 5 | CS30: 5 | CT30: 21 | CU30: 3773 | CV30: 41326070.32 | CW30: 1 | CX30: 22474431
A31: 00050998 | B31: 0005 | C31: 0998 | D31: 22 | E31: 5 | G31: 998 | I31: 0 | J31: 0 | K31: 0 | L31: =IF(K34>0, K31/K34, 0) -> 0 | N31: =ROUND(M34*L31,0) -> 0 | O31: 0 | P31: =N31-O31 -> 0 | Q31: 0 | R31: 0 | S31: 0 | T31: 5 | U31: 998 | V31: 22 | W31: 0 | X31: 0 | Y31: 22 | Z31: 5 | AA31: 998 | AB31: 22 | AC31: 0 | AD31: 0 | CR31: 5 | CS31: 998 | CT31: 22 | CU31: 0 | CV31: 0 | CW31: 0 | CX31: 0
A32: 00050998 | B32: 0005 | C32: 0998 | D32: 23 | E32: 5 | G32: 998 | I32: 0 | J32: 0 | K32: 0 | L32: =IF(K34>0, K32/K34, 0) -> 0 | N32: =ROUND(M34*L32,0) -> 0 | O32: 0 | P32: =N32-O32 -> 0 | Q32: 0 | R32: 0 | S32: 0 | T32: 5 | U32: 998 | V32: 23 | W32: 0 | X32: 0 | Y32: 23 | Z32: 5 | AA32: 998 | AB32: 23 | AC32: 0 | AD32: 0 | CR32: 5 | CS32: 998 | CT32: 23 | CU32: 0 | CV32: 0 | CW32: 0 | CX32: 0
A33: 00050998 | B33: 0005 | C33: 0998 | D33: 24 | E33: 5 | G33: 998 | I33: 0 | J33: 0 | K33: 0 | L33: =IF(K34>0, K33/K34, 0) -> 0 | N33: =ROUND(M34*L33,0) -> 0 | O33: 0 | P33: =N33-O33 -> 0 | Q33: 0 | R33: 0 | S33: 0 | T33: 5 | U33: 998 | V33: 24 | W33: 0 | X33: 0 | Y33: 24 | Z33: 5 | AA33: 998 | AB33: 24 | AC33: 0 | AD33: 0 | CR33: 5 | CS33: 998 | CT33: 24 | CU33: 0 | CV33: 0 | CW33: 0 | CX33: 0
A34: 00050999 | B34: 0005 | C34: 0999 | D34: 25 | E34: 5 | F34: Agawam | G34: 999 | H34: Total | I34: 42227451.05 | J34: 1 | K34: =SUM(K30:K33) -> 42702195.18 | L34: =SUM(L30:L33) -> 1 | M34: =VLOOKUP(E34,town351,24) -> 23256462 | N34: =SUM(N30:N33) -> 23256462 | O34: 22951211 | P34: =SUM(P30:P33) -> 305251 | Q34: 1.329999537 | R34: 3677 | S34: 3623 | T34: 5 | U34: 999 | V34: 25 | W34: 3623 | X34: 42702195.18 | Y34: 25 | Z34: 5 | AA34: 999 | AB34: 25 | AC34: 3623 | AD34: 42702195.18 | CR34: 5 | CS34: 999 | CT34: 25 | CU34: 3773 | CV34: 41326070.32 | CW34: 1 | CX34: 22474431
A35: 00060006 | B35: 0006 | C35: 0006 | D35: 26 | E35: 6 | F35: Alford | G35: 6 | H35: Alford | I35: 0 | J35: 0 | K35: =X35 -> 0 | L35: =IF(K39>0, K35/K39, 0) -> 0 | N35: =ROUND(M39*L35,0) -> 0 | O35: 0 | P35: =N35-O35 -> 0 | Q35: 0 | R35: 0 | S35: 0 | T35: 6 | U35: 6 | V35: 26 | W35: 0 | X35: 0 | Y35: 26 | Z35: 6 | AA35: 6 | AB35: 26 | AC35: 0 | AD35: 0 | CR35: 6 | CS35: 6 | CT35: 26 | CU35: 0 | CV35: 0 | CW35: 0 | CX35: 0
A36: 00060765 | B36: 0006 | C36: 0765 | D36: 27 | E36: 6 | F36: Alford | G36: 765 | H36: Southern Berkshire | I36: 263079.9496 | J36: 1 | K36: 251682.7313 | L36: =IF(K39>0, K36/K39, 0) -> 1 | N36: =ROUND(M39*L36,0) -> 207638 | O36: 217041 | P36: =N36-O36 -> -9403 | Q36: -4.332361167 | R36: 22.4619883 | S36: 21.27089337 | T36: 6 | U36: 765 | V36: 27 | W36: 21.27089337 | X36: 251682.7313 | Y36: 27 | Z36: 6 | AA36: 765 | AB36: 27 | AC36: 21.27089337 | AD36: 251682.7313 | CR36: 6 | CS36: 765 | CT36: 27 | CU36: 25.33131619 | CV36: 275789.3386 | CW36: 1 | CX36: 185505
A37: 00060998 | B37: 0006 | C37: 0998 | D37: 28 | E37: 6 | G37: 998 | I37: 0 | J37: 0 | K37: 0 | L37: =IF(K39>0, K37/K39, 0) -> 0 | N37: =ROUND(M39*L37,0) -> 0 | O37: 0 | P37: =N37-O37 -> 0 | Q37: 0 | R37: 0 | S37: 0 | T37: 6 | U37: 998 | V37: 28 | W37: 0 | X37: 0 | Y37: 28 | Z37: 6 | AA37: 998 | AB37: 28 | AC37: 0 | AD37: 0 | CR37: 6 | CS37: 998 | CT37: 28 | CU37: 0 | CV37: 0 | CW37: 0 | CX37: 0
A38: 00060998 | B38: 0006 | C38: 0998 | D38: 29 | E38: 6 | G38: 998 | I38: 0 | J38: 0 | K38: 0 | L38: =IF(K39>0, K38/K39, 0) -> 0 | N38: =ROUND(M39*L38,0) -> 0 | O38: 0 | P38: =N38-O38 -> 0 | Q38: 0 | R38: 0 | S38: 0 | T38: 6 | U38: 998 | V38: 29 | W38: 0 | X38: 0 | Y38: 29 | Z38: 6 | AA38: 998 | AB38: 29 | AC38: 0 | AD38: 0 | CR38: 6 | CS38: 998 | CT38: 29 | CU38: 0 | CV38: 0 | CW38: 0 | CX38: 0
A39: 00060999 | B39: 0006 | C39: 0999 | D39: 30 | E39: 6 | F39: Alford | G39: 999 | H39: Total | I39: 263079.9496 | J39: 1 | K39: =SUM(K35:K38) -> 251682.7313 | L39: =SUM(L35:L38) -> 1 | M39: =VLOOKUP(E39,town351,24) -> 207638 | N39: =SUM(N35:N38) -> 207638 | O39: 217041 | P39: =SUM(P35:P38) -> -9403 | Q39: -4.332361167 | R39: 22.4619883 | S39: 21.27089337 | T39: 6 | U39: 999 | V39: 30 | W39: 21.27089337 | X39: 251682.7313 | Y39: 30 | Z39: 6 | AA39: 999 | AB39: 30 | AC39: 21.27089337 | AD39: 251682.7313 | CR39: 6 | CS39: 999 | CT39: 30 | CU39: 25.33131619 | CV39: 275789.3386 | CW39: 1 | CX39: 185505
A40: 00070007 | B40: 0007 | C40: 0007 | D40: 31 | E40: 7 | F40: Amesbury | G40: 7 | H40: Amesbury | I40: 22996252.75 | J40: 0.9368666126 | K40: =X40 -> 22825386.48 | L40: =IF(K44>0, K40/K44, 0) -> 0.9290647329 | N40: =ROUND(M44*L40,0) -> 16246216 | O40: 15621860 | P40: =N40-O40 -> 624356 | Q40: 3.996681573 | R40: 2112 | S40: 2036 | T40: 7 | U40: 7 | V40: 31 | W40: 2036 | X40: 22825386.48 | Y40: 31 | Z40: 7 | AA40: 7 | AB40: 31 | AC40: 2036 | AD40: 22825386.48 | CR40: 7 | CS40: 7 | CT40: 31 | CU40: 2198 | CV40: 22830750.46 | CW40: 0.9490965242 | CX40: 15155898
A41: 00070885 | B41: 0007 | C41: 0885 | D41: 32 | E41: 7 | F41: Amesbury | G41: 885 | H41: Whittier | I41: 1549667.064 | J41: 0.0631333874 | K41: 1742747.12 | L41: =IF(K44>0, K41/K44, 0) -> 0.07093526712 | N41: =ROUND(M44*L41,0) -> 1240419 | O41: 1052723 | P41: =N41-O41 -> 187696 | Q41: 17.8295715 | R41: 90 | S41: 95.00000001 | T41: 7 | U41: 885 | V41: 32 | W41: 95.00000001 | X41: 1742747.12 | Y41: 32 | Z41: 7 | AA41: 885 | AB41: 32 | AC41: 95.00000001 | AD41: 1742747.12 | CR41: 7 | CS41: 885 | CT41: 32 | CU41: 74 | CV41: 1224495.637 | CW41: 0.05090347576 | CX41: 812866
A42: 00070998 | B42: 0007 | C42: 0998 | D42: 33 | E42: 7 | G42: 998 | I42: 0 | J42: 0 | K42: 0 | L42: =IF(K44>0, K42/K44, 0) -> 0 | N42: =ROUND(M44*L42,0) -> 0 | O42: 0 | P42: =N42-O42 -> 0 | Q42: 0 | R42: 0 | S42: 0 | T42: 7 | U42: 998 | V42: 33 | W42: 0 | X42: 0 | Y42: 33 | Z42: 7 | AA42: 998 | AB42: 33 | AC42: 0 | AD42: 0 | CR42: 7 | CS42: 998 | CT42: 33 | CU42: 0 | CV42: 0 | CW42: 0 | CX42: 0
A43: 00070998 | B43: 0007 | C43: 0998 | D43: 34 | E43: 7 | G43: 998 | I43: 0 | J43: 0 | K43: 0 | L43: =IF(K44>0, K43/K44, 0) -> 0 | N43: =ROUND(M44*L43,0) -> 0 | O43: 0 | P43: =N43-O43 -> 0 | Q43: 0 | R43: 0 | S43: 0 | T43: 7 | U43: 998 | V43: 34 | W43: 0 | X43: 0 | Y43: 34 | Z43: 7 | AA43: 998 | AB43: 34 | AC43: 0 | AD43: 0 | CR43: 7 | CS43: 998 | CT43: 34 | CU43: 0 | CV43: 0 | CW43: 0 | CX43: 0
A44: 00070999 | B44: 0007 | C44: 0999 | D44: 35 | E44: 7 | F44: Amesbury | G44: 999 | H44: Total | I44: 24545919.81 | J44: 1 | K44: =SUM(K40:K43) -> 24568133.6 | L44: =SUM(L40:L43) -> 1 | M44: =VLOOKUP(E44,town351,24) -> 17486635 | N44: =SUM(N40:N43) -> 17486635 | O44: 16674583 | P44: =SUM(P40:P43) -> 812052 | Q44: 4.869998848 | R44: 2202 | S44: 2131 | T44: 7 | U44: 999 | V44: 35 | W44: 2131 | X44: 24568133.6 | Y44: 35 | Z44: 7 | AA44: 999 | AB44: 35 | AC44: 2131 | AD44: 24568133.6 | CR44: 7 | CS44: 999 | CT44: 35 | CU44: 2272 | CV44: 24055246.1 | CW44: 1 | CX44: 15968764
A45: 00080008 | B45: 0008 | C45: 0008 | D45: 36 | E45: 8 | F45: Amherst | G45: 8 | H45: Amherst | I45: 12803970.65 | J45: 0.490800974 | K45: =X45 -> 13098312.06 | L45: =IF(K49>0, K45/K49, 0) -> 0.4888269592 | N45: =ROUND(M49*L45,0) -> 9900603 | O45: 9508882 | P45: =N45-O45 -> 391721 | Q45: 4.119527406 | R45: 1134 | S45: 1097 | T45: 8 | U45: 8 | V45: 36 | W45: 1097 | X45: 13098312.06 | Y45: 36 | Z45: 8 | AA45: 8 | AB45: 36 | AC45: 1097 | AD45: 13098312.06 | CR45: 8 | CS45: 8 | CT45: 36 | CU45: 1106 | CV45: 11969353.38 | CW45: 0.4813199267 | CX45: 8946746
A46: 00080605 | B46: 0008 | C46: 0605 | D46: 37 | E46: 8 | F46: Amherst | G46: 605 | H46: Amherst Pelham | I46: 13283937.34 | J46: 0.509199026 | K46: 13697084.17 | L46: =IF(K49>0, K46/K49, 0) -> 0.5111730408 | N46: =ROUND(M49*L46,0) -> 10353197 | O46: 9865329 | P46: =N46-O46 -> 487868 | Q46: 4.945278561 | R46: 1123 | S46: 1131 | T46: 8 | U46: 605 | V46: 37 | W46: 1131 | X46: 13697084.17 | Y46: 37 | Z46: 8 | AA46: 605 | AB46: 37 | AC46: 1131 | AD46: 13697084.17 | CR46: 8 | CS46: 605 | CT46: 37 | CU46: 1152 | CV46: 12898416.93 | CW46: 0.5186800733 | CX46: 9641195
A47: 00080998 | B47: 0008 | C47: 0998 | D47: 38 | E47: 8 | G47: 998 | I47: 0 | J47: 0 | K47: 0 | L47: =IF(K49>0, K47/K49, 0) -> 0 | N47: =ROUND(M49*L47,0) -> 0 | O47: 0 | P47: =N47-O47 -> 0 | Q47: 0 | R47: 0 | S47: 0 | T47: 8 | U47: 998 | V47: 38 | W47: 0 | X47: 0 | Y47: 38 | Z47: 8 | AA47: 998 | AB47: 38 | AC47: 0 | AD47: 0 | CR47: 8 | CS47: 998 | CT47: 38 | CU47: 0 | CV47: 0 | CW47: 0 | CX47: 0
A48: 00080998 | B48: 0008 | C48: 0998 | D48: 39 | E48: 8 | G48: 998 | I48: 0 | J48: 0 | K48: 0 | L48: =IF(K49>0, K48/K49, 0) -> 0 | N48: =ROUND(M49*L48,0) -> 0 | O48: 0 | P48: =N48-O48 -> 0 | Q48: 0 | R48: 0 | S48: 0 | T48: 8 | U48: 998 | V48: 39 | W48: 0 | X48: 0 | Y48: 39 | Z48: 8 | AA48: 998 | AB48: 39 | AC48: 0 | AD48: 0 | CR48: 8 | CS48: 998 | CT48: 39 | CU48: 0 | CV48: 0 | CW48: 0 | CX48: 0
A49: 00080999 | B49: 0008 | C49: 0999 | D49: 40 | E49: 8 | F49: Amherst | G49: 999 | H49: Total | I49: 26087907.99 | J49: 1 | K49: =SUM(K45:K48) -> 26795396.23 | L49: =SUM(L45:L48) -> 1 | M49: =VLOOKUP(E49,town351,24) -> 20253800 | N49: =SUM(N45:N48) -> 20253800 | O49: 19374211 | P49: =SUM(P45:P48) -> 879589 | Q49: 4.539999074 | R49: 2257 | S49: 2228 | T49: 8 | U49: 999 | V49: 40 | W49: 2228 | X49: 26795396.23 | Y49: 40 | Z49: 8 | AA49: 999 | AB49: 40 | AC49: 2228 | AD49: 26795396.23 | CR49: 8 | CS49: 999 | CT49: 40 | CU49: 2258 | CV49: 24867770.31 | CW49: 1 | CX49: 18587941
A50: 00090009 | B50: 0009 | C50: 0009 | D50: 41 | E50: 9 | F50: Andover | G50: 9 | H50: Andover | I50: 63835635.79 | J50: 0.9903391191 | K50: =X50 -> 64773743.4 | L50: =IF(K54>0, K50/K54, 0) -> 0.9895143089 | N50: =ROUND(M54*L50,0) -> 53438338 | O50: 52178457 | P50: =N50-O50 -> 1259881 | Q50: 2.414561626 | R50: 5835 | S50: 5740 | T50: 9 | U50: 9 | V50: 41 | W50: 5740 | X50: 64773743.4 | Y50: 41 | Z50: 9 | AA50: 9 | AB50: 41 | AC50: 5740 | AD50: 64773743.4 | CR50: 9 | CS50: 9 | CT50: 41 | CU50: 5805 | CV50: 60546641.05 | CW50: 0.9910091393 | CX50: 49950979
A51: 00090823 | B51: 0009 | C51: 0823 | D51: 42 | E51: 9 | F51: Andover | G51: 823 | H51: Greater Lawrence | I51: 622724.5424 | J51: 0.009660880903 | K51: 686394.7911 | L51: =IF(K54>0, K51/K54, 0) -> 0.01048569114 | N51: =ROUND(M54*L51,0) -> 566276 | O51: 509007 | P51: =N51-O51 -> 57269 | Q51: 11.25112228 | R51: 31.00000001 | S51: 32 | T51: 9 | U51: 823 | V51: 42 | W51: 32 | X51: 686394.7911 | Y51: 42 | Z51: 9 | AA51: 823 | AB51: 42 | AC51: 32 | AD51: 686394.7911 | CR51: 9 | CS51: 823 | CT51: 42 | CU51: 29 | CV51: 549305.1397 | CW51: 0.00899086067 | CX51: 453177
A52: 00090998 | B52: 0009 | C52: 0998 | D52: 43 | E52: 9 | G52: 998 | I52: 0 | J52: 0 | K52: 0 | L52: =IF(K54>0, K52/K54, 0) -> 0 | N52: =ROUND(M54*L52,0) -> 0 | O52: 0 | P52: =N52-O52 -> 0 | Q52: 0 | R52: 0 | S52: 0 | T52: 9 | U52: 998 | V52: 43 | W52: 0 | X52: 0 | Y52: 43 | Z52: 9 | AA52: 998 | AB52: 43 | AC52: 0 | AD52: 0 | CR52: 9 | CS52: 998 | CT52: 43 | CU52: 0 | CV52: 0 | CW52: 0 | CX52: 0
A53: 00090998 | B53: 0009 | C53: 0998 | D53: 44 | E53: 9 | G53: 998 | I53: 0 | J53: 0 | K53: 0 | L53: =IF(K54>0, K53/K54, 0) -> 0 | N53: =ROUND(M54*L53,0) -> 0 | O53: 0 | P53: =N53-O53 -> 0 | Q53: 0 | R53: 0 | S53: 0 | T53: 9 | U53: 998 | V53: 44 | W53: 0 | X53: 0 | Y53: 44 | Z53: 9 | AA53: 998 | AB53: 44 | AC53: 0 | AD53: 0 | CR53: 9 | CS53: 998 | CT53: 44 | CU53: 0 | CV53: 0 | CW53: 0 | CX53: 0
A54: 00090999 | B54: 0009 | C54: 0999 | D54: 45 | E54: 9 | F54: Andover | G54: 999 | H54: Total | I54: 64458360.34 | J54: 1 | K54: =SUM(K50:K53) -> 65460138.19 | L54: =SUM(L50:L53) -> 1 | M54: =VLOOKUP(E54,town351,24) -> 54004614 | N54: =SUM(N50:N53) -> 54004614 | O54: 52687464 | P54: =SUM(P50:P53) -> 1317150 | Q54: 2.499930534 | R54: 5866 | S54: 5772 | T54: 9 | U54: 999 | V54: 45 | W54: 5772 | X54: 65460138.19 | Y54: 45 | Z54: 9 | AA54: 999 | AB54: 45 | AC54: 5772 | AD54: 65460138.19 | CR54: 9 | CS54: 999 | CT54: 45 | CU54: 5834 | CV54: 61095946.19 | CW54: 1 | CX54: 50404156
A55: 00100010 | B55: 0010 | C55: 0010 | D55: 46 | E55: 10 | F55: Arlington | G55: 10 | H55: Arlington | I55: 62294073.1 | J55: 0.9657766875 | K55: =X55 -> 65991012.94 | L55: =IF(K59>0, K55/K59, 0) -> 0.9537170614 | N55: =ROUND(M59*L55,0) -> 50007974 | O55: 48330137 | P55: =N55-O55 -> 1677837 | Q55: 3.471616478 | R55: 5980 | S55: 6092 | T55: 10 | U55: 10 | V55: 46 | W55: 6092 | X55: 65991012.94 | Y55: 46 | Z55: 10 | AA55: 10 | AB55: 46 | AC55: 6092 | AD55: 65991012.94 | CR55: 10 | CS55: 10 | CT55: 46 | CU55: 5785 | CV55: 58002940.65 | CW55: 0.965620222 | CX55: 46237018
A56: 00100830 | B56: 0010 | C56: 0830 | D56: 47 | E56: 10 | F56: Arlington | G56: 830 | H56: Minuteman | I56: 2207455.987 | J56: 0.03422331251 | K56: 3202478.096 | L56: =IF(K59>0, K56/K59, 0) -> 0.04628293859 | N56: =ROUND(M59*L56,0) -> 2426837 | O56: 1712629 | P56: =N56-O56 -> 714208 | Q56: 41.70243526 | R56: 120 | S56: 160.599022 | T56: 10 | U56: 830 | V56: 47 | W56: 160.599022 | X56: 3202478.096 | Y56: 47 | Z56: 10 | AA56: 830 | AB56: 47 | AC56: 160.599022 | AD56: 3202478.096 | CR56: 10 | CS56: 830 | CT56: 47 | CU56: 115.3372434 | CV56: 2065126.824 | CW56: 0.03437977799 | CX56: 1646215
A57: 00100998 | B57: 0010 | C57: 0998 | D57: 48 | E57: 10 | G57: 998 | I57: 0 | J57: 0 | K57: 0 | L57: =IF(K59>0, K57/K59, 0) -> 0 | N57: =ROUND(M59*L57,0) -> 0 | O57: 0 | P57: =N57-O57 -> 0 | Q57: 0 | R57: 0 | S57: 0 | T57: 10 | U57: 998 | V57: 48 | W57: 0 | X57: 0 | Y57: 48 | Z57: 10 | AA57: 998 | AB57: 48 | AC57: 0 | AD57: 0 | CR57: 10 | CS57: 998 | CT57: 48 | CU57: 0 | CV57: 0 | CW57: 0 | CX57: 0
A58: 00100998 | B58: 0010 | C58: 0998 | D58: 49 | E58: 10 | G58: 998 | I58: 0 | J58: 0 | K58: 0 | L58: =IF(K59>0, K58/K59, 0) -> 0 | N58: =ROUND(M59*L58,0) -> 0 | O58: 0 | P58: =N58-O58 -> 0 | Q58: 0 | R58: 0 | S58: 0 | T58: 10 | U58: 998 | V58: 49 | W58: 0 | X58: 0 | Y58: 49 | Z58: 10 | AA58: 998 | AB58: 49 | AC58: 0 | AD58: 0 | CR58: 10 | CS58: 998 | CT58: 49 | CU58: 0 | CV58: 0 | CW58: 0 | CX58: 0
A59: 00100999 | B59: 0010 | C59: 0999 | D59: 50 | E59: 10 | F59: Arlington | G59: 999 | H59: Total | I59: 64501529.08 | J59: 1 | K59: =SUM(K55:K58) -> 69193491.03 | L59: =SUM(L55:L58) -> 1 | M59: =VLOOKUP(E59,town351,24) -> 52434811 | N59: =SUM(N55:N58) -> 52434811 | O59: 50042766 | P59: =SUM(P55:P58) -> 2392045 | Q59: 4.780001569 | R59: 6100 | S59: 6252.599022 | T59: 10 | U59: 999 | V59: 50 | W59: 6252.599022 | X59: 69193491.03 | Y59: 50 | Z59: 10 | AA59: 999 | AB59: 50 | AC59: 6252.599022 | AD59: 69193491.03 | CR59: 10 | CS59: 999 | CT59: 50 | CU59: 5900.337243 | CV59: 60068067.47 | CW59: 1 | CX59: 47883233
A60: 00110011 | B60: 0011 | C60: 0011 | D60: 51 | E60: 11 | F60: Ashburnham | G60: 11 | H60: Ashburnham | I60: 0 | J60: 0 | K60: =X60 -> 0 | L60: =IF(K64>0, K60/K64, 0) -> 0 | N60: =ROUND(M64*L60,0) -> 0 | O60: 0 | P60: =N60-O60 -> 0 | Q60: 0 | R60: 0 | S60: 0 | T60: 11 | U60: 11 | V60: 51 | W60: 0 | X60: 0 | Y60: 51 | Z60: 11 | AA60: 11 | AB60: 51 | AC60: 0 | AD60: 0 | CR60: 11 | CS60: 11 | CT60: 51 | CU60: 0 | CV60: 0 | CW60: 0 | CX60: 0
A61: 00110610 | B61: 0011 | C61: 0610 | D61: 52 | E61: 11 | F61: Ashburnham | G61: 610 | H61: Ashburnham Westminster | I61: 10689890.54 | J61: 0.9143082126 | K61: 11412468.88 | L61: =IF(K64>0, K61/K64, 0) -> 0.9074650038 | N61: =ROUND(M64*L61,0) -> 5087385 | O61: 4915371 | P61: =N61-O61 -> 172014 | Q61: 3.499512041 | R61: 1020.045276 | S61: 1040.802245 | T61: 11 | U61: 610 | V61: 52 | W61: 1040.802245 | X61: 11412468.88 | Y61: 52 | Z61: 11 | AA61: 610 | AB61: 52 | AC61: 1040.802245 | AD61: 11412468.88 | CR61: 11 | CS61: 610 | CT61: 52 | CU61: 1076.284344 | CV61: 10862999.7 | CW61: 0.9127346045 | CX61: 4717731
A62: 00110832 | B62: 0011 | C62: 0832 | D62: 53 | E62: 11 | F62: Ashburnham | G62: 832 | H62: Montachusett | I62: 1001889.532 | J62: 0.08569178737 | K62: 1163739.384 | L62: =IF(K64>0, K62/K64, 0) -> 0.09253499621 | N62: =ROUND(M64*L62,0) -> 518765 | O62: 460684 | P62: =N62-O62 -> 58081 | Q62: 12.60755746 | R62: 59 | S62: 65.99999999 | T62: 11 | U62: 832 | V62: 53 | W62: 65.99999999 | X62: 1163739.384 | Y62: 53 | Z62: 11 | AA62: 832 | AB62: 53 | AC62: 65.99999999 | AD62: 1163739.384 | CR62: 11 | CS62: 832 | CT62: 53 | CU62: 64.04306865 | CV62: 1038597.594 | CW62: 0.08726539548 | CX62: 451056
A63: 00110998 | B63: 0011 | C63: 0998 | D63: 54 | E63: 11 | G63: 998 | I63: 0 | J63: 0 | K63: 0 | L63: =IF(K64>0, K63/K64, 0) -> 0 | N63: =ROUND(M64*L63,0) -> 0 | O63: 0 | P63: =N63-O63 -> 0 | Q63: 0 | R63: 0 | S63: 0 | T63: 11 | U63: 998 | V63: 54 | W63: 0 | X63: 0 | Y63: 54 | Z63: 11 | AA63: 998 | AB63: 54 | AC63: 0 | AD63: 0 | CR63: 11 | CS63: 998 | CT63: 54 | CU63: 0 | CV63: 0 | CW63: 0 | CX63: 0
A64: 00110999 | B64: 0011 | C64: 0999 | D64: 55 | E64: 11 | F64: Ashburnham | G64: 999 | H64: Total | I64: 11691780.07 | J64: 1 | K64: =SUM(K60:K63) -> 12576208.27 | L64: =SUM(L60:L63) -> 1 | M64: =VLOOKUP(E64,town351,24) -> 5606150 | N64: =SUM(N60:N63) -> 5606150 | O64: 5376055 | P64: =SUM(P60:P63) -> 230095 | Q64: 4.279997135 | R64: 1079.045276 | S64: 1106.802245 | T64: 11 | U64: 999 | V64: 55 | W64: 1106.802245 | X64: 12576208.27 | Y64: 55 | Z64: 11 | AA64: 999 | AB64: 55 | AC64: 1106.802245 | AD64: 12576208.27 | CR64: 11 | CS64: 999 | CT64: 55 | CU64: 1140.327412 | CV64: 11901597.29 | CW64: 1 | CX64: 5168787
A65: 00120012 | B65: 0012 | C65: 0012 | D65: 56 | E65: 12 | F65: Ashby | G65: 12 | H65: Ashby | I65: 0 | J65: 0 | K65: =X65 -> 0 | L65: =IF(K69>0, K65/K69, 0) -> 0 | N65: =ROUND(M69*L65,0) -> 0 | O65: 0 | P65: =N65-O65 -> 0 | Q65: 0 | R65: 0 | S65: 0 | T65: 12 | U65: 12 | V65: 56 | W65: 0 | X65: 0 | Y65: 56 | Z65: 12 | AA65: 12 | AB65: 56 | AC65: 0 | AD65: 0 | CR65: 12 | CS65: 12 | CT65: 56 | CU65: 0 | CV65: 0 | CW65: 0 | CX65: 0
A66: 00120735 | B66: 0012 | C66: 0735 | D66: 57 | E66: 12 | F66: Ashby | G66: 735 | H66: North Middlesex | I66: 3851136.718 | J66: 0.8763469212 | K66: 3896908.163 | L66: =IF(K69>0, K66/K69, 0) -> 0.8632856255 | N66: =ROUND(M69*L66,0) -> 2265183 | O66: 2202332 | P66: =N66-O66 -> 62851 | Q66: 2.853838567 | R66: 363.1624413 | S66: 357.1371446 | T66: 12 | U66: 735 | V66: 57 | W66: 357.1371446 | X66: 3896908.163 | Y66: 57 | Z66: 12 | AA66: 735 | AB66: 57 | AC66: 357.1371446 | AD66: 3896908.163 | CR66: 12 | CS66: 735 | CT66: 57 | CU66: 370.7240412 | CV66: 3774894.734 | CW66: 0.8891500395 | CX66: 2175126
A67: 00120832 | B67: 0012 | C67: 0832 | D67: 58 | E67: 12 | F67: Ashby | G67: 832 | H67: Montachusett | I67: 543397.7122 | J67: 0.1236530788 | K67: 617134.5222 | L67: =IF(K69>0, K67/K69, 0) -> 0.1367143745 | N67: =ROUND(M69*L67,0) -> 358726 | O67: 310750 | P67: =N67-O67 -> 47976 | Q67: 15.43877715 | R67: 32 | S67: 35.00000001 | T67: 12 | U67: 832 | V67: 58 | W67: 35.00000001 | X67: 617134.5222 | Y67: 58 | Z67: 12 | AA67: 832 | AB67: 58 | AC67: 35.00000001 | AD67: 617134.5222 | CR67: 12 | CS67: 832 | CT67: 58 | CU67: 29.01951547 | CV67: 470614.5348 | CW67: 0.1108499605 | CX67: 271172
A68: 00120998 | B68: 0012 | C68: 0998 | D68: 59 | E68: 12 | G68: 998 | I68: 0 | J68: 0 | K68: 0 | L68: =IF(K69>0, K68/K69, 0) -> 0 | N68: =ROUND(M69*L68,0) -> 0 | O68: 0 | P68: =N68-O68 -> 0 | Q68: 0 | R68: 0 | S68: 0 | T68: 12 | U68: 998 | V68: 59 | W68: 0 | X68: 0 | Y68: 59 | Z68: 12 | AA68: 998 | AB68: 59 | AC68: 0 | AD68: 0 | CR68: 12 | CS68: 998 | CT68: 59 | CU68: 0 | CV68: 0 | CW68: 0 | CX68: 0
A69: 00120999 | B69: 0012 | C69: 0999 | D69: 60 | E69: 12 | F69: Ashby | G69: 999 | H69: Total | I69: 4394534.43 | J69: 1 | K69: =SUM(K65:K68) -> 4514042.686 | L69: =SUM(L65:L68) -> 1 | M69: =VLOOKUP(E69,town351,24) -> 2623909 | N69: =SUM(N65:N68) -> 2623909 | O69: 2513082 | P69: =SUM(P65:P68) -> 110827 | Q69: 4.410003335 | R69: 395.1624413 | S69: 392.1371446 | T69: 12 | U69: 999 | V69: 60 | W69: 392.1371446 | X69: 4514042.686 | Y69: 60 | Z69: 12 | AA69: 999 | AB69: 60 | AC69: 392.1371446 | AD69: 4514042.686 | CR69: 12 | CS69: 999 | CT69: 60 | CU69: 399.7435566 | CV69: 4245509.269 | CW69: 1 | CX69: 2446298
A70: 00130013 | B70: 0013 | C70: 0013 | D70: 61 | E70: 13 | F70: Ashfield | G70: 13 | H70: Ashfield | I70: 100602.5808 | J70: 0.04853259741 | K70: =X70 -> 119637.2 | L70: =IF(K74>0, K70/K74, 0) -> 0.06389791044 | N70: =ROUND(M74*L70,0) -> 98701 | O70: 74854 | P70: =N70-O70 -> 23847 | Q70: 31.85801694 | R70: 7 | S70: 8 | T70: 13 | U70: 13 | V70: 61 | W70: 8 | X70: 119637.2 | Y70: 61 | Z70: 13 | AA70: 13 | AB70: 61 | AC70: 8 | AD70: 119637.2 | CR70: 13 | CS70: 13 | CT70: 61 | CU70: 15 | CV70: 233861.83 | CW70: 0.1066373907 | CX70: 163542
A71: 00130717 | B71: 0013 | C71: 0717 | D71: 62 | E71: 13 | F71: Ashfield | G71: 717 | H71: Mohawk Trail | I71: 1972284.224 | J71: 0.9514674026 | K71: 1752680.677 | L71: =IF(K74>0, K71/K74, 0) -> 0.9361020896 | N71: =ROUND(M74*L71,0) -> 1445961 | O71: 1467494 | P71: =N71-O71 -> -21533 | Q71: -1.467331383 | R71: 172.2222222 | S71: 150.1666667 | T71: 13 | U71: 717 | V71: 62 | W71: 150.1666667 | X71: 1752680.677 | Y71: 62 | Z71: 13 | AA71: 717 | AB71: 62 | AC71: 150.1666667 | AD71: 1752680.677 | CR71: 13 | CS71: 717 | CT71: 62 | CU71: 179.693617 | CV71: 1959194.738 | CW71: 0.8933626093 | CX71: 1370082
A72: 00130998 | B72: 0013 | C72: 0998 | D72: 63 | E72: 13 | G72: 998 | I72: 0 | J72: 0 | K72: 0 | L72: =IF(K74>0, K72/K74, 0) -> 0 | N72: =ROUND(M74*L72,0) -> 0 | O72: 0 | P72: =N72-O72 -> 0 | Q72: 0 | R72: 0 | S72: 0 | T72: 13 | U72: 998 | V72: 63 | W72: 0 | X72: 0 | Y72: 63 | Z72: 13 | AA72: 998 | AB72: 63 | AC72: 0 | AD72: 0 | CR72: 13 | CS72: 998 | CT72: 63 | CU72: 0 | CV72: 0 | CW72: 0 | CX72: 0
A73: 00130998 | B73: 0013 | C73: 0998 | D73: 64 | E73: 13 | G73: 998 | I73: 0 | J73: 0 | K73: 0 | L73: =IF(K74>0, K73/K74, 0) -> 0 | N73: =ROUND(M74*L73,0) -> 0 | O73: 0 | P73: =N73-O73 -> 0 | Q73: 0 | R73: 0 | S73: 0 | T73: 13 | U73: 998 | V73: 64 | W73: 0 | X73: 0 | Y73: 64 | Z73: 13 | AA73: 998 | AB73: 64 | AC73: 0 | AD73: 0 | CR73: 13 | CS73: 998 | CT73: 64 | CU73: 0 | CV73: 0 | CW73: 0 | CX73: 0
A74: =B74&C74 -> 00130999 | B74: 0013 | C74: 0999 | D74: 65 | E74: 13 | F74: Ashfield | G74: 999 | H74: Total | I74: 2072886.805 | J74: 1 | K74: =SUM(K70:K73) -> 1872317.877 | L74: =SUM(L70:L73) -> 1 | M74: =VLOOKUP(E74,town351,24) -> 1544662 | N74: =SUM(N70:N73) -> 1544662 | O74: 1542348 | P74: =SUM(P70:P73) -> 2314 | Q74: 0.1500309917 | R74: 179.2222222 | S74: 158.1666667 | T74: =VLOOKUP($D74, foundoptions, VLOOKUP($T$6, foundoptcell, 2, FALSE), FALSE) -> 13 | U74: =VLOOKUP($D74, foundoptions, VLOOKUP($T$6, foundoptcell, 2, FALSE)+1, FALSE) -> 999 | V74: =VLOOKUP($D74, foundoptions, VLOOKUP($T$6, foundoptcell, 2, FALSE)+2, FALSE) -> 65 | W74: =VLOOKUP($D74, foundoptions, VLOOKUP($T$6, foundoptcell, 2, FALSE)+3, FALSE) -> 158.1666667 | X74: =VLOOKUP($D74, foundoptions, VLOOKUP($T$6, foundoptcell, 2, FALSE)+4, FALSE) -> 1872317.877 | Y74: 65 | Z74: 13 | AA74: 999 | AB74: 65 | AC74: 158.1666667 | AD74: 1872317.877 | CR74: 13 | CS74: 999 | CT74: 65 | CU74: 194.693617 | CV74: 2193056.568 | CW74: 1 | CX74: 1533624
A75: 00140014 | B75: 0014 | C75: 0014 | D75: 66 | E75: 14 | F75: Ashland | G75: 14 | H75: Ashland | I75: 29177890.76 | J75: 0.96607914 | K75: =X75 -> 30521117.44 | L75: =IF(K79>0, K75/K79, 0) -> 0.9664067241 | N75: =ROUND(M79*L75,0) -> 22570837 | O75: 21472389 | P75: =N75-O75 -> 1098448 | Q75: 5.115630124 | R75: 2764 | S75: 2786 | T75: 14 | U75: 14 | V75: 66 | W75: 2786 | X75: 30521117.44 | Y75: =D75 -> 66 | Z75: 14 | AA75: 14 | AB75: 66 | AC75: 2786 | AD75: 30521117.44 | CR75: 14 | CS75: 14 | CT75: 66 | CU75: 2581 | CV75: 26344731.8 | CW75: 0.9575405389 | CX75: 20247938
A76: 00140829 | B76: 0014 | C76: 0829 | D76: 67 | E76: 14 | F76: Ashland | G76: 829 | H76: South Middlesex | I76: 1024490.754 | J76: 0.03392085998 | K76: 1060944.933 | L76: =IF(K79>0, K76/K79, 0) -> 0.03359327586 | N76: =ROUND(M79*L76,0) -> 784585 | O76: 753936 | P76: =N76-O76 -> 30649 | Q76: 4.065199168 | R76: 55 | S76: 53.06658291 | T76: 14 | U76: 829 | V76: 67 | W76: 53.06658291 | X76: 1060944.933 | Y76: 67 | Z76: 14 | AA76: 829 | AB76: 67 | AC76: 53.06658291 | AD76: 1060944.933 | CR76: 14 | CS76: 829 | CT76: 67 | CU76: 66 | CV76: 1168183.558 | CW76: 0.04245946106 | CX76: 897838
A77: 00140998 | B77: 0014 | C77: 0998 | D77: 68 | E77: 14 | G77: 998 | I77: 0 | J77: 0 | K77: 0 | L77: =IF(K79>0, K77/K79, 0) -> 0 | N77: =ROUND(M79*L77,0) -> 0 | O77: 0 | P77: =N77-O77 -> 0 | Q77: 0 | R77: 0 | S77: 0 | T77: 14 | U77: 998 | V77: 68 | W77: 0 | X77: 0 | Y77: 68 | Z77: 14 | AA77: 998 | AB77: 68 | AC77: 0 | AD77: 0 | CR77: 14 | CS77: 998 | CT77: 68 | CU77: 0 | CV77: 0 | CW77: 0 | CX77: 0
A78: 00140998 | B78: 0014 | C78: 0998 | D78: 69 | E78: 14 | G78: 998 | I78: 0 | J78: 0 | K78: 0 | L78: =IF(K79>0, K78/K79, 0) -> 0 | N78: =ROUND(M79*L78,0) -> 0 | O78: 0 | P78: =N78-O78 -> 0 | Q78: 0 | R78: 0 | S78: 0 | T78: 14 | U78: 998 | V78: 69 | W78: 0 | X78: 0 | Y78: 69 | Z78: 14 | AA78: 998 | AB78: 69 | AC78: 0 | AD78: 0 | CR78: 14 | CS78: 998 | CT78: 69 | CU78: 0 | CV78: 0 | CW78: 0 | CX78: 0
A79: 00140999 | B79: 0014 | C79: 0999 | D79: 70 | E79: 14 | F79: Ashland | G79: 999 | H79: Total | I79: 30202381.51 | J79: 1 | K79: =SUM(K75:K78) -> 31582062.37 | L79: =SUM(L75:L78) -> 1 | M79: =VLOOKUP(E79,town351,24) -> 23355422 | N79: =SUM(N75:N78) -> 23355422 | O79: 22226325 | P79: =SUM(P75:P78) -> 1129097 | Q79: 5.079998605 | R79: 2819 | S79: 2839.066583 | T79: 14 | U79: 999 | V79: 70 | W79: 2839.066583 | X79: 31582062.37 | Y79: 70 | Z79: 14 | AA79: 999 | AB79: 70 | AC79: 2839.066583 | AD79: 31582062.37 | CR79: 14 | CS79: 999 | CT79: 70 | CU79: 2647 | CV79: 27512915.35 | CW79: 1 | CX79: 21145776
A80: 00150015 | B80: 0015 | C80: 0015 | D80: 71 | E80: 15 | F80: Athol | G80: 15 | H80: Athol | I80: 0 | J80: 0 | K80: =X80 -> 0 | L80: =IF(K84>0, K80/K84, 0) -> 0 | N80: =ROUND(M84*L80,0) -> 0 | O80: 0 | P80: =N80-O80 -> 0 | Q80: =IF(O80>0,P80*100/O80,IF(P80>0,100,0)) -> 0 | R80: 0 | S80: 0 | T80: 15 | U80: 15 | V80: 71 | W80: 0 | X80: 0 | Y80: 71 | Z80: 15 | AA80: 15 | AB80: 71 | AC80: 0 | AD80: 0 | CR80: 15 | CS80: 15 | CT80: 71 | CU80: 1 | CV80: 13837.16 | CW80: 0.0007016448517 | CX80: 2099
A81: 00150615 | B81: 0015 | C81: 0615 | D81: 72 | E81: 15 | F81: Athol | G81: 615 | H81: Athol Royalston | I81: 19054143.74 | J81: 0.9189238516 | K81: 20391354.86 | L81: =IF(K84>0, K81/K84, 0) -> 0.9153125762 | N81: =ROUND(M84*L81,0) -> 3085425 | O81: 2910183 | P81: =N81-O81 -> 175242 | Q81: =IF(O81>0,P81*100/O81,IF(P81>0,100,0)) -> 6.021683173 | R81: 1617.073696 | S81: 1642.46759 | T81: 15 | U81: 615 | V81: 72 | W81: 1642.46759 | X81: 20391354.86 | Y81: 72 | Z81: 15 | AA81: 615 | AB81: 72 | AC81: 1642.46759 | AD81: 20391354.86 | CR81: 15 | CS81: 615 | CT81: 72 | CU81: 1628.887892 | CV81: 18262894.24 | CW81: 0.9260618308 | CX81: 2770441
A82: 00150832 | B82: 0015 | C82: 0832 | D82: 73 | E82: 15 | F82: Athol | G82: 832 | H82: Montachusett | I82: 1681136.672 | J82: 0.08107614842 | K82: 1886668.396 | L82: =IF(K84>0, K82/K84, 0) -> 0.08468742377 | N82: =ROUND(M84*L82,0) -> 285473 | O82: 256764 | P82: =N82-O82 -> 28709 | Q82: =IF(O82>0,P82*100/O82,IF(P82>0,100,0)) -> 11.18108458 | R82: 98.99999999 | S82: 107 | T82: 15 | U82: 832 | V82: 73 | W82: 107 | X82: 1886668.396 | Y82: 73 | Z82: 15 | AA82: 832 | AB82: 73 | AC82: 107 | AD82: 1886668.396 | CR82: 15 | CS82: 832 | CT82: 73 | CU82: 89.05989233 | CV82: 1444299.779 | CW82: 0.0732365243 | CX82: 219097
A83: 00150998 | B83: 0015 | C83: 0998 | D83: 74 | E83: 15 | G83: 998 | I83: 0 | J83: 0 | K83: 0 | L83: =IF(K84>0, K83/K84, 0) -> 0 | N83: =ROUND(M84*L83,0) -> 0 | O83: 0 | P83: =N83-O83 -> 0 | Q83: =IF(O83>0,P83*100/O83,IF(P83>0,100,0)) -> 0 | R83: 0 | S83: 0 | T83: 15 | U83: 998 | V83: 74 | W83: 0 | X83: 0 | Y83: 74 | Z83: 15 | AA83: 998 | AB83: 74 | AC83: 0 | AD83: 0 | CR83: 15 | CS83: 998 | CT83: 74 | CU83: 0 | CV83: 0 | CW83: 0 | CX83: 0
A84: 00150999 | B84: 0015 | C84: 0999 | D84: 75 | E84: 15 | F84: Athol | G84: 999 | H84: Total | I84: 20735280.41 | J84: 1 | K84: =SUM(K80:K83) -> 22278023.26 | L84: =SUM(L80:L83) -> 1 | M84: =VLOOKUP(E84,town351,24) -> 3370898 | N84: =SUM(N80:N83) -> 3370898 | O84: 3166947 | P84: =SUM(P80:P83) -> 203951 | Q84: =IF(O84>0,P84*100/O84,IF(P84>0,100,0)) -> 6.439987786 | R84: 1716.073696 | S84: 1749.46759 | T84: 15 | U84: 999 | V84: 75 | W84: 1749.46759 | X84: 22278023.26 | Y84: 75 | Z84: 15 | AA84: 999 | AB84: 75 | AC84: 1749.46759 | AD84: 22278023.26 | CR84: 15 | CS84: 999 | CT84: 75 | CU84: 1718.947785 | CV84: 19721031.18 | CW84: 1 | CX84: 2991637
A85: 00160016 | B85: 0016 | C85: 0016 | D85: 76 | E85: 16 | F85: Attleboro | G85: 16 | H85: Attleboro | I85: 77760770.56 | J85: 0.994077125 | K85: =X85 -> 80907585.42 | L85: =IF(K89>0, K85/K89, 0) -> 0.9947929154 | N85: =ROUND(M89*L85,0) -> 38043946 | O85: 36638947 | P85: =N85-O85 -> 1404999 | Q85: 3.834714464 | R85: 6355 | S85: 6383 | T85: 16 | U85: 16 | V85: 76 | W85: 6383 | X85: 80907585.42 | Y85: 76 | Z85: 16 | AA85: 16 | AB85: 76 | AC85: 6383 | AD85: 80907585.42 | CR85: 16 | CS85: 16 | CT85: 76 | CU85: 6311 | CV85: 72980818.83 | CW85: 0.9927616586 | CX85: 35206834
A86: 00160910 | B86: 0016 | C86: 0910 | D86: 77 | E86: 16 | F86: Attleboro | G86: 910 | H86: Bristol County | I86: 463311.4598 | J86: 0.005922875001 | K86: 423497.8324 | L86: =IF(K89>0, K86/K89, 0) -> 0.005207084616 | N86: =ROUND(M89*L86,0) -> 199135 | O86: 218301 | P86: =N86-O86 -> -19166 | Q86: -8.779620799 | R86: 27 | S86: 24 | T86: 16 | U86: 910 | V86: 77 | W86: 24 | X86: 423497.8324 | Y86: 77 | Z86: 16 | AA86: 910 | AB86: 77 | AC86: 24 | AD86: 423497.8324 | CR86: 16 | CS86: 910 | CT86: 77 | CU86: 33 | CV86: 532111.6905 | CW86: 0.007238341429 | CX86: 256697
A87: 00160998 | B87: 0016 | C87: 0998 | D87: 78 | E87: 16 | G87: 998 | I87: 0 | J87: 0 | K87: 0 | L87: =IF(K89>0, K87/K89, 0) -> 0 | N87: =ROUND(M89*L87,0) -> 0 | O87: 0 | P87: =N87-O87 -> 0 | Q87: 0 | R87: 0 | S87: 0 | T87: 16 | U87: 998 | V87: 78 | W87: 0 | X87: 0 | Y87: 78 | Z87: 16 | AA87: 998 | AB87: 78 | AC87: 0 | AD87: 0 | CR87: 16 | CS87: 998 | CT87: 78 | CU87: 0 | CV87: 0 | CW87: 0 | CX87: 0
A88: 00160998 | B88: 0016 | C88: 0998 | D88: 79 | E88: 16 | G88: 998 | I88: 0 | J88: 0 | K88: 0 | L88: =IF(K89>0, K88/K89, 0) -> 0 | N88: =ROUND(M89*L88,0) -> 0 | O88: 0 | P88: =N88-O88 -> 0 | Q88: 0 | R88: 0 | S88: 0 | T88: 16 | U88: 998 | V88: 79 | W88: 0 | X88: 0 | Y88: 79 | Z88: 16 | AA88: 998 | AB88: 79 | AC88: 0 | AD88: 0 | CR88: 16 | CS88: 998 | CT88: 79 | CU88: 0 | CV88: 0 | CW88: 0 | CX88: 0
A89: 00160999 | B89: 0016 | C89: 0999 | D89: 80 | E89: 16 | F89: Attleboro | G89: 999 | H89: Total | I89: 78224082.02 | J89: 1 | K89: =SUM(K85:K88) -> 81331083.25 | L89: =SUM(L85:L88) -> 1 | M89: =VLOOKUP(E89,town351,24) -> 38243081 | N89: =SUM(N85:N88) -> 38243081 | O89: 36857248 | P89: =SUM(P85:P88) -> 1385833 | Q89: 3.760001289 | R89: 6382 | S89: 6407 | T89: 16 | U89: 999 | V89: 80 | W89: 6407 | X89: 81331083.25 | Y89: 80 | Z89: 16 | AA89: 999 | AB89: 80 | AC89: 6407 | AD89: 81331083.25 | CR89: 16 | CS89: 999 | CT89: 80 | CU89: 6344 | CV89: 73512930.52 | CW89: 1 | CX89: 35463531
A90: 00170017 | B90: 0017 | C90: 0017 | D90: 81 | E90: 17 | F90: Auburn | G90: 17 | H90: Auburn | I90: 26762943.25 | J90: 0.9485820474 | K90: =X90 -> 27839076.36 | L90: =IF(K94>0, K90/K94, 0) -> 0.9457219848 | N90: =ROUND(M94*L90,0) -> 15632555 | O90: 15076760 | P90: =N90-O90 -> 555795 | Q90: 3.686435282 | R90: 2494 | S90: 2511 | T90: 17 | U90: 17 | V90: 81 | W90: 2511 | X90: 27839076.36 | Y90: 81 | Z90: 17 | AA90: 17 | AB90: 81 | AC90: 2511 | AD90: 27839076.36 | CR90: 17 | CS90: 17 | CT90: 81 | CU90: 2495 | CV90: 25672129.78 | CW90: 0.9495990138 | CX90: 14624535
A91: 00170876 | B91: 0017 | C91: 0876 | D91: 82 | E91: 17 | F91: Auburn | G91: 876 | H91: Southern Worcester | I91: 1450687.108 | J91: 0.05141795257 | K91: 1597773.799 | L91: =IF(K94>0, K91/K94, 0) -> 0.05427801517 | N91: =ROUND(M94*L91,0) -> 897202 | O91: 817237 | P91: =N91-O91 -> 79965 | Q91: 9.784799269 | R91: 86 | S91: 89.99999999 | T91: 17 | U91: 876 | V91: 82 | W91: 89.99999999 | X91: 1597773.799 | Y91: 82 | Z91: 17 | AA91: 876 | AB91: 82 | AC91: 89.99999999 | AD91: 1597773.799 | CR91: 17 | CS91: 876 | CT91: 82 | CU91: 84 | CV91: 1362575.824 | CW91: 0.05040098621 | CX91: 776213
A92: 00170998 | B92: 0017 | C92: 0998 | D92: 83 | E92: 17 | G92: 998 | I92: 0 | J92: 0 | K92: 0 | L92: =IF(K94>0, K92/K94, 0) -> 0 | N92: =ROUND(M94*L92,0) -> 0 | O92: 0 | P92: =N92-O92 -> 0 | Q92: 0 | R92: 0 | S92: 0 | T92: 17 | U92: 998 | V92: 83 | W92: 0 | X92: 0 | Y92: 83 | Z92: 17 | AA92: 998 | AB92: 83 | AC92: 0 | AD92: 0 | CR92: 17 | CS92: 998 | CT92: 83 | CU92: 0 | CV92: 0 | CW92: 0 | CX92: 0
A93: 00170998 | B93: 0017 | C93: 0998 | D93: 84 | E93: 17 | G93: 998 | I93: 0 | J93: 0 | K93: 0 | L93: =IF(K94>0, K93/K94, 0) -> 0 | N93: =ROUND(M94*L93,0) -> 0 | O93: 0 | P93: =N93-O93 -> 0 | Q93: 0 | R93: 0 | S93: 0 | T93: 17 | U93: 998 | V93: 84 | W93: 0 | X93: 0 | Y93: 84 | Z93: 17 | AA93: 998 | AB93: 84 | AC93: 0 | AD93: 0 | CR93: 17 | CS93: 998 | CT93: 84 | CU93: 0 | CV93: 0 | CW93: 0 | CX93: 0
A94: 00170999 | B94: 0017 | C94: 0999 | D94: 85 | E94: 17 | F94: Auburn | G94: 999 | H94: Total | I94: 28213630.36 | J94: 1 | K94: =SUM(K90:K93) -> 29436850.16 | L94: =SUM(L90:L93) -> 1 | M94: =VLOOKUP(E94,town351,24) -> 16529757 | N94: =SUM(N90:N93) -> 16529757 | O94: 15893997 | P94: =SUM(P90:P93) -> 635760 | Q94: 4.000000755 | R94: 2580 | S94: 2601 | T94: 17 | U94: 999 | V94: 85 | W94: 2601 | X94: 29436850.16 | Y94: 85 | Z94: 17 | AA94: 999 | AB94: 85 | AC94: 2601 | AD94: 29436850.16 | CR94: 17 | CS94: 999 | CT94: 85 | CU94: 2579 | CV94: 27034705.6 | CW94: 1 | CX94: 15400748
A95: 00180018 | B95: 0018 | C95: 0018 | D95: 86 | E95: 18 | F95: Avon | G95: 18 | H95: Avon | I95: 6653932.031 | J95: 0.8640464021 | K95: =X95 -> 7146096.03 | L95: =IF(K99>0, K95/K99, 0) -> 0.8498145609 | N95: =ROUND(M99*L95,0) -> 4654416 | O95: 4537696 | P95: =N95-O95 -> 116720 | Q95: 2.572230489 | R95: 563 | S95: 586 | T95: 18 | U95: 18 | V95: 86 | W95: 586 | X95: 7146096.03 | Y95: 86 | Z95: 18 | AA95: 18 | AB95: 86 | AC95: 586 | AD95: 7146096.03 | CR95: 18 | CS95: 18 | CT95: 86 | CU95: 561 | CV95: 6193899.03 | CW95: 0.8546657806 | CX95: 4386495
A96: 00180806 | B96: 0018 | C96: 0806 | D96: 87 | E96: 18 | F96: Avon | G96: 806 | H96: Blue Hills | I96: 957542.3835 | J96: 0.1243416746 | K96: 1189906.067 | L96: =IF(K99>0, K96/K99, 0) -> 0.1415037662 | N96: =ROUND(M99*L96,0) -> 775013 | O96: 653003 | P96: =N96-O96 -> 122010 | Q96: 18.68444709 | R96: 54 | S96: 63 | T96: 18 | U96: 806 | V96: 87 | W96: 63 | X96: 1189906.067 | Y96: 87 | Z96: 18 | AA96: 806 | AB96: 87 | AC96: 63 | AD96: 1189906.067 | CR96: 18 | CS96: 806 | CT96: 87 | CU96: 58 | CV96: 984907.1615 | CW96: 0.1359025137 | CX96: 697507
A97: 00180915 | B97: 0018 | C97: 0915 | D97: 88 | E97: 18 | F97: Avon | G97: 915 | H97: Norfolk County | I97: 89422.22132 | J97: 0.01161192333 | K97: 73004.24256 | L97: =IF(K99>0, K97/K99, 0) -> 0.008681672913 | N97: =ROUND(M99*L97,0) -> 47549 | O97: 60982 | P97: =N97-O97 -> -13433 | Q97: -22.02781149 | R97: 5 | S97: 4.000000001 | T97: 18 | U97: 915 | V97: 88 | W97: 4.000000001 | X97: 73004.24256 | Y97: 88 | Z97: 18 | AA97: 915 | AB97: 88 | AC97: 4.000000001 | AD97: 73004.24256 | CR97: 18 | CS97: 915 | CT97: 88 | CU97: 3.999999999 | CV97: 68353.07351 | CW97: 0.009431705722 | CX97: 48407
A98: 00180998 | B98: 0018 | C98: 0998 | D98: 89 | E98: 18 | G98: 998 | I98: 0 | J98: 0 | K98: 0 | L98: =IF(K99>0, K98/K99, 0) -> 0 | N98: =ROUND(M99*L98,0) -> 0 | O98: 0 | P98: =N98-O98 -> 0 | Q98: 0 | R98: 0 | S98: 0 | T98: 18 | U98: 998 | V98: 89 | W98: 0 | X98: 0 | Y98: 89 | Z98: 18 | AA98: 998 | AB98: 89 | AC98: 0 | AD98: 0 | CR98: 18 | CS98: 998 | CT98: 89 | CU98: 0 | CV98: 0 | CW98: 0 | CX98: 0
A99: 00180999 | B99: 0018 | C99: 0999 | D99: 90 | E99: 18 | F99: Avon | G99: 999 | H99: Total | I99: 7700896.636 | J99: 1 | K99: =SUM(K95:K98) -> 8409006.339 | L99: =SUM(L95:L98) -> 1 | M99: =VLOOKUP(E99,town351,24) -> 5476978 | N99: =SUM(N95:N98) -> 5476978 | O99: 5251681 | P99: =SUM(P95:P98) -> 225297 | Q99: 4.289997812 | R99: 622 | S99: 653 | T99: 18 | U99: 999 | V99: 90 | W99: 653 | X99: 8409006.339 | Y99: 90 | Z99: 18 | AA99: 999 | AB99: 90 | AC99: 653 | AD99: 8409006.339 | CR99: 18 | CS99: 999 | CT99: 90 | CU99: 623 | CV99: 7247159.265 | CW99: 1 | CX99: 5132409
A100: 00190019 | B100: 0019 | C100: 0019 | D100: 91 | E100: 19 | F100: Ayer | G100: 19 | H100: Ayer | I100: 0 | J100: 0 | K100: =X100 -> 0 | L100: =IF(K104>0, K100/K104, 0) -> 0 | N100: =ROUND(M104*L100,0) -> 0 | O100: 0 | P100: =N100-O100 -> 0 | Q100: 0 | R100: 0 | S100: 0 | T100: 19 | U100: 19 | V100: 91 | W100: 0 | X100: 0 | Y100: 91 | Z100: 19 | AA100: 19 | AB100: 91 | AC100: 0 | AD100: 0 | CR100: 19 | CS100: 19 | CT100: 91 | CU100: 0 | CV100: 0 | CW100: 0 | CX100: 0
A101: 00190616 | B101: 0019 | C101: 0616 | D101: 92 | E101: 19 | F101: Ayer | G101: 616 | H101: Ayer Shirley | I101: 10831730.84 | J101: 0.9256854959 | K101: 11092852.6 | L101: =IF(K104>0, K101/K104, 0) -> 0.9189748939 | N101: =ROUND(M104*L101,0) -> 8013738 | O101: 7646864 | P101: =N101-O101 -> 366874 | Q101: 4.797705308 | R101: 979.8717654 | S101: 961.7071725 | T101: 19 | U101: 616 | V101: 92 | W101: 961.7071725 | X101: 11092852.6 | Y101: 92 | Z101: 19 | AA101: 616 | AB101: 92 | AC101: 961.7071725 | AD101: 11092852.6 | CR101: 19 | CS101: 616 | CT101: 92 | CU101: 953.354394 | CV101: 9988703.748 | CW101: 0.9274031692 | CX101: 7215157
A102: 00190852 | B102: 0019 | C102: 0852 | D102: 93 | E102: 19 | F102: Ayer | G102: 852 | H102: Nashoba Valley | I102: 869576.8806 | J102: 0.07431450413 | K102: 978045.8255 | L102: =IF(K104>0, K102/K104, 0) -> 0.08102510606 | N102: =ROUND(M104*L102,0) -> 706563 | O102: 613894 | P102: =N102-O102 -> 92669 | Q102: 15.09527703 | R102: 51 | S102: 55 | T102: 19 | U102: 852 | V102: 93 | W102: 55 | X102: 978045.8255 | Y102: 93 | Z102: 19 | AA102: 852 | AB102: 93 | AC102: 55 | AD102: 978045.8255 | CR102: 19 | CS102: 852 | CT102: 93 | CU102: 48 | CV102: 781912.613 | CW102: 0.07259683075 | CX102: 564800
A103: 00190998 | B103: 0019 | C103: 0998 | D103: 94 | E103: 19 | G103: 998 | I103: 0 | J103: 0 | K103: 0 | L103: =IF(K104>0, K103/K104, 0) -> 0 | N103: =ROUND(M104*L103,0) -> 0 | O103: 0 | P103: =N103-O103 -> 0 | Q103: 0 | R103: 0 | S103: 0 | T103: 19 | U103: 998 | V103: 94 | W103: 0 | X103: 0 | Y103: 94 | Z103: 19 | AA103: 998 | AB103: 94 | AC103: 0 | AD103: 0 | CR103: 19 | CS103: 998 | CT103: 94 | CU103: 0 | CV103: 0 | CW103: 0 | CX103: 0
A104: 00190999 | B104: 0019 | C104: 0999 | D104: 95 | E104: 19 | F104: Ayer | G104: 999 | H104: Total | I104: 11701307.72 | J104: 1 | K104: =SUM(K100:K103) -> 12070898.43 | L104: =SUM(L100:L103) -> 1 | M104: =VLOOKUP(E104,town351,24) -> 8720301 | N104: =SUM(N100:N103) -> 8720301 | O104: 8260758 | P104: =SUM(P100:P103) -> 459543 | Q104: 5.562964077 | R104: 1030.871765 | S104: 1016.707173 | T104: 19 | U104: 999 | V104: 95 | W104: 1016.707173 | X104: 12070898.43 | Y104: 95 | Z104: 19 | AA104: 999 | AB104: 95 | AC104: 1016.707173 | AD104: 12070898.43 | CR104: 19 | CS104: 999 | CT104: 95 | CU104: 1001.354394 | CV104: 10770616.36 | CW104: 1 | CX104: 7779957
A105: 00200020 | B105: 0020 | C105: 0020 | D105: 96 | E105: 20 | F105: Barnstable | G105: 20 | H105: Barnstable | I105: 63524348.52 | J105: 0.952360238 | K105: =X105 -> 66271891.59 | L105: =IF(K109>0, K105/K109, 0) -> 0.9478679464 | N105: =ROUND(M109*L105,0) -> 53244409 | O105: 51296149 | P105: =N105-O105 -> 1948260 | Q105: 3.798062892 | R105: 5444 | S105: 5405 | T105: 20 | U105: 20 | V105: 96 | W105: 5405 | X105: 66271891.59 | Y105: 96 | Z105: 20 | AA105: 20 | AB105: 96 | AC105: 5405 | AD105: 66271891.59 | CR105: 20 | CS105: 20 | CT105: 96 | CU105: 5480 | CV105: 60393953.44 | CW105: 0.952336101 | CX105: 49825012
A106: 00200815 | B106: 0020 | C106: 0815 | D106: 97 | E106: 20 | F106: Barnstable | G106: 815 | H106: Cape Cod | I106: 3177668.198 | J106: 0.04763976195 | K106: 3644906.251 | L106: =IF(K109>0, K106/K109, 0) -> 0.05213205358 | N106: =ROUND(M109*L106,0) -> 2928404 | O106: 2565979 | P106: =N106-O106 -> 362425 | Q106: 14.12423874 | R106: 177 | S106: 195 | T106: 20 | U106: 815 | V106: 97 | W106: 195 | X106: 3644906.251 | Y106: 97 | Z106: 20 | AA106: 815 | AB106: 97 | AC106: 195 | AD106: 3644906.251 | CR106: 20 | CS106: 815 | CT106: 97 | CU106: 179 | CV106: 3022684.212 | CW106: 0.047663899 | CX106: 2493714
A107: 00200998 | B107: 0020 | C107: 0998 | D107: 98 | E107: 20 | G107: 998 | I107: 0 | J107: 0 | K107: 0 | L107: =IF(K109>0, K107/K109, 0) -> 0 | N107: =ROUND(M109*L107,0) -> 0 | O107: 0 | P107: =N107-O107 -> 0 | Q107: 0 | R107: 0 | S107: 0 | T107: 20 | U107: 998 | V107: 98 | W107: 0 | X107: 0 | Y107: 98 | Z107: 20 | AA107: 998 | AB107: 98 | AC107: 0 | AD107: 0 | CR107: 20 | CS107: 998 | CT107: 98 | CU107: 0 | CV107: 0 | CW107: 0 | CX107: 0
A108: 00200998 | B108: 0020 | C108: 0998 | D108: 99 | E108: 20 | G108: 998 | I108: 0 | J108: 0 | K108: 0 | L108: =IF(K109>0, K108/K109, 0) -> 0 | N108: =ROUND(M109*L108,0) -> 0 | O108: 0 | P108: =N108-O108 -> 0 | Q108: 0 | R108: 0 | S108: 0 | T108: 20 | U108: 998 | V108: 99 | W108: 0 | X108: 0 | Y108: 99 | Z108: 20 | AA108: 998 | AB108: 99 | AC108: 0 | AD108: 0 | CR108: 20 | CS108: 998 | CT108: 99 | CU108: 0 | CV108: 0 | CW108: 0 | CX108: 0
A109: 00200999 | B109: 0020 | C109: 0999 | D109: 100 | E109: 20 | F109: Barnstable | G109: 999 | H109: Total | I109: 66702016.72 | J109: 1 | K109: =SUM(K105:K108) -> 69916797.84 | L109: =SUM(L105:L108) -> 1 | M109: =VLOOKUP(E109,town351,24) -> 56172813 | N109: =SUM(N105:N108) -> 56172813 | O109: 53862128 | P109: =SUM(P105:P108) -> 2310685 | Q109: 4.289999459 | R109: 5621 | S109: 5600 | T109: 20 | U109: 999 | V109: 100 | W109: 5600 | X109: 69916797.84 | Y109: 100 | Z109: 20 | AA109: 999 | AB109: 100 | AC109: 5600 | AD109: 69916797.84 | CR109: 20 | CS109: 999 | CT109: 100 | CU109: 5659 | CV109: 63416637.65 | CW109: 1 | CX109: 52318726
A110: 00210021 | B110: 0021 | C110: 0021 | D110: 101 | E110: 21 | F110: Barre | G110: 21 | H110: Barre | I110: 0 | J110: 0 | K110: =X110 -> 0 | L110: =IF(K114>0, K110/K114, 0) -> 0 | N110: =ROUND(M114*L110,0) -> 0 | O110: 0 | P110: =N110-O110 -> 0 | Q110: 0 | R110: 0 | S110: 0 | T110: 21 | U110: 21 | V110: 101 | W110: 0 | X110: 0 | Y110: 101 | Z110: 21 | AA110: 21 | AB110: 101 | AC110: 0 | AD110: 0 | CR110: 21 | CS110: 21 | CT110: 101 | CU110: 0 | CV110: 0 | CW110: 0 | CX110: 0
A111: 00210753 | B111: 0021 | C111: 0753 | D111: 102 | E111: 21 | F111: Barre | G111: 753 | H111: Quabbin | I111: 8382080.505 | J111: 0.8900128133 | K111: 8467542.974 | L111: =IF(K114>0, K111/K114, 0) -> 0.8989191721 | N111: =ROUND(M114*L111,0) -> 3418427 | O111: 3263850 | P111: =N111-O111 -> 154577 | Q111: 4.7360326 | R111: 756.7442806 | S111: 734.5938462 | T111: 21 | U111: 753 | V111: 102 | W111: 734.5938462 | X111: 8467542.974 | Y111: 102 | Z111: 21 | AA111: 753 | AB111: 102 | AC111: 734.5938462 | AD111: 8467542.974 | CR111: 21 | CS111: 753 | CT111: 102 | CU111: 790.1778412 | CV111: 8357183.38 | CW111: 0.9212855705 | CX111: 3282113
A112: 00210832 | B112: 0021 | C112: 0832 | D112: 103 | E112: 21 | F112: Barre | G112: 832 | H112: Montachusett | I112: 1035851.889 | J112: 0.1099871867 | K112: 952150.4054 | L112: =IF(K114>0, K112/K114, 0) -> 0.1010808279 | N112: =ROUND(M114*L112,0) -> 384392 | O112: 403344 | P112: =N112-O112 -> -18952 | Q112: -4.698718712 | R112: 61.00000001 | S112: 53.99999999 | T112: 21 | U112: 832 | V112: 103 | W112: 53.99999999 | X112: 952150.4054 | Y112: 103 | Z112: 21 | AA112: 832 | AB112: 103 | AC112: 53.99999999 | AD112: 952150.4054 | CR112: 21 | CS112: 832 | CT112: 103 | CU112: 44.02960968 | CV112: 714035.8459 | CW112: 0.07871442946 | CX112: 280423
A113: 00210998 | B113: 0021 | C113: 0998 | D113: 104 | E113: 21 | G113: 998 | I113: 0 | J113: 0 | K113: 0 | L113: =IF(K114>0, K113/K114, 0) -> 0 | N113: =ROUND(M114*L113,0) -> 0 | O113: 0 | P113: =N113-O113 -> 0 | Q113: 0 | R113: 0 | S113: 0 | T113: 21 | U113: 998 | V113: 104 | W113: 0 | X113: 0 | Y113: 104 | Z113: 21 | AA113: 998 | AB113: 104 | AC113: 0 | AD113: 0 | CR113: 21 | CS113: 998 | CT113: 104 | CU113: 0 | CV113: 0 | CW113: 0 | CX113: 0
A114: 00210999 | B114: 0021 | C114: 0999 | D114: 105 | E114: 21 | F114: Barre | G114: 999 | H114: Total | I114: 9417932.394 | J114: 1 | K114: =SUM(K110:K113) -> 9419693.38 | L114: =SUM(L110:L113) -> 1 | M114: =VLOOKUP(E114,town351,24) -> 3802819 | N114: =SUM(N110:N113) -> 3802819 | O114: 3667194 | P114: =SUM(P110:P113) -> 135625 | Q114: 3.698331749 | R114: 817.7442806 | S114: 788.5938461 | T114: 21 | U114: 999 | V114: 105 | W114: 788.5938461 | X114: 9419693.38 | Y114: 105 | Z114: 21 | AA114: 999 | AB114: 105 | AC114: 788.5938461 | AD114: 9419693.38 | CR114: 21 | CS114: 999 | CT114: 105 | CU114: 834.2074509 | CV114: 9071219.226 | CW114: 1 | CX114: 3562536
A115: 00220022 | B115: 0022 | C115: 0022 | D115: 106 | E115: 22 | F115: Becket | G115: 22 | H115: Becket | I115: 143717.9726 | J115: 0.05563203724 | K115: =X115 -> 191989.22 | L115: =IF(K119>0, K115/K119, 0) -> 0.08047266369 | N115: =ROUND(M119*L115,0) -> 158391 | O115: 108529 | P115: =N115-O115 -> 49862 | Q115: 45.94348054 | R115: 10 | S115: 11 | T115: 22 | U115: 22 | V115: 106 | W115: 11 | X115: 191989.22 | Y115: 106 | Z115: 22 | AA115: 22 | AB115: 106 | AC115: 11 | AD115: 191989.22 | CR115: 22 | CS115: 22 | CT115: 106 | CU115: 13 | CV115: 206187.51 | CW115: 0.08517180085 | CX115: 157270
A116: 00220635 | B116: 0022 | C116: 0635 | D116: 107 | E116: 22 | F116: Becket | G116: 635 | H116: Central Berkshire | I116: 2439649.089 | J116: 0.9443679628 | K116: 2193780.198 | L116: =IF(K119>0, K116/K119, 0) -> 0.9195273363 | N116: =ROUND(M119*L116,0) -> 1809869 | O116: 1842302 | P116: =N116-O116 -> -32433 | Q116: -1.760460554 | R116: 213.5022166 | S116: 187.169787 | T116: 22 | U116: 635 | V116: 107 | W116: 187.169787 | X116: 2193780.198 | Y116: 107 | Z116: 22 | AA116: 635 | AB116: 107 | AC116: 187.169787 | AD116: 2193780.198 | CR116: 22 | CS116: 635 | CT116: 107 | CU116: 205.0704225 | CV116: 2214654.928 | CW116: 0.9148281992 | CX116: 1689234
A117: 00220998 | B117: 0022 | C117: 0998 | D117: 108 | E117: 22 | G117: 998 | I117: 0 | J117: 0 | K117: 0 | L117: =IF(K119>0, K117/K119, 0) -> 0 | N117: =ROUND(M119*L117,0) -> 0 | O117: 0 | P117: =N117-O117 -> 0 | Q117: 0 | R117: 0 | S117: 0 | T117: 22 | U117: 998 | V117: 108 | W117: 0 | X117: 0 | Y117: 108 | Z117: 22 | AA117: 998 | AB117: 108 | AC117: 0 | AD117: 0 | CR117: 22 | CS117: 998 | CT117: 108 | CU117: 0 | CV117: 0 | CW117: 0 | CX117: 0
A118: 00220998 | B118: 0022 | C118: 0998 | D118: 109 | E118: 22 | G118: 998 | I118: 0 | J118: 0 | K118: 0 | L118: =IF(K119>0, K118/K119, 0) -> 0 | N118: =ROUND(M119*L118,0) -> 0 | O118: 0 | P118: =N118-O118 -> 0 | Q118: 0 | R118: 0 | S118: 0 | T118: 22 | U118: 998 | V118: 109 | W118: 0 | X118: 0 | Y118: 109 | Z118: 22 | AA118: 998 | AB118: 109 | AC118: 0 | AD118: 0 | CR118: 22 | CS118: 998 | CT118: 109 | CU118: 0 | CV118: 0 | CW118: 0 | CX118: 0
A119: 00220999 | B119: 0022 | C119: 0999 | D119: 110 | E119: 22 | F119: Becket | G119: 999 | H119: Total | I119: 2583367.061 | J119: 1 | K119: =SUM(K115:K118) -> 2385769.418 | L119: =SUM(L115:L118) -> 1 | M119: =VLOOKUP(E119,town351,24) -> 1968260 | N119: =SUM(N115:N118) -> 1968260 | O119: 1950831 | P119: =SUM(P115:P118) -> 17429 | Q119: 0.8934141399 | R119: 223.5022166 | S119: 198.169787 | T119: 22 | U119: 999 | V119: 110 | W119: 198.169787 | X119: 2385769.418 | Y119: 110 | Z119: 22 | AA119: 999 | AB119: 110 | AC119: 198.169787 | AD119: 2385769.418 | CR119: 22 | CS119: 999 | CT119: 110 | CU119: 218.0704225 | CV119: 2420842.438 | CW119: 1 | CX119: 1846504
A120: 00230023 | B120: 0023 | C120: 0023 | D120: 111 | E120: 23 | F120: Bedford | G120: 23 | H120: Bedford | I120: 29672258.16 | J120: 0.985602029 | K120: =X120 -> 31014582.86 | L120: =IF(K124>0, K120/K124, 0) -> 0.9815302463 | N120: =ROUND(M124*L120,0) -> 25095756 | O120: 24098559 | P120: =N120-O120 -> 997197 | Q120: 4.137994309 | R120: 2693 | S120: 2707 | T120: 23 | U120: 23 | V120: 111 | W120: 2707 | X120: 31014582.86 | Y120: 111 | Z120: 23 | AA120: 23 | AB120: 111 | AC120: 2707 | AD120: 31014582.86 | CR120: 23 | CS120: 23 | CT120: 111 | CU120: 2661 | CV120: 27912085.89 | CW120: 0.9892623389 | CX120: 23027471
A121: 00230871 | B121: 0023 | C121: 0871 | D121: 112 | E121: 23 | F121: Bedford | G121: 871 | H121: Shawsheen Valley | I121: 433461.2744 | J121: 0.01439797097 | K121: 583610.8563 | L121: =IF(K124>0, K121/K124, 0) -> 0.01846975373 | N121: =ROUND(M124*L121,0) -> 472234 | O121: 352039 | P121: =N121-O121 -> 120195 | Q121: 34.14252398 | R121: 26 | S121: 34 | T121: 23 | U121: 871 | V121: 112 | W121: 34 | X121: 583610.8563 | Y121: 112 | Z121: 23 | AA121: 871 | AB121: 112 | AC121: 34 | AD121: 583610.8563 | CR121: 23 | CS121: 871 | CT121: 112 | CU121: 19 | CV121: 302963.6389 | CW121: 0.01073766107 | CX121: 249945
A122: 00230998 | B122: 0023 | C122: 0998 | D122: 113 | E122: 23 | G122: 998 | I122: 0 | J122: 0 | K122: 0 | L122: =IF(K124>0, K122/K124, 0) -> 0 | N122: =ROUND(M124*L122,0) -> 0 | O122: 0 | P122: =N122-O122 -> 0 | Q122: 0 | R122: 0 | S122: 0 | T122: 23 | U122: 998 | V122: 113 | W122: 0 | X122: 0 | Y122: 113 | Z122: 23 | AA122: 998 | AB122: 113 | AC122: 0 | AD122: 0 | CR122: 23 | CS122: 998 | CT122: 113 | CU122: 0 | CV122: 0 | CW122: 0 | CX122: 0
A123: 00230998 | B123: 0023 | C123: 0998 | D123: 114 | E123: 23 | G123: 998 | I123: 0 | J123: 0 | K123: 0 | L123: =IF(K124>0, K123/K124, 0) -> 0 | N123: =ROUND(M124*L123,0) -> 0 | O123: 0 | P123: =N123-O123 -> 0 | Q123: 0 | R123: 0 | S123: 0 | T123: 23 | U123: 998 | V123: 114 | W123: 0 | X123: 0 | Y123: 114 | Z123: 23 | AA123: 998 | AB123: 114 | AC123: 0 | AD123: 0 | CR123: 23 | CS123: 998 | CT123: 114 | CU123: 0 | CV123: 0 | CW123: 0 | CX123: 0
A124: 00230999 | B124: 0023 | C124: 0999 | D124: 115 | E124: 23 | F124: Bedford | G124: 999 | H124: Total | I124: 30105719.43 | J124: 1 | K124: =SUM(K120:K123) -> 31598193.71 | L124: =SUM(L120:L123) -> 1 | M124: =VLOOKUP(E124,town351,24) -> 25567990 | N124: =SUM(N120:N123) -> 25567990 | O124: 24450598 | P124: =SUM(P120:P123) -> 1117392 | Q124: 4.569998656 | R124: 2719 | S124: 2741 | T124: 23 | U124: 999 | V124: 115 | W124: 2741 | X124: 31598193.71 | Y124: 115 | Z124: 23 | AA124: 999 | AB124: 115 | AC124: 2741 | AD124: 31598193.71 | CR124: 23 | CS124: 999 | CT124: 115 | CU124: 2680 | CV124: 28215049.53 | CW124: 1 | CX124: 23277416
A125: 00240024 | B125: 0024 | C125: 0024 | D125: 116 | E125: 24 | F125: Belchertown | G125: 24 | H125: Belchertown | I125: 24514320.31 | J125: 0.9293079522 | K125: =X125 -> 24966439.98 | L125: =IF(K129>0, K125/K129, 0) -> 0.9407666425 | N125: =ROUND(M129*L125,0) -> 12725953 | O125: 12048062 | P125: =N125-O125 -> 677891 | Q125: 5.626556371 | R125: 2310 | S125: 2278 | T125: 24 | U125: 24 | V125: 116 | W125: 2278 | X125: 24966439.98 | Y125: 116 | Z125: 24 | AA125: 24 | AB125: 116 | AC125: 2278 | AD125: 24966439.98 | CR125: 24 | CS125: 24 | CT125: 116 | CU125: 2344 | CV125: 23863029.98 | CW125: 0.9302301329 | CX125: 11563925
A126: 00240860 | B126: 0024 | C126: 0860 | D126: 117 | E126: 24 | F126: Belchertown | G126: 860 | H126: Pathfinder | I126: 1864793.58 | J126: 0.07069204782 | K126: 1571958.441 | L126: =IF(K129>0, K126/K129, 0) -> 0.05923335751 | N126: =ROUND(M129*L126,0) -> 801262 | O126: 916491 | P126: =N126-O126 -> -115229 | Q126: -12.57284578 | R126: 105 | S126: 84 | T126: 24 | U126: 860 | V126: 117 | W126: 84 | X126: 1571958.441 | Y126: 117 | Z126: 24 | AA126: 860 | AB126: 117 | AC126: 84 | AD126: 1571958.441 | CR126: 24 | CS126: 860 | CT126: 117 | CU126: 106 | CV126: 1789794.128 | CW126: 0.06976986706 | CX126: 867327
A127: 00240998 | B127: 0024 | C127: 0998 | D127: 118 | E127: 24 | G127: 998 | I127: 0 | J127: 0 | K127: 0 | L127: =IF(K129>0, K127/K129, 0) -> 0 | N127: =ROUND(M129*L127,0) -> 0 | O127: 0 | P127: =N127-O127 -> 0 | Q127: 0 | R127: 0 | S127: 0 | T127: 24 | U127: 998 | V127: 118 | W127: 0 | X127: 0 | Y127: 118 | Z127: 24 | AA127: 998 | AB127: 118 | AC127: 0 | AD127: 0 | CR127: 24 | CS127: 998 | CT127: 118 | CU127: 0 | CV127: 0 | CW127: 0 | CX127: 0
A128: 00240998 | B128: 0024 | C128: 0998 | D128: 119 | E128: 24 | G128: 998 | I128: 0 | J128: 0 | K128: 0 | L128: =IF(K129>0, K128/K129, 0) -> 0 | N128: =ROUND(M129*L128,0) -> 0 | O128: 0 | P128: =N128-O128 -> 0 | Q128: 0 | R128: 0 | S128: 0 | T128: 24 | U128: 998 | V128: 119 | W128: 0 | X128: 0 | Y128: 119 | Z128: 24 | AA128: 998 | AB128: 119 | AC128: 0 | AD128: 0 | CR128: 24 | CS128: 998 | CT128: 119 | CU128: 0 | CV128: 0 | CW128: 0 | CX128: 0
A129: 00240999 | B129: 0024 | C129: 0999 | D129: 120 | E129: 24 | F129: Belchertown | G129: 999 | H129: Total | I129: 26379113.89 | J129: 1 | K129: =SUM(K125:K128) -> 26538398.42 | L129: =SUM(L125:L128) -> 1 | M129: =VLOOKUP(E129,town351,24) -> 13527215 | N129: =SUM(N125:N128) -> 13527215 | O129: 12964553 | P129: =SUM(P125:P128) -> 562662 | Q129: 4.340003084 | R129: 2415 | S129: 2362 | T129: 24 | U129: 999 | V129: 120 | W129: 2362 | X129: 26538398.42 | Y129: 120 | Z129: 24 | AA129: 999 | AB129: 120 | AC129: 2362 | AD129: 26538398.42 | CR129: 24 | CS129: 999 | CT129: 120 | CU129: 2450 | CV129: 25652824.11 | CW129: 1 | CX129: 12431252
A130: 00250025 | B130: 0025 | C130: 0025 | D130: 121 | E130: 25 | F130: Bellingham | G130: 25 | H130: Bellingham | I130: 24541929.43 | J130: 0.9444573063 | K130: =X130 -> 24980756.82 | L130: =IF(K134>0, K130/K134, 0) -> 0.9391388687 | N130: =ROUND(M134*L130,0) -> 17111076 | O130: 16455942 | P130: =N130-O130 -> 655134 | Q130: 3.981139457 | R130: 2286 | S130: 2247 | T130: 25 | U130: 25 | V130: 121 | W130: 2247 | X130: 24980756.82 | Y130: 121 | Z130: 25 | AA130: 25 | AB130: 121 | AC130: 2247 | AD130: 24980756.82 | CR130: 25 | CS130: 25 | CT130: 121 | CU130: 2330 | CV130: 23842628.52 | CW130: 0.9440503857 | CX130: 15794941
A131: 00250805 | B131: 0025 | C131: 0805 | D131: 122 | E131: 25 | F131: Bellingham | G131: 805 | H131: Blackstone Valley | I131: 1067715.698 | J131: 0.04108934856 | K131: 1144356.67 | L131: =IF(K134>0, K131/K134, 0) -> 0.04302150796 | N131: =ROUND(M134*L131,0) -> 783850 | O131: 715929 | P131: =N131-O131 -> 67921 | Q131: 9.487113946 | R131: 66 | S131: 68 | T131: 25 | U131: 805 | V131: 122 | W131: 68 | X131: 1144356.67 | Y131: 122 | Z131: 25 | AA131: 805 | AB131: 122 | AC131: 68 | AD131: 1144356.67 | CR131: 25 | CS131: 805 | CT131: 122 | CU131: 71 | CV131: 1105456.372 | CW131: 0.04377061504 | CX131: 732328
A132: 00250915 | B132: 0025 | C132: 0915 | D132: 123 | E132: 25 | F132: Bellingham | G132: 915 | H132: Norfolk County | I132: 375573.3296 | J132: 0.01445334509 | K132: 474527.5765 | L132: =IF(K134>0, K132/K134, 0) -> 0.0178396233 | N132: =ROUND(M134*L132,0) -> 325037 | O132: 251831 | P132: =N132-O132 -> 73206 | Q132: 29.06949502 | R132: 21 | S132: 26 | T132: 25 | U132: 915 | V132: 123 | W132: 26 | X132: 474527.5765 | Y132: 123 | Z132: 25 | AA132: 915 | AB132: 123 | AC132: 26 | AD132: 474527.5765 | CR132: 25 | CS132: 915 | CT132: 123 | CU132: 18 | CV132: 307588.8309 | CW132: 0.01217899923 | CX132: 203767
A133: 00250998 | B133: 0025 | C133: 0998 | D133: 124 | E133: 25 | G133: 998 | I133: 0 | J133: 0 | K133: 0 | L133: =IF(K134>0, K133/K134, 0) -> 0 | N133: =ROUND(M134*L133,0) -> 0 | O133: 0 | P133: =N133-O133 -> 0 | Q133: 0 | R133: 0 | S133: 0 | T133: 25 | U133: 998 | V133: 124 | W133: 0 | X133: 0 | Y133: 124 | Z133: 25 | AA133: 998 | AB133: 124 | AC133: 0 | AD133: 0 | CR133: 25 | CS133: 998 | CT133: 124 | CU133: 0 | CV133: 0 | CW133: 0 | CX133: 0
A134: 00250999 | B134: 0025 | C134: 0999 | D134: 125 | E134: 25 | F134: Bellingham | G134: 999 | H134: Total | I134: 25985218.45 | J134: 1 | K134: =SUM(K130:K133) -> 26599641.07 | L134: =SUM(L130:L133) -> 1 | M134: =VLOOKUP(E134,town351,24) -> 18219964 | N134: =SUM(N130:N133) -> 18219963 | O134: 17423702 | P134: =SUM(P130:P133) -> 796261 | Q134: 4.56998748 | R134: 2373 | S134: 2341 | T134: 25 | U134: 999 | V134: 125 | W134: 2341 | X134: 26599641.07 | Y134: 125 | Z134: 25 | AA134: 999 | AB134: 125 | AC134: 2341 | AD134: 26599641.07 | CR134: 25 | CS134: 999 | CT134: 125 | CU134: 2419 | CV134: 25255673.72 | CW134: 1 | CX134: 16731036
A135: 00260026 | B135: 0026 | C135: 0026 | D135: 126 | E135: 26 | F135: Belmont | G135: 26 | H135: Belmont | I135: 47857221.47 | J135: 0.9893518993 | K135: =X135 -> 50111563.27 | L135: =IF(K139>0, K135/K139, 0) -> 1 | N135: =ROUND(M139*L135,0) -> 40662179 | O135: 38364680 | P135: =N135-O135 -> 2297499 | Q135: 5.988578557 | R135: 4517 | S135: 4594 | T135: 26 | U135: 26 | V135: 126 | W135: 4594 | X135: 50111563.27 | Y135: 126 | Z135: 26 | AA135: 26 | AB135: 126 | AC135: 4594 | AD135: 50111563.27 | CR135: 26 | CS135: 26 | CT135: 126 | CU135: 4488 | CV135: 45512607.46 | CW135: 0.9913942987 | CX135: 36735671
A136: 00260830 | B136: 0026 | C136: 0830 | D136: 127 | E136: 26 | G136: 998 | I136: 515073.0637 | J136: 0.01064810071 | K136: 0 | L136: =IF(K139>0, K136/K139, 0) -> 0 | N136: =ROUND(M139*L136,0) -> 0 | O136: 412908 | P136: =N136-O136 -> -412908 | Q136: -100 | R136: 28 | S136: 0 | T136: 26 | U136: 830 | V136: 127 | W136: 0 | X136: 0 | Y136: 127 | Z136: 26 | AA136: 830 | AB136: 127 | AC136: 0 | AD136: 0 | CR136: 26 | CS136: 830 | CT136: 127 | CU136: 22.06451613 | CV136: 395067.7402 | CW136: 0.008605701301 | CX136: 318880
A137: 00260998 | B137: 0026 | C137: 0998 | D137: 128 | E137: 26 | G137: 998 | I137: 0 | J137: 0 | K137: 0 | L137: =IF(K139>0, K137/K139, 0) -> 0 | N137: =ROUND(M139*L137,0) -> 0 | O137: 0 | P137: =N137-O137 -> 0 | Q137: 0 | R137: 0 | S137: 0 | T137: 26 | U137: 998 | V137: 128 | W137: 0 | X137: 0 | Y137: 128 | Z137: 26 | AA137: 998 | AB137: 128 | AC137: 0 | AD137: 0 | CR137: 26 | CS137: 998 | CT137: 128 | CU137: 0 | CV137: 0 | CW137: 0 | CX137: 0
A138: =B138&C138 -> 00260998 | B138: 0026 | C138: 0998 | D138: 129 | E138: 26 | G138: 998 | I138: 0 | J138: 0 | K138: 0 | L138: =IF(K139>0, K138/K139, 0) -> 0 | N138: =ROUND(M139*L138,0) -> 0 | O138: 0 | P138: =N138-O138 -> 0 | Q138: 0 | R138: 0 | S138: 0 | T138: =VLOOKUP($D138, foundoptions, VLOOKUP($T$6, foundoptcell, 2, FALSE), FALSE) -> 26 | U138: =VLOOKUP($D138, foundoptions, VLOOKUP($T$6, foundoptcell, 2, FALSE)+1, FALSE) -> 998 | V138: =VLOOKUP($D138, foundoptions, VLOOKUP($T$6, foundoptcell, 2, FALSE)+2, FALSE) -> 129 | W138: =VLOOKUP($D138, foundoptions, VLOOKUP($T$6, foundoptcell, 2, FALSE)+3, FALSE) -> 0 | X138: =VLOOKUP($D138, foundoptions, VLOOKUP($T$6, foundoptcell, 2, FALSE)+4, FALSE) -> 0 | Y138: 129 | Z138: 26 | AA138: 998 | AB138: 129 | AC138: 0 | AD138: 0 | CR138: 26 | CS138: 998 | CT138: 129 | CU138: 0 | CV138: 0 | CW138: 0 | CX138: 0
A139: 00260999 | B139: 0026 | C139: 0999 | D139: 130 | E139: 26 | F139: Belmont | G139: 999 | H139: Total | I139: 48372294.53 | J139: 1 | K139: =SUM(K135:K138) -> 50111563.27 | L139: =SUM(L135:L138) -> 1 | M139: =VLOOKUP(E139,town351,24) -> 40662179 | N139: =SUM(N135:N138) -> 40662179 | O139: 38777588 | P139: =SUM(P135:P138) -> 1884591 | Q139: 4.860000576 | R139: 4545 | S139: 4594 | T139: 26 | U139: 999 | V139: 130 | W139: 4594 | X139: 50111563.27 | Y139: =D139 -> 130 | Z139: 26 | AA139: 999 | AB139: 130 | AC139: 4594 | AD139: 50111563.27 | CR139: 26 | CS139: 999 | CT139: 130 | CU139: 4510.064516 | CV139: 45907675.2 | CW139: 1 | CX139: 37054551
A140: 00270027 | B140: 0027 | C140: 0027 | D140: 131 | E140: 27 | F140: Berkley | G140: 27 | H140: Berkley | I140: 7578024.3 | J140: 0.6105605747 | K140: =X140 -> 8088546.29 | L140: =IF(K144>0, K140/K144, 0) -> 0.6133352552 | N140: =ROUND(M144*L140,0) -> 4198889 | O140: 3944412 | P140: =N140-O140 -> 254477 | Q140: 6.451582644 | R140: 742 | S140: 764 | T140: 27 | U140: 27 | V140: 131 | W140: 764 | X140: 8088546.29 | Y140: 131 | Z140: 27 | AA140: 27 | AB140: 131 | AC140: 764 | AD140: 8088546.29 | CR140: 27 | CS140: 27 | CT140: 131 | CU140: 774 | CV140: 7541762.29 | CW140: 0.6173477677 | CX140: 3837447
A141: 00270763 | B141: 0027 | C141: 0763 | D141: 132 | E141: 27 | F141: Berkley | G141: 763 | H141: Somerset Berkley | I141: 3153707.445 | J141: 0.254093858 | K141: 3466421.707 | L141: =IF(K144>0, K141/K144, 0) -> 0.2628505254 | N141: =ROUND(M144*L141,0) -> 1799473 | O141: 1641526 | P141: =N141-O141 -> 157947 | Q141: 9.621961516 | R141: 270 | S141: 286 | T141: 27 | U141: 763 | V141: 132 | W141: 286 | X141: 3466421.707 | Y141: 132 | Z141: 27 | AA141: 763 | AB141: 132 | AC141: 286 | AD141: 3466421.707 | CR141: 27 | CS141: 763 | CT141: 132 | CU141: 265 | CV141: 2968320.139 | CW141: 0.2429784633 | CX141: 1510359
A142: 00270810 | B142: 0027 | C142: 0810 | D142: 133 | E142: 27 | F142: Berkley | G142: 810 | H142: Bristol Plymouth | I142: 1508256.138 | J142: 0.1215200292 | K142: 1438734.719 | L142: =IF(K144>0, K142/K144, 0) -> 0.1090958368 | N142: =ROUND(M144*L142,0) -> 746869 | O142: 785057 | P142: =N142-O142 -> -38188 | Q142: -4.864360167 | R142: 89.19970082 | S142: 80.29917727 | T142: 27 | U142: 810 | V142: 133 | W142: 80.29917727 | X142: 1438734.719 | Y142: 133 | Z142: 27 | AA142: 810 | AB142: 133 | AC142: 80.29917727 | AD142: 1438734.719 | CR142: 27 | CS142: 810 | CT142: 133 | CU142: 93.21104387 | CV142: 1512814.346 | CW142: 0.1238347913 | CX142: 769760
A143: 00270910 | B143: 0027 | C143: 0910 | D143: 134 | E143: 27 | F143: Berkley | G143: 910 | H143: Bristol County | I143: 171596.837 | J143: 0.01382553806 | K143: 194103.1732 | L143: =IF(K144>0, K143/K144, 0) -> 0.01471838263 | N143: =ROUND(M144*L143,0) -> 100762 | O143: 89317 | P143: =N143-O143 -> 11445 | Q143: 12.81391001 | R143: 10 | S143: 11 | T143: 27 | U143: 910 | V143: 134 | W143: 11 | X143: 194103.1732 | Y143: 134 | Z143: 27 | AA143: 910 | AB143: 134 | AC143: 11 | AD143: 194103.1732 | CR143: 27 | CS143: 910 | CT143: 134 | CU143: 12 | CV143: 193495.1602 | CW143: 0.01583897776 | CX143: 98455
A144: 00270999 | B144: 0027 | C144: 0999 | D144: 135 | E144: 27 | F144: Berkley | G144: 999 | H144: Total | I144: 12411584.72 | J144: 1 | K144: =SUM(K140:K143) -> 13187805.89 | L144: =SUM(L140:L143) -> 1 | M144: =VLOOKUP(E144,town351,24) -> 6845993 | N144: =SUM(N140:N143) -> 6845993 | O144: 6460312 | P144: =SUM(P140:P143) -> 385681 | Q144: =IF(O144>0,P144*100/O144,IF(P144>0,100,0)) -> 5.970005783 | R144: 1111.199701 | S144: 1141.299177 | T144: 27 | U144: 999 | V144: 135 | W144: 1141.299177 | X144: 13187805.89 | Y144: 135 | Z144: 27 | AA144: 999 | AB144: 135 | AC144: 1141.299177 | AD144: 13187805.89 | CR144: 27 | CS144: 999 | CT144: 135 | CU144: 1144.211044 | CV144: 12216391.94 | CW144: 1 | CX144: 6216021
A145: 00280028 | B145: 0028 | C145: 0028 | D145: 136 | E145: 28 | F145: Berlin | G145: 28 | H145: Berlin | I145: 0 | J145: 0 | K145: =X145 -> 0 | L145: =IF(K149>0, K145/K149, 0) -> 0 | N145: =ROUND(M149*L145,0) -> 0 | O145: 0 | P145: =N145-O145 -> 0 | Q145: 0 | R145: 0 | S145: 0 | T145: 28 | U145: 28 | V145: 136 | W145: 0 | X145: 0 | Y145: 136 | Z145: 28 | AA145: 28 | AB145: 136 | AC145: 0 | AD145: 0 | CR145: 28 | CS145: 28 | CT145: 136 | CU145: 159 | CV145: 1639651.663 | CW145: 0.409965727 | CX145: 1352713
A146: 00280620 | B146: 0028 | C146: 0620 | D146: 137 | E146: 28 | F146: Berlin | G146: 620 | H146: Berlin Boylston | I146: 3549939.236 | J146: 0.8983242928 | K146: 3521910.039 | L146: =IF(K149>0, K146/K149, 0) -> 0.8671219226 | N146: =ROUND(M149*L146,0) -> 2905576 | O146: 2928700 | P146: =N146-O146 -> -23124 | Q146: -0.7895653362 | R146: 341.1392931 | S146: 327.9675732 | T146: 28 | U146: 620 | V146: 137 | W146: 327.9675732 | X146: 3521910.039 | Y146: 137 | Z146: 28 | AA146: 620 | AB146: 137 | AC146: 327.9675732 | AD146: 3521910.039 | CR146: 28 | CS146: 620 | CT146: 137 | CU146: 189.6860254 | CV146: 1939567.246 | CW146: 0.4849542828 | CX146: 1600143
A147: 00280801 | B147: 0028 | C147: 0801 | D147: 138 | E147: 28 | F147: Berlin | G147: 801 | H147: Assabet Valley | I147: 401795.4154 | J147: 0.1016757072 | K147: 539698.7695 | L147: =IF(K149>0, K147/K149, 0) -> 0.1328780774 | N147: =ROUND(M149*L147,0) -> 445251 | O147: 331481 | P147: =N147-O147 -> 113770 | Q147: 34.32172583 | R147: 22 | S147: 28 | T147: 28 | U147: 801 | V147: 138 | W147: 28 | X147: 539698.7695 | Y147: 138 | Z147: 28 | AA147: 801 | AB147: 138 | AC147: 28 | AD147: 539698.7695 | CR147: 28 | CS147: 801 | CT147: 138 | CU147: 24 | CV147: 420265.8159 | CW147: 0.1050799902 | CX147: 346719
A148: 00280998 | B148: 0028 | C148: 0998 | D148: 139 | E148: 28 | G148: 998 | I148: 0 | J148: 0 | K148: 0 | L148: =IF(K149>0, K148/K149, 0) -> 0 | N148: =ROUND(M149*L148,0) -> 0 | O148: 0 | P148: =N148-O148 -> 0 | Q148: 0 | R148: 0 | S148: 0 | T148: 28 | U148: 998 | V148: 139 | W148: 0 | X148: 0 | Y148: 139 | Z148: 28 | AA148: 998 | AB148: 139 | AC148: 0 | AD148: 0 | CR148: 28 | CS148: 998 | CT148: 139 | CU148: 0 | CV148: 0 | CW148: 0 | CX148: 0
A149: 00280999 | B149: 0028 | C149: 0999 | D149: 140 | E149: 28 | F149: Berlin | G149: 999 | H149: Total | I149: 3951734.651 | J149: 1 | K149: =SUM(K145:K148) -> 4061608.808 | L149: =SUM(L145:L148) -> 1 | M149: =VLOOKUP(E149,town351,24) -> 3350827 | N149: =SUM(N145:N148) -> 3350827 | O149: 3260181 | P149: =SUM(P145:P148) -> 90646 | Q149: 2.780397775 | R149: 363.1392931 | S149: 355.9675732 | T149: 28 | U149: 999 | V149: 140 | W149: 355.9675732 | X149: 4061608.808 | Y149: 140 | Z149: 28 | AA149: 999 | AB149: 140 | AC149: 355.9675732 | AD149: 4061608.808 | CR149: 28 | CS149: 999 | CT149: 140 | CU149: 372.6860254 | CV149: 3999484.725 | CW149: 1 | CX149: 3299575
A150: 00290029 | B150: 0029 | C150: 0029 | D150: 141 | E150: 29 | F150: Bernardston | G150: 29 | H150: Bernardston | I150: 0 | J150: 0 | K150: =X150 -> 0 | L150: =IF(K154>0, K150/K154, 0) -> 0 | N150: =ROUND(M154*L150,0) -> 0 | O150: 0 | P150: =N150-O150 -> 0 | Q150: 0 | R150: 0 | S150: 0 | T150: 29 | U150: 29 | V150: 141 | W150: 0 | X150: 0 | Y150: 141 | Z150: 29 | AA150: 29 | AB150: 141 | AC150: 0 | AD150: 0 | CR150: 29 | CS150: 29 | CT150: 141 | CU150: 0 | CV150: 0 | CW150: 0 | CX150: 0
A151: 00290750 | B151: 0029 | C151: 0750 | D151: 142 | E151: 29 | F151: Bernardston | G151: 750 | H151: Pioneer | I151: 2585034.282 | J151: 0.8344133911 | K151: 2725344.774 | L151: =IF(K154>0, K151/K154, 0) -> 0.8387741263 | N151: =ROUND(M154*L151,0) -> 1436251 | O151: 1380201 | P151: =N151-O151 -> 56050 | Q151: 4.061002709 | R151: 236.223176 | S151: 235.8038633 | T151: 29 | U151: 750 | V151: 142 | W151: 235.8038633 | X151: 2725344.774 | Y151: 142 | Z151: 29 | AA151: 750 | AB151: 142 | AC151: 235.8038633 | AD151: 2725344.774 | CR151: 29 | CS151: 750 | CT151: 142 | CU151: 239.6345609 | CV151: 2510445.984 | CW151: 0.8462046523 | CX151: 1412356
A152: 00290818 | B152: 0029 | C152: 0818 | D152: 143 | E152: 29 | F152: Bernardston | G152: 818 | H152: Franklin County | I152: 512991.6001 | J152: 0.1655866089 | K152: 523855.0863 | L152: =IF(K154>0, K152/K154, 0) -> 0.1612258737 | N152: =ROUND(M154*L152,0) -> 276070 | O152: 273896 | P152: =N152-O152 -> 2174 | Q152: 0.7937319274 | R152: 29 | S152: 28 | T152: 29 | U152: 818 | V152: 143 | W152: 28 | X152: 523855.0863 | Y152: 143 | Z152: 29 | AA152: 818 | AB152: 143 | AC152: 28 | AD152: 523855.0863 | CR152: 29 | CS152: 818 | CT152: 143 | CU152: 27 | CV152: 456266.592 | CW152: 0.1537953477 | CX152: 256692
A153: 00290998 | B153: 0029 | C153: 0998 | D153: 144 | E153: 29 | G153: 998 | I153: 0 | J153: 0 | K153: 0 | L153: =IF(K154>0, K153/K154, 0) -> 0 | N153: =ROUND(M154*L153,0) -> 0 | O153: 0 | P153: =N153-O153 -> 0 | Q153: 0 | R153: 0 | S153: 0 | T153: 29 | U153: 998 | V153: 144 | W153: 0 | X153: 0 | Y153: 144 | Z153: 29 | AA153: 998 | AB153: 144 | AC153: 0 | AD153: 0 | CR153: 29 | CS153: 998 | CT153: 144 | CU153: 0 | CV153: 0 | CW153: 0 | CX153: 0
A154: 00290999 | B154: 0029 | C154: 0999 | D154: 145 | E154: 29 | F154: Bernardston | G154: 999 | H154: Total | I154: 3098025.882 | J154: 1 | K154: =SUM(K150:K153) -> 3249199.861 | L154: =SUM(L150:L153) -> 1 | M154: =VLOOKUP(E154,town351,24) -> 1712321 | N154: =SUM(N150:N153) -> 1712321 | O154: 1654097 | P154: =SUM(P150:P153) -> 58224 | Q154: 3.519987038 | R154: 265.223176 | S154: 263.8038633 | T154: 29 | U154: 999 | V154: 145 | W154: 263.8038633 | X154: 3249199.861 | Y154: 145 | Z154: 29 | AA154: 999 | AB154: 145 | AC154: 263.8038633 | AD154: 3249199.861 | CR154: 29 | CS154: 999 | CT154: 145 | CU154: 266.6345609 | CV154: 2966712.576 | CW154: 1 | CX154: 1669048
A155: 00300030 | B155: 0030 | C155: 0030 | D155: 146 | E155: 30 | F155: Beverly | G155: 30 | H155: Beverly | I155: 49446399.06 | J155: 0.9619007599 | K155: =X155 -> 52340525.96 | L155: =IF(K159>0, K155/K159, 0) -> 0.9599772262 | N155: =ROUND(M159*L155,0) -> 42077791 | O155: 40188832 | P155: =N155-O155 -> 1888959 | Q155: 4.700208755 | R155: 4458 | S155: 4570 | T155: 30 | U155: 30 | V155: 146 | W155: 4570 | X155: 52340525.96 | Y155: 146 | Z155: 30 | AA155: 30 | AB155: 146 | AC155: 4570 | AD155: 52340525.96 | CR155: 30 | CS155: 30 | CT155: 146 | CU155: 4398 | CV155: 46490353.89 | CW155: 0.9572881994 | CX155: 38354542
A156: 00300817 | B156: 0030 | C156: 0817 | D156: 147 | E156: 30 | F156: Beverly | G156: 817 | H156: Essex North Shore | I156: 1958487.102 | J156: 0.03809924013 | K156: 2182148.677 | L156: =IF(K159>0, K156/K159, 0) -> 0.04002277385 | N156: =ROUND(M159*L156,0) -> 1754281 | O156: 1591811 | P156: =N156-O156 -> 162470 | Q156: 10.20661372 | R156: 117 | S156: 121 | T156: 30 | U156: 817 | V156: 147 | W156: 121 | X156: 2182148.677 | Y156: 147 | Z156: 30 | AA156: 817 | AB156: 147 | AC156: 121 | AD156: 2182148.677 | CR156: 30 | CS156: 817 | CT156: 147 | CU156: 128 | CV156: 2074283.092 | CW156: 0.04271180062 | CX156: 1711284
A157: 00300998 | B157: 0030 | C157: 0998 | D157: 148 | E157: 30 | G157: 998 | I157: 0 | J157: 0 | K157: 0 | L157: =IF(K159>0, K157/K159, 0) -> 0 | N157: =ROUND(M159*L157,0) -> 0 | O157: 0 | P157: =N157-O157 -> 0 | Q157: 0 | R157: 0 | S157: 0 | T157: 30 | U157: 998 | V157: 148 | W157: 0 | X157: 0 | Y157: 148 | Z157: 30 | AA157: 998 | AB157: 148 | AC157: 0 | AD157: 0 | CR157: 30 | CS157: 998 | CT157: 148 | CU157: 0 | CV157: 0 | CW157: 0 | CX157: 0
A158: 00300998 | B158: 0030 | C158: 0998 | D158: 149 | E158: 30 | G158: 998 | I158: 0 | J158: 0 | K158: 0 | L158: =IF(K159>0, K158/K159, 0) -> 0 | N158: =ROUND(M159*L158,0) -> 0 | O158: 0 | P158: =N158-O158 -> 0 | Q158: 0 | R158: 0 | S158: 0 | T158: 30 | U158: 998 | V158: 149 | W158: 0 | X158: 0 | Y158: 149 | Z158: 30 | AA158: 998 | AB158: 149 | AC158: 0 | AD158: 0 | CR158: 30 | CS158: 998 | CT158: 149 | CU158: 0 | CV158: 0 | CW158: 0 | CX158: 0
A159: 00300999 | B159: 0030 | C159: 0999 | D159: 150 | E159: 30 | F159: Beverly | G159: 999 | H159: Total | I159: 51404886.16 | J159: 1 | K159: =SUM(K155:K158) -> 54522674.64 | L159: =SUM(L155:L158) -> 1 | M159: =VLOOKUP(E159,town351,24) -> 43832072 | N159: =SUM(N155:N158) -> 43832072 | O159: 41780643 | P159: =SUM(P155:P158) -> 2051429 | Q159: 4.909998633 | R159: 4575 | S159: 4691 | T159: 30 | U159: 999 | V159: 150 | W159: 4691 | X159: 54522674.64 | Y159: 150 | Z159: 30 | AA159: 999 | AB159: 150 | AC159: 4691 | AD159: 54522674.64 | CR159: 30 | CS159: 999 | CT159: 150 | CU159: 4526 | CV159: 48564636.98 | CW159: 1 | CX159: 40065826
A160: 00310031 | B160: 0031 | C160: 0031 | D160: 151 | E160: 31 | F160: Billerica | G160: 31 | H160: Billerica | I160: 51908631.2 | J160: 0.8466390535 | K160: =X160 -> 53361602.31 | L160: =IF(K164>0, K160/K164, 0) -> 0.8574084231 | N160: =ROUND(M164*L160,0) -> 41666761 | O160: 39371685 | P160: =N160-O160 -> 2295076 | Q160: 5.829255212 | R160: 4866 | S160: 4866 | T160: 31 | U160: 31 | V160: 151 | W160: 4866 | X160: 53361602.31 | Y160: 151 | Z160: 31 | AA160: 31 | AB160: 151 | AC160: 4866 | AD160: 53361602.31 | CR160: 31 | CS160: 31 | CT160: 151 | CU160: 4912 | CV160: 50010476.06 | CW160: 0.832729159 | CX160: 37025362
A161: 00310871 | B161: 0031 | C161: 0871 | D161: 152 | E161: 31 | F161: Billerica | G161: 871 | H161: Shawsheen Valley | I161: 9402775.336 | J161: 0.1533609465 | K161: 8874318.019 | L161: =IF(K164>0, K161/K164, 0) -> 0.1425915769 | N161: =ROUND(M164*L161,0) -> 6929404 | O161: 7131822 | P161: =N161-O161 -> -202418 | Q161: -2.838236849 | R161: 564 | S161: 517 | T161: 31 | U161: 871 | V161: 152 | W161: 517 | X161: 8874318.019 | Y161: 152 | Z161: 31 | AA161: 871 | AB161: 152 | AC161: 517 | AD161: 8874318.019 | CR161: 31 | CS161: 871 | CT161: 152 | CU161: 630 | CV161: 10045636.45 | CW161: 0.167270841 | CX161: 7437308
A162: 00310998 | B162: 0031 | C162: 0998 | D162: 153 | E162: 31 | G162: 998 | I162: 0 | J162: 0 | K162: 0 | L162: =IF(K164>0, K162/K164, 0) -> 0 | N162: =ROUND(M164*L162,0) -> 0 | O162: 0 | P162: =N162-O162 -> 0 | Q162: 0 | R162: 0 | S162: 0 | T162: 31 | U162: 998 | V162: 153 | W162: 0 | X162: 0 | Y162: 153 | Z162: 31 | AA162: 998 | AB162: 153 | AC162: 0 | AD162: 0 | CR162: 31 | CS162: 998 | CT162: 153 | CU162: 0 | CV162: 0 | CW162: 0 | CX162: 0
A163: 00310998 | B163: 0031 | C163: 0998 | D163: 154 | E163: 31 | G163: 998 | I163: 0 | J163: 0 | K163: 0 | L163: =IF(K164>0, K163/K164, 0) -> 0 | N163: =ROUND(M164*L163,0) -> 0 | O163: 0 | P163: =N163-O163 -> 0 | Q163: 0 | R163: 0 | S163: 0 | T163: 31 | U163: 998 | V163: 154 | W163: 0 | X163: 0 | Y163: 154 | Z163: 31 | AA163: 998 | AB163: 154 | AC163: 0 | AD163: 0 | CR163: 31 | CS163: 998 | CT163: 154 | CU163: 0 | CV163: 0 | CW163: 0 | CX163: 0
A164: 00310999 | B164: 0031 | C164: 0999 | D164: 155 | E164: 31 | F164: Billerica | G164: 999 | H164: Total | I164: 61311406.54 | J164: 1 | K164: =SUM(K160:K163) -> 62235920.33 | L164: =SUM(L160:L163) -> 1 | M164: =VLOOKUP(E164,town351,24) -> 48596165 | N164: =SUM(N160:N163) -> 48596165 | O164: 46503507 | P164: =SUM(P160:P163) -> 2092658 | Q164: 4.500000398 | R164: 5430 | S164: 5383 | T164: 31 | U164: 999 | V164: 155 | W164: 5383 | X164: 62235920.33 | Y164: 155 | Z164: 31 | AA164: 999 | AB164: 155 | AC164: 5383 | AD164: 62235920.33 | CR164: 31 | CS164: 999 | CT164: 155 | CU164: 5542 | CV164: 60056112.51 | CW164: 1 | CX164: 44462670
A165: 00320032 | B165: 0032 | C165: 0032 | D165: 156 | E165: 32 | F165: Blackstone | G165: 32 | H165: Blackstone | I165: 357718.729 | J165: 0.02329189454 | K165: =X165 -> 416308.97 | L165: =IF(K169>0, K165/K169, 0) -> 0.02550823368 | N165: =ROUND(M169*L165,0) -> 199499 | O165: 174004 | P165: =N165-O165 -> 25495 | Q165: 14.65196202 | R165: 23 | S165: 26 | T165: 32 | U165: 32 | V165: 156 | W165: 26 | X165: 416308.97 | Y165: 156 | Z165: 32 | AA165: 32 | AB165: 156 | AC165: 26 | AD165: 416308.97 | CR165: 32 | CS165: 32 | CT165: 156 | CU165: 20 | CV165: 303047.63 | CW165: 0.02048401944 | CX165: 146874
A166: 00320622 | B166: 0032 | C166: 0622 | D166: 157 | E166: 32 | F166: Blackstone | G166: 622 | H166: Blackstone Millville | I166: 13560560.65 | J166: 0.8829594959 | K166: 14440159.87 | L166: =IF(K169>0, K166/K169, 0) -> 0.8847826945 | N166: =ROUND(M169*L166,0) -> 6919849 | O166: 6596227 | P166: =N166-O166 -> 323622 | Q166: 4.906168329 | R166: 1263.439864 | S166: 1279.894737 | T166: 32 | U166: 622 | V166: 157 | W166: 1279.894737 | X166: 14440159.87 | Y166: 157 | Z166: 32 | AA166: 622 | AB166: 157 | AC166: 1279.894737 | AD166: 14440159.87 | CR166: 32 | CS166: 622 | CT166: 157 | CU166: 1279.134454 | CV166: 13152292.87 | CW166: 0.8890081829 | CX166: 6374329
A167: 00320805 | B167: 0032 | C167: 0805 | D167: 158 | E167: 32 | F167: Blackstone | G167: 805 | H167: Blackstone Valley | I167: 1439798.442 | J167: 0.09374860959 | K167: 1464103.386 | L167: =IF(K169>0, K167/K169, 0) -> 0.08970907186 | N167: =ROUND(M169*L167,0) -> 701611 | O167: 700357 | P167: =N167-O167 -> 1254 | Q167: 0.1790515409 | R167: 89 | S167: 87 | T167: 32 | U167: 805 | V167: 158 | W167: 87 | X167: 1464103.386 | Y167: 158 | Z167: 32 | AA167: 805 | AB167: 158 | AC167: 87 | AD167: 1464103.386 | CR167: 32 | CS167: 805 | CT167: 158 | CU167: 86 | CV167: 1339003.493 | CW167: 0.09050779768 | CX167: 648955
A168: 00320998 | B168: 0032 | C168: 0998 | D168: 159 | E168: 32 | G168: 998 | I168: 0 | J168: 0 | K168: 0 | L168: =IF(K169>0, K168/K169, 0) -> 0 | N168: =ROUND(M169*L168,0) -> 0 | O168: 0 | P168: =N168-O168 -> 0 | Q168: 0 | R168: 0 | S168: 0 | T168: 32 | U168: 998 | V168: 159 | W168: 0 | X168: 0 | Y168: 159 | Z168: 32 | AA168: 998 | AB168: 159 | AC168: 0 | AD168: 0 | CR168: 32 | CS168: 998 | CT168: 159 | CU168: 0 | CV168: 0 | CW168: 0 | CX168: 0
A169: 00320999 | B169: 0032 | C169: 0999 | D169: 160 | E169: 32 | F169: Blackstone | G169: 999 | H169: Total | I169: 15358077.82 | J169: 1 | K169: =SUM(K165:K168) -> 16320572.22 | L169: =SUM(L165:L168) -> 1 | M169: =VLOOKUP(E169,town351,24) -> 7820959 | N169: =SUM(N165:N168) -> 7820959 | O169: 7470588 | P169: =SUM(P165:P168) -> 350371 | Q169: 4.69000566 | R169: 1375.439864 | S169: 1392.894737 | T169: 32 | U169: 999 | V169: 160 | W169: 1392.894737 | X169: 16320572.22 | Y169: 160 | Z169: 32 | AA169: 999 | AB169: 160 | AC169: 1392.894737 | AD169: 16320572.22 | CR169: 32 | CS169: 999 | CT169: 160 | CU169: 1385.134454 | CV169: 14794343.99 | CW169: 1 | CX169: 7170158
A170: 00330033 | B170: 0033 | C170: 0033 | D170: 161 | E170: 33 | F170: Blandford | G170: 33 | H170: Blandford | I170: 114974.378 | J170: 0.08315230172 | K170: =X170 -> 104682.55 | L170: =IF(K174>0, K170/K174, 0) -> 0.07349699705 | N170: =ROUND(M174*L170,0) -> 85498 | O170: 91083 | P170: =N170-O170 -> -5585 | Q170: -6.131769924 | R170: 8 | S170: 7 | T170: 33 | U170: 33 | V170: 161 | W170: 7 | X170: 104682.55 | Y170: 161 | Z170: 33 | AA170: 33 | AB170: 161 | AC170: 7 | AD170: 104682.55 | CR170: 33 | CS170: 33 | CT170: 161 | CU170: 8 | CV170: 110697.28 | CW170: 0.08659184341 | CX170: 91325
A171: 00330672 | B171: 0033 | C171: 0672 | D171: 162 | E171: 33 | F171: Blandford | G171: 672 | H171: Gateway | I171: 1267721.899 | J171: 0.9168476983 | K171: 1319628.023 | L171: =IF(K174>0, K171/K174, 0) -> 0.9265030029 | N171: =ROUND(M174*L171,0) -> 1077788 | O171: 1004290 | P171: =N171-O171 -> 73498 | Q171: 7.318404047 | R171: 111.0305776 | S171: 110.6279863 | T171: 33 | U171: 672 | V171: 162 | W171: 110.6279863 | X171: 1319628.023 | Y171: 162 | Z171: 33 | AA171: 672 | AB171: 162 | AC171: 110.6279863 | AD171: 1319628.023 | CR171: 33 | CS171: 672 | CT171: 162 | CU171: 108.006795 | CV171: 1167682.711 | CW171: 0.9134081566 | CX171: 963338
A172: 00330998 | B172: 0033 | C172: 0998 | D172: 163 | E172: 33 | G172: 998 | I172: 0 | J172: 0 | K172: 0 | L172: =IF(K174>0, K172/K174, 0) -> 0 | N172: =ROUND(M174*L172,0) -> 0 | O172: 0 | P172: =N172-O172 -> 0 | Q172: 0 | R172: 0 | S172: 0 | T172: 33 | U172: 998 | V172: 163 | W172: 0 | X172: 0 | Y172: 163 | Z172: 33 | AA172: 998 | AB172: 163 | AC172: 0 | AD172: 0 | CR172: 33 | CS172: 998 | CT172: 163 | CU172: 0 | CV172: 0 | CW172: 0 | CX172: 0
A173: 00330998 | B173: 0033 | C173: 0998 | D173: 164 | E173: 33 | G173: 998 | I173: 0 | J173: 0 | K173: 0 | L173: =IF(K174>0, K173/K174, 0) -> 0 | N173: =ROUND(M174*L173,0) -> 0 | O173: 0 | P173: =N173-O173 -> 0 | Q173: 0 | R173: 0 | S173: 0 | T173: 33 | U173: 998 | V173: 164 | W173: 0 | X173: 0 | Y173: 164 | Z173: 33 | AA173: 998 | AB173: 164 | AC173: 0 | AD173: 0 | CR173: 33 | CS173: 998 | CT173: 164 | CU173: 0 | CV173: 0 | CW173: 0 | CX173: 0
A174: 00330999 | B174: 0033 | C174: 0999 | D174: 165 | E174: 33 | F174: Blandford | G174: 999 | H174: Total | I174: 1382696.277 | J174: 1 | K174: =SUM(K170:K173) -> 1424310.573 | L174: =SUM(L170:L173) -> 1 | M174: =VLOOKUP(E174,town351,24) -> 1163286 | N174: =SUM(N170:N173) -> 1163286 | O174: 1095373 | P174: =SUM(P170:P173) -> 67913 | Q174: 6.199988497 | R174: 119.0305776 | S174: 117.6279863 | T174: 33 | U174: 999 | V174: 165 | W174: 117.6279863 | X174: 1424310.573 | Y174: 165 | Z174: 33 | AA174: 999 | AB174: 165 | AC174: 117.6279863 | AD174: 1424310.573 | CR174: 33 | CS174: 999 | CT174: 165 | CU174: 116.006795 | CV174: 1278379.991 | CW174: 1 | CX174: 1054663
A175: 00340034 | B175: 0034 | C175: 0034 | D175: 166 | E175: 34 | F175: Bolton | G175: 34 | H175: Bolton | I175: 14861.54204 | J175: 0.001351679306 | K175: =X175 -> 15454.14088 | L175: =IF(K179>0, K175/K179, 0) -> 0.001373194458 | N175: =ROUND(M179*L175,0) -> 12750 | O175: 12091 | P175: =N175-O175 -> 659 | Q175: 5.45033496 | R175: 1 | S175: 1 | T175: 34 | U175: 34 | V175: 166 | W175: 1 | X175: 15454.14088 | Y175: 166 | Z175: 34 | AA175: 34 | AB175: 166 | AC175: 1 | AD175: 15454.14088 | CR175: 34 | CS175: 34 | CT175: 166 | CU175: 1 | CV175: 14264.24656 | CW175: 0.001335325678 | CX175: 11464
A176: 00340725 | B176: 0034 | C176: 0725 | D176: 167 | E176: 34 | F176: Bolton | G176: 725 | H176: Nashoba | I176: 10777661.12 | J176: 0.9802442758 | K176: 10929494.33 | L176: =IF(K179>0, K176/K179, 0) -> 0.9711520791 | N176: =ROUND(M179*L176,0) -> 9016832 | O176: 8768396 | P176: =N176-O176 -> 248436 | Q176: 2.833311817 | R176: 1020.401112 | S176: 1004.171625 | T176: 34 | U176: 725 | V176: 167 | W176: 1004.171625 | X176: 10929494.33 | Y176: 167 | Z176: 34 | AA176: 725 | AB176: 167 | AC176: 1004.171625 | AD176: 10929494.33 | CR176: 34 | CS176: 725 | CT176: 167 | CU176: 1037.266117 | CV176: 10452467.17 | CW176: 0.9784917668 | CX176: 8400729
A177: 00340830 | B177: 0034 | C177: 0830 | D177: 168 | E177: 34 | F177: Bolton | G177: 830 | H177: Minuteman | I177: 202350.1322 | J177: 0.01840404485 | K177: 309204.7817 | L177: =IF(K179>0, K177/K179, 0) -> 0.02747472642 | N177: =ROUND(M179*L177,0) -> 255094 | O177: 164626 | P177: =N177-O177 -> 90468 | Q177: 54.95365252 | R177: 11 | S177: 15.50611247 | T177: 34 | U177: 830 | V177: 168 | W177: 15.50611247 | X177: 309204.7817 | Y177: 168 | Z177: 34 | AA177: 830 | AB177: 168 | AC177: 15.50611247 | AD177: 309204.7817 | CR177: 34 | CS177: 830 | CT177: 168 | CU177: 12.03519062 | CV177: 215491.4947 | CW177: 0.02017290749 | CX177: 173192
A178: 00340998 | B178: 0034 | C178: 0998 | D178: 169 | E178: 34 | G178: 998 | I178: 0 | J178: 0 | K178: 0 | L178: =IF(K179>0, K178/K179, 0) -> 0 | N178: =ROUND(M179*L178,0) -> 0 | O178: 0 | P178: =N178-O178 -> 0 | Q178: 0 | R178: 0 | S178: 0 | T178: 34 | U178: 998 | V178: 169 | W178: 0 | X178: 0 | Y178: 169 | Z178: 34 | AA178: 998 | AB178: 169 | AC178: 0 | AD178: 0 | CR178: 34 | CS178: 998 | CT178: 169 | CU178: 0 | CV178: 0 | CW178: 0 | CX178: 0
A179: 00340999 | B179: 0034 | C179: 0999 | D179: 170 | E179: 34 | F179: Bolton | G179: 999 | H179: Total | I179: 10994872.8 | J179: 1 | K179: =SUM(K175:K178) -> 11254153.25 | L179: =SUM(L175:L178) -> 1 | M179: =VLOOKUP(E179,town351,24) -> 9284676 | N179: =SUM(N175:N178) -> 9284676 | O179: 8945113 | P179: =SUM(P175:P178) -> 339563 | Q179: 3.796072783 | R179: 1032.401112 | S179: 1020.677738 | T179: 34 | U179: 999 | V179: 170 | W179: 1020.677738 | X179: 11254153.25 | Y179: 170 | Z179: 34 | AA179: 999 | AB179: 170 | AC179: 1020.677738 | AD179: 11254153.25 | CR179: 34 | CS179: 999 | CT179: 170 | CU179: 1050.301307 | CV179: 10682222.92 | CW179: 1 | CX179: 8585385
A180: 00350035 | B180: 0035 | C180: 0035 | D180: 171 | E180: 35 | F180: Boston | G180: 35 | H180: Boston | I180: 910864776.4 | J180: 1 | K180: =X180 -> 978722271.9 | L180: =IF(K184>0, K180/K184, 0) -> 1 | N180: =ROUND(M184*L180,0) -> 797151500 | O180: 749907338 | P180: =N180-O180 -> 47244162 | Q180: 6.299999961 | R180: 63777 | S180: 62900 | T180: 35 | U180: 35 | V180: 171 | W180: 62900 | X180: 978722271.9 | Y180: 171 | Z180: 35 | AA180: 35 | AB180: 171 | AC180: 62900 | AD180: 978722271.9 | CR180: 35 | CS180: 35 | CT180: 171 | CU180: 64508 | CV180: 861999611.9 | CW180: 1 | CX180: 711149680
A181: 00350998 | B181: 0035 | C181: 0998 | D181: 172 | E181: 35 | G181: 998 | I181: 0 | J181: 0 | K181: 0 | L181: =IF(K184>0, K181/K184, 0) -> 0 | N181: =ROUND(M184*L181,0) -> 0 | O181: 0 | P181: =N181-O181 -> 0 | Q181: 0 | R181: 0 | S181: 0 | T181: 35 | U181: 998 | V181: 172 | W181: 0 | X181: 0 | Y181: 172 | Z181: 35 | AA181: 998 | AB181: 172 | AC181: 0 | AD181: 0 | CR181: 35 | CS181: 998 | CT181: 172 | CU181: 0 | CV181: 0 | CW181: 0 | CX181: 0
A182: 00350998 | B182: 0035 | C182: 0998 | D182: 173 | E182: 35 | G182: 998 | I182: 0 | J182: 0 | K182: 0 | L182: =IF(K184>0, K182/K184, 0) -> 0 | N182: =ROUND(M184*L182,0) -> 0 | O182: 0 | P182: =N182-O182 -> 0 | Q182: 0 | R182: 0 | S182: 0 | T182: 35 | U182: 998 | V182: 173 | W182: 0 | X182: 0 | Y182: 173 | Z182: 35 | AA182: 998 | AB182: 173 | AC182: 0 | AD182: 0 | CR182: 35 | CS182: 998 | CT182: 173 | CU182: 0 | CV182: 0 | CW182: 0 | CX182: 0
A183: 00350998 | B183: 0035 | C183: 0998 | D183: 174 | E183: 35 | G183: 998 | I183: 0 | J183: 0 | K183: 0 | L183: =IF(K184>0, K183/K184, 0) -> 0 | N183: =ROUND(M184*L183,0) -> 0 | O183: 0 | P183: =N183-O183 -> 0 | Q183: 0 | R183: 0 | S183: 0 | T183: 35 | U183: 998 | V183: 174 | W183: 0 | X183: 0 | Y183: 174 | Z183: 35 | AA183: 998 | AB183: 174 | AC183: 0 | AD183: 0 | CR183: 35 | CS183: 998 | CT183: 174 | CU183: 0 | CV183: 0 | CW183: 0 | CX183: 0
A184: 00350999 | B184: 0035 | C184: 0999 | D184: 175 | E184: 35 | F184: Boston | G184: 999 | H184: Total | I184: 910864776.4 | J184: 1 | K184: =SUM(K180:K183) -> 978722271.9 | L184: =SUM(L180:L183) -> 1 | M184: =VLOOKUP(E184,town351,24) -> 797151500 | N184: =SUM(N180:N183) -> 797151500 | O184: 749907338 | P184: =SUM(P180:P183) -> 47244162 | Q184: 6.299999961 | R184: 63777 | S184: 62900 | T184: 35 | U184: 999 | V184: 175 | W184: 62900 | X184: 978722271.9 | Y184: 175 | Z184: 35 | AA184: 999 | AB184: 175 | AC184: 62900 | AD184: 978722271.9 | CR184: 35 | CS184: 999 | CT184: 175 | CU184: 64508 | CV184: 861999611.9 | CW184: 1 | CX184: 711149680
A185: 00360036 | B185: 0036 | C185: 0036 | D185: 176 | E185: 36 | F185: Bourne | G185: 36 | H185: Bourne | I185: 22123862.83 | J185: 0.8931373289 | K185: =X185 -> 22886335.06 | L185: =IF(K189>0, K185/K189, 0) -> 0.8748456003 | N185: =ROUND(M189*L185,0) -> 18716872 | O185: 18252187 | P185: =N185-O185 -> 464685 | Q185: 2.545914087 | R185: 2001 | S185: 2012 | T185: 36 | U185: 36 | V185: 176 | W185: 2012 | X185: 22886335.06 | Y185: 176 | Z185: 36 | AA185: 36 | AB185: 176 | AC185: 2012 | AD185: 22886335.06 | CR185: 36 | CS185: 36 | CT185: 176 | CU185: 2038 | CV185: 21368782.29 | CW185: 0.8829556615 | CX185: 17629245
A186: 00360879 | B186: 0036 | C186: 0879 | D186: 177 | E186: 36 | F186: Bourne | G186: 879 | H186: Upper Cape Cod | I186: 2647090.207 | J186: 0.1068626711 | K186: 3274092.623 | L186: =IF(K189>0, K186/K189, 0) -> 0.1251543997 | N186: =ROUND(M189*L186,0) -> 2677614 | O186: 2183849 | P186: =N186-O186 -> 493765 | Q186: 22.60985077 | R186: 157 | S186: 185 | T186: 36 | U186: 879 | V186: 177 | W186: 185 | X186: 3274092.623 | Y186: 177 | Z186: 36 | AA186: 879 | AB186: 177 | AC186: 185 | AD186: 3274092.623 | CR186: 36 | CS186: 879 | CT186: 177 | CU186: 175 | CV186: 2832639.392 | CW186: 0.1170443385 | CX186: 2336928
A187: 00360998 | B187: 0036 | C187: 0998 | D187: 178 | E187: 36 | G187: 998 | I187: 0 | J187: 0 | K187: 0 | L187: =IF(K189>0, K187/K189, 0) -> 0 | N187: =ROUND(M189*L187,0) -> 0 | O187: 0 | P187: =N187-O187 -> 0 | Q187: 0 | R187: 0 | S187: 0 | T187: 36 | U187: 998 | V187: 178 | W187: 0 | X187: 0 | Y187: 178 | Z187: 36 | AA187: 998 | AB187: 178 | AC187: 0 | AD187: 0 | CR187: 36 | CS187: 998 | CT187: 178 | CU187: 0 | CV187: 0 | CW187: 0 | CX187: 0
A188: 00360998 | B188: 0036 | C188: 0998 | D188: 179 | E188: 36 | G188: 998 | I188: 0 | J188: 0 | K188: 0 | L188: =IF(K189>0, K188/K189, 0) -> 0 | N188: =ROUND(M189*L188,0) -> 0 | O188: 0 | P188: =N188-O188 -> 0 | Q188: 0 | R188: 0 | S188: 0 | T188: 36 | U188: 998 | V188: 179 | W188: 0 | X188: 0 | Y188: 179 | Z188: 36 | AA188: 998 | AB188: 179 | AC188: 0 | AD188: 0 | CR188: 36 | CS188: 998 | CT188: 179 | CU188: 0 | CV188: 0 | CW188: 0 | CX188: 0
A189: 00360999 | B189: 0036 | C189: 0999 | D189: 180 | E189: 36 | F189: Bourne | G189: 999 | H189: Total | I189: 24770953.04 | J189: 1 | K189: =SUM(K185:K188) -> 26160427.68 | L189: =SUM(L185:L188) -> 1 | M189: =VLOOKUP(E189,town351,24) -> 21394486 | N189: =SUM(N185:N188) -> 21394486 | O189: 20436036 | P189: =SUM(P185:P188) -> 958450 | Q189: 4.689999567 | R189: 2158 | S189: 2197 | T189: 36 | U189: 999 | V189: 180 | W189: 2197 | X189: 26160427.68 | Y189: 180 | Z189: 36 | AA189: 999 | AB189: 180 | AC189: 2197 | AD189: 26160427.68 | CR189: 36 | CS189: 999 | CT189: 180 | CU189: 2213 | CV189: 24201421.68 | CW189: 1 | CX189: 19966173
A190: 00370037 | B190: 0037 | C190: 0037 | D190: 181 | E190: 37 | F190: Boxborough | G190: 37 | H190: Boxborough | I190: 127474.5305 | J190: 0.01406919288 | K190: =X190 -> 146044.4623 | L190: =IF(K194>0, K190/K194, 0) -> 0.01526377398 | N190: =ROUND(M194*L190,0) -> 118854 | O190: 104905 | P190: =N190-O190 -> 13949 | Q190: 13.29679234 | R190: 8 | S190: 9 | T190: 37 | U190: 37 | V190: 181 | W190: 9 | X190: 146044.4623 | Y190: 181 | Z190: 37 | AA190: 37 | AB190: 181 | AC190: 9 | AD190: 146044.4623 | CR190: 37 | CS190: 37 | CT190: 181 | CU190: 7 | CV190: 106694.35 | CW190: 0.01223870901 | CX190: 87553
A191: 00370600 | B191: 0037 | C191: 0600 | D191: 182 | E191: 37 | F191: Boxborough | G191: 600 | H191: Acton Boxborough | I191: 8933068.718 | J191: 0.9859308071 | K191: 9421999.621 | L191: =IF(K194>0, K191/K194, 0) -> 0.984736226 | N191: =ROUND(M194*L191,0) -> 7667815 | O191: 7351448 | P191: =N191-O191 -> 316367 | Q191: 4.303465113 | R191: 843.3208969 | S191: 856.0218559 | T191: 37 | U191: 600 | V191: 182 | W191: 856.0218559 | X191: 9421999.621 | Y191: 182 | Z191: 37 | AA191: 600 | AB191: 182 | AC191: 856.0218559 | AD191: 9421999.621 | CR191: 37 | CS191: 600 | CT191: 182 | CU191: 848.4607105 | CV191: 8611083.801 | CW191: 0.987761291 | CX191: 7066196
A192: 00370830 | B192: 0037 | C192: 0830 | D192: 183 | E192: 37 | G192: 998 | I192: 0 | J192: 0 | K192: 0 | L192: =IF(K194>0, K192/K194, 0) -> 0 | N192: =ROUND(M194*L192,0) -> 0 | O192: 0 | P192: =N192-O192 -> 0 | Q192: 0 | R192: 0 | S192: 0 | T192: 37 | U192: 998 | V192: 183 | W192: 0 | X192: 0 | Y192: 183 | Z192: 37 | AA192: 998 | AB192: 183 | AC192: 0 | AD192: 0 | CR192: 37 | CS192: 830 | CT192: 183 | CU192: 0 | CV192: 0 | CW192: 0 | CX192: 0
A193: 00370998 | B193: 0037 | C193: 0998 | D193: 184 | E193: 37 | G193: 998 | I193: 0 | J193: 0 | K193: 0 | L193: =IF(K194>0, K193/K194, 0) -> 0 | N193: =ROUND(M194*L193,0) -> 0 | O193: 0 | P193: =N193-O193 -> 0 | Q193: 0 | R193: 0 | S193: 0 | T193: 37 | U193: 998 | V193: 184 | W193: 0 | X193: 0 | Y193: 184 | Z193: 37 | AA193: 998 | AB193: 184 | AC193: 0 | AD193: 0 | CR193: 37 | CS193: 998 | CT193: 184 | CU193: 0 | CV193: 0 | CW193: 0 | CX193: 0
A194: 00370999 | B194: 0037 | C194: 0999 | D194: 185 | E194: 37 | F194: Boxborough | G194: 999 | H194: Total | I194: 9060543.248 | J194: 1 | K194: =SUM(K190:K193) -> 9568044.084 | L194: =SUM(L190:L193) -> 1 | M194: =VLOOKUP(E194,town351,24) -> 7786669 | N194: =SUM(N190:N193) -> 7786669 | O194: 7456353 | P194: =SUM(P190:P193) -> 330316 | Q194: 4.429994127 | R194: 851.3208969 | S194: 865.0218559 | T194: 37 | U194: 999 | V194: 185 | W194: 865.0218559 | X194: 9568044.084 | Y194: 185 | Z194: 37 | AA194: 999 | AB194: 185 | AC194: 865.0218559 | AD194: 9568044.084 | CR194: 37 | CS194: 999 | CT194: 185 | CU194: 855.4607105 | CV194: 8717778.151 | CW194: 1 | CX194: 7153749
A195: 00380038 | B195: 0038 | C195: 0038 | D195: 186 | E195: 38 | F195: Boxford | G195: 38 | H195: Boxford | I195: 7004474.169 | J195: 0.4716686631 | K195: =X195 -> 7489733.543 | L195: =IF(K199>0, K195/K199, 0) -> 0.490065806 | N195: =ROUND(M199*L195,0) -> 6179030 | O195: 5765598 | P195: =N195-O195 -> 413432 | Q195: 7.170669894 | R195: 705 | S195: 729 | T195: 38 | U195: 38 | V195: 186 | W195: 729 | X195: 7489733.543 | Y195: 186 | Z195: 38 | AA195: 38 | AB195: 186 | AC195: 729 | AD195: 7489733.543 | CR195: 38 | CS195: 38 | CT195: 186 | CU195: 704 | CV195: 6655216.908 | CW195: 0.4677186164 | CX195: 5490554
A196: 00380705 | B196: 0038 | C196: 0705 | D196: 187 | E196: 38 | F196: Boxford | G196: 705 | H196: Masconomet | I196: 7544632.535 | J196: 0.5080419537 | K196: 7504835.875 | L196: =IF(K199>0, K196/K199, 0) -> 0.4910539769 | N196: =ROUND(M199*L196,0) -> 6191489 | O196: 6210219 | P196: =N196-O196 -> -18730 | Q196: -0.3015996698 | R196: 697.5204806 | S196: 669.8848758 | T196: 38 | U196: 705 | V196: 187 | W196: 669.8848758 | X196: 7504835.875 | Y196: 187 | Z196: 38 | AA196: 705 | AB196: 187 | AC196: 669.8848758 | AD196: 7504835.875 | CR196: 38 | CS196: 705 | CT196: 187 | CU196: 700.7592191 | CV196: 7282191.189 | CW196: 0.5117814241 | CX196: 6007808
A197: 00380817 | B197: 0038 | C197: 0817 | D197: 188 | E197: 38 | F197: Boxford | G197: 817 | H197: Essex North Shore | I197: 301305.708 | J197: 0.02028938319 | K197: 288548.5854 | L197: =IF(K199>0, K197/K199, 0) -> 0.01888021707 | N197: =ROUND(M199*L197,0) -> 238053 | O197: 248014 | P197: =N197-O197 -> -9961 | Q197: -4.016305531 | R197: 18 | S197: 16 | T197: 38 | U197: 817 | V197: 188 | W197: 16 | X197: 288548.5854 | Y197: 188 | Z197: 38 | AA197: 817 | AB197: 188 | AC197: 16 | AD197: 288548.5854 | CR197: 38 | CS197: 817 | CT197: 188 | CU197: 18 | CV197: 291696.0598 | CW197: 0.02049995956 | CX197: 240649
A198: 00380998 | B198: 0038 | C198: 0998 | D198: 189 | E198: 38 | G198: 998 | I198: 0 | J198: 0 | K198: 0 | L198: =IF(K199>0, K198/K199, 0) -> 0 | N198: =ROUND(M199*L198,0) -> 0 | O198: 0 | P198: =N198-O198 -> 0 | Q198: 0 | R198: 0 | S198: 0 | T198: 38 | U198: 998 | V198: 189 | W198: 0 | X198: 0 | Y198: 189 | Z198: 38 | AA198: 998 | AB198: 189 | AC198: 0 | AD198: 0 | CR198: 38 | CS198: 998 | CT198: 189 | CU198: 0 | CV198: 0 | CW198: 0 | CX198: 0
A199: 00380999 | B199: 0038 | C199: 0999 | D199: 190 | E199: 38 | F199: Boxford | G199: 999 | H199: Total | I199: 14850412.41 | J199: 1 | K199: =SUM(K195:K198) -> 15283118 | L199: =SUM(L195:L198) -> 1 | M199: =VLOOKUP(E199,town351,24) -> 12608572 | N199: =SUM(N195:N198) -> 12608572 | O199: 12223831 | P199: =SUM(P195:P198) -> 384741 | Q199: 3.147466617 | R199: 1420.520481 | S199: 1414.884876 | T199: 38 | U199: 999 | V199: 190 | W199: 1414.884876 | X199: 15283118 | Y199: 190 | Z199: 38 | AA199: 999 | AB199: 190 | AC199: 1414.884876 | AD199: 15283118 | CR199: 38 | CS199: 999 | CT199: 190 | CU199: 1422.759219 | CV199: 14229104.16 | CW199: 1 | CX199: 11739011
A200: 00390039 | B200: 0039 | C200: 0039 | D200: 191 | E200: 39 | F200: Boylston | G200: 39 | H200: Boylston | I200: 429577.7153 | J200: 0.06310744261 | K200: =X200 -> 446218.27 | L200: =IF(K204>0, K200/K204, 0) -> 0.06233677499 | N200: =ROUND(M204*L200,0) -> 358483 | O200: 344845 | P200: =N200-O200 -> 13638 | Q200: 3.954820282 | R200: 28 | S200: 28 | T200: 39 | U200: 39 | V200: 191 | W200: 28 | X200: 446218.27 | Y200: 191 | Z200: 39 | AA200: 39 | AB200: 191 | AC200: 28 | AD200: 446218.27 | CR200: 39 | CS200: 39 | CT200: 191 | CU200: 286 | CV200: 2856144.64 | CW200: 0.4346535656 | CX200: 2256220
... 362 more rows

Sheet Foundation Budget
A1: Return to Index | U1: More about the data
A2: Massachusetts Department of Elementary and Secondary Education
A3: Office of School Finance
A4: =parameters!B1&" Chapter 70 Foundation Budget" -> FY21 Chapter 70 Foundation Budget
A5: =lea -> 999 | B5: =IF(lea=999,"State total cannot be computed on this page; Please enter an lea code on the index sheet",VLOOKUP(A5,dist915,2)) -> State total cannot be computed on this page; Please enter an lea code on the index sheet | H5: 6 | I5: 8 | K5: 9 | L5: 10 | M5: 11 | N5: 12 | O5: 13 | P5: 14
C6: Base Foundation Components | K6: Incremental Costs Above the Base
C7: 1 | D7: 2 | E7: 3 | F7: 4 | G7: 5 | H7: 6 | I7: 7 | K7: 8 | L7: 9 | M7: 10 | N7: 11 | O7: 12 | P7: 13 | Q7: 14
D8: ------ Kindergarten ------ | G8: Junior/ | H8: High | K8: Special Ed | L8: Special Ed | M8: English learners | N8: English learners | O8: English learners
C9: Pre-school | D9: Half-Day | E9: Full-Day | F9: Elementary | G9: Middle | H9: School | I9: Vocational | K9: In-District | L9: Tuitioned-Out | M9: PK-5 | N9: 6-8 | O9: High School/Voc | P9: Low income | Q9: TOTAL ENROLLMENT
B10: Foundation Enrollment | C10: =IF($A$5<>999,VLOOKUP(lea,dist915,VALUE(C$7)+2),0) -> 0 | D10: 0 | E10: 0 | F10: 0 | G10: 0 | H10: 0 | I10: =IF($A$5<>999,VLOOKUP(lea,dist915,VALUE(I$7)+2),0) -> 0 | K10: =IF($A$5<>999,VLOOKUP(lea,dist915,VALUE(K$7)+2),0) -> 0 | L10: 0 | M10: 0 | N10: 0 | O10: 0 | P10: 0 | Q10: 0
A12: 1 | B12: Administration | C12: =(VLOOKUP(VALUE(C$7),newrates,$A12+2)*C$10*waf) -> 0 | D12: 0 | E12: 0 | F12: 0 | G12: 0 | H12: 0 | I12: 0 | K12: =(VLOOKUP(VALUE(K$7),newrates,$A12+2)*K$10*waf) -> 0 | L12: 0 | M12: 0 | N12: 0 | O12: 0 | P12: =(VLOOKUP(VALUE(P$7)+$C$30-1, newrates, $A12+2, FALSE))*P$10*waf -> 0 | Q12: =SUM(C12:P12) -> 0
A13: 2 | B13: Instructional Leadership | C13: 0 | D13: 0 | E13: 0 | F13: 0 | G13: 0 | H13: 0 | I13: 0 | K13: 0 | L13: 0 | M13: 0 | N13: 0 | O13: 0 | P13: =(VLOOKUP(VALUE(P$7)+$C$30-1, newrates, $A13+2, FALSE))*P$10*waf -> 0 | Q13: 0
A14: 3 | B14: Classroom & Specialist Teachers | C14: 0 | D14: 0 | E14: 0 | F14: 0 | G14: 0 | H14: 0 | I14: 0 | K14: 0 | L14: 0 | M14: 0 | N14: 0 | O14: 0 | P14: =(VLOOKUP(VALUE(P$7)+$C$30-1, newrates, $A14+2, FALSE))*P$10*waf -> 0 | Q14: 0
A15: 4 | B15: Other Teaching Services | C15: 0 | D15: 0 | E15: 0 | F15: 0 | G15: 0 | H15: 0 | I15: 0 | K15: 0 | L15: 0 | M15: 0 | N15: 0 | O15: 0 | P15: =(VLOOKUP(VALUE(P$7)+$C$30-1, newrates, $A15+2, FALSE))*P$10*waf -> 0 | Q15: 0
A16: 5 | B16: Professional Development | C16: 0 | D16: 0 | E16: 0 | F16: 0 | G16: 0 | H16: 0 | I16: 0 | K16: 0 | L16: 0 | M16: 0 | N16: 0 | O16: 0 | P16: =(VLOOKUP(VALUE(P$7)+$C$30-1, newrates, $A16+2, FALSE))*P$10*waf -> 0 | Q16: 0
A17: 6 | B17: Instructional Materials, Equipment & Technology | C17: =(VLOOKUP(VALUE(C$7),newrates,$A17+2)*C$10) -> 0 | D17: 0 | E17: 0 | F17: 0 | G17: 0 | H17: 0 | I17: 0 | K17: =(VLOOKUP(VALUE(K$7),newrates,$A17+2)*K$10) -> 0 | L17: =(VLOOKUP(VALUE(L$7),newrates,$A17+2)*L$10) -> 0 | M17: =(VLOOKUP(VALUE(M$7),newrates,$A17+2)*M$10) -> 0 | N17: =(VLOOKUP(VALUE(N$7),newrates,$A17+2)*N$10) -> 0 | O17: =(VLOOKUP(VALUE(O$7),newrates,$A17+2)*O$10) -> 0 | P17: =(VLOOKUP(VALUE(P$7)+$C$30-1, newrates, $A17+2, FALSE))*P$10 -> 0 | Q17: 0
A18: 7 | B18: Guidance & Psychological Services | C18: =(VLOOKUP(VALUE(C$7),newrates,$A18+2)*C$10*waf) -> 0 | D18: 0 | E18: 0 | F18: 0 | G18: 0 | H18: 0 | I18: 0 | K18: =(VLOOKUP(VALUE(K$7),newrates,$A18+2)*K$10*waf) -> 0 | L18: 0 | M18: 0 | N18: 0 | O18: 0 | P18: =(VLOOKUP(VALUE(P$7)+$C$30-1, newrates, $A18+2, FALSE))*P$10*waf -> 0 | Q18: 0
A19: 8 | B19: Pupil Services | C19: 0 | D19: 0 | E19: 0 | F19: 0 | G19: 0 | H19: 0 | I19: 0 | K19: 0 | L19: 0 | M19: 0 | N19: 0 | O19: 0 | P19: =(VLOOKUP(VALUE(P$7)+$C$30-1, newrates, $A19+2, FALSE))*P$10*waf -> 0 | Q19: 0
A20: 9 | B20: Operations & Maintenance | C20: 0 | D20: 0 | E20: 0 | F20: 0 | G20: 0 | H20: 0 | I20: 0 | K20: 0 | L20: 0 | M20: 0 | N20: 0 | O20: 0 | P20: =(VLOOKUP(VALUE(P$7)+$C$30-1, newrates, $A20+2, FALSE))*P$10*waf -> 0 | Q20: 0
A21: 10 | B21: Employee Benefits/Fixed Charges | C21: =(VLOOKUP(VALUE(C$7),newrates,$A21+2)*C$10) -> 0 | D21: 0 | E21: 0 | F21: 0 | G21: 0 | H21: 0 | I21: 0 | K21: =(VLOOKUP(VALUE(K$7),newrates,$A21+2)*K$10) -> 0 | L21: =(VLOOKUP(VALUE(L$7),newrates,$A21+2)*L$10) -> 0 | M21: =(VLOOKUP(VALUE(M$7),newrates,$A21+2)*M$10) -> 0 | N21: =(VLOOKUP(VALUE(N$7),newrates,$A21+2)*N$10) -> 0 | O21: =(VLOOKUP(VALUE(O$7),newrates,$A21+2)*O$10) -> 0 | P21: =(VLOOKUP(VALUE(P$7)+$C$30-1, newrates, $A21+2, FALSE))*P$10 -> 0 | Q21: 0
A22: 11 | B22: Special Education Tuition | C22: 0 | D22: 0 | E22: 0 | F22: 0 | G22: 0 | H22: 0 | I22: 0 | K22: =(VLOOKUP(VALUE(K$7)-2,newrates,$A22+2)*K$10) -> 0 | L22: =(VLOOKUP(VALUE(L$7),newrates,$A22+2)*L$10) -> 0 | M22: =(VLOOKUP(VALUE(M$7),newrates,$A22+2)*M$10) -> 0 | N22: =(VLOOKUP(VALUE(N$7),newrates,$A22+2)*N$10) -> 0 | O22: =(VLOOKUP(VALUE(O$7)-2,newrates,$A22+2)*O$10) -> 0 | P22: =(VLOOKUP(VALUE(P$7)+$C$30-1, newrates, $A22+2, FALSE))*P$10 -> 0 | Q22: 0
A24: 12 | B24: Total | C24: =SUM(C12:C22) -> 0 | D24: 0 | E24: 0 | F24: 0 | G24: 0 | H24: 0 | I24: =SUM(I12:I22) -> 0 | K24: 0 | L24: 0 | M24: 0 | N24: 0 | O24: 0 | P24: 0 | Q24: =SUM(Q12:Q23) -> 0
A26: 13 | B26: Wage Adjustment Factor | C26: =VLOOKUP(lea,dist915,17) -> 0 | N26: Foundation Budget per Pupil | Q26: =IFERROR(IF(A5<>999,Q24/Q10," "),"") -> 
B27: *The wage adjustment factor is applied to underlying rates in all functions except instructional equipment, benefits and special education tuition.
A28: 14 | B28: Low income percentage | C28: =VLOOKUP(lea,dist915,19) -> 0 | L28: English learner foundation budget as % total foundation budget | Q28: =IFERROR(IF(A5=999,"",SUM(M24:O24)/Q24),"") -> 
A29: 15 | B29: Low income group range | C29: =VLOOKUP(lea,dist915,45) -> 0 | L29: Low-income foundation budget as % total foundation budget | Q29: =IFERROR(IF(A5=999,"",P24/Q24),"") -> 
A30: 16 | B30: Low income group number | C30: =VLOOKUP(lea,dist915,18) -> 0
L31: Low income enrollment determination
B32: Total foundation enrollment (column 14) does not include incremental costs above the base. The pupils are already counted in columns 1 to 7. | L32: Estimated low income enrollment based on FY16 Ch.70 | P32: =IF($A$5<>999,VLOOKUP(lea,dist915,36,0),"") -> 
B33: Total foundation enrollment assigns pupils in pre-kindergarten and half-time kindergarten an enrollment count of .5. | L33: FY21 low income enrollment from direct certification | P33: =IF($A$5<>999,VLOOKUP(lea,dist915,37,0),"") -> 
B34: Special education in-district enrollment is an assumed percentage, representing 3.82 percent of K-12 non-vocational enrollment and | L34: greater number used for FY21 Chapter 70 | P34: =IF($A$5<>999,VLOOKUP(lea,dist915,38,0),"") -> 
B35: 4.82 percent of vocational enrollment.
B36: Special education tuitioned-out enrollment is also an assumed percentage, representing 1 percent of non-vocational K-12 enrollment.
B38: As specified in the Student Opportunity Act of 2019, each district's FY21 low income enrollment is calculated by taking the greater of:
B39: (a) the number of low income students identified through direct certification up to 133% of the federal poverty standard, or
B40: (b) the estimated number of low income students determined by multiplying the distirct's FY16 low income % by its FY21 foundation enrollment
B41: Direct certification includes the Supplemental Nutrition Assistance Program (SNAP);
B42: the Transitional Assistance for Families with Dependent Children (TAFDC); MassHealth (Medicaid); and students in foster care.
B43: Low income and English learner foundation budget increments are based on:
B44: the number of students attending school in the district or district residents who attend charter schools.
B45: The low income percentage is the ratio of the low-income enrollment to:
B46: the total students attending school in the district and the total resident students attending charter schools.
B48: Each component of the foundation budget represents the enrollment in row 10 multiplied by the appropriate statewide foundation allotment.
B49: The foundation budget shown on this page may differ from the final number used in the formula, due to rounding error.
B52: Return to Index

Sheet Municipal Contribution
M1: =IF(VLOOKUP(A6,town351,18)>0,"lo","hi") -> hi
A2: Return to Index | G2: More about the data
A3: Massachusetts Department of Elementary and Secondary Education
A4: Office of School Finance
A5: =parameters!B1&" Chapter 70 Determination of City and Town Total Required Contribution" -> FY21 Chapter 70 Determination of City and Town Total Required Contribution
A6: =lea -> 999 | B6: =IF(lea>351, "This lea code does not refer to a city or a town - this table shows municipal data only.",VLOOKUP(A6,aidcalc,2)) -> This lea code does not refer to a city or a town - this table shows municipal data only.
A8: Effort Goal | E8: =parameters!B1&" Increments Toward Goal" -> FY21 Increments Toward Goal
A10: 1) | B10: 2018 equalized valuation | C10: =IF(A6<352,VLOOKUP($A$6,town351,3)," ") ->  | E10: 13) | F10: =PYr&" required local contribution" -> FY20 required local contribution | G10: =IF(A6<352,VLOOKUP($A$6,town351,14)," ") -> 
A11: 2) | B11: Uniform property percentage | C11: =IF(A6<352,'Townwide Contributions'!D5," ") ->  | E11: 14) | F11: Municipal revenue growth factor (DOR) | G11: =IF(A$6<352,VLOOKUP($A$6,town351,15)," ") -> 
A12: 3) | B12: Local effort from property wealth | C12: =IF(A6<352,VLOOKUP($A$6,town351,4)," ") ->  | E12: 15) | F12: =parameters!B1&" preliminary contribution (13 raised by 14)" -> FY21 preliminary contribution (13 raised by 14) | G12: =IF(A$6<352,VLOOKUP($A$6,town351,16)," ") -> 
E13: 16) | F13: Preliminary contribution pct of foundation (15 / 8) | G13: =IF(A$6<352,VLOOKUP($A$6,town351,17)/100," ") -> 
A14: 4) | B14: 2017 income | C14: =IF(A6<352,VLOOKUP($A$6,town351,5)," ") -> 
A15: 5) | B15: Uniform income percentage | C15: =IF(A6<352,'Townwide Contributions'!F5," ") ->  | E15: If preliminary contribution is above the target share:
A16: 6) | B16: Local effort from income | C16: =IF(A6<352,VLOOKUP($A$6,town351,6)," ") ->  | E16: 17) | F16: Excess local effort (15 - 10) | G16: =IF(AND(A$6<352,M$1="hi"),VLOOKUP($A$6,town351,21)," ") -> 
E17: 18) | F17: =parameters!$C$50&" reduction toward target (17 x "&parameters!$C$50&")" -> 100% reduction toward target (17 x 100%) | G17: =IF(AND(A$6<352,M$1="hi"),VLOOKUP($A$6,town351,22)," ") -> 
A18: 7) | B18: Combined effort yield (3 + 6) | C18: =IF(A6<352,VLOOKUP($A$6,town351,7)," ") ->  | E18: 19) | F18: =parameters!B1&" required local contribution (15 - 18), capped at 90% of foundation" -> FY21 required local contribution (15 - 18), capped at 90% of foundation | G18: =IF(AND(A$6<352,M$1="hi"),VLOOKUP($A$6,town351,24)," ") -> 
E19: 20) | F19: Contribution as percentage of foundation (19 / 8) | G19: =IF(AND(A$6<352,M$1="hi"),VLOOKUP($A$6,town351,25)/100," ") -> 
A20: 8) | B20: =parameters!B1&" Foundation budget" -> FY21 Foundation budget | C20: =IF(A6<352,VLOOKUP($A$6,town351,8)," ") -> 
A21: 9) | B21: Maximum local contribution (82.5% * 8) | C21: =IF(A6<352,VLOOKUP($A$6,town351,10)," ") ->  | E21: If preliminary contribution is below the target share:
E22: 21) | F22: Shortfall from target local share (10 - 15) | G22: =IF(AND(A$6<352,M1="lo"),-1*VLOOKUP($A$6,town351,27)," ") -> 
A23: 10) | B23: Target local contribution (lesser of 7 or 9) | C23: =IF(A6<352,VLOOKUP($A$6,town351,11)," ") ->  | E23: 22) | F23: Shortfall percentage (11 - 16) | G23: =IF(AND(A$6<352,M1="lo"),VLOOKUP($A$6,town351,18)/100," ") -> 
E24: 23) | F24: Added increment toward target (13 x 1% or 2%)* | G24: =IF(AND(A$6<352,M1="lo"),VLOOKUP($A$6,town351,20)," ") -> 
A25: 11) | B25: Target local share (10 as % of 8) | C25: =IF(A6<352,VLOOKUP(lea,town351,12)/100," ") ->  | F25: *1% if shortfall is between 2.5% and 7.5%; 2% if shortfall > 7.5%
A26: 12) | B26: Target aid share (100% minus 11) | C26: =IF(A6<352,VLOOKUP(lea,aidcalc,12)/100," ") ->  | E26: 24) | F26: Special increment toward 82.5% target** | G26: =IF(AND(A$6<352,M1="lo"),VLOOKUP($A$6,town351,23)," ") -> 
F27: **if combined effort yield > 175% foundation
F28: Combined effort yield as % of foundation | G28: =IF(AND(A$6<352,M1="lo"),IF(VLOOKUP($A$6,town351,9)>175%,VLOOKUP($A$6,town351,9)," "),"") -> 
B29: See a listing of all 351 communities | E29: 25) | F29: Shortfall from target after adding increments (10 - 15 - 23 - 24) | G29: =IF(AND(A$6<352,M1="lo"),-1*VLOOKUP($A$6,town351,28)," ") -> 
E30: 26) | F30: =parameters!B1&" required local contribution (15 + 23 + 24)" -> FY21 required local contribution (15 + 23 + 24) | G30: =IF(AND(A$6<352,M1="lo"),VLOOKUP($A$6,town351,24)," ") -> 
E31: 27) | F31: Contribution as percentage of foundation (26 / 8) | G31: =IF(AND(A$6<352,M1="lo"),VLOOKUP($A$6,town351,25)/100," ") -> 

Sheet Regional Allocation
J1: More about the data
D2: Return to Index
D3: Massachusetts Department of Elementary and Secondary Education
D4: Office of School Finance
D5: =CYr& " Chapter 70 Apportionment of Local Contribution Across School Districts" -> FY21 Chapter 70 Apportionment of Local Contribution Across School Districts
E7: 4 | F7: 4 | G7: 3 | H7: 2 | I7: 1
A9: 5 | D9: =lea -> 999 | E9: =IF($D$9>351, "", IF(AND($D$9>0, VLOOKUP($D$9*5-E$7, order1755, $A9)<>0), VLOOKUP($D$9*5-E$7, order1755, $A9), "")) ->  | F9: =IF(OR($D$9="", $D$9>351), "", IF(AND($D$9>0, VLOOKUP($D$9*5-F$7, order1755, $A9)<>0), VLOOKUP($D$9*5-F$7, order1755, $A9), "")) ->  | G9: =IF(OR($D$9="", $D$9>351), "", IF(AND($D$9>0, VLOOKUP($D$9*5-G$7, order1755, $A9)<>0), VLOOKUP($D$9*5-G$7, order1755, $A9), "")) ->  | H9: =IF(OR($D$9="", $D$9>351), "", IF(AND($D$9>0, VLOOKUP($D$9*5-H$7, order1755, $A9)<>0), VLOOKUP($D$9*5-H$7, order1755, $A9), "")) ->  | I9: =IF(OR($D$9="", $D$9>351), "", IF(AND($D$9>0, VLOOKUP($D$9*5-I$7, order1755, $A9)<>0), VLOOKUP($D$9*5-I$7, order1755, $A9), "")) ->  | J9: Combined Total for All Districts
A10: 6
E11: Prior Year Data (for comparison purposes)
A13: 15 | D13: 1 | E13: =parameters!B2&" foundation enrollment" -> FY20 foundation enrollment | F13: =IF(OR($D$9="", $D$9>351), "", IF(AND($D$9>0, VLOOKUP($D$9*5-F$7, order1755, $A13)<>0), VLOOKUP($D$9*5-F$7, order1755, $A13), "")) ->  | J13: =IF(OR($D$9="", $D$9>351), "", VLOOKUP($D$9*5, order1755, $A13)) -> 
A14: 6 | D14: 2 | E14: =parameters!B2&" foundation budget" -> FY20 foundation budget | J14: =IF(OR($D$9="", $D$9>351), "", VLOOKUP($D$9*5, order1755, $A14)) -> 
A15: 7 | D15: 3 | E15: ="Each district's share of municipality's combined "& parameters!B2&" foundation" -> Each district's share of municipality's combined FY20 foundation | J15: =IF(OR($D$9="", $D$9>351), "", VLOOKUP($D$9*5, order1755, $A15)) -> 
A16: 12 | D16: 4 | E16: =parameters!B2&" required contribution" -> FY20 required contribution | J16: =IF(OR($D$9="", $D$9>351), "", VLOOKUP($D$9*5, order1755, $A16)) -> 
E17: =parameters!B1& " apportionment of contribution among community's districts" -> FY21 apportionment of contribution among community's districts
D18: 5 | E18: =parameters!B1&" total unapportioned required contribution ('municipal contribution' tab row 19 or 25)" -> FY21 total unapportioned required contribution ('municipal contribution' tab row 19 or 25) | J18: =IF(OR($D$9="", $D$9>351), "", VLOOKUP($D$9,town351,24)) -> 
A19: 20 | D19: 6 | E19: =parameters!B1&" foundation enrollment" -> FY21 foundation enrollment | F19: =IF(OR($D$9="", $D$9>351), "", IF(AND($D$9>0, VLOOKUP($D$9*5-F$7, order1755, $A19)<>0), VLOOKUP($D$9*5-F$7, order1755, $A19), "")) ->  | J19: =IF(OR($D$9="", $D$9>351), "", VLOOKUP($D$9*5, order1755, $A19)) -> 
A20: 8 | D20: 7 | E20: =parameters!B1&" foundation budget" -> FY21 foundation budget | J20: =IF(OR($D$9="", $D$9>351), "", VLOOKUP($D$9*5, order1755, $A20)) -> 
A21: 9 | D21: 8 | E21: ="Each district's share of municipality's total "& parameters!B1&" foundation " -> Each district's share of municipality's total FY21 foundation | J21: =IF(OR($D$9="", $D$9>351), "", VLOOKUP($D$9*5, order1755, $A21)) -> 
A22: 11 | D22: 9 | E22: =parameters!B1&" Required Contribution" -> FY21 Required Contribution | J22: =VLOOKUP($D$9*5, order1755, $A22) -> 6792593123
A24: 13 | D24: 10 | E24: ="Change "&parameters!B1&" to "&parameters!B2& " (9 - 4)" -> Change FY21 to FY20 (9 - 4) | F24: =IF(OR($D$9="", $D$9>351), "", IF(AND($D$9>0, VLOOKUP($D$9*5-F$7, order1755, $A24)<>0), VLOOKUP($D$9*5-F$7, order1755, $A24), "")) ->  | G24: =IF(OR($D$9="", $D$9>351), "", IF(AND($D$9>0, VLOOKUP($D$9*5-G$7, order1755, $A24)<>0), VLOOKUP($D$9*5-G$7, order1755, $A24), "")) ->  | H24: =IF(OR($D$9="", $D$9>351), "", IF(AND($D$9>0, VLOOKUP($D$9*5-H$7, order1755, $A24)<>0), VLOOKUP($D$9*5-H$7, order1755, $A24), "")) ->  | I24: =IF(OR($D$9="", $D$9>351), "", IF(AND($D$9>0, VLOOKUP($D$9*5-I$7, order1755, $A24)<>0), VLOOKUP($D$9*5-I$7, order1755, $A24), "")) ->  | J24: =IF(OR($D$9="", $D$9>351), "", VLOOKUP($D$9*5, order1755, $A24)) -> 
E26: The combined totals on lines 5 and 9 may differ due to rounding. | H26: =H22/H13 -> 

Sheet Summary
A1: Return to Index | J1: More about the data
A3: Massachusetts Department of Elementary and Secondary Education
A4: FY21 Chapter 70 Summary
A6: =lea -> 999 | B6: =PROPER(VLOOKUP(A6,dist915,2)) -> State Total
A8: Aid Calculation FY21 | E8: ="Comparison to "& PYr -> Comparison to FY20
F10: =PYr -> FY20 | G10: =CYr -> FY21 | H10: Change | I10: Pct Chg | U10: FY06 | V10: FY07 | W10: FY08 | X10: FY09 | Y10: FY10 | Z10: FY11 | AA10: FY12 | AB10: FY13 | AC10: FY14 | AD10: FY15 | AE10: FY16 | AF10: FY17 | AG10: FY18 | AH10: FY19 | AI10: FY20 | AJ10: FY21
A11: Prior Year Aid | E11: Enrollment | F11: =VLOOKUP(A6,aidcalc,13) -> 939683 | G11: =VLOOKUP(A6,aidcalc,14) -> 938121 | H11: =G11-F11 -> -1562 | I11: =IF(F11>0, H11/F11, 0) -> -0.001662262699 | T11: Required District Contribution | U11: =VLOOKUP($A$6,disthist,5) -> 4743946672 | V11: =VLOOKUP($A$6,disthist,8) -> 4876428772 | W11: =VLOOKUP($A$6,disthist,11) -> 4997705374 | X11: =VLOOKUP($A$6,disthist,14) -> 5110365426 | Y11: =VLOOKUP($A$6,disthist,18) -> 5250106061 | Z11: =VLOOKUP($A$6,disthist,22) -> 5302200670 | AA11: =VLOOKUP($A$6,disthist,27) -> 5413602268 | AB11: =VLOOKUP($A$6,disthist,30) -> 5582113529 | AC11: =VLOOKUP($A$6,disthist, 33) -> 5748475145 | AD11: =VLOOKUP($A$6,disthist, 36) -> 5817618237 | AE11: =VLOOKUP($A$6,disthist, 39) -> 5943909029 | AF11: =VLOOKUP($A$6,disthist, 42) -> 5926185567 | AG11: =VLOOKUP($A$6,disthist, 45) -> 6046916786 | AH11: =VLOOKUP($A$6,disthist, 48) -> 6246842886 | AI11: =VLOOKUP($A$6,disthist, 51) -> 6513607368 | AJ11: =VLOOKUP($A$6,aidcalc,9 ) -> 6792593123
A12: 1 | B12: ="Chapter 70 "&PYr -> Chapter 70 FY20 | C12: =VLOOKUP(A6,aidcalc,7) -> 5175694094 | E12: Foundation budget | F12: =VLOOKUP(A6,disthist,50) -> 1.135904851e+10 | G12: =VLOOKUP(A6,aidcalc,8) -> 1.195081667e+10 | H12: =G12-F12 -> 591768158.7 | I12: =IF(F12>0, H12/F12, 0) -> 0.05209663099 | T12: C70 Aid | U12: =VLOOKUP($A$6,disthist,6) -> 3288603062 | V12: =VLOOKUP($A$6,disthist,9) -> 3505192039 | W12: =VLOOKUP($A$6,disthist,12) -> 3725343327 | X12: =VLOOKUP($A$6,disthist,15)+VLOOKUP($A$6,disthist,16) -> 3948496062 | Y12: =VLOOKUP($A$6,disthist,19)+VLOOKUP($A$6,disthist,20) -> 4043156700 | Z12: =VLOOKUP($A$6,disthist,23)+VLOOKUP($A$6,disthist,24)+VLOOKUP($A$6,disthist,25) -> 4072032853 | AA12: =VLOOKUP($A$6,disthist,28) -> 3990504093 | AB12: =VLOOKUP($A$6,disthist,31) -> 4173223954 | AC12: =VLOOKUP($A$6,disthist,34) -> 4300854366 | AD12: =VLOOKUP($A$6,disthist,37) -> 4400335962 | AE12: =VLOOKUP($A$6,disthist,40) -> 4511521974 | AF12: =VLOOKUP($A$6,disthist,43) -> 4627705061 | AG12: =VLOOKUP($A$6,disthist,46) -> 4745645156 | AH12: =VLOOKUP($A$6,disthist,49) -> 4906614766 | AI12: =VLOOKUP($A$6,disthist,52) -> 5175694094 | AJ12: =VLOOKUP($A$6,aidcalc,39 ) -> 5479225982
E13: Required district contribution | F13: =VLOOKUP(A6,disthist,51) -> 6513607368 | G13: =VLOOKUP($A$6, aidcalc, 9) -> 6792593123 | H13: =G13-F13 -> 278985755 | I13: =IF(F13>0, H13/F13, 0) -> 0.04283122074 | T13: Foundation Budget | U13: =VLOOKUP($A$6,disthist,4) -> 7551933454 | V13: =VLOOKUP($A$6,disthist,7) -> 8014672861 | W13: =VLOOKUP($A$6,disthist,10) -> 8406096436 | X13: =VLOOKUP($A$6,disthist,13) -> 8811314229 | Y13: =VLOOKUP($A$6,disthist,17) -> 9088557473 | Z13: =VLOOKUP($A$6,disthist,21) -> 8921047970 | AA13: =VLOOKUP($A$6,disthist,26) -> 9119340580 | AB13: =VLOOKUP($A$6,disthist,29) -> 9467117141 | AC13: =VLOOKUP($A$6,disthist, 32) -> 9711217585 | AD13: =VLOOKUP($A$6,disthist, 35) -> 9866011313 | AE13: =VLOOKUP($A$6,disthist, 38) -> 1.009017727e+10 | AF13: =VLOOKUP($A$6,disthist, 41) -> 1.012823838e+10 | AG13: =VLOOKUP($A$6,disthist, 44) -> 1.037917384e+10 | AH13: =VLOOKUP($A$6,disthist, 47) -> 1.077758855e+10 | AI13: =VLOOKUP($A$6,disthist, 50) -> 1.135904851e+10 | AJ13: =VLOOKUP($A$6,aidcalc,8 ) -> 1.195081667e+10
A14: Foundation Aid | E14: Chapter 70 aid | F14: =IF(A6=999,VLOOKUP(A6,disthist,52,0)+308558,VLOOKUP(A6,disthist,52,0)) -> 5176002652 | G14: =IF(A6=999,VLOOKUP($A$6,aidcalc,39,0)+308558,VLOOKUP($A$6,aidcalc,39,0)) -> 5479534540 | H14: =G14-F14 -> 303531888.4 | I14: =IF(F14>0, H14/F14, 0) -> 0.05864214314
A15: 2 | B15: Foundation budget FY21 | C15: =VLOOKUP($A$6, aidcalc, 8) -> 1.195081667e+10 | E15: Required net school spending (NSS) | F15: =F13+F14 -> 11689610020 | G15: =G13+G14 -> 1.227212766e+10 | H15: =G15-F15 -> 582517643.4 | I15: =IF(F15>0, H15/F15, 0) -> 0.04983208528
A16: 3 | B16: ="Required district contribution "& CYr -> Required district contribution FY21 | C16: =VLOOKUP($A$6, aidcalc, 9) -> 6792593123
A17: 4 | B17: Foundation aid (2 -3) | C17: =VLOOKUP($A$6, aidcalc, 10) -> 5158223548 | E17: Target aid share | F17: =VLOOKUP(A$6,disthist,3)/100 -> 0.41 | G17: =VLOOKUP(A6,aidcalc,12)/100 -> 0.41
A18: 5 | B18: ="Increase over " & PYr&" (4 - 1)" -> Increase over FY20 (4 - 1) | C18: =VLOOKUP($A$6, aidcalc, 11) -> 290761055 | E18: C70 % of foundation | F18: =IF(F12>0,F14/F12,IF(F14>0,1,0)) -> 0.4556722024 | G18: =IF(G12>0,G14/G12,IF(G14>0,1,0)) -> 0.4585071206
A20: Minimum Aid | E20: Required NSS % of foundation | F20: =IF(F12>0,F15/F12,IF(F15>0,1,0)) -> 1.029101162 | G20: =IF(G12>0,G15/G12,IF(G15>0,1,0)) -> 1.026886112
A21: 6 | B21: Minimum $30 per pupil increase | C21: =IF(A6=999,"",VLOOKUP($A$6,aidcalc,23,0)) -> 
A22: 7 | B22: Minimum aid amount
B23: (if line 6 - line 5 > 0, then line 6 - line 5, otherwise 0) | C23: =VLOOKUP($A$6, aidcalc, 24,0) -> 11928187
A25: Subtotal
A26: 8 | B26: Sum of 1,5,7 | C26: =C12+C18+C23 -> 5478383336
A28: Minimum Aid Adjustment
A29: 9 | B29: Minimum aid adjustment | C29: =VLOOKUP($A$6, aidcalc, 34) -> 5308329766
A30: 10 | B30: Aid adjustment increment
B31: (if line 9 - line 8 > 0, then line 9 - line 8, otherwise 0) | C31: =VLOOKUP($A$6, aidcalc, 35, FALSE) -> 906487
A33: Non-Operating District Reduction to Foundation
A34: 11 | B34: Reduction to foundation | C34: =VLOOKUP($A$6, aidcalc, 37) -> 63840.61
A36: =CYr&" Chapter 70 Aid" -> FY21 Chapter 70 Aid
B37: Sum of 1,5,7,10 minus 11 | C37: =VLOOKUP($A$6, aidcalc, 39) -> 5479225982
C38: =IF(A6=999,C37+308558,"") -> 5479534540 | E38: =IF(A6=999,"with Devens aid","") -> with Devens aid
A40: Note on Minimum Aid Adjustment on lines 9 and 10:
A41: The minimum aid adjustment is the sum of (a) the greater of foundation aid or base aid determined based on the FY20 base and incremental rates, inflated to FY21, and (b) foundation enrollment multiplied by $30. The aid adjustment increment (line 9) is the line 8 amount less the line 7 amount if the difference is positive. Otherwise, the increment is zero.

Sheet Regional District Members
E2: Return to Index
F3: Select or type full regional district name below
E4: =VLOOKUP(reg_order, regdistricts, 3, FALSE) -> 600 | F4: Acton Boxborough | G4: =VLOOKUP(F4,leas!$E$451:$H$537,4,FALSE) -> 1
E6: Massachusetts Department of Elementary and Secondary Education
E7: Office of School Finance
E8: =CYr&" Chapter 70" -> FY21 Chapter 70
E9: Regional District Enrollment and Contributions by Member City or Town
E10: The table below presents the minimum required local contribution for each member to the selected regional district.
E11: Note: A city or town might belong to more than one regional district (e.g., a regional district and a vocational district) and therefore be required to contribute to multiple districts. See the regional allocation tab for a full list of minimum required contributions for each city or town.
B12: =VLOOKUP(E4, leas!D6:G446, 4, FALSE) -> 0600 | D12: 2 | E12: =VLOOKUP(reg_order, regdistricts, 2, FALSE) -> 600 Acton Boxborough
G14: Foundation Enrollment in Regional District | J14: Required Minimum Contribution to Regional District
B16: =VLOOKUP($E$4, regcount, 2, FALSE) -> 2 | E16: LEA | F16: Member | G16: =PYr -> FY20 | H16: =CYr -> FY21 | I16: Change | J16: =PYr -> FY20 | K16: =CYr -> FY21 | L16: Change
F18: Total | G18: =SUM(G20:G67) -> 5429 | H18: =SUM(H20:H67) -> 5294 | I18: =SUM(I20:I67) -> -135 | J18: =SUM(J20:J67) -> 45085137 | K18: =SUM(K20:K67) -> 46442298 | L18: =SUM(L20:L62) -> 1357161
A20: =IF($C20<=$B$16,VLOOKUP(E20,leas!D6:G446,4,FALSE),"") -> 0002 | B20: =$E$4*100+C20 -> 60001 | C20: 1 | E20: =IF($C20<=$B$16, VLOOKUP($B20, regdetail, 5), " ") -> 2 | F20: =IF($C20<=$B$16, VLOOKUP($B20, regdetail, 6), " ") -> Acton | G20: =IF($C20<=$B$16,VLOOKUP(A20&$B$12, localcont!A10:X1764, 18, FALSE), "") -> 4585.679103 | H20: =IF($C20<=$B$16,VLOOKUP(A20&$B$12, localcont!$A$10:$X$1764, 23, FALSE), "") -> 4437.978144 | I20: =IF($C20<=$B$16, H20-G20, " ") -> -147.700959 | J20: =IF($C20<=$B$16,VLOOKUP(A20&$B$12, localcont!$A$10:$X$1764, 15, FALSE), "") -> 37733689 | K20: =IF($C20<=$B$16,VLOOKUP(A20&$B$12, localcont!$A$10:$X$1764, 14, FALSE),"") -> 38774483 | L20: =IF($C20<=$B$16, K20-J20, " ") -> 1040794
A21: =IF($C21<=$B$16,VLOOKUP(E21,leas!D7:G447,4,FALSE),"") -> 0037 | B21: =$E$4*100+C21 -> 60002 | C21: 2 | E21: 37 | F21: Boxborough | G21: =IF($C21<=$B$16,VLOOKUP(A21&$B$12, localcont!A11:X1765, 18, FALSE), "") -> 843.3208969 | H21: =IF($C21<=$B$16,VLOOKUP(A21&$B$12, localcont!$A$10:$X$1764, 23, FALSE), "") -> 856.0218559 | I21: =IF($C21<=$B$16, H21-G21, " ") -> 12.70095902 | J21: =IF($C21<=$B$16,VLOOKUP(A21&$B$12, localcont!$A$10:$X$1764, 15, FALSE), "") -> 7351448 | K21: =IF($C21<=$B$16,VLOOKUP(A21&$B$12, localcont!$A$10:$X$1764, 14, FALSE),"") -> 7667815 | L21: =IF($C21<=$B$16, K21-J21, " ") -> 316367
A22: =IF($C22<=$B$16,VLOOKUP(E22,leas!D8:G448,4,FALSE),"") ->  | B22: 60003 | C22: 3 | G22: =IF($C22<=$B$16,VLOOKUP(A22&$B$12, localcont!A12:X1766, 18, FALSE), "") ->  | H22: =IF($C22<=$B$16,VLOOKUP(A22&$B$12, localcont!$A$10:$X$1764, 23, FALSE), "") ->  | J22: =IF($C22<=$B$16,VLOOKUP(A22&$B$12, localcont!$A$10:$X$1764, 15, FALSE), "") ->  | K22: =IF($C22<=$B$16,VLOOKUP(A22&$B$12, localcont!$A$10:$X$1764, 14, FALSE),"") -> 
A23: =IF($C23<=$B$16,VLOOKUP(E23,leas!D9:G449,4,FALSE),"") ->  | B23: 60004 | C23: 4 | G23: =IF($C23<=$B$16,VLOOKUP(A23&$B$12, localcont!A13:X1767, 18, FALSE), "") ->  | H23: =IF($C23<=$B$16,VLOOKUP(A23&$B$12, localcont!$A$10:$X$1764, 23, FALSE), "") ->  | J23: =IF($C23<=$B$16,VLOOKUP(A23&$B$12, localcont!$A$10:$X$1764, 15, FALSE), "") ->  | K23: =IF($C23<=$B$16,VLOOKUP(A23&$B$12, localcont!$A$10:$X$1764, 14, FALSE),"") -> 
A24: =IF($C24<=$B$16,VLOOKUP(E24,leas!D10:G450,4,FALSE),"") ->  | B24: 60005 | C24: 5 | G24: =IF($C24<=$B$16,VLOOKUP(A24&$B$12, localcont!A14:X1768, 18, FALSE), "") ->  | H24: =IF($C24<=$B$16,VLOOKUP(A24&$B$12, localcont!$A$10:$X$1764, 23, FALSE), "") ->  | J24: =IF($C24<=$B$16,VLOOKUP(A24&$B$12, localcont!$A$10:$X$1764, 15, FALSE), "") ->  | K24: =IF($C24<=$B$16,VLOOKUP(A24&$B$12, localcont!$A$10:$X$1764, 14, FALSE),"") -> 
A25: =IF($C25<=$B$16,VLOOKUP(E25,leas!D11:G451,4,FALSE),"") ->  | B25: 60006 | C25: 6 | G25: =IF($C25<=$B$16,VLOOKUP(A25&$B$12, localcont!A15:X1769, 18, FALSE), "") ->  | H25: =IF($C25<=$B$16,VLOOKUP(A25&$B$12, localcont!$A$10:$X$1764, 23, FALSE), "") ->  | J25: =IF($C25<=$B$16,VLOOKUP(A25&$B$12, localcont!$A$10:$X$1764, 15, FALSE), "") ->  | K25: =IF($C25<=$B$16,VLOOKUP(A25&$B$12, localcont!$A$10:$X$1764, 14, FALSE),"") -> 
A26: =IF($C26<=$B$16,VLOOKUP(E26,leas!D12:G452,4,FALSE),"") ->  | B26: 60007 | C26: 7 | G26: =IF($C26<=$B$16,VLOOKUP(A26&$B$12, localcont!A16:X1770, 18, FALSE), "") ->  | H26: =IF($C26<=$B$16,VLOOKUP(A26&$B$12, localcont!$A$10:$X$1764, 23, FALSE), "") ->  | J26: =IF($C26<=$B$16,VLOOKUP(A26&$B$12, localcont!$A$10:$X$1764, 15, FALSE), "") ->  | K26: =IF($C26<=$B$16,VLOOKUP(A26&$B$12, localcont!$A$10:$X$1764, 14, FALSE),"") -> 
A27: =IF($C27<=$B$16,VLOOKUP(E27,leas!D13:G453,4,FALSE),"") ->  | B27: 60008 | C27: 8 | G27: =IF($C27<=$B$16,VLOOKUP(A27&$B$12, localcont!A17:X1771, 18, FALSE), "") ->  | H27: =IF($C27<=$B$16,VLOOKUP(A27&$B$12, localcont!$A$10:$X$1764, 23, FALSE), "") ->  | J27: =IF($C27<=$B$16,VLOOKUP(A27&$B$12, localcont!$A$10:$X$1764, 15, FALSE), "") ->  | K27: =IF($C27<=$B$16,VLOOKUP(A27&$B$12, localcont!$A$10:$X$1764, 14, FALSE),"") -> 
A28: =IF($C28<=$B$16,VLOOKUP(E28,leas!D14:G454,4,FALSE),"") ->  | B28: 60009 | C28: 9 | G28: =IF($C28<=$B$16,VLOOKUP(A28&$B$12, localcont!A18:X1772, 18, FALSE), "") ->  | H28: =IF($C28<=$B$16,VLOOKUP(A28&$B$12, localcont!$A$10:$X$1764, 23, FALSE), "") ->  | J28: =IF($C28<=$B$16,VLOOKUP(A28&$B$12, localcont!$A$10:$X$1764, 15, FALSE), "") ->  | K28: =IF($C28<=$B$16,VLOOKUP(A28&$B$12, localcont!$A$10:$X$1764, 14, FALSE),"") -> 
A29: =IF($C29<=$B$16,VLOOKUP(E29,leas!D15:G455,4,FALSE),"") ->  | B29: 60010 | C29: 10 | G29: =IF($C29<=$B$16,VLOOKUP(A29&$B$12, localcont!A19:X1773, 18, FALSE), "") ->  | H29: =IF($C29<=$B$16,VLOOKUP(A29&$B$12, localcont!$A$10:$X$1764, 23, FALSE), "") ->  | J29: =IF($C29<=$B$16,VLOOKUP(A29&$B$12, localcont!$A$10:$X$1764, 15, FALSE), "") ->  | K29: =IF($C29<=$B$16,VLOOKUP(A29&$B$12, localcont!$A$10:$X$1764, 14, FALSE),"") -> 
A30: =IF($C30<=$B$16,VLOOKUP(E30,leas!D16:G456,4,FALSE),"") ->  | B30: 60011 | C30: 11 | G30: =IF($C30<=$B$16,VLOOKUP(A30&$B$12, localcont!A20:X1774, 18, FALSE), "") ->  | H30: =IF($C30<=$B$16,VLOOKUP(A30&$B$12, localcont!$A$10:$X$1764, 23, FALSE), "") ->  | J30: =IF($C30<=$B$16,VLOOKUP(A30&$B$12, localcont!$A$10:$X$1764, 15, FALSE), "") ->  | K30: =IF($C30<=$B$16,VLOOKUP(A30&$B$12, localcont!$A$10:$X$1764, 14, FALSE),"") -> 
A31: =IF($C31<=$B$16,VLOOKUP(E31,leas!D17:G457,4,FALSE),"") ->  | B31: 60012 | C31: 12 | G31: =IF($C31<=$B$16,VLOOKUP(A31&$B$12, localcont!A21:X1775, 18, FALSE), "") ->  | H31: =IF($C31<=$B$16,VLOOKUP(A31&$B$12, localcont!$A$10:$X$1764, 23, FALSE), "") ->  | J31: =IF($C31<=$B$16,VLOOKUP(A31&$B$12, localcont!$A$10:$X$1764, 15, FALSE), "") ->  | K31: =IF($C31<=$B$16,VLOOKUP(A31&$B$12, localcont!$A$10:$X$1764, 14, FALSE),"") -> 
A32: =IF($C32<=$B$16,VLOOKUP(E32,leas!D18:G458,4,FALSE),"") ->  | B32: 60013 | C32: 13 | G32: =IF($C32<=$B$16,VLOOKUP(A32&$B$12, localcont!A22:X1776, 18, FALSE), "") ->  | H32: =IF($C32<=$B$16,VLOOKUP(A32&$B$12, localcont!$A$10:$X$1764, 23, FALSE), "") ->  | J32: =IF($C32<=$B$16,VLOOKUP(A32&$B$12, localcont!$A$10:$X$1764, 15, FALSE), "") ->  | K32: =IF($C32<=$B$16,VLOOKUP(A32&$B$12, localcont!$A$10:$X$1764, 14, FALSE),"") -> 
A33: =IF($C33<=$B$16,VLOOKUP(E33,leas!D19:G459,4,FALSE),"") ->  | B33: 60014 | C33: 14 | G33: =IF($C33<=$B$16,VLOOKUP(A33&$B$12, localcont!A23:X1777, 18, FALSE), "") ->  | H33: =IF($C33<=$B$16,VLOOKUP(A33&$B$12, localcont!$A$10:$X$1764, 23, FALSE), "") ->  | J33: =IF($C33<=$B$16,VLOOKUP(A33&$B$12, localcont!$A$10:$X$1764, 15, FALSE), "") ->  | K33: =IF($C33<=$B$16,VLOOKUP(A33&$B$12, localcont!$A$10:$X$1764, 14, FALSE),"") -> 
A34: =IF($C34<=$B$16,VLOOKUP(E34,leas!D20:G460,4,FALSE),"") ->  | B34: 60015 | C34: 15 | G34: =IF($C34<=$B$16,VLOOKUP(A34&$B$12, localcont!A24:X1778, 18, FALSE), "") ->  | H34: =IF($C34<=$B$16,VLOOKUP(A34&$B$12, localcont!$A$10:$X$1764, 23, FALSE), "") ->  | J34: =IF($C34<=$B$16,VLOOKUP(A34&$B$12, localcont!$A$10:$X$1764, 15, FALSE), "") ->  | K34: =IF($C34<=$B$16,VLOOKUP(A34&$B$12, localcont!$A$10:$X$1764, 14, FALSE),"") -> 
A35: =IF($C35<=$B$16,VLOOKUP(E35,leas!D21:G461,4,FALSE),"") ->  | B35: 60016 | C35: 16 | G35: =IF($C35<=$B$16,VLOOKUP(A35&$B$12, localcont!A25:X1779, 18, FALSE), "") ->  | H35: =IF($C35<=$B$16,VLOOKUP(A35&$B$12, localcont!$A$10:$X$1764, 23, FALSE), "") ->  | J35: =IF($C35<=$B$16,VLOOKUP(A35&$B$12, localcont!$A$10:$X$1764, 15, FALSE), "") ->  | K35: =IF($C35<=$B$16,VLOOKUP(A35&$B$12, localcont!$A$10:$X$1764, 14, FALSE),"") -> 
A36: =IF($C36<=$B$16,VLOOKUP(E36,leas!D22:G462,4,FALSE),"") ->  | B36: 60017 | C36: 17 | G36: =IF($C36<=$B$16,VLOOKUP(A36&$B$12, localcont!A26:X1780, 18, FALSE), "") ->  | H36: =IF($C36<=$B$16,VLOOKUP(A36&$B$12, localcont!$A$10:$X$1764, 23, FALSE), "") ->  | J36: =IF($C36<=$B$16,VLOOKUP(A36&$B$12, localcont!$A$10:$X$1764, 15, FALSE), "") ->  | K36: =IF($C36<=$B$16,VLOOKUP(A36&$B$12, localcont!$A$10:$X$1764, 14, FALSE),"") -> 
A37: =IF($C37<=$B$16,VLOOKUP(E37,leas!D23:G463,4,FALSE),"") ->  | B37: 60018 | C37: 18 | G37: =IF($C37<=$B$16,VLOOKUP(A37&$B$12, localcont!A27:X1781, 18, FALSE), "") ->  | H37: =IF($C37<=$B$16,VLOOKUP(A37&$B$12, localcont!$A$10:$X$1764, 23, FALSE), "") ->  | J37: =IF($C37<=$B$16,VLOOKUP(A37&$B$12, localcont!$A$10:$X$1764, 15, FALSE), "") ->  | K37: =IF($C37<=$B$16,VLOOKUP(A37&$B$12, localcont!$A$10:$X$1764, 14, FALSE),"") -> 
A38: =IF($C38<=$B$16,VLOOKUP(E38,leas!D24:G464,4,FALSE),"") ->  | B38: 60019 | C38: 19 | G38: =IF($C38<=$B$16,VLOOKUP(A38&$B$12, localcont!A28:X1782, 18, FALSE), "") ->  | H38: =IF($C38<=$B$16,VLOOKUP(A38&$B$12, localcont!$A$10:$X$1764, 23, FALSE), "") ->  | J38: =IF($C38<=$B$16,VLOOKUP(A38&$B$12, localcont!$A$10:$X$1764, 15, FALSE), "") ->  | K38: =IF($C38<=$B$16,VLOOKUP(A38&$B$12, localcont!$A$10:$X$1764, 14, FALSE),"") -> 
A39: =IF($C39<=$B$16,VLOOKUP(E39,leas!D25:G465,4,FALSE),"") ->  | B39: 60020 | C39: 20 | G39: =IF($C39<=$B$16,VLOOKUP(A39&$B$12, localcont!A29:X1783, 18, FALSE), "") ->  | H39: =IF($C39<=$B$16,VLOOKUP(A39&$B$12, localcont!$A$10:$X$1764, 23, FALSE), "") ->  | J39: =IF($C39<=$B$16,VLOOKUP(A39&$B$12, localcont!$A$10:$X$1764, 15, FALSE), "") ->  | K39: =IF($C39<=$B$16,VLOOKUP(A39&$B$12, localcont!$A$10:$X$1764, 14, FALSE),"") -> 
A40: =IF($C40<=$B$16,VLOOKUP(E40,leas!D26:G466,4,FALSE),"") ->  | B40: 60021 | C40: 21 | G40: =IF($C40<=$B$16,VLOOKUP(A40&$B$12, localcont!A30:X1784, 18, FALSE), "") ->  | H40: =IF($C40<=$B$16,VLOOKUP(A40&$B$12, localcont!$A$10:$X$1764, 23, FALSE), "") ->  | J40: =IF($C40<=$B$16,VLOOKUP(A40&$B$12, localcont!$A$10:$X$1764, 15, FALSE), "") ->  | K40: =IF($C40<=$B$16,VLOOKUP(A40&$B$12, localcont!$A$10:$X$1764, 14, FALSE),"") -> 
A41: =IF($C41<=$B$16,VLOOKUP(E41,leas!D27:G467,4,FALSE),"") ->  | B41: 60022 | C41: 22 | G41: =IF($C41<=$B$16,VLOOKUP(A41&$B$12, localcont!A31:X1785, 18, FALSE), "") ->  | H41: =IF($C41<=$B$16,VLOOKUP(A41&$B$12, localcont!$A$10:$X$1764, 23, FALSE), "") ->  | J41: =IF($C41<=$B$16,VLOOKUP(A41&$B$12, localcont!$A$10:$X$1764, 15, FALSE), "") ->  | K41: =IF($C41<=$B$16,VLOOKUP(A41&$B$12, localcont!$A$10:$X$1764, 14, FALSE),"") -> 
A42: =IF($C42<=$B$16,VLOOKUP(E42,leas!D28:G468,4,FALSE),"") ->  | B42: 60023 | C42: 23 | G42: =IF($C42<=$B$16,VLOOKUP(A42&$B$12, localcont!A32:X1786, 18, FALSE), "") ->  | H42: =IF($C42<=$B$16,VLOOKUP(A42&$B$12, localcont!$A$10:$X$1764, 23, FALSE), "") ->  | J42: =IF($C42<=$B$16,VLOOKUP(A42&$B$12, localcont!$A$10:$X$1764, 15, FALSE), "") ->  | K42: =IF($C42<=$B$16,VLOOKUP(A42&$B$12, localcont!$A$10:$X$1764, 14, FALSE),"") -> 
A43: =IF($C43<=$B$16,VLOOKUP(E43,leas!D29:G469,4,FALSE),"") ->  | B43: 60024 | C43: 24 | G43: =IF($C43<=$B$16,VLOOKUP(A43&$B$12, localcont!A33:X1787, 18, FALSE), "") ->  | H43: =IF($C43<=$B$16,VLOOKUP(A43&$B$12, localcont!$A$10:$X$1764, 23, FALSE), "") ->  | J43: =IF($C43<=$B$16,VLOOKUP(A43&$B$12, localcont!$A$10:$X$1764, 15, FALSE), "") ->  | K43: =IF($C43<=$B$16,VLOOKUP(A43&$B$12, localcont!$A$10:$X$1764, 14, FALSE),"") -> 
A44: =IF($C44<=$B$16,VLOOKUP(E44,leas!D30:G470,4,FALSE),"") ->  | B44: 60025 | C44: 25 | G44: =IF($C44<=$B$16,VLOOKUP(A44&$B$12, localcont!A34:X1788, 18, FALSE), "") ->  | H44: =IF($C44<=$B$16,VLOOKUP(A44&$B$12, localcont!$A$10:$X$1764, 23, FALSE), "") ->  | J44: =IF($C44<=$B$16,VLOOKUP(A44&$B$12, localcont!$A$10:$X$1764, 15, FALSE), "") ->  | K44: =IF($C44<=$B$16,VLOOKUP(A44&$B$12, localcont!$A$10:$X$1764, 14, FALSE),"") -> 
A45: =IF($C45<=$B$16,VLOOKUP(E45,leas!D31:G471,4,FALSE),"") ->  | B45: 60026 | C45: 26 | G45: =IF($C45<=$B$16,VLOOKUP(A45&$B$12, localcont!A35:X1789, 18, FALSE), "") ->  | H45: =IF($C45<=$B$16,VLOOKUP(A45&$B$12, localcont!$A$10:$X$1764, 23, FALSE), "") ->  | J45: =IF($C45<=$B$16,VLOOKUP(A45&$B$12, localcont!$A$10:$X$1764, 15, FALSE), "") ->  | K45: =IF($C45<=$B$16,VLOOKUP(A45&$B$12, localcont!$A$10:$X$1764, 14, FALSE),"") -> 
A46: =IF($C46<=$B$16,VLOOKUP(E46,leas!D32:G472,4,FALSE),"") ->  | B46: 60027 | C46: 27 | G46: =IF($C46<=$B$16,VLOOKUP(A46&$B$12, localcont!A36:X1790, 18, FALSE), "") ->  | H46: =IF($C46<=$B$16,VLOOKUP(A46&$B$12, localcont!$A$10:$X$1764, 23, FALSE), "") ->  | J46: =IF($C46<=$B$16,VLOOKUP(A46&$B$12, localcont!$A$10:$X$1764, 15, FALSE), "") ->  | K46: =IF($C46<=$B$16,VLOOKUP(A46&$B$12, localcont!$A$10:$X$1764, 14, FALSE),"") -> 
A47: =IF($C47<=$B$16,VLOOKUP(E47,leas!D33:G473,4,FALSE),"") ->  | B47: 60028 | C47: 28 | G47: =IF($C47<=$B$16,VLOOKUP(A47&$B$12, localcont!A37:X1791, 18, FALSE), "") ->  | H47: =IF($C47<=$B$16,VLOOKUP(A47&$B$12, localcont!$A$10:$X$1764, 23, FALSE), "") ->  | J47: =IF($C47<=$B$16,VLOOKUP(A47&$B$12, localcont!$A$10:$X$1764, 15, FALSE), "") ->  | K47: =IF($C47<=$B$16,VLOOKUP(A47&$B$12, localcont!$A$10:$X$1764, 14, FALSE),"") -> 
A48: =IF($C48<=$B$16,VLOOKUP(E48,leas!D34:G474,4,FALSE),"") ->  | B48: 60029 | C48: 29 | G48: =IF($C48<=$B$16,VLOOKUP(A48&$B$12, localcont!A38:X1792, 18, FALSE), "") ->  | H48: =IF($C48<=$B$16,VLOOKUP(A48&$B$12, localcont!$A$10:$X$1764, 23, FALSE), "") ->  | J48: =IF($C48<=$B$16,VLOOKUP(A48&$B$12, localcont!$A$10:$X$1764, 15, FALSE), "") ->  | K48: =IF($C48<=$B$16,VLOOKUP(A48&$B$12, localcont!$A$10:$X$1764, 14, FALSE),"") -> 
A49: =IF($C49<=$B$16,VLOOKUP(E49,leas!D35:G475,4,FALSE),"") ->  | B49: 60030 | C49: 30 | G49: =IF($C49<=$B$16,VLOOKUP(A49&$B$12, localcont!A39:X1793, 18, FALSE), "") ->  | H49: =IF($C49<=$B$16,VLOOKUP(A49&$B$12, localcont!$A$10:$X$1764, 23, FALSE), "") ->  | J49: =IF($C49<=$B$16,VLOOKUP(A49&$B$12, localcont!$A$10:$X$1764, 15, FALSE), "") ->  | K49: =IF($C49<=$B$16,VLOOKUP(A49&$B$12, localcont!$A$10:$X$1764, 14, FALSE),"") -> 
A50: =IF($C50<=$B$16,VLOOKUP(E50,leas!D36:G476,4,FALSE),"") ->  | B50: 60031 | C50: 31 | G50: =IF($C50<=$B$16,VLOOKUP(A50&$B$12, localcont!A40:X1794, 18, FALSE), "") ->  | H50: =IF($C50<=$B$16,VLOOKUP(A50&$B$12, localcont!$A$10:$X$1764, 23, FALSE), "") ->  | J50: =IF($C50<=$B$16,VLOOKUP(A50&$B$12, localcont!$A$10:$X$1764, 15, FALSE), "") ->  | K50: =IF($C50<=$B$16,VLOOKUP(A50&$B$12, localcont!$A$10:$X$1764, 14, FALSE),"") -> 
A51: =IF($C51<=$B$16,VLOOKUP(E51,leas!D37:G477,4,FALSE),"") ->  | B51: 60032 | C51: 32 | G51: =IF($C51<=$B$16,VLOOKUP(A51&$B$12, localcont!A41:X1795, 18, FALSE), "") ->  | H51: =IF($C51<=$B$16,VLOOKUP(A51&$B$12, localcont!$A$10:$X$1764, 23, FALSE), "") ->  | J51: =IF($C51<=$B$16,VLOOKUP(A51&$B$12, localcont!$A$10:$X$1764, 15, FALSE), "") ->  | K51: =IF($C51<=$B$16,VLOOKUP(A51&$B$12, localcont!$A$10:$X$1764, 14, FALSE),"") -> 
A52: =IF($C52<=$B$16,VLOOKUP(E52,leas!D38:G478,4,FALSE),"") ->  | B52: 60033 | C52: 33 | F52: =IF($C52<=$B$16, VLOOKUP($B52, regdetail, 6), " ") ->  | G52: =IF($C52<=$B$16,VLOOKUP(A52&$B$12, localcont!A42:X1796, 18, FALSE), "") ->  | H52: =IF($C52<=$B$16,VLOOKUP(A52&$B$12, localcont!$A$10:$X$1764, 23, FALSE), "") ->  | J52: =IF($C52<=$B$16,VLOOKUP(A52&$B$12, localcont!$A$10:$X$1764, 15, FALSE), "") ->  | K52: =IF($C52<=$B$16,VLOOKUP(A52&$B$12, localcont!$A$10:$X$1764, 14, FALSE),"") -> 
A53: =IF($C53<=$B$16,VLOOKUP(E53,leas!D39:G479,4,FALSE),"") ->  | B53: 60034 | C53: 34 | G53: =IF($C53<=$B$16,VLOOKUP(A53&$B$12, localcont!A43:X1797, 18, FALSE), "") ->  | H53: =IF($C53<=$B$16,VLOOKUP(A53&$B$12, localcont!$A$10:$X$1764, 23, FALSE), "") ->  | J53: =IF($C53<=$B$16,VLOOKUP(A53&$B$12, localcont!$A$10:$X$1764, 15, FALSE), "") ->  | K53: =IF($C53<=$B$16,VLOOKUP(A53&$B$12, localcont!$A$10:$X$1764, 14, FALSE),"") -> 
A54: =IF($C54<=$B$16,VLOOKUP(E54,leas!D40:G480,4,FALSE),"") ->  | B54: 60035 | C54: 35 | G54: =IF($C54<=$B$16,VLOOKUP(A54&$B$12, localcont!A44:X1798, 18, FALSE), "") ->  | H54: =IF($C54<=$B$16,VLOOKUP(A54&$B$12, localcont!$A$10:$X$1764, 23, FALSE), "") ->  | J54: =IF($C54<=$B$16,VLOOKUP(A54&$B$12, localcont!$A$10:$X$1764, 15, FALSE), "") ->  | K54: =IF($C54<=$B$16,VLOOKUP(A54&$B$12, localcont!$A$10:$X$1764, 14, FALSE),"") -> 
A55: =IF($C55<=$B$16,VLOOKUP(E55,leas!D41:G481,4,FALSE),"") ->  | B55: 60036 | C55: 36 | G55: =IF($C55<=$B$16,VLOOKUP(A55&$B$12, localcont!A45:X1799, 18, FALSE), "") ->  | H55: =IF($C55<=$B$16,VLOOKUP(A55&$B$12, localcont!$A$10:$X$1764, 23, FALSE), "") ->  | J55: =IF($C55<=$B$16,VLOOKUP(A55&$B$12, localcont!$A$10:$X$1764, 15, FALSE), "") ->  | K55: =IF($C55<=$B$16,VLOOKUP(A55&$B$12, localcont!$A$10:$X$1764, 14, FALSE),"") -> 
A56: =IF($C56<=$B$16,VLOOKUP(E56,leas!D42:G482,4,FALSE),"") ->  | B56: 60037 | C56: 37 | G56: =IF($C56<=$B$16,VLOOKUP(A56&$B$12, localcont!A46:X1800, 18, FALSE), "") ->  | H56: =IF($C56<=$B$16,VLOOKUP(A56&$B$12, localcont!$A$10:$X$1764, 23, FALSE), "") ->  | J56: =IF($C56<=$B$16,VLOOKUP(A56&$B$12, localcont!$A$10:$X$1764, 15, FALSE), "") ->  | K56: =IF($C56<=$B$16,VLOOKUP(A56&$B$12, localcont!$A$10:$X$1764, 14, FALSE),"") -> 
A57: =IF($C57<=$B$16,VLOOKUP(E57,leas!D43:G483,4,FALSE),"") ->  | B57: 60038 | C57: 38 | G57: =IF($C57<=$B$16,VLOOKUP(A57&$B$12, localcont!A47:X1801, 18, FALSE), "") ->  | H57: =IF($C57<=$B$16,VLOOKUP(A57&$B$12, localcont!$A$10:$X$1764, 23, FALSE), "") ->  | J57: =IF($C57<=$B$16,VLOOKUP(A57&$B$12, localcont!$A$10:$X$1764, 15, FALSE), "") ->  | K57: =IF($C57<=$B$16,VLOOKUP(A57&$B$12, localcont!$A$10:$X$1764, 14, FALSE),"") -> 
A58: =IF($C58<=$B$16,VLOOKUP(E58,leas!D44:G484,4,FALSE),"") ->  | B58: 60039 | C58: 39 | G58: =IF($C58<=$B$16,VLOOKUP(A58&$B$12, localcont!A48:X1802, 18, FALSE), "") ->  | H58: =IF($C58<=$B$16,VLOOKUP(A58&$B$12, localcont!$A$10:$X$1764, 23, FALSE), "") ->  | J58: =IF($C58<=$B$16,VLOOKUP(A58&$B$12, localcont!$A$10:$X$1764, 15, FALSE), "") ->  | K58: =IF($C58<=$B$16,VLOOKUP(A58&$B$12, localcont!$A$10:$X$1764, 14, FALSE),"") -> 
A59: =IF($C59<=$B$16,VLOOKUP(E59,leas!D45:G485,4,FALSE),"") ->  | B59: 60040 | C59: 40 | G59: =IF($C59<=$B$16,VLOOKUP(A59&$B$12, localcont!A49:X1803, 18, FALSE), "") ->  | H59: =IF($C59<=$B$16,VLOOKUP(A59&$B$12, localcont!$A$10:$X$1764, 23, FALSE), "") ->  | J59: =IF($C59<=$B$16,VLOOKUP(A59&$B$12, localcont!$A$10:$X$1764, 15, FALSE), "") ->  | K59: =IF($C59<=$B$16,VLOOKUP(A59&$B$12, localcont!$A$10:$X$1764, 14, FALSE),"") -> 
A60: =IF($C60<=$B$16,VLOOKUP(E60,leas!D46:G486,4,FALSE),"") ->  | B60: 60041 | C60: 41 | G60: =IF($C60<=$B$16,VLOOKUP(A60&$B$12, localcont!A50:X1804, 18, FALSE), "") ->  | H60: =IF($C60<=$B$16,VLOOKUP(A60&$B$12, localcont!$A$10:$X$1764, 23, FALSE), "") ->  | J60: =IF($C60<=$B$16,VLOOKUP(A60&$B$12, localcont!$A$10:$X$1764, 15, FALSE), "") ->  | K60: =IF($C60<=$B$16,VLOOKUP(A60&$B$12, localcont!$A$10:$X$1764, 14, FALSE),"") -> 
A61: =IF($C61<=$B$16,VLOOKUP(E61,leas!D47:G487,4,FALSE),"") ->  | B61: 60042 | C61: 42 | G61: =IF($C61<=$B$16,VLOOKUP(A61&$B$12, localcont!A51:X1805, 18, FALSE), "") ->  | H61: =IF($C61<=$B$16,VLOOKUP(A61&$B$12, localcont!$A$10:$X$1764, 23, FALSE), "") ->  | J61: =IF($C61<=$B$16,VLOOKUP(A61&$B$12, localcont!$A$10:$X$1764, 15, FALSE), "") ->  | K61: =IF($C61<=$B$16,VLOOKUP(A61&$B$12, localcont!$A$10:$X$1764, 14, FALSE),"") -> 
A62: =IF($C62<=$B$16,VLOOKUP(E62,leas!D48:G488,4,FALSE),"") ->  | B62: 60043 | C62: 43 | G62: =IF($C62<=$B$16,VLOOKUP(A62&$B$12, localcont!A52:X1806, 18, FALSE), "") ->  | H62: =IF($C62<=$B$16,VLOOKUP(A62&$B$12, localcont!$A$10:$X$1764, 23, FALSE), "") ->  | J62: =IF($C62<=$B$16,VLOOKUP(A62&$B$12, localcont!$A$10:$X$1764, 15, FALSE), "") ->  | K62: =IF($C62<=$B$16,VLOOKUP(A62&$B$12, localcont!$A$10:$X$1764, 14, FALSE),"") -> 
A63: =IF($C63<=$B$16,VLOOKUP(E63,leas!D49:G489,4,FALSE),"") ->  | B63: 60044 | C63: 44 | G63: =IF($C63<=$B$16,VLOOKUP(A63&$B$12, localcont!A53:X1807, 18, FALSE), "") ->  | H63: =IF($C63<=$B$16,VLOOKUP(A63&$B$12, localcont!$A$10:$X$1764, 23, FALSE), "") ->  | J63: =IF($C63<=$B$16,VLOOKUP(A63&$B$12, localcont!$A$10:$X$1764, 15, FALSE), "") ->  | K63: =IF($C63<=$B$16,VLOOKUP(A63&$B$12, localcont!$A$10:$X$1764, 14, FALSE),"") -> 
A64: =IF($C64<=$B$16,VLOOKUP(E64,leas!D50:G490,4,FALSE),"") ->  | B64: 60045 | C64: 45 | G64: =IF($C64<=$B$16,VLOOKUP(A64&$B$12, localcont!A54:X1808, 18, FALSE), "") ->  | H64: =IF($C64<=$B$16,VLOOKUP(A64&$B$12, localcont!$A$10:$X$1764, 23, FALSE), "") ->  | J64: =IF($C64<=$B$16,VLOOKUP(A64&$B$12, localcont!$A$10:$X$1764, 15, FALSE), "") ->  | K64: =IF($C64<=$B$16,VLOOKUP(A64&$B$12, localcont!$A$10:$X$1764, 14, FALSE),"") -> 
A65: =IF($C65<=$B$16,VLOOKUP(E65,leas!D51:G491,4,FALSE),"") ->  | B65: 60046 | C65: 46 | G65: =IF($C65<=$B$16,VLOOKUP(A65&$B$12, localcont!A55:X1809, 18, FALSE), "") ->  | H65: =IF($C65<=$B$16,VLOOKUP(A65&$B$12, localcont!$A$10:$X$1764, 23, FALSE), "") ->  | J65: =IF($C65<=$B$16,VLOOKUP(A65&$B$12, localcont!$A$10:$X$1764, 15, FALSE), "") ->  | K65: =IF($C65<=$B$16,VLOOKUP(A65&$B$12, localcont!$A$10:$X$1764, 14, FALSE),"") -> 
A66: =IF($C66<=$B$16,VLOOKUP(E66,leas!D52:G492,4,FALSE),"") ->  | B66: 60047 | C66: 47 | G66: =IF($C66<=$B$16,VLOOKUP(A66&$B$12, localcont!A56:X1810, 18, FALSE), "") ->  | H66: =IF($C66<=$B$16,VLOOKUP(A66&$B$12, localcont!$A$10:$X$1764, 23, FALSE), "") ->  | J66: =IF($C66<=$B$16,VLOOKUP(A66&$B$12, localcont!$A$10:$X$1764, 15, FALSE), "") ->  | K66: =IF($C66<=$B$16,VLOOKUP(A66&$B$12, localcont!$A$10:$X$1764, 14, FALSE),"") -> 
A67: =IF($C67<=$B$16,VLOOKUP(E67,leas!D53:G493,4,FALSE),"") ->  | B67: 60048 | C67: 48 | G67: =IF($C67<=$B$16,VLOOKUP(A67&$B$12, localcont!A57:X1811, 18, FALSE), "") ->  | H67: =IF($C67<=$B$16,VLOOKUP(A67&$B$12, localcont!$A$10:$X$1764, 23, FALSE), "") ->  | J67: =IF($C67<=$B$16,VLOOKUP(A67&$B$12, localcont!$A$10:$X$1764, 15, FALSE), "") ->  | K67: =IF($C67<=$B$16,VLOOKUP(A67&$B$12, localcont!$A$10:$X$1764, 14, FALSE),"") -> 
A68: =IF($C68<=$B$16,VLOOKUP(E68,leas!D54:G494,4,FALSE),"") ->  | B68: 60049 | C68: 49 | G68: =IF($C68<=$B$16,VLOOKUP(A68&$B$12, localcont!A58:X1812, 18, FALSE), "") ->  | H68: =IF($C68<=$B$16,VLOOKUP(A68&$B$12, localcont!$A$10:$X$1764, 23, FALSE), "") ->  | J68: =IF($C68<=$B$16,VLOOKUP(A68&$B$12, localcont!$A$10:$X$1764, 15, FALSE), "") ->  | K68: =IF($C68<=$B$16,VLOOKUP(A68&$B$12, localcont!$A$10:$X$1764, 14, FALSE),"") -> 

Sheet Comparison to FY20
B1: Return to Index | P1: More about the data
A2: Massachusetts Department of Elementary and Secondary Education
A3: =CYr&" Chapter 70 Comparison to "&PYr -> FY21 Chapter 70 Comparison to FY20
C7: =PYr -> FY20 | D7: =CYr -> FY21 | F7: =PYr -> FY20 | G7: =CYr -> FY21 | I7: =PYr -> FY20 | J7: =CYr -> FY21 | L7: =PYr -> FY20 | M7: =CYr -> FY21
B8: Operating | C8: Foundation | D8: Foundation | F8: Foundation | G8: Foundation | I8: Minimum | J8: Minimum | L8: Chapter 70 | M8: Chapter 70
A9: LEA | B9: District name | C9: Enrollment | D9: Enrollment | E9: change | F9: Budget | G9: Budget | H9: change per pupil | I9: Contribution | J9: Contribution | K9: change per pupil | L9: aid | M9: aid | N9: change in aid | O9: change in aid per pupil | P9: % change in aid
A10: 1 | B10: Abington | C10: =VLOOKUP(A10,aidcalc,13,0) -> 2105 | D10: =VLOOKUP(A10,aidcalc,14,0) -> 2197 | E10: =D10-C10 -> 92 | F10: =VLOOKUP(A10,aidcalc,4) -> 23388476.61 | G10: =VLOOKUP(A10,aidcalc,8) -> 25403702.41 | H10: =(G10-F10)/$D10 -> 917.2625383 | I10: =SUMIF(dist1755,A10,pynetmin) -> 14463601 | J10: =VLOOKUP(A10,aidcalc,9) -> 15436064 | K10: =(J10-I10)/$D10 -> 442.6322258 | L10: =VLOOKUP(A10,aidcalc,7) -> 8933994 | M10: =VLOOKUP(A10,aidcalc,39) -> 9967638 | N10: =M10-L10 -> 1033644 | O10: =(M10-L10)/$D10 -> 470.4797451 | P10: =ROUND(IF(F10>0,(M10-L10)/L10,100),2) -> 0.12
A11: 3 | B11: Acushnet | C11: 1272 | D11: 1292 | E11: =D11-C11 -> 20 | F11: 13443441.48 | G11: 14140972.61 | H11: =(G11-F11)/$D11 -> 539.8847737 | I11: 7498601 | J11: 7863272 | K11: =(J11-I11)/$D11 -> 282.253096 | L11: 6361492 | M11: 6400252 | N11: =M11-L11 -> 38760 | O11: =(M11-L11)/$D11 -> 30 | P11: =ROUND(IF(F11>0,(M11-L11)/L11,100),2) -> 0.01
A12: 5 | B12: Agawam | C12: 3677 | D12: 3623 | E12: -54 | F12: 42227451.05 | G12: 42702195.18 | H12: 131.0361939 | I12: 22951211 | J12: 23256462 | K12: 84.25365719 | L12: 19477412 | M12: 19586102 | N12: 108690 | O12: 30 | P12: 0.01
A13: 7 | B13: Amesbury | C13: 2112 | D13: 2036 | E13: -76 | F13: 22996252.75 | G13: 22825386.48 | H13: -83.92252725 | I13: 15621860 | J13: 16246216 | K13: 306.6581532 | L13: 9190887 | M13: 9251967 | N13: 61080 | O13: 30 | P13: 0.01
A14: 8 | B14: Amherst | C14: 1134 | D14: 1097 | E14: -37 | F14: 12803970.65 | G14: 13098312.06 | H14: 268.3148686 | I14: 9508882 | J14: 9900603 | K14: 357.0838651 | L14: 6122223 | M14: 6155133 | N14: 32910 | O14: 30 | P14: 0.01
A15: 9 | B15: Andover | C15: 5835 | D15: 5740 | E15: -95 | F15: 63835635.79 | G15: 64773743.4 | H15: 163.433381 | I15: 52178457 | J15: 53438338 | K15: 219.4914634 | L15: 11668291 | M15: 11840491 | N15: 172200 | O15: 30 | P15: 0.01
A16: 10 | B16: Arlington | C16: 5980 | D16: 6092 | E16: 112 | F16: 62294073.1 | G16: 65991012.94 | H16: 606.8515827 | I16: 48330137 | J16: 50007974 | K16: 275.4164478 | L16: 13979327 | M16: 15983039 | N16: 2003712 | O16: 328.9087328 | P16: 0.14
A17: 14 | B17: Ashland | C17: 2764 | D17: 2786 | E17: 22 | F17: 29177890.76 | G17: 30521117.44 | H17: 482.1344872 | I17: 21472389 | J17: 22570837 | K17: 394.2742283 | L17: 7839520 | M17: 8037119 | N17: 197599 | O17: 70.92569993 | P17: 0.03
A18: 16 | B18: Attleboro | C18: 6355 | D18: 6383 | E18: 28 | F18: 77760770.56 | G18: 80907585.42 | H18: 492.9993517 | I18: 36638947 | J18: 38043946 | K18: 220.1157763 | L18: 41121824 | M18: 42863639 | N18: 1741815 | O18: 272.8834404 | P18: 0.04
A19: 17 | B19: Auburn | C19: 2494 | D19: 2511 | E19: 17 | F19: 26762943.25 | G19: 27839076.36 | H19: 428.5675469 | I19: 15076760 | J19: 15632555 | K19: 221.344086 | L19: 11851108 | M19: 12270204 | N19: 419096 | O19: 166.9040223 | P19: 0.04
A20: 18 | B20: Avon | C20: 563 | D20: 586 | E20: 23 | F20: 6653932.031 | G20: 7146096.03 | H20: 839.8703056 | I20: 4537696 | J20: 4654416 | K20: 199.1808874 | L20: 2116236 | M20: 2491680 | N20: 375444 | O20: =(M20-L20)/$D20 -> 640.6894198 | P20: 0.18
A21: 20 | B21: Barnstable | C21: 5444 | D21: 5405 | E21: -39 | F21: 63524348.52 | G21: 66271891.59 | H21: 508.333593 | I21: 51296149 | J21: 53244409 | K21: 360.4551341 | L21: 12228200 | M21: 13027483 | N21: 799283 | O21: 147.8784459 | P21: 0.07
A22: 23 | B22: Bedford | C22: 2693 | D22: 2707 | E22: 14 | F22: 29672258.16 | G22: 31014582.86 | H22: 495.8717026 | I22: 24098559 | J22: 25095756 | K22: 368.3771703 | L22: 5595167 | M22: 5918827 | N22: 323660 | O22: 119.5640931 | P22: 0.06
A23: 24 | B23: Belchertown | C23: 2310 | D23: 2278 | E23: -32 | F23: 24514320.31 | G23: 24966439.98 | H23: 198.4722005 | I23: 12048062 | J23: 12725953 | K23: 297.5816506 | L23: 13884146 | M23: 13952486 | N23: 68340 | O23: 30 | P23: 0
A24: 25 | B24: Bellingham | C24: 2286 | D24: 2247 | E24: -39 | F24: 24541929.43 | G24: 24980756.82 | H24: 195.2947906 | I24: 16455942 | J24: 17111076 | K24: 291.5594126 | L24: 8642425 | M24: 8709835 | N24: 67410 | O24: 30 | P24: 0.01
A25: 26 | B25: Belmont | C25: 4517 | D25: 4594 | E25: 77 | F25: 47857221.47 | G25: 50111563.27 | H25: 490.7143672 | I25: 38364680 | J25: 40662179 | K25: 500.1086199 | L25: 9519647 | M25: 9657467 | N25: 137820 | O25: 30 | P25: 0.01
A26: 27 | B26: Berkley | C26: 742 | D26: 764 | E26: 22 | F26: 7578024.3 | G26: 8088546.29 | H26: 668.2225002 | I26: 3944412 | J26: 4198889 | K26: 333.0850785 | L26: 4003448 | M26: 4026368 | N26: 22920 | O26: 30 | P26: 0.01
A27: 30 | B27: Beverly | C27: 4458 | D27: 4570 | E27: 112 | F27: 49446399.06 | G27: 52340525.96 | H27: 633.2881626 | I27: 40188832 | J27: 42077791 | K27: 413.3389497 | L27: 9257567 | M27: 10262735 | N27: 1005168 | O27: 219.9492341 | P27: 0.11
A28: 31 | B28: Billerica | C28: 4866 | D28: 4866 | E28: 0 | F28: 51908631.2 | G28: 53361602.31 | H28: 298.5966112 | I28: 39371685 | J28: 41666761 | K28: 471.6555693 | L28: 19348854 | M28: 19494834 | N28: 145980 | O28: 30 | P28: 0.01
A29: 35 | B29: Boston | C29: 63777 | D29: 62900 | E29: -877 | F29: 910864776.4 | G29: 978722271.9 | H29: 1078.815509 | I29: 749907338 | J29: 797151500 | K29: 751.0995548 | L29: 221915045 | M29: 223802045 | N29: 1887000 | O29: 30 | P29: 0.01
A30: 36 | B30: Bourne | C30: 2001 | D30: 2012 | E30: 11 | F30: 22123862.83 | G30: 22886335.06 | H30: 378.9623404 | I30: 18252187 | J30: 18716872 | K30: 230.9567594 | L30: 5215213 | M30: 5275573 | N30: 60360 | O30: 30 | P30: 0.01
A31: 38 | B31: Boxford | C31: 705 | D31: 729 | E31: 24 | F31: 7004474.169 | G31: 7489733.543 | H31: 665.650719 | I31: 5765598 | J31: 6179030 | K31: 567.122085 | L31: 1747903 | M31: 1769773 | N31: 21870 | O31: 30 | P31: 0.01
A32: 40 | B32: Braintree | C32: 5682 | D32: 5666 | E32: -16 | F32: 63032117.84 | G32: 65287073.73 | H32: 397.9802129 | I32: 44795946 | J32: 46505214 | K32: 301.6710201 | L32: 18297651 | M32: 18781860 | N32: 484209 | O32: 85.45870102 | P32: 0.03
A33: 41 | B33: Brewster | C33: 477 | D33: 468 | E33: -9 | F33: 5028082.151 | G33: 5236465.6 | H33: 445.2637794 | I33: 4091479 | J33: 4208916 | K33: 250.9337607 | L33: 1011979 | M33: 1027550 | N33: 15571 | O33: 33.27136752 | P33: 0.02
A34: 43 | B34: Brimfield | C34: 262 | D34: 283 | E34: 21 | F34: 2714228.212 | G34: 3087351.58 | H34: 1318.457129 | I34: 1546449 | J34: 1718016 | K34: 606.2438163 | L34: 1247172 | M34: 1369336 | N34: 122164 | O34: 431.6749117 | P34: 0.1
A35: 44 | B35: Brockton | C35: 17723 | D35: 17498 | E35: -225 | F35: 232535452.2 | G35: 255706156.2 | H35: 1324.191564 | I35: 46034943 | J35: 48112285 | K35: 118.718825 | L35: 186500509 | M35: 207593871 | N35: 21093362 | O35: 1205.47274 | P35: 0.11
A36: 45 | B36: Brookfield | C36: 246 | D36: 253 | E36: 7 | F36: 2740659.036 | G36: 2908398.07 | H36: 663.0001354 | I36: 1155170 | J36: 1200512 | K36: 179.2173913 | L36: 1585489 | M36: 1709953 | N36: 124464 | O36: 491.9525692 | P36: 0.08
A37: 46 | B37: Brookline | C37: 7737 | D37: 7648 | E37: -89 | F37: 83235896.76 | G37: 84668729.88 | H37: 187.3474266 | I37: 68669614 | J37: 69851702 | K37: 154.5617155 | L37: 15006787 | M37: 15236227 | N37: 229440 | O37: 30 | P37: 0.02
A38: 48 | B38: Burlington | C38: 3526 | D38: 3518 | E38: -8 | F38: 39132795.41 | G38: 40396821.45 | H38: 359.3024562 | I38: 32284557 | J38: 33327377 | K38: 296.4241046 | L38: 6851477 | M38: 7107670 | N38: 256193 | O38: 72.82347925 | P38: 0.04
A39: 49 | B39: Cambridge | C39: 7460 | D39: 7519 | E39: 59 | F39: 95754602.36 | G39: 103658808 | H39: 1051.23097 | I39: 78997547 | J39: 85518517 | K39: 867.2655938 | L39: 16757055 | M39: 18140291 | N39: 1383236 | O39: 183.9654209 | P39: 0.08
A40: 50 | B40: Canton | C40: 3299 | D40: 3325 | E40: 26 | F40: 36127373.08 | G40: 37652701.13 | H40: 458.7452784 | I40: 29805082 | J40: 31063479 | K40: 378.4652632 | L40: 6327312 | M40: 6615864 | N40: 288552 | O40: 86.78255639 | P40: 0.05
A41: 51 | B41: Carlisle | C41: 571 | D41: 570 | E41: -1 | F41: 5645404.454 | G41: 5867349.038 | H41: 389.3764644 | I41: 4644791 | J41: 4840563 | K41: 343.4596491 | L41: 1009657 | M41: 1029242 | N41: 19585 | O41: 34.35964912 | P41: 0.02
A42: 52 | B42: Carver | C42: 1582 | D42: 1591 | E42: 9 | F42: 17414154.78 | G42: 18189630.06 | H42: 487.4137554 | I42: 9062138 | J42: 9397750 | K42: 210.9440603 | L42: 10008599 | M42: 10056329 | N42: 47730 | O42: 30 | P42: 0
A43: 56 | B43: Chelmsford | C43: 5076 | D43: 5112 | E43: 36 | F43: 52945358.5 | G43: 54706649.9 | H43: 344.5405708 | I43: 42445789 | J43: 43834599 | K43: 271.6764476 | L43: 11199428 | M43: 11352788 | N43: 153360 | O43: 30 | P43: 0.01
A44: 57 | B44: Chelsea | C44: 7116 | D44: 7290 | E44: 174 | F44: 100163293.2 | G44: 112437921 | H44: 1683.762376 | I44: 18590816 | J44: 19918513 | K44: 182.1257888 | L44: 81572477 | M44: 92519408 | N44: 10946931 | O44: 1501.636626 | P44: 0.13
A45: 61 | B45: Chicopee | C45: 7666 | D45: 7571 | E45: -95 | F45: 99336604.58 | G45: 104550852.1 | H45: 688.7131801 | I45: 30513907 | J45: 31719206 | K45: 159.1994453 | L45: 68822698 | M45: 72831646 | N45: 4008948 | O45: 529.5136706 | P45: 0.06
A46: 63 | B46: Clarksburg | C46: 182 | D46: 171 | E46: -11 | F46: 2056910.87 | G46: 2044269.36 | H46: -73.92696035 | I46: 685446 | J46: 691052 | K46: 32.78362573 | L46: 1799935 | M46: 1805065 | N46: 5130 | O46: 30 | P46: 0
A47: 64 | B47: Clinton | C47: 2022 | D47: 2086 | E47: 64 | F47: 24086138.2 | G47: 26586847.72 | H47: 1198.8061 | I47: 10670037 | J47: 11372125 | K47: 336.5714286 | L47: 13416101 | M47: 15214723 | N47: 1798622 | O47: 862.2348993 | P47: 0.13
A48: 65 | B48: Cohasset | C48: 1523 | D48: 1468 | E48: -55 | F48: 15680191 | G48: 15673927.66 | H48: -4.266583337 | I48: 12936157 | J48: 12930990 | K48: -3.519754768 | L48: 2748292 | M48: 2792332 | N48: 44040 | O48: 30 | P48: 0.02
A49: 67 | B49: Concord | C49: 2020 | D49: 2081 | E49: 61 | F49: 20298530.03 | G49: 21592019.29 | H49: 621.5710066 | I49: 16746287 | J49: 17813416 | K49: 512.7962518 | L49: 3552455 | M49: 3801497 | N49: 249042 | O49: 119.6741951 | P49: 0.07
A50: 68 | B50: Conway | C50: 86 | D50: 79 | E50: -7 | F50: 982498.9821 | G50: 902895.42 | H50: -1007.640027 | I50: 810562 | J50: 744889 | K50: -831.3037975 | L50: 626464 | M50: 628834 | N50: 2370 | O50: 30 | P50: 0
A51: 71 | B51: Danvers | C51: 3545 | D51: 3483 | E51: -62 | F51: 37107615.19 | G51: 37816803.19 | H51: 203.6141247 | I51: 30032857 | J51: 30492443 | K51: 131.9511915 | L51: 7108192 | M51: 7324360 | N51: 216168 | O51: 62.06373816 | P51: 0.03
A52: 72 | B52: Dartmouth | C52: 3553 | D52: 3517 | E52: -36 | F52: 38394448.35 | G52: 39139561.32 | H52: 211.8603842 | I52: 31675420 | J52: 32290138 | K52: 174.7847597 | L52: 9948121 | M52: 10053631 | N52: 105510 | O52: 30 | P52: 0.01
A53: 73 | B53: Dedham | C53: 2681 | D53: 2700 | E53: 19 | F53: 30327812.14 | G53: 31499172.98 | H53: 433.8373492 | I53: 24319967 | J53: 25420035 | K53: 407.4325926 | L53: 6066360 | M53: 6147360 | N53: 81000 | O53: 30 | P53: 0.01
A54: 74 | B54: Deerfield | C54: 316 | D54: 315 | E54: -1 | F54: 3354720.406 | G54: 3395385.48 | H54: 129.0954737 | I54: 2690443 | J54: 2725201 | K54: 110.3428571 | L54: 1114363 | M54: 1123813 | N54: 9450 | O54: 30 | P54: 0.01
A55: 77 | B55: Douglas | C55: 1227 | D55: 1213 | E55: -14 | F55: 12970126.82 | G55: 13212607.83 | H55: 199.9019013 | I55: 7112759 | J55: 7342740 | K55: 189.5968673 | L55: 8759585 | M55: 8795975 | N55: 36390 | O55: 30 | P55: 0
A56: 78 | B56: Dover | C56: 492 | D56: 492 | E56: 0 | F56: 4873658.069 | G56: 5086667.217 | H56: 432.9454208 | I56: 4020768 | J56: 4196501 | K56: 357.1808943 | L56: 853856 | M56: 890166 | N56: 36310 | O56: 73.80081301 | P56: 0.04
A57: 79 | B57: Dracut | C57: 3888 | D57: 3964 | E57: 76 | F57: 41837070.95 | G57: 44231763.99 | H57: 604.1102524 | I57: 23013126 | J57: 24065178 | K57: 265.4016145 | L57: 19413857 | M57: 20166586 | N57: 752729 | O57: 189.8912714 | P57: 0.04
A58: 82 | B58: Duxbury | C58: 2922 | D58: 2888 | E58: -34 | F58: 30413600.83 | G58: 31043749.91 | H58: 218.1956638 | I58: 25091221 | J58: 25611094 | K58: 180.0114266 | L58: 5340535 | M58: 5470406 | N58: 129871 | O58: 44.96918283 | P58: 0.02
A59: 83 | B59: East Bridgewater | C59: 2159 | D59: 2153 | E59: -6 | F59: 23021485.87 | G59: 23773530.02 | H59: 349.300581 | I59: 12183037 | J59: 12659690 | K59: 221.3901533 | L59: 10847253 | M59: 11113840 | N59: 266587 | O59: 123.8211797 | P59: 0.02
A60: 85 | B60: Eastham | C60: 170 | D60: 191 | E60: 21 | F60: 1859186.078 | G60: 2206111.7 | H60: 1816.364513 | I60: 1533829 | J60: 1820042 | K60: 1498.497382 | L60: 364971 | M60: 386070 | N60: 21099 | O60: 110.4659686 | P60: 0.06
A61: 86 | B61: Easthampton | C61: 1733 | D61: 1719 | E61: -14 | F61: 19700559.14 | G61: 20235912.76 | H61: 311.4331717 | I61: 12320207 | J61: 12851208 | K61: 308.9011053 | L61: 8029692 | M61: 8081262 | N61: 51570 | O61: 30 | P61: 0.01
A62: 87 | B62: East Longmeadow | C62: 2679 | D62: 2643 | E62: -36 | F62: 28769862.74 | G62: 29273598.25 | H62: 190.5923215 | I62: 16848895 | J62: 17662697 | K62: 307.9084374 | L62: 12102248 | M62: 12181538 | N62: 79290 | O62: 30 | P62: 0.01
A63: 88 | B63: Easton | C63: 3559 | D63: 3516 | E63: -43 | F63: 37265050.04 | G63: 37898989.64 | H63: 180.3013665 | I63: 28602736 | J63: 29751373 | K63: 326.6885666 | L63: 10148451 | M63: 10253931 | N63: 105480 | O63: 30 | P63: 0.01
A64: 89 | B64: Edgartown | C64: 438 | D64: 441 | E64: 3 | F64: 4884680.548 | G64: 5232376.08 | H64: 788.4252419 | I64: 4029861 | J64: 4316710 | K64: 650.4512472 | L64: 854820 | M64: 915666 | N64: 60846 | O64: 137.9727891 | P64: 0.07
A65: 91 | B65: Erving | C65: 217 | D65: 219 | E65: 2 | F65: 2280809.049 | G65: 2402474.03 | H65: 555.5478588 | I65: 1881667 | J65: 1971938 | K65: 412.196347 | L65: 471505 | M65: 478075 | N65: 6570 | O65: 30 | P65: 0.01
A66: 93 | B66: Everett | C66: 7710 | D66: 7652 | E66: -58 | F66: 105617503.5 | G66: 117442393.2 | H66: 1545.333202 | I66: 30615794 | J66: 36560261 | K66: 776.8514114 | L66: 75001709 | M66: 80882132 | N66: 5880423 | O66: 768.4818348 | P66: 0.08
A67: 94 | B67: Fairhaven | C67: 1798 | D67: 1816 | E67: 18 | F67: 20489574.58 | G67: 21116969.42 | H67: 345.4817421 | I67: 12333105 | J67: 12843404 | K67: 281.001652 | L67: 8156470 | M67: 8284667 | N67: 128197 | O67: 70.59306167 | P67: 0.02
A68: 95 | B68: Fall River | C68: 11987 | D68: 12096 | E68: 109 | F68: 162111258.6 | G68: 175667708.9 | H68: 1120.73829 | I68: 31184570 | J68: 32851740 | K68: 137.8282077 | L68: 130926689 | M68: 142815969 | N68: 11889280 | O68: 982.9100529 | P68: 0.09
A69: 96 | B69: Falmouth | C69: 3326 | D69: 3222 | E69: =D69-C69 -> -104 | F69: 38230736 | G69: 38376927.95 | H69: =(G69-F69)/$D69 -> 45.37304596 | I69: 31450637 | J69: 31660965 | K69: =(J69-I69)/$D69 -> 65.27870888 | L69: 6780099 | M69: 6876759 | N69: =M69-L69 -> 96660 | O69: =(M69-L69)/$D69 -> 30 | P69: 0.01
A70: 97 | B70: Fitchburg | C70: 5798 | D70: 5816 | E70: 18 | F70: 75293069.02 | G70: 80108669.53 | H70: 827.9918346 | I70: 18599162 | J70: 19549605 | K70: 163.4186726 | L70: 56693907 | M70: 60559065 | N70: 3865158 | O70: 664.5732462 | P70: 0.07
A71: 98 | B71: Florida | C71: 66 | D71: 66 | E71: 0 | F71: 740254.54 | G71: 772556.75 | H71: 489.427424 | I71: 441172 | J71: 477778 | K71: 554.6363636 | L71: 550717 | M71: 552697 | N71: 1980 | O71: 30 | P71: 0
A72: 99 | B72: Foxborough | C72: 2636 | D72: 2639 | E72: 3 | F72: 28934003.21 | G72: 30048953.23 | H72: 422.4895834 | I72: 23797381 | J72: 24790386 | K72: 376.2807882 | L72: 9046950 | M72: 9126120 | N72: 79170 | O72: 30 | P72: 0.01
A73: 100 | B73: Framingham | C73: 9348 | D73: 9572 | E73: 224 | F73: 114246010.4 | G73: 123005242.4 | H73: 915.0890042 | I73: 63283830 | J73: 64953539 | K73: 174.4367948 | L73: 50962180 | M73: 58051703 | N73: 7089523 | O73: 740.6522148 | P73: 0.14
A74: 101 | B74: Franklin | C74: =VLOOKUP(A74,aidcalc,13,0) -> 5576 | D74: =VLOOKUP(A74,aidcalc,14,0) -> 5511 | E74: -65 | F74: =VLOOKUP(A74,aidcalc,4) -> 59674983.51 | G74: =VLOOKUP(A74,aidcalc,8) -> 60677982.58 | H74: 181.9994672 | I74: =SUMIF(dist1755,A74,pynetmin) -> 40088811 | J74: =VLOOKUP(A74,aidcalc,9) -> 42213236 | K74: 385.4881147 | L74: =VLOOKUP(A74,aidcalc,7) -> 28416161 | M74: =VLOOKUP(A74,aidcalc,39) -> 28581491 | N74: 165330 | O74: 30 | P74: 0.01
A75: 103 | B75: Gardner | C75: 2471 | D75: 2418 | E75: -53 | F75: 30422248.53 | G75: 31455697.41 | H75: 427.3982133 | I75: 9418789 | J75: 9950965 | K75: 220.08933 | L75: 21003460 | M75: 21504732 | N75: 501272 | O75: 207.3085194 | P75: =ROUND(IF(F75>0,(M75-L75)/L75,100),2) -> 0.02
A76: 105 | B76: Georgetown | C76: 1314 | D76: 1303 | E76: -11 | F76: 13380030.1 | G76: 13662197.03 | H76: 216.5517475 | I76: 10305171 | J76: 10632626 | K76: 251.3085188 | L76: 5527768 | M76: 5566858 | N76: 39090 | O76: 30 | P76: 0.01
A77: 107 | B77: Gloucester | C77: 3136 | D77: 3094 | E77: -42 | F77: 37845891.76 | G77: 39149213.46 | H77: 421.2416613 | I77: 31169618 | J77: 32220430 | K77: 339.6289593 | L77: 6699157 | M77: 6928783 | N77: 229626 | O77: 74.21654816 | P77: 0.03
A78: 110 | B78: Grafton | C78: 3112 | D78: 3079 | E78: -33 | F78: 32167051.5 | G78: 32932841 | H78: 248.7137072 | I78: 21474332 | J78: 22268497 | K78: 257.9295226 | L78: 11108735 | M78: 11201105 | N78: 92370 | O78: 30 | P78: 0.01
A79: 111 | B79: Granby | C79: 701 | D79: 711 | E79: 10 | F79: 7816401.303 | G79: 8266807.41 | H79: 633.4825701 | I79: 4990654 | J79: 5256602 | K79: 374.04782 | L79: 4664780 | M79: 4686110 | N79: 21330 | O79: 30 | P79: 0
A80: 114 | B80: Greenfield | C80: 1989 | D80: 1965 | E80: -24 | F80: 23758804.48 | G80: 24436320.87 | H80: 344.7920564 | I80: 10147449 | J80: 10437834 | K80: 147.778626 | L80: 13611355 | M80: 13998487 | N80: 387132 | O80: 197.0137405 | P80: 0.03
A81: 117 | B81: Hadley | C81: 559 | D81: 520 | E81: -39 | F81: 6230653.903 | G81: 5998298.07 | H81: -446.8381401 | I81: 4968021 | J81: 4948596 | K81: -37.35576923 | L81: 1279420 | M81: 1295020 | N81: 15600 | O81: 30 | P81: 0.01
A82: 118 | B82: Halifax | C82: 647 | D82: 630 | E82: -17 | F82: 6718564.054 | G82: 6928966.367 | H82: 333.9719265 | I82: 3664674 | J82: 3862445 | K82: 313.9222222 | L82: 3063392 | M82: 3082292 | N82: 18900 | O82: 30 | P82: 0.01
A83: 121 | B83: Hancock | C83: 73 | D83: 77 | E83: 4 | F83: 800339.2692 | G83: 889298.07 | H83: 1155.309101 | I83: 609145 | J83: 673593 | K83: 836.987013 | L83: 211450 | M83: 215705 | N83: 4255 | O83: 55.25974026 | P83: 0.02
A84: 122 | B84: Hanover | C84: 2548 | D84: 2558 | E84: 10 | F84: 26655202.68 | G84: 27476046.05 | H84: 320.8926394 | I84: 20506773 | J84: 21432195 | K84: 361.7756059 | L84: 7023879 | M84: 7100619 | N84: 76740 | O84: 30 | P84: 0.01
A85: 125 | B85: Harvard | C85: 931 | D85: 911 | E85: -20 | F85: 9480813.679 | G85: 9566705.81 | H85: 94.28334927 | I85: 7821672 | J85: 7892532 | K85: 77.78265642 | L85: 1982671 | M85: 2010001 | N85: 27330 | O85: 30 | P85: 0.01
A86: 127 | B86: Hatfield | C86: 347 | D86: 353 | E86: 6 | F86: 3779440.848 | G86: 3979328.28 | H86: 566.2533489 | I86: 3053395 | J86: 3198126 | K86: 410.0028329 | L86: 846256 | M86: 856846 | N86: 10590 | O86: 30 | P86: 0.01
A87: 128 | B87: Haverhill | C87: 8237 | D87: 8540 | E87: 303 | F87: 100463268.1 | G87: 108992118.7 | H87: 998.6944521 | I87: 42109344 | J87: 43726032 | K87: 189.3077283 | L87: 58353924 | M87: 65266087 | N87: 6912163 | O87: 809.3867681 | P87: 0.12
A88: 131 | B88: Hingham | C88: 4253 | D88: 4289 | E88: 36 | F88: 43961797.37 | G88: 45919654.09 | H88: 456.4832654 | I88: 36268483 | J88: 37883715 | K88: 376.598741 | L88: 7695110 | M88: 8086471 | N88: 391361 | O88: 91.24761017 | P88: 0.05
A89: 133 | B89: Holbrook | C89: 1288 | D89: 1346 | E89: 58 | F89: 15200054.58 | G89: 17149375.39 | H89: 1448.232401 | I89: 7861744 | J89: 8381343 | K89: 386.0319465 | L89: 7338311 | M89: 8768032 | N89: 1429721 | O89: 1062.199851 | P89: 0.19
A90: 135 | B90: Holland | C90: 172 | D90: 156 | E90: -16 | F90: 1957811.389 | G90: 1909559.09 | H90: -309.3096083 | I90: 1087826 | J90: 1119698 | K90: 204.3076923 | L90: 933678 | M90: 938358 | N90: 4680 | O90: 30 | P90: 0.01
A91: 136 | B91: Holliston | C91: 2688 | D91: 2706 | E91: 18 | F91: 27996289.16 | G91: 28940333.03 | H91: 348.8706096 | I91: 20267619 | J91: 21381250 | K91: 411.5413895 | L91: 7936216 | M91: 8017396 | N91: 81180 | O91: 30 | P91: 0.01
A92: 137 | B92: Holyoke | C92: 6330 | D92: 6359 | E92: 29 | F92: 88111145.83 | G92: 92731775.27 | H92: 726.6283134 | I92: 11074770 | J92: 11318415 | K92: 38.31498663 | L92: 77036376 | M92: 81413360 | N92: 4376984 | O92: 688.3132568 | P92: 0.06
A93: 138 | B93: Hopedale | C93: 937 | D93: 924 | E93: -13 | F93: 9935233.215 | G93: 10008851.03 | H93: 79.67295757 | I93: 5786456 | J93: 5857196 | K93: 76.55844156 | L93: 6087390 | M93: 6115110 | N93: 27720 | O93: 30 | P93: 0
A94: 139 | B94: Hopkinton | C94: 3702 | D94: 3867 | E94: 165 | F94: 39305559.54 | G94: 41968586.83 | H94: 688.6545862 | I94: 32314609 | J94: 34353998 | K94: 527.3827256 | L94: 7021215 | M94: 7614589 | N94: 593374 | O94: 153.445565 | P94: 0.08
A95: 141 | B95: Hudson | C95: 2658 | D95: 2658 | E95: 0 | F95: 29439397.28 | G95: 30680243.22 | H95: 466.8344398 | I95: 17734729 | J95: 18612598 | K95: 330.2742664 | L95: 12020446 | M95: 12100186 | N95: 79740 | O95: 30 | P95: 0.01
A96: 142 | B96: Hull | C96: 928 | D96: 896 | E96: -32 | F96: 10718331.73 | G96: 10835997.69 | H96: 131.3236171 | I96: 8741934 | J96: 8939698 | K96: 220.71875 | L96: 3874466 | M96: 3901346 | N96: 26880 | O96: 30 | P96: 0.01
A97: 144 | B97: Ipswich | C97: 1670 | D97: 1654 | E97: -16 | F97: 18376694.04 | G97: 18643938.81 | H97: 161.5748295 | I97: 15160772 | J97: 15381249 | K97: 133.2992745 | L97: 3332340 | M97: 3381960 | N97: 49620 | O97: 30 | P97: 0.01
A98: 145 | B98: Kingston | C98: 1082 | D98: 1105 | E98: 23 | F98: 11332153.55 | G98: 11896660.21 | H98: 510.8657566 | I98: 7314667 | J98: 7765867 | K98: 408.3257919 | L98: 4372585 | M98: 4405735 | N98: 33150 | O98: 30 | P98: 0.01
A99: 149 | B99: Lawrence | C99: 15428 | D99: 15367 | E99: -61 | F99: 210870986.7 | G99: 233340242.3 | H99: 1462.175805 | I99: 10875618 | J99: 11560136 | K99: 44.54467365 | L99: 199995369 | M99: 221780106 | N99: 21784737 | O99: 1417.631093 | P99: 0.11
A100: 150 | B100: Lee | C100: 615 | D100: 616 | E100: 1 | F100: 7374237.847 | G100: 7555332.23 | H100: 293.9843879 | I100: 5858890 | J100: 6106135 | K100: 401.3717532 | L100: 2085069 | M100: 2103549 | N100: 18480 | O100: 30 | P100: 0.01
A101: 151 | B101: Leicester | C101: 1555 | D101: 1539 | E101: -16 | F101: 17701915.2 | G101: 18481715.28 | H101: 506.692712 | I101: 8369468 | J101: 8697551 | K101: 213.1793372 | L101: 9802497 | M101: 9848667 | N101: 46170 | O101: 30 | P101: 0
A102: 152 | B102: Lenox | C102: 494 | D102: 507 | E102: 13 | F102: 5511981.85 | G102: 5883431.66 | H102: 732.6426234 | I102: 4547385 | J102: 4728371 | K102: 356.974359 | L102: 1272525 | M102: 1287735 | N102: 15210 | O102: 30 | P102: 0.01
A103: 153 | B103: Leominster | C103: 6157 | D103: 6177 | E103: 20 | F103: 77172702.96 | G103: 80292978.79 | H103: 505.1442178 | I103: 30127166 | J103: 31326227 | K103: 194.1170471 | L103: 47045537 | M103: 48966752 | N103: 1921215 | O103: 311.0271977 | P103: 0.04
A104: 154 | B104: Leverett | C104: 112 | D104: 116 | E104: 4 | F104: 1166005.24 | G104: 1226441.5 | H104: 521.0022401 | I104: 885170 | J104: 1001659 | K104: 1004.215517 | L104: 295511 | M104: 298991 | N104: 3480 | O104: 30 | P104: 0.01
A105: 155 | B105: Lexington | C105: 7335 | D105: 7282 | E105: -53 | F105: 80260931.78 | G105: 82151053.71 | H105: 259.560826 | I105: 66088777 | J105: 67774619 | K105: 231.5081022 | L105: 14438034 | M105: 14656494 | N105: 218460 | O105: 30 | P105: 0.02
A106: 157 | B106: Lincoln | C106: 653 | D106: 595 | E106: -58 | F106: 6701030.602 | G106: 6332691.051 | H106: -619.0580692 | I106: 5528351 | J106: 5224470 | K106: -510.7243697 | L106: 1174169 | M106: 1192019 | N106: 17850 | O106: 30 | P106: 0.02
A107: 158 | B107: Littleton | C107: 1612 | D107: 1611 | E107: -1 | F107: 16632291.76 | G107: 17029929.22 | H107: 246.826476 | I107: 13448982 | J107: 14049692 | K107: 372.8801986 | L107: 4039908 | M107: 4088238 | N107: 48330 | O107: 30 | P107: 0.01
A108: 159 | B108: Longmeadow | C108: 2855 | D108: 2808 | E108: -47 | F108: 29113308.34 | G108: 29509451.49 | H108: 141.0766206 | I108: 23465469 | J108: 24145968 | K108: 242.3429487 | L108: 5669282 | M108: 5753522 | N108: 84240 | O108: 30 | P108: 0.01
A109: 160 | B109: Lowell | C109: 16353 | D109: 16352 | E109: -1 | F109: 212748263.5 | G109: 227619488.5 | H109: 909.4437968 | I109: 49724317 | J109: 51812185 | K109: 127.6827299 | L109: 163023947 | M109: 175807304 | N109: 12783357 | O109: 781.761069 | P109: 0.08
A110: 161 | B110: Ludlow | C110: 2543 | D110: 2509 | E110: -34 | F110: 29028174.44 | G110: 29682132.17 | H110: 260.6447692 | I110: 16193284 | J110: 16798913 | K110: 241.3826226 | L110: 13795983 | M110: 13871253 | N110: 75270 | O110: 30 | P110: 0.01
A111: 162 | B111: Lunenburg | C111: 1705 | D111: 1705 | E111: 0 | F111: 17948505.28 | G111: 18454431.7 | H111: 296.7310357 | I111: 10176765 | J111: 10527507 | K111: 205.713783 | L111: 7771740 | M111: 7926925 | N111: 155185 | O111: 91.01759531 | P111: 0.02
A112: 163 | B112: Lynn | C112: 17598 | D112: 18088 | E112: 490 | F112: 238010020.2 | G112: 269437661.9 | H112: 1737.485721 | I112: 52164961 | J112: 53396054 | K112: 68.06131137 | L112: 185845059 | M112: 216041608 | N112: 30196549 | O112: 1669.424425 | P112: 0.16
A113: 164 | B113: Lynnfield | C113: 2199 | D113: 2205 | E113: 6 | F113: 23010166.94 | G113: 23736014.73 | H113: 329.1826681 | I113: 18762401 | J113: 19294723 | K113: 241.415873 | L113: 4404631 | M113: 4470781 | N113: 66150 | O113: 30 | P113: 0.02
A114: 165 | B114: Malden | C114: 7451 | D114: 7268 | E114: -183 | F114: 95060966.5 | G114: 99371892.76 | H114: 593.1378994 | I114: 43854744 | J114: 46001263 | K114: 295.3383324 | L114: 51206223 | M114: 53370630 | N114: 2164407 | O114: 297.7995322 | P114: 0.04
A115: 167 | B115: Mansfield | C115: 3867 | D115: 3730 | E115: -137 | F115: 42363212.75 | G115: 42028169.12 | H115: -89.82402962 | I115: 28659688 | J115: 29654453 | K115: 266.6930295 | L115: 18962339 | M115: 19074239 | N115: 111900 | O115: 30 | P115: 0.01
A116: 168 | B116: Marblehead | C116: 3144 | D116: 3023 | E116: -121 | F116: 32505638.69 | G116: 32226764.34 | H116: -92.25085928 | I116: 26599814 | J116: 26587081 | K116: -4.212041019 | L116: 5952147 | M116: 6042837 | N116: 90690 | O116: 30 | P116: 0.02
A117: 169 | B117: Marion | C117: 450 | D117: 432 | E117: -18 | F117: 4612923.796 | G117: 4560187.09 | H117: -122.0757091 | I117: 3799640 | J117: 3762154 | K117: -86.77314815 | L117: 860344 | M117: 873304 | N117: 12960 | O117: 30 | P117: 0.02
A118: 170 | B118: Marlborough | C118: 5213 | D118: 5336 | E118: 123 | F118: 64168256.45 | G118: 69057563.68 | H118: 916.2869616 | I118: 35637847 | J118: 37356439 | K118: 322.0749625 | L118: 28530409 | M118: 31701125 | N118: 3170716 | O118: 594.2121439 | P118: 0.11
A119: 171 | B119: Marshfield | C119: 4046 | D119: 3941 | E119: -105 | F119: 43523657.53 | G119: 43929784.02 | H119: 103.0516349 | I119: 35619824 | J119: 36242072 | K119: 157.8908906 | L119: 14664853 | M119: 14783083 | N119: 118230 | O119: 30 | P119: 0.01
A120: 172 | B120: Mashpee | C120: 1647 | D120: 1585 | E120: -62 | F120: 18627382.03 | G120: 18618025.09 | H120: -5.90343501 | I120: 15124670 | J120: 15359871 | K120: 148.3917981 | L120: 4640166 | M120: 4687716 | N120: 47550 | O120: 30 | P120: 0.01
A121: 173 | B121: Mattapoisett | C121: 436 | D121: 437 | E121: 1 | F121: 4426546.981 | G121: 4588800.59 | H121: 371.2897231 | I121: 3651901 | J121: 3785760 | K121: 306.3135011 | L121: 839485 | M121: 852595 | N121: 13110 | O121: 30 | P121: 0.02
A122: 174 | B122: Maynard | C122: 1364 | D122: 1305 | E122: -59 | F122: 15291603.71 | G122: 15104159.78 | H122: -143.6351939 | I122: 10005157 | J122: 10360316 | K122: 272.1524904 | L122: 5442941 | M122: 5482091 | N122: 39150 | O122: 30 | P122: 0.01
A123: 175 | B123: Medfield | C123: 2520 | D123: 2513 | E123: -7 | F123: 26032948.58 | G123: 26805211.95 | H123: 307.3073498 | I123: 21176396 | J123: 21991097 | K123: 324.1945881 | L123: 6288744 | M123: 6364134 | N123: 75390 | O123: 30 | P123: 0.01
A124: 176 | B124: Medford | C124: 4618 | D124: 4622 | E124: 4 | F124: 58384769.5 | G124: 60473450.49 | H124: 451.8998251 | I124: 48076837 | J124: 49890597 | K124: 392.4188663 | L124: 12143306 | M124: 12281966 | N124: 138660 | O124: 30 | P124: 0.01
A125: 177 | B125: Medway | C125: 2219 | D125: 2186 | E125: -33 | F125: 23515724.42 | G125: 23855868.19 | H125: 155.6009944 | I125: 16195477 | J125: 16889362 | K125: 317.4222324 | L125: 10501419 | M125: 10566999 | N125: 65580 | O125: 30 | P125: 0.01
A126: 178 | B126: Melrose | C126: 3943 | D126: 4013 | E126: 70 | F126: 42022188.06 | G126: 44662909.21 | H126: 658.0416543 | I126: 33686027 | J126: 35095952 | K126: 351.339397 | L126: 8514496 | M126: 9566957 | N126: 1052461 | O126: 262.2628956 | P126: 0.12
A127: 181 | B127: Methuen | C127: 7164 | D127: 7124 | E127: -40 | F127: 86487500.83 | G127: 91361491.54 | H127: 684.1648945 | I127: 38919879 | J127: 40299104 | K127: 193.6026109 | L127: 47567622 | M127: 51062388 | N127: 3494766 | O127: 490.5623245 | P127: 0.07
A128: 182 | B128: Middleborough | C128: 3053 | D128: 3073 | E128: =D128-C128 -> 20 | F128: 34113306.29 | G128: 35491872.48 | H128: =(G128-F128)/$D128 -> 448.6059846 | I128: 16968154 | J128: 18178093 | K128: =(J128-I128)/$D128 -> 393.7321835 | L128: 17978609 | M128: 18070799 | N128: =M128-L128 -> 92190 | O128: =(M128-L128)/$D128 -> 30 | P128: 0.01
A129: 184 | B129: Middleton | C129: 670 | D129: 686 | E129: 16 | F129: 6689182.211 | G129: 7076926.216 | H129: 565.2244978 | I129: 5513538 | J129: 5838464 | K129: 473.6530612 | L129: 1666151 | M129: 1686731 | N129: 20580 | O129: 30 | P129: 0.01
A130: 185 | B130: Milford | C130: 4317 | D130: 4482 | E130: 165 | F130: 52148898.39 | G130: 57018202.05 | H130: 1086.413132 | I130: 24846959 | J130: 25912713 | K130: 237.7853637 | L130: 27301939 | M130: 31117885 | N130: 3815946 | O130: 851.3935743 | P130: 0.14
A131: 186 | B131: Millbury | C131: 1729 | D131: 1743 | E131: 14 | F131: 19134294.71 | G131: 19846272.08 | H131: 408.4781246 | I131: 11458671 | J131: 11970455 | K131: 293.62249 | L131: 7675624 | M131: 7939921 | N131: 264297 | O131: 151.6333907 | P131: 0.03
A132: 187 | B132: Millis | C132: 1146 | D132: 1088 | E132: -58 | F132: 12179710.21 | G132: 11928853.97 | H132: -230.5663972 | I132: 8612588 | J132: 8894930 | K132: 259.5055147 | L132: 4831312 | M132: 4863952 | N132: 32640 | O132: 30 | P132: 0.01
A133: 189 | B133: Milton | C133: 4220 | D133: 4374 | E133: 154 | F133: 44445617.57 | G133: 47591184.86 | H133: 719.1511853 | I133: 35446365 | J133: 37335944 | K133: 432.0025149 | L133: 9033561 | M133: 10255241 | N133: 1221680 | O133: 279.304984 | P133: 0.14
A134: 191 | B134: Monson | C134: 936 | D134: 934 | E134: -2 | F134: 10353119.73 | G134: 10662015.31 | H134: 330.7233202 | I134: 5746939 | J134: 5924562 | K134: 190.1745182 | L134: 7541075 | M134: 7569095 | N134: 28020 | O134: 30 | P134: 0
A135: 196 | B135: Nahant | C135: 257 | D135: 266 | E135: 9 | F135: 2602347.191 | G135: 2762552.95 | H135: 602.2772911 | I135: 2146936 | J135: 2279106 | K135: 496.8796992 | L135: 523513 | M135: 531493 | N135: 7980 | O135: 30 | P135: 0.02
A136: 197 | B136: Nantucket | C136: 1663 | D136: 1664 | E136: 1 | F136: 19008236.73 | G136: 19595960.21 | H136: 353.199204 | I136: 15681795 | J136: 16166667 | K136: 291.3894231 | L136: 3600249 | M136: 3650169 | N136: 49920 | O136: 30 | P136: 0.01
A137: 198 | B137: Natick | C137: 5508 | D137: 5484 | E137: -24 | F137: 57774437.1 | G137: 58826227.42 | H137: 191.7925452 | I137: 47663911 | J137: 48531638 | K137: 158.2288476 | L137: 10120767 | M137: 10369201 | N137: 248434 | O137: 45.30160467 | P137: 0.02
A138: 199 | B138: Needham | C138: =VLOOKUP(A138,aidcalc,13,0) -> 5556 | D138: =VLOOKUP(A138,aidcalc,14,0) -> 5754 | E138: 198 | F138: =VLOOKUP(A138,aidcalc,4) -> 59693731.69 | G138: =VLOOKUP(A138,aidcalc,8) -> 63943942.4 | H138: 738.6532352 | I138: =SUMIF(dist1755,A138,pynetmin) -> 49247329 | J138: =VLOOKUP(A138,aidcalc,9) -> 52435392 | K138: 554.0603059 | L138: =VLOOKUP(A138,aidcalc,7) -> 10451715 | M138: =VLOOKUP(A138,aidcalc,39) -> 11508550 | N138: 1056835 | O138: 183.6696211 | P138: 0.1
A139: 201 | B139: New Bedford | C139: 14042 | D139: 14257 | E139: 215 | F139: 189742059.8 | G139: 201706180.5 | H139: 839.1751923 | I139: 29911096 | J139: 31201934 | K139: 90.5406467 | L139: 159830964 | M139: 170504247 | N139: 10673283 | O139: 748.6345655 | P139: =ROUND(IF(F139>0,(M139-L139)/L139,100),2) -> 0.07
A140: 204 | B140: Newburyport | C140: 2341 | D140: 2308 | E140: -33 | F140: 23879060.91 | G140: 24434119.66 | H140: 240.4933944 | I140: 19700226 | J140: 20158148 | K140: 198.4064125 | L140: 4182944 | M140: 4305110 | N140: 122166 | O140: 52.93154246 | P140: 0.03
A141: 207 | B141: Newton | C141: 12889 | D141: 12831 | E141: -58 | F141: 141578979.1 | G141: 146297048.3 | H141: 367.7086115 | I141: 116802658 | J141: 120695065 | K141: 303.3595978 | L141: 24814496 | M141: 25601983 | N141: 787487 | O141: 61.37378225 | P141: 0.03
A142: 208 | B142: Norfolk | C142: 916 | D142: 944 | E142: 28 | F142: 9114958.338 | G142: 9680403.494 | H142: 598.988512 | I142: 7519840 | J142: 7986333 | K142: 494.1663136 | L142: 3461385 | M142: 3489705 | N142: 28320 | O142: 30 | P142: 0.01
A143: 209 | B143: North Adams | C143: 1444 | D143: 1424 | E143: -20 | F143: 17859474.7 | G143: 18394688.73 | H143: 375.8525465 | I143: 5053318 | J143: 5055442 | K143: 1.491573034 | L143: 13809703 | M143: 13852423 | N143: 42720 | O143: 30 | P143: 0
A144: 210 | B144: Northampton | C144: 2702 | D144: 2745 | E144: 43 | F144: 30030364.25 | G144: 31123122.11 | H144: 398.0902946 | I144: 24547028 | J144: 25676575 | K144: 411.4925319 | L144: 7558369 | M144: 7640719 | N144: 82350 | O144: 30 | P144: 0.01
A145: 211 | B145: North Andover | C145: 4796 | D145: 4704 | E145: -92 | F145: 50326384.48 | G145: 51056590.19 | H145: 155.2308059 | I145: 41262379 | J145: 42121687 | K145: 182.6760204 | L145: 9160097 | M145: 9301217 | N145: 141120 | O145: 30 | P145: 0.02
A146: 212 | B146: North Attleborough | C146: 4179 | D146: 4170 | E146: -9 | F146: 44126489.42 | G146: 45482443.59 | H146: 325.1688649 | I146: 26972001 | J146: 28441134 | K146: 352.3100719 | L146: 20682041 | M146: 20807141 | N146: 125100 | O146: 30 | P146: 0.01
A147: 213 | B147: Northborough | C147: 1541 | D147: 1540 | E147: -1 | F147: 15348450.35 | G147: 15826945.73 | H147: 310.7112866 | I147: 12662472 | J147: 13057230 | K147: 256.3363636 | L147: 3993500 | M147: 4039700 | N147: 46200 | O147: 30 | P147: 0.01
A148: 214 | B148: Northbridge | C148: 2133 | D148: 2074 | E148: -59 | F148: 23912162.03 | G148: 23869208.76 | H148: -20.71035298 | I148: 12120372 | J148: 12603405 | K148: 232.8992285 | L148: 15603931 | M148: 15666151 | N148: 62220 | O148: 30 | P148: 0
A149: 215 | B149: North Brookfield | C149: 609 | D149: 609 | E149: 0 | F149: 6861155.143 | G149: 7056350.72 | H149: 320.5181894 | I149: 2904011 | J149: 2988061 | K149: 138.0131363 | L149: 4290838 | M149: 4309108 | N149: 18270 | O149: 30 | P149: 0
A150: 217 | B150: North Reading | C150: 2347 | D150: 2320 | E150: -27 | F150: 25154643.37 | G150: 25577032.54 | H150: 182.0642968 | I150: 20752580 | J150: 21101052 | K150: 150.2034483 | L150: 7153937 | M150: 7223537 | N150: 69600 | O150: 30 | P150: 0.01
A151: 218 | B151: Norton | C151: 2433 | D151: 2400 | E151: -33 | F151: 25977850.92 | G151: 26672316.06 | H151: 289.3604747 | I151: 17399530 | J151: 18330136 | K151: 387.7525 | L151: 12827390 | M151: 12899390 | N151: 72000 | O151: 30 | P151: 0.01
A152: 219 | B152: Norwell | C152: 2143 | D152: 2153 | E152: 10 | F152: 22329816.44 | G152: 23072297.44 | H152: 344.8588012 | I152: 18350859 | J152: 19034058 | K152: 317.3241988 | L152: 4011711 | M152: 4076301 | N152: 64590 | O152: 30 | P152: 0.02
A153: 220 | B153: Norwood | C153: 3460 | D153: 3531 | E153: 71 | F153: 40452845.13 | G153: 43093955.16 | H153: 747.9779169 | I153: 32400134 | J153: 33505490 | K153: 313.0433305 | L153: 8052711 | M153: 9588465 | N153: 1535754 | O153: 434.9345794 | P153: 0.19
A154: 221 | B154: Oak Bluffs | C154: 447 | D154: 447 | E154: 0 | F154: 4939842.549 | G154: 5190647.02 | H154: 561.0838267 | I154: 3951377 | J154: 4004262 | K154: 118.310962 | L154: 988466 | M154: 1186385 | N154: 197919 | O154: 442.7718121 | P154: 0.2
A155: 223 | B155: Orange | C155: 613 | D155: 595 | E155: -18 | F155: 7421674.388 | G155: 7360903.97 | H155: -102.1351556 | I155: 1989628 | J155: 2003917 | K155: 24.01512605 | L155: 5432046 | M155: 5449896 | N155: 17850 | O155: 30 | P155: 0
A156: 224 | B156: Orleans | C156: 224 | D156: 204 | E156: -20 | F156: 2457051.796 | G156: 2348811.43 | H156: -530.5900288 | I156: 2027068 | J156: 1937769 | K156: -437.7401961 | L156: 429984 | M156: 436104 | N156: 6120 | O156: 30 | P156: 0.01
A157: 226 | B157: Oxford | C157: 1738 | D157: 1655 | E157: -83 | F157: 19698237.28 | G157: 19283696.92 | H157: -250.4775564 | I157: 9622553 | J157: 10138624 | K157: 311.8253776 | L157: 10566894 | M157: 10616544 | N157: 49650 | O157: 30 | P157: 0
A158: 227 | B158: Palmer | C158: 1417 | D158: 1413 | E158: -4 | F158: 16594239.76 | G158: 17278686.41 | H158: 484.3925362 | I158: 6825833 | J158: 7036139 | K158: 148.836518 | L158: 10915640 | M158: 10958030 | N158: 42390 | O158: 30 | P158: 0
A159: 229 | B159: Peabody | C159: 5936 | D159: 5983 | E159: 47 | F159: 69609817.44 | G159: 72862545.13 | H159: 543.6616567 | I159: 48453163 | J159: 50464626 | K159: 336.1963898 | L159: 21156654 | M159: 22397919 | N159: 1241265 | O159: 207.4653184 | P159: 0.06
A160: 230 | B160: Pelham | C160: 82 | D160: 84 | E160: 2 | F160: 905329.7285 | G160: 936241.84 | H160: 368.001327 | I160: 687532 | J160: 699305 | K160: 140.1547619 | L160: 235531 | M160: 238051 | N160: 2520 | O160: 30 | P160: 0.01
A161: 231 | B161: Pembroke | C161: 2900 | D161: 2854 | E161: -46 | F161: 31408204.4 | G161: 32306393.87 | H161: 314.7124972 | I161: 20722469 | J161: 21528573 | K161: 282.4470918 | L161: 13608752 | M161: 13694372 | N161: 85620 | O161: 30 | P161: 0.01
A162: 234 | B162: Petersham | C162: 70 | D162: 79 | E162: 9 | F162: 825450.3645 | G162: 967593.11 | H162: 1799.275259 | I162: 571360 | J162: 648211 | K162: 972.7974684 | L162: 435523 | M162: 437893 | N162: 2370 | O162: 30 | P162: 0.01
A163: 236 | B163: Pittsfield | C163: 6022 | D163: 5920 | E163: -102 | F163: 75857280.53 | G163: 79181621.19 | H163: 561.5440297 | I163: 28171219 | J163: 28582519 | K163: 69.47635135 | L163: 47686062 | M163: 50599102 | N163: 2913040 | O163: 492.0675676 | P163: 0.06
A164: 238 | B164: Plainville | C164: 702 | D164: 716 | E164: 14 | F164: 7272815.849 | G164: 7586987.14 | H164: 438.7867196 | I164: 5127708 | J164: 5441822 | K164: 438.7067039 | L164: 2927801 | M164: 2949281 | N164: 21480 | O164: 30 | P164: 0.01
A165: 239 | B165: Plymouth | C165: 8045 | D165: 7951 | E165: -94 | F165: 93345303.48 | G165: 97157775.18 | H165: 479.4958741 | I165: 68683929 | J165: 71850258 | K165: 398.2302855 | L165: 26369547 | M165: 26608077 | N165: 238530 | O165: 30 | P165: 0.01
A166: 240 | B166: Plympton | C166: 210 | D166: 227 | E166: 17 | F166: 2239539.098 | G166: 2463759.628 | H166: 987.7556418 | I166: 1665166 | J166: 1794113 | K166: 568.0484581 | L166: 740470 | M166: 747280 | N166: 6810 | O166: 30 | P166: 0.01
A167: 242 | B167: Provincetown | C167: 110 | D167: 97 | E167: -13 | F167: 1386868.408 | G167: 1312560.01 | H167: -766.065961 | I167: 1144166 | J167: 1082862 | K167: -632 | L167: 290781 | M167: 293691 | N167: 2910 | O167: 30 | P167: 0.01
A168: 243 | B168: Quincy | C168: 9455 | D168: 9657 | E168: 202 | F168: 123682608.2 | G168: 136816110.3 | H168: 1359.998146 | I168: 95726151 | J168: 101599943 | K168: 608.2418971 | L168: 28647763 | M168: 35216167 | N168: 6568404 | O168: 680.1702392 | P168: 0.23
A169: 244 | B169: Randolph | C169: 3279 | D169: 3286 | E169: 7 | F169: 41045165.96 | G169: 43738342.61 | H169: 819.5911924 | I169: 22557750 | J169: 23704922 | K169: 349.108947 | L169: 18487416 | M169: 20033421 | N169: 1546005 | O169: 470.4823494 | P169: 0.08
A170: 246 | B170: Reading | C170: 4040 | D170: 3975 | E170: -65 | F170: 42311533.29 | G170: 42863193.32 | H170: 138.7823978 | I170: 34907015 | J170: 35362134 | K170: 114.4953459 | L170: 10834809 | M170: 10954059 | N170: 119250 | O170: 30 | P170: 0.01
A171: 248 | B171: Revere | C171: 7991 | D171: 7979 | E171: -12 | F171: 104529856.5 | G171: 117084100.5 | H171: 1573.410701 | I171: 34860627 | J171: 36998310 | K171: 267.9136483 | L171: 69669229 | M171: 80085790 | N171: 10416561 | O171: 1305.497055 | P171: 0.15
A172: 249 | B172: Richmond | C172: 120 | D172: 125 | E172: 5 | F172: 1333384.021 | G172: 1462282.96 | H172: 1031.191515 | I172: 1100042 | J172: 1206383 | K172: 850.728 | L172: 364649 | M172: 368399 | N172: 3750 | O172: 30 | P172: 0.01
A173: 250 | B173: Rochester | C173: 513 | D173: 514 | E173: 1 | F173: 5204047.035 | G173: 5465684.73 | H173: 509.0227529 | I173: 3146498 | J173: 3380236 | K173: 454.7431907 | L173: 2057549 | M173: 2085449 | N173: 27900 | O173: 54.28015564 | P173: 0.01
A174: 251 | B174: Rockland | C174: 2278 | D174: 2326 | E174: 48 | F174: 27535663.69 | G174: 29978801.33 | H174: 1050.36012 | I174: 13793841 | J174: 14507718 | K174: 306.9118659 | L174: 13843235 | M174: 15471083 | N174: 1627848 | O174: 699.8486672 | P174: 0.12
A175: 252 | B175: Rockport | C175: 679 | D175: 665 | E175: -14 | F175: 7685699.873 | G175: 7681628.879 | H175: -6.121794233 | I175: 6224394 | J175: 6337344 | K175: 169.8496241 | L175: 1502126 | M175: 1522076 | N175: 19950 | O175: 30 | P175: 0.01
A176: 253 | B176: Rowe | C176: 48 | D176: 50 | E176: 2 | F176: 582531.0268 | G176: 647185.75 | H176: 1293.094463 | I176: 480588 | J176: 533928 | K176: 1066.8 | L176: 139775 | M176: 141275 | N176: 1500 | O176: 30 | P176: 0.01
A177: 258 | B177: Salem | C177: 4635 | D177: 4536 | E177: -99 | F177: 59983631.4 | G177: 61001952.66 | H177: 224.4976329 | I177: 34176479 | J177: 35713816 | K177: 338.9190917 | L177: 25807152 | M177: 25943232 | N177: 136080 | O177: 30 | P177: 0.01
A178: 261 | B178: Sandwich | C178: 2672 | D178: 2644 | E178: -28 | F178: 28195096.03 | G178: 28812575.09 | H178: 233.5397351 | I178: 23260955 | J178: 23770374 | K178: 192.6698185 | L178: 7151788 | M178: 7231108 | N178: 79320 | O178: 30 | P178: 0.01
A179: 262 | B179: Saugus | C179: 2761 | D179: 2798 | E179: 37 | F179: 31417986.97 | G179: 33254946.57 | H179: 656.5259461 | I179: 25343552 | J179: 26691069 | K179: 481.6000715 | L179: 6136490 | M179: 6563878 | N179: 427388 | O179: 152.7476769 | P179: 0.07
A180: 263 | B180: Savoy | C180: 60 | D180: 50 | E180: -10 | F180: 751434.4035 | G180: 642599.06 | H180: -2176.70687 | I180: 362123 | J180: 376725 | K180: 292.04 | L180: 515849 | M180: 517349 | N180: 1500 | O180: 30 | P180: 0
A181: 264 | B181: Scituate | C181: 2906 | D181: 2991 | E181: 85 | F181: 30755855.73 | G181: 32403487.31 | H181: 550.863116 | I181: 24906358 | J181: 26062254 | K181: 386.4580408 | L181: 5863240 | M181: 6341233 | N181: 477993 | O181: 159.8104313 | P181: 0.08
A182: 265 | B182: Seekonk | C182: 2095 | D182: 2077 | E182: -18 | F182: 21995792.01 | G182: 22815890.45 | H182: 394.8475891 | I182: 15294251 | J182: 15991483 | K182: 335.6918633 | L182: 6705263 | M182: 6824407 | N182: 119144 | O182: 57.36350506 | P182: 0.02
A183: 266 | B183: Sharon | C183: 3505 | D183: 3535 | E183: 30 | F183: 37027112.38 | G183: 38544967.07 | H183: 429.3789784 | I183: 29719389 | J183: 31024567 | K183: 369.2158416 | L183: 7449437 | M183: 7575317 | N183: 125880 | O183: 35.6096181 | P183: 0.02
A184: 269 | B184: Sherborn | C184: 394 | D184: 400 | E184: 6 | F184: 3922730.141 | G184: 4124924.734 | H184: 505.4864818 | I184: 3236252 | J184: 3403063 | K184: 417.0275 | L184: 693583 | M184: 727206 | N184: 33623 | O184: 84.0575 | P184: 0.05
A185: 271 | B185: Shrewsbury | C185: 6043 | D185: 6207 | E185: 164 | F185: 63259403.71 | G185: 67328829.06 | H185: 655.618713 | I185: 49749302 | J185: 52057670 | K185: 371.897535 | L185: 20068648 | M185: 20254858 | N185: 186210 | O185: 30 | P185: 0.01
A186: 272 | B186: Shutesbury | C186: 117 | D186: 105 | E186: -12 | F186: 1321150.804 | G186: 1228664.8 | H186: -880.8190857 | I186: 730491 | J186: 715926 | K186: -138.7142857 | L186: 630386 | M186: 633536 | N186: 3150 | O186: 30 | P186: 0
A187: 273 | B187: Somerset | C187: 1778 | D187: 1758 | E187: -20 | F187: 18329520.12 | G187: 18701770.27 | H187: 211.7463905 | I187: 9423790 | J187: 9381508 | K187: -24.05119454 | L187: 8920409 | M187: 9320262 | N187: 399853 | O187: 227.4476678 | P187: 0.04
A188: 274 | B188: Somerville | C188: 5263 | D188: 5284 | E188: 21 | F188: 68863033.37 | G188: 78394858.55 | H188: 1803.903327 | I188: 56812003 | J188: 60766118 | K188: 748.3185087 | L188: 20486918 | M188: 20645438 | N188: 158520 | O188: 30 | P188: 0.01
A189: 275 | B189: Southampton | C189: 478 | D189: 462 | E189: -16 | F189: 5018160.418 | G189: 5059594.36 | H189: 89.68385764 | I189: 3476888 | J189: 3484861 | K189: 17.25757576 | L189: 2551486 | M189: 2565346 | N189: 13860 | O189: 30 | P189: 0.01
A190: 276 | B190: Southborough | C190: 1171 | D190: 1225 | E190: 54 | F190: 11760311.47 | G190: 12618254.94 | H190: 700.3620122 | I190: 9702257 | J190: 10410060 | K190: 577.7983673 | L190: 2986051 | M190: 3022801 | N190: 36750 | O190: 30 | P190: 0.01
A191: 277 | B191: Southbridge | C191: 2324 | D191: 2231 | E191: =D191-C191 -> -93 | F191: 30836388.96 | G191: 30505300.34 | H191: =(G191-F191)/$D191 -> -148.4036827 | I191: 7846557 | J191: 8001037 | K191: =(J191-I191)/$D191 -> 69.24249216 | L191: 22989832 | M191: 23056762 | N191: =M191-L191 -> 66930 | O191: =(M191-L191)/$D191 -> 30 | P191: 0
A192: 278 | B192: South Hadley | C192: 1944 | D192: 1941 | E192: -3 | F192: 22011471.95 | G192: 22921007.06 | H192: 468.5909875 | I192: 13763185 | J192: 14218746 | K192: 234.7042761 | L192: 8248287 | M192: 8702261 | N192: 453974 | O192: 233.8866564 | P192: 0.06
A193: 281 | B193: Springfield | C193: 29645 | D193: 29553 | E193: -92 | F193: 411555995.6 | G193: 432231053.6 | H193: 699.5925262 | I193: 40832170 | J193: 41873391 | K193: 35.23232836 | L193: 370723826 | M193: 390357663 | N193: 19633837 | O193: 664.3602003 | P193: 0.05
A194: 284 | B194: Stoneham | C194: 2464 | D194: 2450 | E194: -14 | F194: 26898862.89 | G194: 28037407.75 | H194: 464.7121891 | I194: 21654643 | J194: 22342143 | K194: 280.6122449 | L194: 5266351 | M194: 5695265 | N194: 428914 | O194: 175.0669388 | P194: 0.08
A195: 285 | B195: Stoughton | C195: 3643 | D195: 3644 | E195: 1 | F195: 42580952.19 | G195: 44489132.58 | H195: 523.6499415 | I195: 26370325 | J195: 27334226 | K195: 264.5172887 | L195: 16210627 | M195: 17154907 | N195: 944280 | O195: 259.1328211 | P195: 0.06
A196: 287 | B196: Sturbridge | C196: 844 | D196: 870 | E196: 26 | F196: 8568656.499 | G196: 9022974.4 | H196: 522.204484 | I196: 4956813 | J196: 5230042 | K196: 314.0563218 | L196: 3846634 | M196: 3872734 | N196: 26100 | O196: 30 | P196: 0.01
A197: 288 | B197: Sudbury | C197: 2665 | D197: 2690 | E197: 25 | F197: 25917962.07 | G197: 26931498.39 | H197: 376.7793015 | I197: 21382319 | J197: 22218486 | K197: 310.8427509 | L197: 4990518 | M197: 5071218 | N197: 80700 | O197: 30 | P197: 0.02
A198: 289 | B198: Sunderland | C198: 185 | D198: 171 | E198: -14 | F198: 2147362.319 | G198: 2047154.49 | H198: -586.0106934 | I198: 1649338 | J198: 1688903 | K198: 231.374269 | L198: 872838 | M198: 877968 | N198: 5130 | O198: 30 | P198: 0.01
A199: 290 | B199: Sutton | C199: 1326 | D199: 1321 | E199: -5 | F199: 13566435.92 | G199: 14062363.45 | H199: 375.4182629 | I199: 10402774 | J199: 10945369 | K199: 410.7456472 | L199: 5479815 | M199: 5519445 | N199: 39630 | O199: 30 | P199: 0.01
A200: 291 | B200: Swampscott | C200: 2134 | D200: 2155 | E200: 21 | F200: 22677171.82 | G200: 23606100.23 | H200: 431.0572683 | I200: 18340193 | J200: 18943611 | K200: 280.0083527 | L200: 4351751 | M200: 4662489 | N200: 310738 | O200: 144.1939675 | P200: 0.07
A201: 292 | B201: Swansea | C201: 2097 | D201: 2115 | E201: 18 | F201: 22235382.68 | G201: 24205593.46 | H201: 931.5417412 | I201: 13936344 | J201: 14549339 | K201: 289.8321513 | L201: 8449049 | M201: 9656254 | N201: 1207205 | O201: 570.7825059 | P201: 0.14
A202: 293 | B202: Taunton | C202: =VLOOKUP(A202,aidcalc,13,0) -> 8057 | D202: =VLOOKUP(A202,aidcalc,14,0) -> 8113 | E202: 56 | F202: =VLOOKUP(A202,aidcalc,4) -> 100148666.4 | G202: =VLOOKUP(A202,aidcalc,8) -> 105402384 | H202: 647.5678092 | I202: =SUMIF(dist1755,A202,pynetmin) -> 35674642 | J202: =VLOOKUP(A202,aidcalc,9) -> 37348967 | K202: 206.3755701 | L202: =VLOOKUP(A202,aidcalc,7) -> 64474024 | M202: =VLOOKUP(A202,aidcalc,39) -> 68053417 | N202: 3579393 | O202: 441.192284 | P202: 0.06
A203: 295 | B203: Tewksbury | C203: 3402 | D203: 3364 | E203: -38 | F203: 35772861.62 | G203: 36441174.38 | H203: 198.6660994 | I203: 29512611 | J203: 30063969 | K203: 163.8995244 | L203: 13326215 | M203: 13427135 | N203: 100920 | O203: 30 | P203: =ROUND(IF(F203>0,(M203-L203)/L203,100),2) -> 0.01
... 128 more rows

Sheet Rates
A3: Massachusetts Department of Elementary and Secondary Education
A4: Office of School Finance
A6: ="Foundation Budget Rates Per Pupil, "& CYr &" Chapter 70" -> Foundation Budget Rates Per Pupil, FY21 Chapter 70
C8: Administration | D8: Instructional Leadership | E8: Classroom & Specialist Teachers | F8: Other Teaching Services | G8: Professional Development | H8: Instructional Materials, Equipment & Technology | I8: Guidance & Psychological Services | J8: Pupil Services | K8: Operations & Maintenance | L8: Employee Benefits/Fixed Charges | M8: Special Education Tuition | N8: Total, All Categories
A10: 1 | B10: Pre-school | C10: 199.87 | D10: 360.97 | E10: 1655.18 | F10: 424.5 | G10: 65.46 | H10: 239.56 | I10: 130.76 | J10: 47.89 | K10: 459.63 | L10: 564.6 | M10: 0 | N10: 4148.42
A11: 2 | B11: Kindergarten half-day | C11: 199.87 | D11: 360.97 | E11: 1655.18 | F11: 424.5 | G11: 65.46 | H11: 239.56 | I11: 130.76 | J11: 47.89 | K11: 459.63 | L11: 564.6 | M11: 0 | N11: 4148.42
A12: 3 | B12: Kindergarten full-day | C12: 399.73 | D12: 721.95 | E12: 3310.35 | F12: 849.04 | G12: 130.98 | H12: 479.13 | I12: 261.54 | J12: 95.84 | K12: 919.24 | L12: 1129.19 | M12: 0 | N12: 8296.99
A13: 4 | B13: Elementary | C13: 399.73 | D13: 721.95 | E13: 3310.31 | F13: 849.04 | G13: 131 | H13: 479.13 | I13: 261.54 | J13: 143.73 | K13: 919.24 | L13: 1129.22 | M13: 0 | N13: 8344.89
A14: 5 | B14: Junior/Middle | C14: 399.73 | D14: 721.95 | E14: 2913.09 | F14: 611.18 | G14: 142.01 | H14: 479.13 | I14: 329.9 | J14: 234.79 | K14: 996.57 | L14: 1173.9 | M14: 0 | N14: 8002.25
A15: 6 | B15: High School | C15: 399.73 | D15: 721.95 | E15: 4283.93 | F15: 508.81 | G15: 137.7 | H15: 766.61 | I15: 401.93 | J15: 541.41 | K15: 966.28 | L15: 1056.9 | M15: 0 | N15: 9785.25
A16: 7 | B16: Vocational | C16: 399.73 | D16: 721.95 | E16: 7282.72 | F16: 508.81 | G16: 227.65 | H16: 1341.55 | I16: 401.93 | J16: 541.41 | K16: 1808.44 | L16: 1720.46 | M16: 0 | N16: 14954.65
A17: 8 | B17: Special Ed-in district | C17: 2758.81 | D17: 0 | E17: 9103.37 | F17: 8499.69 | G17: 439.14 | H17: 383.3 | I17: 0 | J17: 0 | K17: 3081.72 | L17: 3222.04 | M17: 0 | N17: 27488.07
A18: 9 | B18: Special Ed-tuitioned out | C18: 2953.05 | D18: 0 | E18: 0 | F18: 45.11 | G18: 0 | H18: 0 | I18: 0 | J18: 0 | K18: 0 | L18: 0 | M18: 28037.63 | N18: 31035.79
A19: 10 | B19: English learners PK-5 | C19: 93.44 | D19: 163.52 | E19: 1144.58 | F19: 163.52 | G19: 46.71 | H19: 116.79 | I19: 70.08 | J19: 23.36 | K19: 280.3 | L19: 256.95 | M19: 0 | N19: 2359.25
A20: 11 | B20: English learners 6-8 | C20: 98.13 | D20: 171.71 | E20: 1201.97 | F20: 171.71 | G20: 49.06 | H20: 122.65 | I20: 73.59 | J20: 24.53 | K20: 294.36 | L20: 269.83 | M20: 0 | N20: 2477.54
A21: 12 | B21: English learners high school/voc | C21: 83.18 | D21: 145.57 | E21: 1018.91 | F21: 145.57 | G21: 41.58 | H21: 103.96 | I21: 62.38 | J21: 20.8 | K21: 249.53 | L21: 228.73 | M21: 0 | N21: 2100.21
A22: 13 | B22: Low income 1: 0.00 - 5.99% | C22: 51.86 | D22: 245.72 | E22: 2398.74 | F22: 0 | G22: 116.38 | H22: 17.84 | I22: 97.13 | J22: 504.73 | K22: 0 | L22: 388.01 | M22: 0 | N22: 3820.41
A23: 14 | B23: Low income 2: 6.00 - 11.99% | C23: 52.54 | D23: 248.91 | E23: 2429.88 | F23: 0 | G23: 117.89 | H23: 18.07 | I23: 98.39 | J23: 511.28 | K23: 0 | L23: 393.05 | M23: 0 | N23: 3870.01
A24: 15 | B24: Low income 3: 12.00 - 17.99% | C24: 53.21 | D24: 252.11 | E24: 2461.02 | F24: 0 | G24: 119.4 | H24: 18.31 | I24: 99.66 | J24: 517.84 | K24: 0 | L24: 398.09 | M24: 0 | N24: 3919.64
A25: 16 | B25: Low income 4: 18.00 - 23.99% | C25: 53.88 | D25: 255.29 | E25: 2492.17 | F25: 0 | G25: 120.91 | H25: 18.53 | I25: 100.92 | J25: 524.38 | K25: 0 | L25: 403.13 | M25: 0 | N25: 3969.21
A26: 17 | B26: Low income 5: 24.00 - 29.99% | C26: 54.55 | D26: 258.49 | E26: 2523.31 | F26: 0 | G26: 122.42 | H26: 18.77 | I26: 102.18 | J26: 530.94 | K26: 0 | L26: 408.17 | M26: 0 | N26: 4018.83
A27: 18 | B27: Low income 6: 30.00 - 35.99% | C27: 58.42 | D27: 276.82 | E27: 2702.31 | F27: 0 | G27: 131.1 | H27: 20.1 | I27: 109.42 | J27: 568.6 | K27: 0 | L27: 437.12 | M27: 0 | N27: 4303.89
A28: 19 | B28: Low income 7: 36.00 - 41.99% | C28: 60.05 | D28: 284.49 | E28: 2777.15 | F28: 0 | G28: 134.73 | H28: 20.65 | I28: 112.45 | J28: 584.35 | K28: 0 | L28: 449.23 | M28: 0 | N28: 4423.1
A29: 20 | B29: Low income 8: 42.00 - 47.99% | C29: 61.66 | D29: 292.15 | E29: 2851.99 | F29: 0 | G29: 138.36 | H29: 21.21 | I29: 115.48 | J29: 600.1 | K29: 0 | L29: 461.33 | M29: 0 | N29: 4542.28
A30: 21 | B30: Low income 9: 48.00 - 53.99% | C30: 63.28 | D30: 299.82 | E30: 2926.85 | F30: 0 | G30: 141.99 | H30: 21.77 | I30: 118.52 | J30: 615.85 | K30: 0 | L30: 473.44 | M30: 0 | N30: 4661.52
A31: 22 | B31: Low income 10: 54.00 - 69.99% | C31: 64.9 | D31: 307.49 | E31: 3001.69 | F31: 0 | G31: 145.62 | H31: 22.33 | I31: 121.55 | J31: 631.6 | K31: 0 | L31: 485.55 | M31: 0 | N31: 4780.73
A32: 23 | B32: Low income 11: 70.00 - 79.99% | C32: 65.39 | D32: 309.8 | E32: 3024.23 | F32: 0 | G32: 146.72 | H32: 22.49 | I32: 122.46 | J32: 636.34 | K32: 0 | L32: 489.19 | M32: 0 | N32: 4816.62
A33: 24 | B33: Low income 12: 80.00%+ | C33: 65.87 | D33: 312.11 | E33: 3046.76 | F33: 0 | G33: 147.81 | H33: 22.66 | I33: 123.37 | J33: 641.08 | K33: 0 | L33: 492.84 | M33: 0 | N33: 4852.5

Sheet Townwide Contributions
A1: 1 | C1: From DOR, Dec 2018 3 | D1: 4 | E1: From DOR, Dec 2019 5 | F1: 6 | G1: 7 | H1: 8 | I1: =H1+1 -> 9 | J1: =I1+1 -> 10 | K1: 11 | L1: 12 | M1: 13 | N1: From DOR, Jan 2020 14 | O1: 15 | P1: 16 | Q1: 17 | R1: 18 | S1: 19 | T1: 20 | U1: 21 | V1: 22 | W1: 23 | X1: 24 | Y1: 25 | Z1: 26 | AA1: 27 | AB1: 28 | AC1: 29 | AD1: 30 | AE1: 29 | AF1: 30 | AG1: 31 | AH1: 32
B2: Return to Index | C2: 1. Calculation of effort goal (target local share) | N2: 2. Calculation of annual increments toward goal (required local contribution) | AA2: Analysis of Gap Closing
B3: More about the data | S3: Increments | T3: Thresholds
D4: uniform property percentage | F4: uniform income percentage | O4: 2020-01-08 | S4: =parameters!C18 -> 0.01 | T4: =parameters!C16 -> 2.5 | V4: Effort Reduction | W4: OPTION TO ACTIVATE THIS INCREMENT | AH4: -0.05
D5: =parameters!C29 -> 0.003741049384 | F5: =parameters!C30 -> 0.01478907676 | S5: =parameters!C19 -> 0.02 | T5: =parameters!C17 -> 7.5 | V5: =effortred -> 1 | W5: 1 | AH5: -0.1 | AM5: SUMMARY FOR EXPORT (reads from columns to the left)
J6: maximum | K6: target local | N6: required | Q6: preliminary | S6: percentage | T6: dollar | AH6: 0.02
D7: local effort | E7: DOR total | F7: local effort | G7: combined | J7: local contribution | K7: contribution | L7: target | N7: local | P7: preliminary | Q7: contribution | R7: shortfall | S7: increment | T7: increment | V7: excess effort | X7: required | AA7: Before | AB7: After implementation | AH7: 0.01 | AK7: MRGF revised from DOR 1/8/2020 | AO7: CEY% | AP7: target
C8: total | D8: from property | E8: income | F8: from income | G8: effort | H8: =CYr -> FY21 | I8: CEY % | J8: foundation pct= | K8: (lesser of max local | L8: local | N8: contribution | O8: mrgf | P8: contribution | Q8: percentage of | R8: from target | S8: toward | T8: toward | U8: excess | V8: times effort | W8: CEY% > 175% | X8: contribution | Y8: percentage | AA8: below effort | AB8: below effort | AC8: above effort | AD8: distance from | AF8: % distance | AG8: Points | AH8: x% of | AM8: 3 digit town code | AO8: found | AP8: local share | AQ8: RLC | AR8: distance from
A9: LEA | B9: Town | C9: EQV 2018 | D9: wealth | E9: 2017 | F9: wealth | G9: yield | H9: foundation | I9: Found | J9: =maxloc -> 0.825 | K9: or effort yield) | L9: share | N9: =PYr -> FY20 | O9: FY21 | P9: =CYr -> FY21 | Q9: foundation | R9: local share | S9: target | T9: target | U9: effort | V9: reduction % | W9: increment | X9: =CYr -> FY21 | Y9: of foundation | AA9: shortfall | AB9: shortfall | AC9: excess | AD9: target | AF9: from target | AG9: from target | AH9: the gap | AM9: =CYr -> FY21 | AN9: Town | AO9: =CYr -> FY21 | AP9: =CYr -> FY21 | AQ9: =CYr -> FY21 | AR9: target
A10: 1 | B10: Abington | C10: 2103633000 | D10: =D$5*C10 -> 7869794.939 | E10: 597856000 | F10: =E10*F$5 -> 8841738.278 | G10: =ROUND(D10+F10,0) -> 16711533 | H10: =(SUMIF(town1755,A10,found1755)/2) -> 26943827.3 | I10: =G10/H10 -> 0.6202360494 | J10: =ROUND(H10*maxloc,0) -> 22228658 | K10: =MIN(G10,J10) -> 16711533 | L10: =IF(H10>0, ROUND((K10*100/H10), 2), 0) -> 62.02 | N10: 15491948 | O10: 0.0568 | P10: =ROUND(N10*(1+O10),0) -> 16371891 | Q10: =P10*100/H10 -> 60.76304906 | R10: =IF(L10>Q10,L10-Q10,0) -> 1.256950942 | S10: =IF(AND(R10>$T$4,R10<=$T$5),$S$4,IF(R10>$T$5,$S$5,0)) -> 0 | T10: =ROUND(S10*N10,0) -> 0 | U10: =MAX(P10-K10,0) -> 0 | V10: =MAX(U10*(V$5),0) -> 0 | W10: =IF(AND(I10>1.75,$W$5=1),MAX(K10-(P10+T10),0),0) -> 0 | X10: =MIN(H10*parameters!C$22,ROUND(P10+T10-V10+W10,0)) -> 16371891 | Y10: =X10*100/H10 -> 60.76304906 | AA10: =IF(Q10<L10, P10-K10, 0) -> -339642 | AB10: =-1*MAX(K10-(P10+T10+W10),0) -> -339642 | AC10: =IF(Q10>L10, X10-K10,0) -> 0 | AD10: =Y10-L10 -> -1.256950942 | AF10: =(P10-K10)/K10 -> -0.02032380871 | AG10: =Q10-L10 -> -1.256950942 | AH10: =IF(AF10<$AH$5, $AH$6*(N10), IF(AND(AF10<$AH$4, AF10>$AH$5), $AH$7*(N10), 0)) -> 0 | AK10: 0.0568 | AM10: =TEXT(A10,"000") -> 001 | AN10: =B10 -> Abington | AO10: =I10 -> 0.6202360494 | AP10: =L10 -> 62.02 | AQ10: =X10 -> 16371891 | AR10: =AD10 -> -1.256950942
A11: 2 | B11: Acton | C11: 4597929200 | D11: 17201080.2 | E11: 1569766000 | F11: =E11*F$5 -> 23215389.88 | G11: 40416470 | H11: =(SUMIF(town1755,A11,found1755)/2) -> 49753146.03 | I11: =G11/H11 -> 0.812339987 | J11: 41046345 | K11: =MIN(G11,J11) -> 40416470 | L11: =IF(H11>0, ROUND((K11*100/H11), 2), 0) -> 81.23 | N11: 38190965 | O11: 0.0341 | P11: =ROUND(N11*(1+O11),0) -> 39493277 | Q11: =P11*100/H11 -> 79.37845172 | R11: =IF(L11>Q11,L11-Q11,0) -> 1.85154828 | S11: =IF(AND(R11>$T$4,R11<=$T$5),$S$4,IF(R11>$T$5,$S$5,0)) -> 0 | T11: =ROUND(S11*N11,0) -> 0 | U11: =MAX(P11-K11,0) -> 0 | V11: 0 | W11: =IF(AND(I11>1.75,$W$5=1),MAX(K11-(P11+T11),0),0) -> 0 | X11: =MIN(H11*parameters!C$22,ROUND(P11+T11-V11+W11,0)) -> 39493277 | Y11: =X11*100/H11 -> 79.37845172 | AA11: =IF(Q11<L11, P11-K11, 0) -> -923193 | AB11: =-1*MAX(K11-(P11+T11+W11),0) -> -923193 | AC11: =IF(Q11>L11, X11-K11,0) -> 0 | AD11: =Y11-L11 -> -1.85154828 | AF11: -0.02284199981 | AG11: =Q11-L11 -> -1.85154828 | AH11: 0 | AK11: 0.0341 | AM11: =TEXT(A11,"000") -> 002 | AN11: =B11 -> Acton | AO11: =I11 -> 0.812339987 | AP11: 81.23 | AQ11: 39493277 | AR11: =AD11 -> -1.85154828
A12: 3 | B12: Acushnet | C12: 1214098100 | D12: 4542000.949 | E12: 337691000 | F12: =E12*F$5 -> 4994138.122 | G12: 9536139 | H12: 16576510.35 | I12: 0.5752802491 | J12: 13675621 | K12: 9536139 | L12: 57.53 | N12: 8794566 | O12: 0.0481 | P12: 9217585 | Q12: 55.6063056 | R12: 1.923694402 | S12: 0 | T12: 0 | U12: 0 | V12: 0 | W12: 0 | X12: =MIN(H12*parameters!C$22,ROUND(P12+T12-V12+W12,0)) -> 9217585 | Y12: 55.6063056 | AA12: -318554 | AB12: -318554 | AC12: 0 | AD12: -1.923694402 | AF12: -0.03340492415 | AG12: -1.923694402 | AH12: 0 | AK12: 0.0481 | AM12: 003 | AN12: Acushnet | AO12: 0.5752802491 | AP12: 57.53 | AQ12: 9217585 | AR12: -1.923694402
A13: 4 | B13: Adams | C13: 525826800 | D13: 1967144.026 | E13: 191880000 | F13: 2837728.05 | G13: 4804872 | H13: 13735414.55 | I13: 0.3498163076 | J13: 11331717 | K13: 4804872 | L13: 34.98 | N13: 4595257 | O13: 0.0333 | P13: 4748279 | Q13: 34.56960825 | R13: 0.410391751 | S13: 0 | T13: 0 | U13: 0 | V13: 0 | W13: 0 | X13: =MIN(H13*parameters!C$22,ROUND(P13+T13-V13+W13,0)) -> 4748279 | Y13: 34.56960825 | AA13: -56593 | AB13: -56593 | AC13: 0 | AD13: -0.410391751 | AF13: -0.01177825341 | AG13: -0.410391751 | AH13: 0 | AK13: 0.0333 | AM13: 004 | AN13: Adams | AO13: 0.3498163076 | AP13: 34.98 | AQ13: 4748279 | AR13: -0.410391751
A14: 5 | B14: Agawam | C14: 3067519900 | D14: 11475743.43 | E14: 850720000 | F14: 12581363.39 | G14: 24057107 | H14: 42702195.18 | I14: 0.5633693279 | J14: 35229311 | K14: 24057107 | L14: 56.34 | N14: 22951211 | O14: 0.0133 | P14: 23256462 | Q14: 54.46198235 | R14: 1.878017655 | S14: 0 | T14: 0 | U14: 0 | V14: 0 | W14: 0 | X14: =MIN(H14*parameters!C$22,ROUND(P14+T14-V14+W14,0)) -> 23256462 | Y14: 54.46198235 | AA14: -800645 | AB14: -800645 | AC14: 0 | AD14: -1.878017655 | AF14: -0.03328101754 | AG14: -1.878017655 | AH14: 0 | AK14: 0.0133 | AM14: 005 | AN14: Agawam | AO14: 0.5633693279 | AP14: 56.34 | AQ14: 23256462 | AR14: -1.878017655
A15: 6 | B15: Alford | C15: 279820300 | D15: 1046821.561 | E15: 18140000 | F15: 268273.8525 | G15: 1315095 | H15: 251682.7313 | I15: 5.225209506 | J15: 207638 | K15: 207638 | L15: 82.5 | N15: 217041 | O15: 0.0184 | P15: 221035 | Q15: 87.82287084 | R15: 0 | S15: 0 | T15: 0 | U15: 13397 | V15: 13397 | W15: 0 | X15: =MIN(H15*parameters!C$22,ROUND(P15+T15-V15+W15,0)) -> 207638 | Y15: 82.49989936 | AA15: 0 | AB15: 0 | AC15: 0 | AD15: -0.000100638933 | AF15: 0.06452094511 | AG15: 5.322870839 | AH15: 0 | AK15: 0.0184 | AM15: 006 | AN15: Alford | AO15: 5.225209506 | AP15: 82.5 | AQ15: 207638 | AR15: -0.000100638933
A16: 7 | B16: Amesbury | C16: 2273556700 | D16: 8505487.892 | E16: 675197000 | F16: 9985540.264 | G16: 18491028 | H16: 24568133.6 | I16: 0.7526427649 | J16: 20268710 | K16: 18491028 | L16: 75.26 | N16: 16674583 | O16: 0.0387 | P16: 17319889 | Q16: 70.49737388 | R16: 4.762626116 | S16: 0.01 | T16: 166746 | U16: 0 | V16: 0 | W16: 0 | X16: =MIN(H16*parameters!C$22,ROUND(P16+T16-V16+W16,0)) -> 17486635 | Y16: 71.17608234 | AA16: -1171139 | AB16: -1004393 | AC16: 0 | AD16: -4.083917661 | AF16: -0.06333552683 | AG16: -4.762626116 | AH16: 166745.83 | AK16: 0.0387 | AM16: 007 | AN16: Amesbury | AO16: 0.7526427649 | AP16: 75.26 | AQ16: 17486635 | AR16: -4.083917661
A17: 8 | B17: Amherst | C17: 2516974800 | D17: 9416127.025 | E17: 772086000 | F17: 11418439.12 | G17: 20834566 | H17: 26795396.23 | I17: 0.7775427473 | J17: 22106202 | K17: 20834566 | L17: 77.75 | N17: 19374211 | O17: 0.0454 | P17: 20253800 | Q17: 75.5868651 | R17: 2.163134905 | S17: 0 | T17: 0 | U17: 0 | V17: 0 | W17: 0 | X17: =MIN(H17*parameters!C$22,ROUND(P17+T17-V17+W17,0)) -> 20253800 | Y17: 75.5868651 | AA17: -580766 | AB17: -580766 | AC17: 0 | AD17: -2.163134905 | AF17: -0.02787511868 | AG17: -2.163134905 | AH17: 0 | AK17: 0.0454 | AM17: 008 | AN17: Amherst | AO17: 0.7775427473 | AP17: 77.75 | AQ17: 20253800 | AR17: -2.163134905
A18: 9 | B18: Andover | C18: 8453211200 | D18: 31623880.55 | E18: 3006243000 | F18: 44459558.5 | G18: 76083439 | H18: 65460138.19 | I18: 1.162286563 | J18: 54004614 | K18: 54004614 | L18: 82.5 | N18: 52687464 | O18: 0.0528 | P18: 55469362 | Q18: 84.73761824 | R18: 0 | S18: 0 | T18: 0 | U18: 1464748 | V18: 1464748 | W18: 0 | X18: =MIN(H18*parameters!C$22,ROUND(P18+T18-V18+W18,0)) -> 54004614 | Y18: 82.49999999 | AA18: 0 | AB18: 0 | AC18: 0 | AD18: -1.247565251e-08 | AF18: 0.02712264548 | AG18: 2.23761824 | AH18: 0 | AK18: 0.0528 | AM18: 009 | AN18: Andover | AO18: 1.162286563 | AP18: 82.5 | AQ18: 54004614 | AR18: -1.247565251e-08
A19: 10 | B19: Arlington | C19: 10614146500 | D19: 39708046.23 | E19: 2783875000 | F19: 41170941.08 | G19: 80878987 | H19: 69193491.03 | I19: 1.168881434 | J19: 57084630 | K19: 57084630 | L19: 82.5 | N19: 50042766 | O19: 0.0378 | P19: 51934383 | Q19: 75.05674627 | R19: 7.443253732 | S19: 0.01 | T19: 500428 | U19: 0 | V19: 0 | W19: 0 | X19: =MIN(H19*parameters!C$22,ROUND(P19+T19-V19+W19,0)) -> 52434811 | Y19: 75.77997614 | AA19: -5150247 | AB19: -4649819 | AC19: 0 | AD19: -6.720023855 | AF19: -0.0902212557 | AG19: -7.443253732 | AH19: 500427.66 | AK19: 0.0378 | AM19: 010 | AN19: Arlington | AO19: 1.168881434 | AP19: 82.5 | AQ19: 52434811 | AR19: -6.720023855
A20: 11 | B20: Ashburnham | C20: 640811300 | D20: 2397306.719 | E20: 227762000 | F20: 3368389.702 | G20: 5765696 | H20: 12576208.27 | I20: 0.4584606009 | J20: 10375372 | K20: 5765696 | L20: 45.85 | N20: 5376055 | O20: 0.0428 | P20: 5606150 | Q20: 44.57742652 | R20: 1.272573477 | S20: 0 | T20: 0 | U20: 0 | V20: 0 | W20: 0 | X20: =MIN(H20*parameters!C$22,ROUND(P20+T20-V20+W20,0)) -> 5606150 | Y20: 44.57742652 | AA20: -159546 | AB20: -159546 | AC20: 0 | AD20: -1.272573477 | AF20: -0.0276715942 | AG20: -1.272573477 | AH20: 0 | AK20: 0.0428 | AM20: 011 | AN20: Ashburnham | AO20: 0.4584606009 | AP20: 45.85 | AQ20: 5606150 | AR20: -1.272573477
A21: 12 | B21: Ashby | C21: 319398200 | D21: 1194884.439 | E21: 107391000 | F21: 1588213.743 | G21: 2783098 | H21: 4514042.686 | I21: 0.6165422425 | J21: 3724085 | K21: 2783098 | L21: 61.65 | N21: 2513082 | O21: 0.0341 | P21: 2598778 | Q21: 57.57096645 | R21: 4.079033553 | S21: 0.01 | T21: 25131 | U21: 0 | V21: 0 | W21: 0 | X21: =MIN(H21*parameters!C$22,ROUND(P21+T21-V21+W21,0)) -> 2623909 | Y21: 58.12769579 | AA21: -184320 | AB21: -159189 | AC21: 0 | AD21: -3.522304214 | AF21: -0.06622835416 | AG21: -4.079033553 | AH21: 25130.82 | AK21: 0.0341 | AM21: 012 | AN21: Ashby | AO21: 0.6165422425 | AP21: 61.65 | AQ21: 2623909 | AR21: -3.522304214
A22: 13 | B22: Ashfield | C22: 248466800 | D22: 929526.5691 | E22: 48226000 | F22: 713218.0161 | G22: 1642745 | H22: 1872317.877 | I22: 0.8773857369 | J22: 1544662 | K22: 1544662 | L22: 82.5 | N22: 1542348 | O22: 0.0407 | P22: 1605122 | Q22: 85.72913926 | R22: 0 | S22: 0 | T22: 0 | U22: 60460 | V22: 60460 | W22: 0 | X22: =MIN(H22*parameters!C$22,ROUND(P22+T22-V22+W22,0)) -> 1544662 | Y22: 82.49998674 | AA22: 0 | AB22: 0 | AC22: 0 | AD22: -1.326051107e-05 | AF22: 0.03914124902 | AG22: 3.229139265 | AH22: 0 | AK22: 0.0407 | AM22: 013 | AN22: Ashfield | AO22: 0.8773857369 | AP22: 82.5 | AQ22: 1544662 | AR22: -1.326051107e-05
A23: 14 | B23: Ashland | C23: 2809780000 | D23: 10511525.74 | E23: 897367000 | F23: 13271229.45 | G23: 23782755 | H23: 31582062.37 | I23: 0.7530462931 | J23: 26055201 | K23: 23782755 | L23: 75.3 | N23: 22226325 | O23: 0.0508 | P23: 23355422 | Q23: 73.95154162 | R23: 1.348458382 | S23: 0 | T23: 0 | U23: 0 | V23: 0 | W23: 0 | X23: =MIN(H23*parameters!C$22,ROUND(P23+T23-V23+W23,0)) -> 23355422 | Y23: 73.95154162 | AA23: -427333 | AB23: -427333 | AC23: 0 | AD23: -1.348458382 | AF23: -0.01796818745 | AG23: -1.348458382 | AH23: 0 | AK23: 0.0508 | AM23: 014 | AN23: Ashland | AO23: 0.7530462931 | AP23: 75.3 | AQ23: 23355422 | AR23: -1.348458382
A24: 15 | B24: Athol | C24: 730647700 | D24: 2733389.128 | E24: 239184000 | F24: 3537310.537 | G24: 6270700 | H24: 22278023.26 | I24: 0.2814747039 | J24: 18379369 | K24: 6270700 | L24: 28.15 | N24: 3166947 | O24: 0.0444 | P24: 3307559 | Q24: 14.84673466 | R24: 13.30326534 | S24: 0.02 | T24: 63339 | U24: 0 | V24: 0 | W24: 0 | X24: =MIN(H24*parameters!C$22,ROUND(P24+T24-V24+W24,0)) -> 3370898 | Y24: 15.13104624 | AA24: -2963141 | AB24: -2899802 | AC24: 0 | AD24: -13.01895376 | AF24: -0.4725375157 | AG24: -13.30326534 | AH24: 63338.94 | AK24: 0.0444 | AM24: 015 | AN24: Athol | AO24: 0.2814747039 | AP24: 28.15 | AQ24: 3370898 | AR24: -13.01895376
A25: 16 | B25: Attleboro | C25: 4710804300 | D25: 17623351.52 | E25: 1476322000 | F25: 21833439.39 | G25: 39456791 | H25: 81331083.25 | I25: 0.4851379008 | J25: 67098144 | K25: 39456791 | L25: 48.51 | N25: 36857248 | O25: 0.0376 | P25: 38243081 | Q25: 47.0214824 | R25: 1.488517597 | S25: 0 | T25: 0 | U25: 0 | V25: 0 | W25: 0 | X25: =MIN(H25*parameters!C$22,ROUND(P25+T25-V25+W25,0)) -> 38243081 | Y25: 47.0214824 | AA25: -1213710 | AB25: -1213710 | AC25: 0 | AD25: -1.488517597 | AF25: -0.0307604843 | AG25: -1.488517597 | AH25: 0 | AK25: 0.0376 | AM25: 016 | AN25: Attleboro | AO25: 0.4851379008 | AP25: 48.51 | AQ25: 38243081 | AR25: -1.488517597
A26: 17 | B26: Auburn | C26: 2175990900 | D26: 8140489.416 | E26: 577559000 | F26: 8541564.387 | G26: 16682054 | H26: 29436850.16 | I26: 0.566706489 | J26: 24285401 | K26: 16682054 | L26: 56.67 | N26: 15893997 | O26: 0.04 | P26: 16529757 | Q26: 56.15328036 | R26: 0.5167196373 | S26: 0 | T26: 0 | U26: 0 | V26: 0 | W26: 0 | X26: =MIN(H26*parameters!C$22,ROUND(P26+T26-V26+W26,0)) -> 16529757 | Y26: 56.15328036 | AA26: -152297 | AB26: -152297 | AC26: 0 | AD26: -0.5167196373 | AF26: -0.009129391381 | AG26: -0.5167196373 | AH26: 0 | AK26: 0.04 | AM26: 017 | AN26: Auburn | AO26: 0.566706489 | AP26: 56.67 | AQ26: 16529757 | AR26: -0.5167196373
A27: 18 | B27: Avon | C27: 855860900 | D27: 3201817.893 | E27: 159994000 | F27: 2366163.548 | G27: 5567981 | H27: 8409006.339 | I27: 0.6621449402 | J27: 6937430 | K27: 5567981 | L27: 66.21 | N27: 5251681 | O27: 0.0429 | P27: 5476978 | Q27: 65.1322853 | R27: 1.077714697 | S27: 0 | T27: 0 | U27: 0 | V27: 0 | W27: 0 | X27: =MIN(H27*parameters!C$22,ROUND(P27+T27-V27+W27,0)) -> 5476978 | Y27: 65.1322853 | AA27: -91003 | AB27: -91003 | AC27: 0 | AD27: -1.077714697 | AF27: -0.01634398537 | AG27: -1.077714697 | AH27: 0 | AK27: 0.0429 | AM27: 018 | AN27: Avon | AO27: 0.6621449402 | AP27: 66.21 | AQ27: 5476978 | AR27: -1.077714697
A28: 19 | B28: Ayer | C28: 1219304900 | D28: 4561479.845 | E28: 281209000 | F28: 4158821.488 | G28: 8720301 | H28: 12070898.43 | I28: 0.7224235256 | J28: 9958491 | K28: 8720301 | L28: 72.24 | N28: 8260758 | O28: 0.058 | P28: 8739882 | Q28: 72.40456915 | R28: 0 | S28: 0 | T28: 0 | U28: 19581 | V28: 19581 | W28: 0 | X28: =MIN(H28*parameters!C$22,ROUND(P28+T28-V28+W28,0)) -> 8720301 | Y28: 72.24235256 | AA28: 0 | AB28: 0 | AC28: 0 | AD28: 0.002352556672 | AF28: 0.002245450014 | AG28: 0.1645691482 | AH28: 0 | AK28: 0.058 | AM28: 019 | AN28: Ayer | AO28: 0.7224235256 | AP28: 72.24 | AQ28: 8720301 | AR28: 0.002352556672
A29: 20 | B29: Barnstable | C29: 14932044600 | D29: 55861516.25 | E29: 1838787000 | F29: 27193962.1 | G29: 83055478 | H29: 69916797.84 | I29: 1.187918792 | J29: 57681358 | K29: 57681358 | L29: 82.5 | N29: 53862128 | O29: 0.0329 | P29: 55634192 | Q29: 79.5719966 | R29: 2.928003401 | S29: 0.01 | T29: 538621 | U29: 0 | V29: 0 | W29: 0 | X29: =MIN(H29*parameters!C$22,ROUND(P29+T29-V29+W29,0)) -> 56172813 | Y29: 80.34237084 | AA29: -2047166 | AB29: -1508545 | AC29: 0 | AD29: -2.157629161 | AF29: -0.03549094666 | AG29: -2.928003401 | AH29: 0 | AK29: 0.0329 | AM29: 020 | AN29: Barnstable | AO29: 1.187918792 | AP29: 82.5 | AQ29: 56172813 | AR29: -2.157629161
A30: 21 | B30: Barre | C30: 458372300 | D30: 1714793.411 | E30: 141187000 | F30: 2088025.381 | G30: 3802819 | H30: 9419693.38 | I30: 0.4037094252 | J30: 7771247 | K30: 3802819 | L30: 40.37 | N30: 3667194 | O30: 0.0438 | P30: 3827817 | Q30: 40.63632271 | R30: 0 | S30: 0 | T30: 0 | U30: 24998 | V30: 24998 | W30: 0 | X30: =MIN(H30*parameters!C$22,ROUND(P30+T30-V30+W30,0)) -> 3802819 | Y30: 40.37094252 | AA30: 0 | AB30: 0 | AC30: 0 | AD30: 0.0009425209241 | AF30: 0.006573544521 | AG30: 0.2663227089 | AH30: 0 | AK30: 0.0438 | AM30: 021 | AN30: Barre | AO30: 0.4037094252 | AP30: 40.37 | AQ30: 3802819 | AR30: 0.0009425209241
A31: 22 | B31: Becket | C31: 523623000 | D31: 1958899.502 | E31: 50942000 | F31: 753385.1485 | G31: 2712285 | H31: 2385769.418 | I31: 1.136859656 | J31: 1968260 | K31: 1968260 | L31: 82.5 | N31: 1950831 | O31: 0.0335 | P31: 2016184 | Q31: 84.50875365 | R31: 0 | S31: 0 | T31: 0 | U31: 47924 | V31: 47924 | W31: 0 | X31: =MIN(H31*parameters!C$22,ROUND(P31+T31-V31+W31,0)) -> 1968260 | Y31: 82.50000965 | AA31: 0 | AB31: 0 | AC31: 0 | AD31: 9.653965492e-06 | AF31: 0.02434840925 | AG31: 2.008753653 | AH31: 0 | AK31: 0.0335 | AM31: 022 | AN31: Becket | AO31: 1.136859656 | AP31: 82.5 | AQ31: 1968260 | AR31: 9.653965492e-06
A32: 23 | B32: Bedford | C32: 3957585000 | D32: 14805520.93 | E32: 1026747000 | F32: 15184640.2 | G32: 29990161 | H32: 31598193.71 | I32: 0.9491099798 | J32: 26068510 | K32: 26068510 | L32: 82.5 | N32: 24450598 | O32: 0.0457 | P32: 25567990 | Q32: 80.91598599 | R32: 1.584014008 | S32: 0 | T32: 0 | U32: 0 | V32: 0 | W32: 0 | X32: =MIN(H32*parameters!C$22,ROUND(P32+T32-V32+W32,0)) -> 25567990 | Y32: 80.91598599 | AA32: -500520 | AB32: -500520 | AC32: 0 | AD32: -1.584014008 | AF32: -0.01920017676 | AG32: -1.584014008 | AH32: 0 | AK32: 0.0457 | AM32: 023 | AN32: Bedford | AO32: 0.9491099798 | AP32: 82.5 | AQ32: 25567990 | AR32: -1.584014008
A33: 24 | B33: Belchertown | C33: 1554339300 | D33: 5814860.081 | E33: 526637000 | F33: 7788475.02 | G33: 13603335 | H33: 26538398.42 | I33: 0.5125906539 | J33: 21894179 | K33: 13603335 | L33: 51.26 | N33: 12964553 | O33: 0.0434 | P33: 13527215 | Q33: 50.97223572 | R33: 0.2877642787 | S33: 0 | T33: 0 | U33: 0 | V33: 0 | W33: 0 | X33: =MIN(H33*parameters!C$22,ROUND(P33+T33-V33+W33,0)) -> 13527215 | Y33: 50.97223572 | AA33: -76120 | AB33: -76120 | AC33: 0 | AD33: -0.2877642787 | AF33: -0.005595686646 | AG33: -0.2877642787 | AH33: 0 | AK33: 0.0434 | AM33: 024 | AN33: Belchertown | AO33: 0.5125906539 | AP33: 51.26 | AQ33: 13527215 | AR33: -0.2877642787
A34: 25 | B34: Bellingham | C34: 2504502600 | D34: 9369467.909 | E34: 611911000 | F34: 9049598.752 | G34: 18419067 | H34: 26599641.07 | I34: 0.6924554716 | J34: 21944704 | K34: 18419067 | L34: 69.25 | N34: 17423701 | O34: 0.0457 | P34: 18219964 | Q34: 68.49702954 | R34: 0.7529704556 | S34: 0 | T34: 0 | U34: 0 | V34: 0 | W34: 0 | X34: =MIN(H34*parameters!C$22,ROUND(P34+T34-V34+W34,0)) -> 18219964 | Y34: 68.49702954 | AA34: -199103 | AB34: -199103 | AC34: 0 | AD34: -0.7529704556 | AF34: -0.01080961376 | AG34: -0.7529704556 | AH34: 0 | AK34: 0.0457 | AM34: 025 | AN34: Bellingham | AO34: 0.6924554716 | AP34: 69.25 | AQ34: 18219964 | AR34: -0.7529704556
A35: 26 | B35: Belmont | C35: 7850565400 | D35: 29369352.85 | E35: 2512075000 | F35: 37151270.01 | G35: =ROUND(D35+F35,0) -> 66520623 | H35: =(SUMIF(town1755,A35,found1755)/2) -> 50111563.27 | I35: 1.327450565 | J35: 41342040 | K35: 41342040 | L35: 82.5 | N35: 38777588 | O35: 0.0486 | P35: 40662179 | Q35: 81.14330575 | R35: =IF(L35>Q35,L35-Q35,0) -> 1.35669425 | S35: =IF(AND(R35>$T$4,R35<=$T$5),$S$4,IF(R35>$T$5,$S$5,0)) -> 0 | T35: =ROUND(S35*N35,0) -> 0 | U35: 0 | V35: 0 | W35: 0 | X35: =MIN(H35*parameters!C$22,ROUND(P35+T35-V35+W35,0)) -> 40662179 | Y35: 81.14330575 | AA35: -679861 | AB35: -679861 | AC35: 0 | AD35: -1.35669425 | AF35: -0.01644478599 | AG35: -1.35669425 | AH35: 0 | AK35: 0.0486 | AM35: 026 | AN35: Belmont | AO35: 1.327450565 | AP35: 82.5 | AQ35: 40662179 | AR35: -1.35669425
A36: 27 | B36: Berkley | C36: 880793800 | D36: 3295093.103 | E36: 260329000 | F36: 3850025.565 | G36: 7145119 | H36: 13187805.89 | I36: 0.5417974044 | J36: 10879940 | K36: 7145119 | L36: 54.18 | N36: 6460312 | O36: 0.0497 | P36: 6781390 | Q36: 51.42166981 | R36: 2.758330186 | S36: 0.01 | T36: 64603 | U36: 0 | V36: 0 | W36: 0 | X36: =MIN(H36*parameters!C$22,ROUND(P36+T36-V36+W36,0)) -> 6845993 | Y36: 51.91153902 | AA36: -363729 | AB36: -299126 | AC36: 0 | AD36: -2.26846098 | AF36: -0.05090594013 | AG36: -2.758330186 | AH36: 64603.12 | AK36: 0.0497 | AM36: 027 | AN36: Berkley | AO36: 0.5417974044 | AP36: 54.18 | AQ36: 6845993 | AR36: -2.26846098
A37: 28 | B37: Berlin | C37: 642333300 | D37: 2403000.596 | E37: 161955000 | F37: 2395164.927 | G37: 4798166 | H37: 4061608.808 | I37: 1.181346168 | J37: 3350827 | K37: 3350827 | L37: 82.5 | N37: 3260181 | O37: 0.0503 | P37: 3424168 | Q37: 84.30570648 | R37: 0 | S37: 0 | T37: 0 | U37: 73341 | V37: 73341 | W37: 0 | X37: =MIN(H37*parameters!C$22,ROUND(P37+T37-V37+W37,0)) -> 3350827 | Y37: 82.49999344 | AA37: 0 | AB37: 0 | AC37: 0 | AD37: -6.564531262e-06 | AF37: 0.02188743257 | AG37: 1.805706478 | AH37: 0 | AK37: 0.0503 | AM37: 028 | AN37: Berlin | AO37: 1.181346168 | AP37: 82.5 | AQ37: 3350827 | AR37: -6.564531262e-06
A38: 29 | B38: Bernardston | C38: 216624000 | D38: 810401.0818 | E38: 63761000 | F38: 942966.3236 | G38: 1753367 | H38: 3249199.861 | I38: 0.5396303937 | J38: 2680590 | K38: 1753367 | L38: 53.96 | N38: 1654097 | O38: 0.0352 | P38: 1712321 | Q38: 52.69977451 | R38: 1.26022549 | S38: 0 | T38: 0 | U38: 0 | V38: 0 | W38: 0 | X38: =MIN(H38*parameters!C$22,ROUND(P38+T38-V38+W38,0)) -> 1712321 | Y38: 52.69977451 | AA38: -41046 | AB38: -41046 | AC38: 0 | AD38: -1.26022549 | AF38: -0.02340981666 | AG38: -1.26022549 | AH38: 0 | AK38: 0.0352 | AM38: 029 | AN38: Bernardston | AO38: 0.5396303937 | AP38: 53.96 | AQ38: 1712321 | AR38: -1.26022549
A39: 30 | B39: Beverly | C39: 6939374700 | D39: 25960543.45 | E39: 1843316000 | F39: 27260941.83 | G39: 53221485 | H39: 54522674.64 | I39: 0.9761348898 | J39: 44981207 | K39: 44981207 | L39: 82.5 | N39: 41780643 | O39: 0.0391 | P39: 43414266 | Q39: 79.62607537 | R39: 2.87392463 | S39: 0.01 | T39: 417806 | U39: 0 | V39: 0 | W39: 0 | X39: =MIN(H39*parameters!C$22,ROUND(P39+T39-V39+W39,0)) -> 43832072 | Y39: 80.39237307 | AA39: -1566941 | AB39: -1149135 | AC39: 0 | AD39: -2.107626933 | AF39: -0.03483545917 | AG39: -2.87392463 | AH39: 0 | AK39: 0.0391 | AM39: 030 | AN39: Beverly | AO39: 0.9761348898 | AP39: 82.5 | AQ39: 43832072 | AR39: -2.107626933
A40: 31 | B40: Billerica | C40: 6791697200 | D40: 25408074.63 | E40: 1648973000 | F40: 24386788.28 | G40: 49794863 | H40: 62235920.33 | I40: 0.8000984437 | J40: 51344634 | K40: 49794863 | L40: 80.01 | N40: 46503507 | O40: 0.045 | P40: 48596165 | Q40: 78.08378946 | R40: 1.926210543 | S40: 0 | T40: 0 | U40: 0 | V40: 0 | W40: 0 | X40: =MIN(H40*parameters!C$22,ROUND(P40+T40-V40+W40,0)) -> 48596165 | Y40: 78.08378946 | AA40: -1198698 | AB40: -1198698 | AC40: 0 | AD40: -1.926210543 | AF40: -0.02407272413 | AG40: -1.926210543 | AH40: 0 | AK40: 0.045 | AM40: 031 | AN40: Billerica | AO40: 0.8000984437 | AP40: 80.01 | AQ40: 48596165 | AR40: -1.926210543
A41: 32 | B41: Blackstone | C41: 972102100 | D41: 3636681.962 | E41: 295393000 | F41: 4368589.753 | G41: 8005272 | H41: 16320572.22 | I41: 0.4905019193 | J41: 13464472 | K41: 8005272 | L41: 49.05 | N41: 7470588 | O41: 0.0469 | P41: 7820959 | Q41: 47.92086266 | R41: 1.129137344 | S41: 0 | T41: 0 | U41: 0 | V41: 0 | W41: 0 | X41: =MIN(H41*parameters!C$22,ROUND(P41+T41-V41+W41,0)) -> 7820959 | Y41: 47.92086266 | AA41: -184313 | AB41: -184313 | AC41: 0 | AD41: -1.129137344 | AF41: -0.02302395222 | AG41: -1.129137344 | AH41: 0 | AK41: 0.0469 | AM41: 032 | AN41: Blackstone | AO41: 0.4905019193 | AP41: 49.05 | AQ41: 7820959 | AR41: -1.129137344
A42: 33 | B42: Blandford | C42: 174764000 | D42: 653800.7545 | E42: 38466000 | F42: 568876.6268 | G42: 1222677 | H42: 1424310.573 | I42: 0.858434265 | J42: 1175056 | K42: 1175056 | L42: 82.5 | N42: 1095373 | O42: 0.062 | P42: 1163286 | Q42: 81.67361964 | R42: 0.8263803612 | S42: 0 | T42: 0 | U42: 0 | V42: 0 | W42: 0 | X42: =MIN(H42*parameters!C$22,ROUND(P42+T42-V42+W42,0)) -> 1163286 | Y42: 81.67361964 | AA42: -11770 | AB42: -11770 | AC42: 0 | AD42: -0.8263803612 | AF42: -0.01001654389 | AG42: -0.8263803612 | AH42: 0 | AK42: 0.062 | AM42: 033 | AN42: Blandford | AO42: 0.858434265 | AP42: 82.5 | AQ42: 1163286 | AR42: -0.8263803612
A43: 34 | B43: Bolton | C43: 1087848200 | D43: 4069693.838 | E43: 409226000 | F43: 6052074.728 | G43: 10121769 | H43: 11254153.25 | I43: 0.8993807683 | J43: 9284676 | K43: 9284676 | L43: 82.5 | N43: 8945113 | O43: 0.0465 | P43: 9361061 | Q43: 83.17872335 | R43: 0 | S43: 0 | T43: 0 | U43: 76385 | V43: 76385 | W43: 0 | X43: =MIN(H43*parameters!C$22,ROUND(P43+T43-V43+W43,0)) -> 9284676 | Y43: 82.49999614 | AA43: 0 | AB43: 0 | AC43: 0 | AD43: -3.85962781e-06 | AF43: 0.008226996828 | AG43: 0.6787233469 | AH43: 0 | AK43: 0.0465 | AM43: 034 | AN43: Bolton | AO43: 0.8993807683 | AP43: 82.5 | AQ43: 9284676 | AR43: -3.85962781e-06
A44: 35 | B44: Boston | C44: 179793040700 | D44: 672614644.2 | E44: 35247155000 | F44: 521272881 | G44: 1193887525 | H44: 978722271.9 | I44: 1.219843013 | J44: 807445874 | K44: 807445874 | L44: 82.5 | N44: 749907338 | O44: 0.063 | P44: 797151500 | Q44: 81.44818228 | R44: 1.051817722 | S44: 0 | T44: 0 | U44: 0 | V44: 0 | W44: 0 | X44: =MIN(H44*parameters!C$22,ROUND(P44+T44-V44+W44,0)) -> 797151500 | Y44: 81.44818228 | AA44: -10294374 | AB44: -10294374 | AC44: 0 | AD44: -1.051817722 | AF44: -0.01274930535 | AG44: -1.051817722 | AH44: 0 | AK44: 0.063 | AM44: 035 | AN44: Boston | AO44: 1.219843013 | AP44: 82.5 | AQ44: 797151500 | AR44: -1.051817722
A45: 36 | B45: Bourne | C45: 4814391000 | D45: 18010874.48 | E45: 734962000 | F45: 10869409.44 | G45: 28880284 | H45: 26160427.68 | I45: 1.103968343 | J45: 21582353 | K45: 21582353 | L45: 82.5 | N45: 20436036 | O45: 0.0469 | P45: 21394486 | Q45: 81.78186633 | R45: 0.7181336679 | S45: 0 | T45: 0 | U45: 0 | V45: 0 | W45: 0 | X45: =MIN(H45*parameters!C$22,ROUND(P45+T45-V45+W45,0)) -> 21394486 | Y45: 81.78186633 | AA45: -187867 | AB45: -187867 | AC45: 0 | AD45: -0.7181336679 | AF45: -0.008704657921 | AG45: -0.7181336679 | AH45: 0 | AK45: 0.0469 | AM45: 036 | AN45: Bourne | AO45: 1.103968343 | AP45: 82.5 | AQ45: 21394486 | AR45: -0.7181336679
A46: 37 | B46: Boxborough | C46: 1177906300 | D46: 4406605.638 | E46: 367508000 | F46: 5435104.024 | G46: 9841710 | H46: 9568044.084 | I46: 1.028602075 | J46: 7893636 | K46: 7893636 | L46: 82.5 | N46: 7456353 | O46: 0.0443 | P46: 7786669 | Q46: 81.38203516 | R46: =IF(L46>Q46,L46-Q46,0) -> 1.117964842 | S46: 0 | T46: 0 | U46: 0 | V46: 0 | W46: 0 | X46: =MIN(H46*parameters!C$22,ROUND(P46+T46-V46+W46,0)) -> 7786669 | Y46: 81.38203516 | AA46: -106967 | AB46: -106967 | AC46: 0 | AD46: -1.117964842 | AF46: -0.01355104289 | AG46: -1.117964842 | AH46: 0 | AK46: 0.0443 | AM46: 037 | AN46: Boxborough | AO46: 1.028602075 | AP46: 82.5 | AQ46: 7786669 | AR46: -1.117964842
A47: 38 | B47: Boxford | C47: 1868910500 | D47: 6991686.475 | E47: 881249000 | F47: 13032859.11 | G47: 20024546 | H47: 15283118 | I47: 1.310239573 | J47: 12608572 | K47: 12608572 | L47: 82.5 | N47: 12223832 | O47: 0.0319 | P47: 12613772 | Q47: 82.53402217 | R47: 0 | S47: 0 | T47: 0 | U47: 5200 | V47: 5200 | W47: 0 | X47: =MIN(H47*parameters!C$22,ROUND(P47+T47-V47+W47,0)) -> 12608572 | Y47: 82.4999977 | AA47: 0 | AB47: 0 | AC47: 0 | AD47: -2.304489811e-06 | AF47: 0.0004124178376 | AG47: 0.03402216617 | AH47: 0 | AK47: 0.0319 | AM47: 038 | AN47: Boxford | AO47: 1.310239573 | AP47: 82.5 | AQ47: 12608572 | AR47: -2.304489811e-06
A48: 39 | B48: Boylston | C48: 766982300 | D48: 2869318.661 | E48: 266618000 | F48: 3943034.069 | G48: 6812353 | H48: 7158186.641 | I48: 0.9516869762 | J48: 5905504 | K48: 5905504 | L48: 82.5 | N48: 5464404 | O48: 0.0424 | P48: 5696095 | Q48: 79.57455268 | R48: 2.925447319 | S48: 0.01 | T48: 54644 | U48: 0 | V48: 0 | W48: 0 | X48: =MIN(H48*parameters!C$22,ROUND(P48+T48-V48+W48,0)) -> 5750739 | Y48: 80.33793037 | AA48: -209409 | AB48: -154765 | AC48: 0 | AD48: -2.162069627 | AF48: -0.0354599709 | AG48: -2.925447319 | AH48: 0 | AK48: 0.0424 | AM48: 039 | AN48: Boylston | AO48: 0.9516869762 | AP48: 82.5 | AQ48: 5750739 | AR48: -2.162069627
A49: 40 | B49: Braintree | C49: 7187550000 | D49: 26888979.5 | E49: 1616164000 | F49: 23901573.46 | G49: 50790553 | H49: 68147140.47 | I49: 0.7453071787 | J49: 56221391 | K49: 50790553 | L49: 74.53 | N49: 46738391 | O49: 0.0286 | P49: 48075109 | Q49: 70.54604004 | R49: 3.983959965 | S49: 0.01 | T49: 467384 | U49: 0 | V49: 0 | W49: 0 | X49: =MIN(H49*parameters!C$22,ROUND(P49+T49-V49+W49,0)) -> 48542493 | Y49: 71.23188539 | AA49: -2715444 | AB49: -2248060 | AC49: 0 | AD49: -3.298114606 | AF49: -0.05346356438 | AG49: -3.983959965 | AH49: 467383.91 | AK49: 0.0286 | AM49: 040 | AN49: Braintree | AO49: 0.7453071787 | AP49: 74.53 | AQ49: 48542493 | AR49: -3.298114606
A50: 41 | B50: Brewster | C50: 4100984500 | D50: 15341985.54 | E50: 356227000 | F50: 5268268.449 | G50: 20610254 | H50: 12552644.33 | I50: 1.64190536 | J50: 10355932 | K50: 10355932 | L50: 82.5 | N50: 9888704 | O50: 0.0203 | P50: 10089445 | Q50: 80.37704834 | R50: 2.122951658 | S50: 0 | T50: 0 | U50: 0 | V50: 0 | W50: 0 | X50: =MIN(H50*parameters!C$22,ROUND(P50+T50-V50+W50,0)) -> 10089445 | Y50: 80.37704834 | AA50: -266487 | AB50: -266487 | AC50: 0 | AD50: -2.122951658 | AF50: -0.02573278774 | AG50: -2.122951658 | AH50: 0 | AK50: 0.0203 | AM50: 041 | AN50: Brewster | AO50: 1.64190536 | AP50: 82.5 | AQ50: 10089445 | AR50: -2.122951658
A51: 42 | B51: Bridgewater | C51: 3016111400 | D51: 11283421.69 | E51: 897950000 | F51: 13279851.48 | G51: 24563273 | H51: 38296722.18 | I51: 0.6413936129 | J51: 31594796 | K51: 24563273 | L51: 64.14 | N51: 23074032 | O51: 0.0424 | P51: 24052371 | Q51: 62.80529934 | R51: 1.334700663 | S51: 0 | T51: 0 | U51: 0 | V51: 0 | W51: 0 | X51: =MIN(H51*parameters!C$22,ROUND(P51+T51-V51+W51,0)) -> 24052371 | Y51: 62.80529934 | AA51: -510902 | AB51: -510902 | AC51: 0 | AD51: -1.334700663 | AF51: -0.02079942685 | AG51: -1.334700663 | AH51: 0 | AK51: 0.0424 | AM51: 042 | AN51: Bridgewater | AO51: 0.6413936129 | AP51: 64.14 | AQ51: 24052371 | AR51: -1.334700663
A52: 43 | B52: Brimfield | C52: 439485600 | D52: 1644137.333 | E52: 142891000 | F52: 2113225.968 | G52: 3757363 | H52: 6357732.876 | I52: 0.5909910141 | J52: 5245130 | K52: 3757363 | L52: 59.1 | N52: 3427516 | O52: 0.0222 | P52: 3503607 | Q52: 55.10780444 | R52: 3.992195562 | S52: 0.01 | T52: 34275 | U52: 0 | V52: 0 | W52: 0 | X52: =MIN(H52*parameters!C$22,ROUND(P52+T52-V52+W52,0)) -> 3537882 | Y52: 55.64691171 | AA52: -253756 | AB52: -219481 | AC52: 0 | AD52: -3.453088294 | AF52: -0.06753566264 | AG52: -3.992195562 | AH52: 34275.16 | AK52: 0.0222 | AM52: 043 | AN52: Brimfield | AO52: 0.5909910141 | AP52: 59.1 | AQ52: 3537882 | AR52: -3.453088294
A53: 44 | B53: Brockton | C53: 7675101300 | D53: 28712932.99 | E53: 2101878000 | F53: 31084835.09 | G53: 59797768 | H53: 273606667.8 | I53: 0.2185537672 | J53: 225725501 | K53: 59797768 | L53: 21.86 | N53: 49395844 | O53: 0.0322 | P53: 50986390 | Q53: 18.63492231 | R53: 3.225077686 | S53: 0.01 | T53: 493958 | U53: 0 | V53: 0 | W53: 0 | X53: =MIN(H53*parameters!C$22,ROUND(P53+T53-V53+W53,0)) -> 51480348 | Y53: 18.81545812 | AA53: -8811378 | AB53: -8317420 | AC53: 0 | AD53: -3.044541881 | AF53: -0.1473529581 | AG53: -3.225077686 | AH53: 987916.88 | AK53: 0.0322 | AM53: 044 | AN53: Brockton | AO53: 0.2185537672 | AP53: 21.86 | AQ53: 51480348 | AR53: -3.044541881
A54: 45 | B54: Brookfield | C54: 276658600 | D54: 1034993.485 | E54: 97125000 | F54: 1436389.081 | G54: 2471383 | H54: 5970308.845 | I54: 0.4139455871 | J54: 4925505 | K54: 2471383 | L54: 41.39 | N54: 2378066 | O54: 0.0363 | P54: 2464390 | Q54: 41.27742909 | R54: 0.1125709103 | S54: 0 | T54: 0 | U54: 0 | V54: 0 | W54: 0 | X54: =MIN(H54*parameters!C$22,ROUND(P54+T54-V54+W54,0)) -> 2464390 | Y54: 41.27742909 | AA54: -6993 | AB54: -6993 | AC54: 0 | AD54: -0.1125709103 | AF54: -0.002829589748 | AG54: -0.1125709103 | AH54: 0 | AK54: 0.0363 | AM54: 045 | AN54: Brookfield | AO54: 0.4139455871 | AP54: 41.39 | AQ54: 2464390 | AR54: -0.1125709103
A55: 46 | B55: Brookline | C55: 24547879100 | D55: 91834827.98 | E55: 5594220000 | F55: 82733349.02 | G55: 174568177 | H55: 84686980.94 | I55: 2.061334281 | J55: 69866759 | K55: 69866759 | L55: 82.5 | N55: 68684369 | O55: 0.0371 | P55: 71232559 | Q55: 84.11276233 | R55: 0 | S55: 0 | T55: 0 | U55: 1365800 | V55: 1365800 | W55: 0 | X55: =MIN(H55*parameters!C$22,ROUND(P55+T55-V55+W55,0)) -> 69866759 | Y55: 82.49999967 | AA55: 0 | AB55: 0 | AC55: 0 | AD55: -3.254243808e-07 | AF55: 0.01954863829 | AG55: 1.612762327 | AH55: 0 | AK55: 0.0371 | AM55: 046 | AN55: Brookline | AO55: 2.061334281 | AP55: 82.5 | AQ55: 69866759 | AR55: -3.254243808e-07
A56: 47 | B56: Buckland | C56: 216985500 | D56: 811753.4711 | E56: 40307737.5 | F56: 596114.2241 | G56: 1407868 | H56: 2433249.813 | I56: 0.5785957497 | J56: 2007431 | K56: 1407868 | L56: 57.86 | N56: 1340110 | O56: 0.0297 | P56: 1379911 | Q56: 56.71061773 | R56: 1.14938227 | S56: 0 | T56: 0 | U56: 0 | V56: 0 | W56: 0 | X56: =MIN(H56*parameters!C$22,ROUND(P56+T56-V56+W56,0)) -> 1379911 | Y56: 56.71061773 | AA56: -27957 | AB56: -27957 | AC56: 0 | AD56: -1.14938227 | AF56: -0.01985768552 | AG56: -1.14938227 | AH56: 0 | AK56: 0.0297 | AM56: 047 | AN56: Buckland | AO56: 0.5785957497 | AP56: 57.86 | AQ56: 1379911 | AR56: -1.14938227
A57: 48 | B57: Burlington | C57: 7011898700 | D57: 26231859.31 | E57: 1266081000 | F57: 18724169.1 | G57: 44956028 | H57: 42576779.64 | I57: 1.05588136 | J57: 35125843 | K57: 35125843 | L57: 82.5 | N57: 33976306 | O57: 0.0529 | P57: 35773653 | Q57: 84.02150961 | R57: 0 | S57: 0 | T57: 0 | U57: 647810 | V57: 647810 | W57: 0 | X57: =MIN(H57*parameters!C$22,ROUND(P57+T57-V57+W57,0)) -> 35125843 | Y57: 82.49999951 | AA57: 0 | AB57: 0 | AC57: 0 | AD57: -4.85174084e-07 | AF57: 0.0184425467 | AG57: 1.521509609 | AH57: 0 | AK57: 0.0529 | AM57: 048 | AN57: Burlington | AO57: 1.05588136 | AP57: 82.5 | AQ57: 35125843 | AR57: -4.85174084e-07
A58: 49 | B58: Cambridge | C58: 49449365600 | D58: 184992518.7 | E58: 7188046000 | F58: 106304564.1 | G58: 291297083 | H58: 103658808 | I58: 2.810152736 | J58: 85518517 | K58: 85518517 | L58: 82.5 | N58: 78997547 | O58: 0.0493 | P58: 82892126 | Q58: 79.96631216 | R58: 2.533687843 | S58: 0.01 | T58: 789975 | U58: 0 | V58: 0 | W58: 1836416 | X58: =MIN(H58*parameters!C$22,ROUND(P58+T58-V58+W58,0)) -> 85518517 | Y58: 82.50000037 | AA58: -2626391 | AB58: 0 | AC58: 0 | AD58: 3.699000644e-07 | AF58: -0.03071137213 | AG58: -2.533687843 | AH58: 0 | AK58: 0.0493 | AM58: 049 | AN58: Cambridge | AO58: 2.810152736 | AP58: 82.5 | AQ58: 85518517 | AR58: 3.699000644e-07
A59: 50 | B59: Canton | C59: 5111198800 | D59: 19121247.12 | E59: 1468020000 | F59: 21710660.47 | G59: 40831908 | H59: 39100667.4 | I59: 1.044276497 | J59: 32258051 | K59: 32258051 | L59: 82.5 | N59: 30888516 | O59: 0.0484 | P59: 32383520 | Q59: 82.82088812 | R59: 0 | S59: 0 | T59: 0 | U59: 125469 | V59: 125469 | W59: 0 | X59: =MIN(H59*parameters!C$22,ROUND(P59+T59-V59+W59,0)) -> 32258051 | Y59: 82.50000101 | AA59: 0 | AB59: 0 | AC59: 0 | AD59: 1.012178132e-06 | AF59: 0.00388954063 | AG59: 0.3208881181 | AH59: 0 | AK59: 0.0484 | AM59: 050 | AN59: Canton | AO59: 1.044276497 | AP59: 82.5 | AQ59: 32258051 | AR59: 1.012178132e-06
A60: 51 | B60: Carlisle | C60: 1544199600 | D60: 5776926.962 | E60: 649881000 | F60: 9611139.997 | G60: 15388067 | H60: 9675526.117 | I60: 1.590411396 | J60: 7982309 | K60: 7982309 | L60: 82.5 | N60: 7739201 | O60: 0.0395 | P60: 8044899 | Q60: 83.1468894 | R60: 0 | S60: 0 | T60: 0 | U60: 62590 | V60: 62590 | W60: 0 | X60: =MIN(H60*parameters!C$22,ROUND(P60+T60-V60+W60,0)) -> 7982309 | Y60: 82.49999952 | AA60: 0 | AB60: 0 | AC60: 0 | AD60: -4.848785693e-07 | AF60: 0.007841089589 | AG60: 0.6468894025 | AH60: 0 | AK60: 0.0395 | AM60: 051 | AN60: Carlisle | AO60: 1.590411396 | AP60: 82.5 | AQ60: 7982309 | AR60: -4.848785693e-07
A61: 52 | B61: Carver | C61: 1394846000 | D61: 5218187.769 | E61: 369318000 | F61: 5461872.253 | G61: 10680060 | H61: 19830993.1 | I61: 0.5385539669 | J61: 16360569 | K61: 10680060 | L61: 53.86 | N61: 9851699 | O61: 0.04 | P61: 10245767 | Q61: 51.66542568 | R61: 2.194574319 | S61: 0 | T61: 0 | U61: 0 | V61: 0 | W61: 0 | X61: =MIN(H61*parameters!C$22,ROUND(P61+T61-V61+W61,0)) -> 10245767 | Y61: 51.66542568 | AA61: -434293 | AB61: -434293 | AC61: 0 | AD61: -2.194574319 | AF61: -0.04066391013 | AG61: -2.194574319 | AH61: 0 | AK61: 0.04 | AM61: 052 | AN61: Carver | AO61: 0.5385539669 | AP61: 53.86 | AQ61: 10245767 | AR61: -2.194574319
A62: 53 | B62: Charlemont | C62: 142686500 | D62: 533797.2429 | E62: 26593000 | F62: 393285.9184 | G62: 927083 | H62: 1764863.94 | I62: 0.5252999843 | J62: 1456013 | K62: 927083 | L62: 52.53 | N62: 883461 | O62: 0.039 | P62: 917916 | Q62: 52.01058162 | R62: 0.519418379 | S62: 0 | T62: 0 | U62: 0 | V62: 0 | W62: 0 | X62: =MIN(H62*parameters!C$22,ROUND(P62+T62-V62+W62,0)) -> 917916 | Y62: 52.01058162 | AA62: -9167 | AB62: -9167 | AC62: 0 | AD62: -0.519418379 | AF62: -0.009888003555 | AG62: -0.519418379 | AH62: 0 | AK62: 0.039 | AM62: 053 | AN62: Charlemont | AO62: 0.5252999843 | AP62: 52.53 | AQ62: 917916 | AR62: -0.519418379
A63: 54 | B63: Charlton | C63: 1610444700 | D63: 6024753.153 | E63: 505236000 | F63: 7471973.988 | G63: 13496727 | H63: 24627483.12 | I63: 0.5480351742 | J63: 20317674 | K63: 13496727 | L63: 54.8 | N63: 12642068 | O63: 0.0536 | P63: 13319683 | Q63: 54.0846295 | R63: 0.7153705001 | S63: 0 | T63: 0 | U63: 0 | V63: 0 | W63: 0 | X63: =MIN(H63*parameters!C$22,ROUND(P63+T63-V63+W63,0)) -> 13319683 | Y63: 54.0846295 | AA63: -177044 | AB63: -177044 | AC63: 0 | AD63: -0.7153705001 | AF63: -0.01311755065 | AG63: -0.7153705001 | AH63: 0 | AK63: 0.0536 | AM63: 054 | AN63: Charlton | AO63: 0.5480351742 | AP63: 54.8 | AQ63: 13319683 | AR63: -0.7153705001
A64: 55 | B64: Chatham | C64: 7374670100 | D64: 27589005.03 | E64: 359411000 | F64: 5315356.869 | G64: 32904362 | H64: 5303271.381 | I64: 6.204540488 | J64: 4375199 | K64: 4375199 | L64: 82.5 | N64: 4312491 | O64: 0.042 | P64: 4493616 | Q64: 84.73290686 | R64: 0 | S64: 0 | T64: 0 | U64: 118417 | V64: 118417 | W64: 0 | X64: =MIN(H64*parameters!C$22,ROUND(P64+T64-V64+W64,0)) -> 4375199 | Y64: 82.50000209 | AA64: 0 | AB64: 0 | AC64: 0 | AD64: 2.08610544e-06 | AF64: 0.02706551176 | AG64: 2.232906863 | AH64: 0 | AK64: 0.042 | AM64: 055 | AN64: Chatham | AO64: 6.204540488 | AP64: 82.5 | AQ64: 4375199 | AR64: 2.08610544e-06
A65: 56 | B65: Chelmsford | C65: 5849923100 | D65: 21884851.21 | E65: 1989752000 | F65: 29426595.07 | G65: 51311446 | H65: 58263180.17 | I65: 0.8806839216 | J65: 48067124 | K65: 48067124 | L65: 82.5 | N65: 44988269 | O65: 0.0377 | P65: 46684327 | Q65: 80.1266372 | R65: 2.373362799 | S65: 0 | T65: 0 | U65: 0 | V65: 0 | W65: 0 | X65: =MIN(H65*parameters!C$22,ROUND(P65+T65-V65+W65,0)) -> 46684327 | Y65: 80.1266372 | AA65: -1382797 | AB65: -1382797 | AC65: 0 | AD65: -2.373362799 | AF65: -0.02876804113 | AG65: -2.373362799 | AH65: 0 | AK65: 0.0377 | AM65: 056 | AN65: Chelmsford | AO65: 0.8806839216 | AP65: 82.5 | AQ65: 46684327 | AR65: -2.373362799
A66: 57 | B66: Chelsea | C66: 3534210300 | D66: 13221655.27 | E66: 763876000 | F66: 11297020.8 | G66: 24518676 | H66: 117456841.8 | I66: 0.2087462563 | J66: 96901894 | K66: 24518676 | L66: 20.87 | N66: 19512023 | O66: 0.0564 | P66: 20612501 | Q66: 17.54899986 | R66: 3.321000138 | S66: 0.01 | T66: 195120 | U66: 0 | V66: 0 | W66: 0 | X66: =MIN(H66*parameters!C$22,ROUND(P66+T66-V66+W66,0)) -> 20807621 | Y66: 17.71512045 | AA66: -3906175 | AB66: -3711055 | AC66: 0 | AD66: -3.154879547 | AF66: -0.1593142713 | AG66: -3.321000138 | AH66: 390240.46 | AK66: 0.0564 | AM66: 057 | AN66: Chelsea | AO66: 0.2087462563 | AP66: 20.87 | AQ66: 20807621 | AR66: -3.154879547
A67: 58 | B67: Cheshire | C67: 308072500 | D67: 1152514.436 | E67: 96183000 | F67: 1422457.77 | G67: 2574972 | H67: 5307101.294 | I67: 0.4851936786 | J67: 4378359 | K67: 2574972 | L67: 48.52 | N67: 2455886 | O67: 0.0346 | P67: 2540860 | Q67: 47.87660644 | R67: 0.6433935623 | S67: 0 | T67: 0 | U67: 0 | V67: 0 | W67: 0 | X67: =MIN(H67*parameters!C$22,ROUND(P67+T67-V67+W67,0)) -> 2540860 | Y67: 47.87660644 | AA67: -34112 | AB67: -34112 | AC67: 0 | AD67: -0.6433935623 | AF67: -0.01324752269 | AG67: -0.6433935623 | AH67: 0 | AK67: 0.0346 | AM67: 058 | AN67: Cheshire | AO67: 0.4851936786 | AP67: 48.52 | AQ67: 2540860 | AR67: -0.6433935623
A68: 59 | B68: Chester | C68: 125043400 | D68: 467793.5345 | E68: 32139000 | F68: 475306.1381 | G68: 943100 | H68: 1789914.721 | I68: 0.5268966107 | J68: 1476680 | K68: 943100 | L68: 52.69 | N68: 892810 | O68: 0.0332 | P68: 922451 | Q68: 51.53603069 | R68: 1.153969313 | S68: 0 | T68: 0 | U68: 0 | V68: 0 | W68: 0 | X68: =MIN(H68*parameters!C$22,ROUND(P68+T68-V68+W68,0)) -> 922451 | Y68: 51.53603069 | AA68: -20649 | AB68: -20649 | AC68: 0 | AD68: -1.153969313 | AF68: -0.02189481497 | AG68: -1.153969313 | AH68: 0 | AK68: 0.0332 | AM68: 059 | AN68: Chester | AO68: 0.5268966107 | AP68: 52.69 | AQ68: 922451 | AR68: -1.153969313
A69: 60 | B69: Chesterfield | C69: 157870800 | D69: 590602.4591 | E69: 26806000 | F69: 396435.9918 | G69: 987038 | H69: 1359546.698 | I69: 0.7260052205 | J69: 1121626 | K69: 987038 | L69: 72.6 | N69: 964639 | O69: 0.0357 | P69: 999077 | Q69: 73.48603779 | R69: 0 | S69: 0 | T69: 0 | U69: 12039 | V69: 12039 | W69: 0 | X69: =MIN(H69*parameters!C$22,ROUND(P69+T69-V69+W69,0)) -> 987038 | Y69: 72.60052205 | AA69: 0 | AB69: 0 | AC69: 0 | AD69: 0.000522052217 | AF69: 0.01219709879 | AG69: 0.8860377922 | AH69: 0 | AK69: 0.0357 | AM69: 060 | AN69: Chesterfield | AO69: 0.7260052205 | AP69: 72.6 | AQ69: 987038 | AR69: 0.000522052217
A70: 61 | B70: Chicopee | C70: 3998413400 | D70: 14958261.99 | E70: 1144719000 | F70: 16929337.16 | G70: 31887599 | H70: 104550852.1 | I70: 0.30499607 | J70: 86254453 | K70: 31887599 | L70: 30.5 | N70: 30513907 | O70: 0.0395 | P70: 31719206 | Q70: 30.33854375 | R70: 0.1614562464 | S70: 0 | T70: 0 | U70: 0 | V70: 0 | W70: 0 | X70: =MIN(H70*parameters!C$22,ROUND(P70+T70-V70+W70,0)) -> 31719206 | Y70: 30.33854375 | AA70: -168393 | AB70: -168393 | AC70: 0 | AD70: -0.1614562464 | AF70: -0.005280830332 | AG70: -0.1614562464 | AH70: 0 | AK70: 0.0395 | AM70: 061 | AN70: Chicopee | AO70: 0.30499607 | AP70: 30.5 | AQ70: 31719206 | AR70: -0.1614562464
A71: 62 | B71: Chilmark | C71: 3358805700 | D71: 12565457.99 | E71: 64047000 | F71: 947195.9995 | G71: 13512654 | H71: 1405958.045 | I71: 9.610993763 | J71: 1159915 | K71: 1159915 | L71: 82.5 | N71: 1101810 | O71: 0.0427 | P71: 1148857 | Q71: 81.71346252 | R71: 0.7865374808 | S71: 0 | T71: 0 | U71: 0 | V71: 0 | W71: 11058 | X71: =MIN(H71*parameters!C$22,ROUND(P71+T71-V71+W71,0)) -> 1159915 | Y71: 82.49997248 | AA71: -11058 | AB71: 0 | AC71: 0 | AD71: -2.752474502e-05 | AF71: -0.009533457193 | AG71: -0.7865374808 | AH71: 0 | AK71: 0.0427 | AM71: 062 | AN71: Chilmark | AO71: 9.610993763 | AP71: 82.5 | AQ71: 1159915 | AR71: -2.752474502e-05
A72: 63 | B72: Clarksburg | C72: 128418100 | D72: 480418.4539 | E72: 39862000 | F72: 589522.178 | G72: 1069941 | H72: 2951618.47 | I72: 0.3624929885 | J72: 2435085 | K72: 1069941 | L72: 36.25 | N72: 955083 | O72: 0.0347 | P72: 988224 | Q72: 33.48074997 | R72: 2.769250025 | S72: 0.01 | T72: 9551 | U72: 0 | V72: 0 | W72: 0 | X72: =MIN(H72*parameters!C$22,ROUND(P72+T72-V72+W72,0)) -> 997775 | Y72: 33.80433516 | AA72: -81717 | AB72: -72166 | AC72: 0 | AD72: -2.445664843 | AF72: -0.07637523938 | AG72: -2.769250025 | AH72: 9550.83 | AK72: 0.0347 | AM72: 063 | AN72: Clarksburg | AO72: 0.3624929885 | AP72: 36.25 | AQ72: 997775 | AR72: -2.445664843
A73: 64 | B73: Clinton | C73: 1385425600 | D73: 5182945.587 | E73: 446983000 | F73: 6610465.899 | G73: 11793411 | H73: 26586847.72 | I73: 0.4435806427 | J73: 21934149 | K73: 11793411 | L73: 44.36 | N73: 10670037 | O73: 0.0658 | P73: 11372125 | Q73: 42.77349884 | R73: 1.586501164 | S73: 0 | T73: 0 | U73: 0 | V73: 0 | W73: 0 | X73: =MIN(H73*parameters!C$22,ROUND(P73+T73-V73+W73,0)) -> 11372125 | Y73: 42.77349884 | AA73: -421286 | AB73: -421286 | AC73: 0 | AD73: -1.586501164 | AF73: -0.03572215028 | AG73: -1.586501164 | AH73: 0 | AK73: 0.0658 | AM73: 064 | AN73: Clinton | AO73: 0.4435806427 | AP73: 44.36 | AQ73: 11372125 | AR73: -1.586501164
A74: 65 | B74: Cohasset | C74: 3075090800 | D74: 11504066.54 | E74: 1087503000 | F74: 16083165.35 | G74: 27587232 | H74: 15820606.22 | I74: 1.743753155 | J74: =ROUND(H74*maxloc,0) -> 13052000 | K74: 13052000 | L74: 82.5 | N74: 12979941 | O74: 0.0528 | P74: 13665282 | Q74: 86.37647516 | R74: 0 | S74: 0 | T74: 0 | U74: 613282 | V74: =MAX(U74*(V$5),0) -> 613282 | W74: 0 | X74: =MIN(H74*parameters!C$22,ROUND(P74+T74-V74+W74,0)) -> 13052000 | Y74: 82.49999918 | AA74: 0 | AB74: 0 | AC74: 0 | AD74: -8.227777499e-07 | AF74: =(P74-K74)/K74 -> 0.04698758811 | AG74: 3.876475158 | AH74: =IF(AF74<$AH$5, $AH$6*(N74), IF(AND(AF74<$AH$4, AF74>$AH$5), $AH$7*(N74), 0)) -> 0 | AK74: 0.0528 | AM74: 065 | AN74: Cohasset | AO74: 1.743753155 | AP74: =L74 -> 82.5 | AQ74: =X74 -> 13052000 | AR74: -8.227777499e-07
A75: 66 | B75: Colrain | C75: 179350200 | D75: =D$5*C75 -> 670957.9552 | E75: 46782000 | F75: 691862.5892 | G75: =ROUND(D75+F75,0) -> 1362821 | H75: =(SUMIF(town1755,A75,found1755)/2) -> 2403695.3 | I75: =G75/H75 -> 0.5669691161 | J75: 1983049 | K75: =MIN(G75,J75) -> 1362821 | L75: =IF(H75>0, ROUND((K75*100/H75), 2), 0) -> 56.7 | N75: 1245591 | O75: 0.0322 | P75: =ROUND(N75*(1+O75),0) -> 1285699 | Q75: =P75*100/H75 -> 53.48843507 | R75: =IF(L75>Q75,L75-Q75,0) -> 3.211564934 | S75: =IF(AND(R75>$T$4,R75<=$T$5),$S$4,IF(R75>$T$5,$S$5,0)) -> 0.01 | T75: =ROUND(S75*N75,0) -> 12456 | U75: =MAX(P75-K75,0) -> 0 | V75: 0 | W75: =IF(AND(I75>1.75,$W$5=1),MAX(K75-(P75+T75),0),0) -> 0 | X75: =MIN(H75*parameters!C$22,ROUND(P75+T75-V75+W75,0)) -> 1298155 | Y75: =X75*100/H75 -> 54.00663719 | AA75: =IF(Q75<L75, P75-K75, 0) -> -77122 | AB75: =-1*MAX(K75-(P75+T75+W75),0) -> -64666 | AC75: =IF(Q75>L75, X75-K75,0) -> 0 | AD75: =Y75-L75 -> -2.693362814 | AF75: -0.05658997036 | AG75: =Q75-L75 -> -3.211564934 | AH75: 12455.91 | AK75: 0.0322 | AM75: =TEXT(A75,"000") -> 066 | AN75: =B75 -> Colrain | AO75: =I75 -> 0.5669691161 | AP75: 56.7 | AQ75: 1298155 | AR75: =AD75 -> -2.693362814
A76: 67 | B76: Concord | C76: 6572447900 | D76: 24587852.17 | E76: 2581841000 | F76: =E76*F$5 -> 38183044.74 | G76: 62770897 | H76: 34207506.34 | I76: 1.835003592 | J76: 28221193 | K76: 28221193 | L76: 82.5 | N76: 26682639 | O76: 0.0482 | P76: 27968742 | Q76: 81.76200195 | R76: 0.7379980496 | S76: 0 | T76: 0 | U76: 0 | V76: 0 | W76: 252451 | X76: =MIN(H76*parameters!C$22,ROUND(P76+T76-V76+W76,0)) -> 28221193 | Y76: 82.50000079 | AA76: -252451 | AB76: 0 | AC76: 0 | AD76: 7.90497154e-07 | AF76: -0.0089454404 | AG76: -0.7379980496 | AH76: 0 | AK76: 0.0482 | AM76: 067 | AN76: Concord | AO76: 1.835003592 | AP76: 82.5 | AQ76: 28221193 | AR76: 7.90497154e-07
A77: 68 | B77: Conway | C77: 270902400 | D77: 1013459.257 | E77: 66086000 | F77: 977350.9271 | G77: 1990810 | H77: 2281921.347 | I77: 0.8724270899 | J77: 1882585 | K77: 1882585 | L77: 82.5 | N77: 1918900 | O77: 0.0398 | P77: 1995272 | Q77: 87.43824597 | R77: 0 | S77: 0 | T77: 0 | U77: 112687 | V77: 112687 | W77: 0 | X77: =MIN(H77*parameters!C$22,ROUND(P77+T77-V77+W77,0)) -> 1882585 | Y77: 82.49999513 | AA77: 0 | AB77: 0 | AC77: 0 | AD77: -4.870642357e-06 | AF77: 0.05985758943 | AG77: 4.938245966 | AH77: 0 | AK77: 0.0398 | AM77: 068 | AN77: Conway | AO77: 0.8724270899 | AP77: 82.5 | AQ77: 1882585 | AR77: -4.870642357e-06
A78: 69 | B78: Cummington | C78: 130242300 | D78: 487242.8762 | E78: 27225000 | F78: 402632.6149 | G78: 889875 | H78: 786166.0581 | I78: 1.131917349 | J78: 648587 | K78: 648587 | L78: 82.5 | N78: 726441 | O78: 0.0359 | P78: 752520 | Q78: 95.72023522 | R78: 0 | S78: 0 | T78: 0 | U78: 103933 | V78: 103933 | W78: 0 | X78: =MIN(H78*parameters!C$22,ROUND(P78+T78-V78+W78,0)) -> 648587 | Y78: 82.50000026 | AA78: 0 | AB78: 0 | AC78: 0 | AD78: 2.647140747e-07 | AF78: 0.1602452716 | AG78: 13.22023522 | AH78: 0 | AK78: 0.0359 | AM78: 069 | AN78: Cummington | AO78: 1.131917349 | AP78: 82.5 | AQ78: 648587 | AR78: 2.647140747e-07
A79: 70 | B79: Dalton | C79: 616299000 | D79: 2305604.994 | E79: 213940000 | F79: 3163975.083 | G79: 5469580 | H79: 10867793.95 | I79: 0.5032833734 | J79: 8965930 | K79: 5469580 | L79: 50.33 | N79: 5271023 | O79: 0.0334 | P79: 5447075 | Q79: 50.1212576 | R79: 0.2087424034 | S79: 0 | T79: 0 | U79: 0 | V79: 0 | W79: 0 | X79: =MIN(H79*parameters!C$22,ROUND(P79+T79-V79+W79,0)) -> 5447075 | Y79: 50.1212576 | AA79: -22505 | AB79: -22505 | AC79: 0 | AD79: -0.2087424034 | AF79: -0.004114575525 | AG79: -0.2087424034 | AH79: 0 | AK79: 0.0334 | AM79: 070 | AN79: Dalton | AO79: 0.5032833734 | AP79: 50.33 | AQ79: 5447075 | AR79: -0.2087424034
A80: 71 | B80: Danvers | C80: 5183902300 | D80: 19393234.51 | E80: 1229185000 | F80: 18178511.32 | G80: 37571746 | H80: 41135111.92 | I80: 0.9133741041 | J80: 33936467 | K80: 33936467 | L80: 82.5 | N80: 32065025 | O80: 0.0344 | P80: 33168062 | Q80: 80.63199649 | R80: 1.868003511 | S80: 0 | T80: 0 | U80: 0 | V80: 0 | W80: 0 | X80: =MIN(H80*parameters!C$22,ROUND(P80+T80-V80+W80,0)) -> 33168062 | Y80: 80.63199649 | AA80: -768405 | AB80: -768405 | AC80: 0 | AD80: -1.868003511 | AF80: -0.02264245715 | AG80: -1.868003511 | AH80: 0 | AK80: 0.0344 | AM80: 071 | AN80: Danvers | AO80: 0.9133741041 | AP80: 82.5 | AQ80: 33168062 | AR80: -1.868003511
A81: 72 | B81: Dartmouth | C81: 5885151300 | D81: 22016641.65 | E81: 1239186000 | F81: 18326416.88 | G81: 40343059 | H81: 45794690.84 | I81: 0.8809549374 | J81: 37780620 | K81: 37780620 | L81: 82.5 | N81: 36929057 | O81: 0.0354 | P81: 38236346 | Q81: 83.49515042 | R81: 0 | S81: 0 | T81: 0 | U81: 455726 | V81: 455726 | W81: 0 | X81: =MIN(H81*parameters!C$22,ROUND(P81+T81-V81+W81,0)) -> 37780620 | Y81: 82.50000013 | AA81: 0 | AB81: 0 | AC81: 0 | AD81: 1.255283735e-07 | AF81: 0.01206242777 | AG81: 0.9951504184 | AH81: 0 | AK81: 0.0354 | AM81: 072 | AN81: Dartmouth | AO81: 0.8809549374 | AP81: 82.5 | AQ81: 37780620 | AR81: 1.255283735e-07
A82: 73 | B82: Dedham | C82: 5319862700 | D82: 19901869.08 | E82: 1651934000 | F82: 24430578.74 | G82: 44332448 | H82: 33511215.84 | I82: 1.322913744 | J82: 27646753 | K82: 27646753 | L82: 82.5 | N82: 25814973 | O82: 0.0376 | P82: 26785616 | Q82: 79.93030194 | R82: 2.569698062 | S82: 0.01 | T82: 258150 | U82: 0 | V82: 0 | W82: 0 | X82: =MIN(H82*parameters!C$22,ROUND(P82+T82-V82+W82,0)) -> 27043766 | Y82: 80.70064104 | AA82: -861137 | AB82: -602987 | AC82: 0 | AD82: -1.799358958 | AF82: -0.03114785306 | AG82: -2.569698062 | AH82: 0 | AK82: 0.0376 | AM82: 073 | AN82: Dedham | AO82: 1.322913744 | AP82: 82.5 | AQ82: 27043766 | AR82: -1.799358958
A83: 74 | B83: Deerfield | C83: 711485200 | D83: 2661701.269 | E83: 222279000 | F83: 3287301.194 | G83: 5949002 | H83: 6985572.219 | I83: 0.8516126973 | J83: 5763097 | K83: 5763097 | L83: 82.5 | N83: 5347914 | O83: 0.0484 | P83: 5606753 | Q83: 80.26190016 | R83: 2.238099844 | S83: 0 | T83: 0 | U83: 0 | V83: 0 | W83: 0 | X83: =MIN(H83*parameters!C$22,ROUND(P83+T83-V83+W83,0)) -> 5606753 | Y83: 80.26190016 | AA83: -156344 | AB83: -156344 | AC83: 0 | AD83: -2.238099844 | AF83: -0.02712846929 | AG83: -2.238099844 | AH83: 0 | AK83: 0.0484 | AM83: 074 | AN83: Deerfield | AO83: 0.8516126973 | AP83: 82.5 | AQ83: 5606753 | AR83: -2.238099844
A84: 75 | B84: Dennis | C84: 7229652400 | D84: 27046486.66 | E84: 501777000 | F84: 7420818.572 | G84: 34467305 | H84: 14319651.73 | I84: 2.406993246 | J84: 11813713 | K84: 11813713 | L84: 82.5 | N84: 11432715 | O84: 0.0303 | P84: 11779126 | Q84: 82.25846705 | R84: 0.2415329473 | S84: 0 | T84: 0 | U84: 0 | V84: 0 | W84: 34587 | X84: =MIN(H84*parameters!C$22,ROUND(P84+T84-V84+W84,0)) -> 11813713 | Y84: 82.50000226 | AA84: -34587 | AB84: 0 | AC84: 0 | AD84: 2.256540967e-06 | AF84: -0.002927699361 | AG84: -0.2415329473 | AH84: 0 | AK84: 0.0303 | AM84: 075 | AN84: Dennis | AO84: 2.406993246 | AP84: 82.5 | AQ84: 11813713 | AR84: 2.256540967e-06
A85: 76 | B85: Dighton | C85: 1019183000 | D85: 3812813.934 | E85: 277507000 | F85: 4104072.326 | G85: 7916886 | H85: 15366063.86 | I85: 0.5152188663 | J85: 12677003 | K85: 7916886 | L85: 51.52 | N85: 7184700 | O85: 0.0612 | P85: 7624404 | Q85: 49.61845838 | R85: 1.90154162 | S85: 0 | T85: 0 | U85: 0 | V85: 0 | W85: 0 | X85: =MIN(H85*parameters!C$22,ROUND(P85+T85-V85+W85,0)) -> 7624404 | Y85: 49.61845838 | AA85: -292482 | AB85: -292482 | AC85: 0 | AD85: -1.90154162 | AF85: -0.03694407119 | AG85: -1.90154162 | AH85: 0 | AK85: 0.0612 | AM85: 076 | AN85: Dighton | AO85: 0.5152188663 | AP85: 51.52 | AQ85: 7624404 | AR85: -1.90154162
A86: 77 | B86: Douglas | C86: 1022069000 | D86: 3823610.603 | E86: 334887000 | F86: 4952669.55 | G86: 8776280 | H86: 15232060.78 | I86: 0.5761715456 | J86: 12566450 | K86: 8776280 | L86: 57.62 | N86: 8115258 | O86: 0.0431 | P86: 8465026 | Q86: 55.57374097 | R86: 2.046259034 | S86: 0 | T86: 0 | U86: 0 | V86: 0 | W86: 0 | X86: =MIN(H86*parameters!C$22,ROUND(P86+T86-V86+W86,0)) -> 8465026 | Y86: 55.57374097 | AA86: -311254 | AB86: -311254 | AC86: 0 | AD86: -2.046259034 | AF86: -0.03546536801 | AG86: -2.046259034 | AH86: 0 | AK86: 0.0431 | AM86: 077 | AN86: Douglas | AO86: 0.5761715456 | AP86: 57.62 | AQ86: 8465026 | AR86: -2.046259034
A87: 78 | B87: Dover | C87: 2646446400 | D87: 9900486.674 | E87: 1623392000 | F87: 24008468.91 | G87: 33908956 | H87: 12801478.59 | I87: 2.648831208 | J87: 10561220 | K87: 10561220 | L87: 82.5 | N87: 10103131 | O87: 0.044 | P87: 10547669 | Q87: 82.39414632 | R87: 0.1058536767 | S87: 0 | T87: 0 | U87: 0 | V87: 0 | W87: 13551 | X87: =MIN(H87*parameters!C$22,ROUND(P87+T87-V87+W87,0)) -> 10561220 | Y87: 82.50000128 | AA87: -13551 | AB87: 0 | AC87: 0 | AD87: 1.283038287e-06 | AF87: -0.001283090401 | AG87: -0.1058536767 | AH87: 0 | AK87: 0.044 | AM87: 078 | AN87: Dover | AO87: 2.648831208 | AP87: 82.5 | AQ87: 10561220 | AR87: 1.283038287e-06
A88: 79 | B88: Dracut | C88: 3647155100 | D88: 13644187.34 | E88: 1126313000 | F88: 16657129.42 | G88: 30301317 | H88: 53166193.72 | I88: 0.5699357971 | J88: 43862110 | K88: 30301317 | L88: 56.99 | N88: 27532966 | O88: 0.0406 | P88: 28650804 | Q88: 53.88913893 | R88: 3.10086107 | S88: 0.01 | T88: 275330 | U88: 0 | V88: 0 | W88: 0 | X88: =MIN(H88*parameters!C$22,ROUND(P88+T88-V88+W88,0)) -> 28926134 | Y88: 54.40700561 | AA88: -1650513 | AB88: -1375183 | AC88: 0 | AD88: -2.582994394 | AF88: -0.05447000868 | AG88: -3.10086107 | AH88: 275329.66 | AK88: 0.0406 | AM88: 079 | AN88: Dracut | AO88: 0.5699357971 | AP88: 56.99 | AQ88: 28926134 | AR88: -2.582994394
A89: 80 | B89: Dudley | C89: 1016192300 | D89: 3801625.578 | E89: 330837000 | F89: 4892773.79 | G89: 8694399 | H89: 21234672.21 | I89: 0.4094435231 | J89: 17518605 | K89: 8694399 | L89: 40.94 | N89: 7113348 | O89: 0.0474 | P89: 7450521 | Q89: 35.08658353 | R89: 5.853416474 | S89: 0.01 | T89: 71133 | U89: 0 | V89: 0 | W89: 0 | X89: =MIN(H89*parameters!C$22,ROUND(P89+T89-V89+W89,0)) -> 7521654 | Y89: 35.42156868 | AA89: -1243878 | AB89: -1172745 | AC89: 0 | AD89: -5.518431317 | AF89: -0.143066588 | AG89: -5.853416474 | AH89: 142266.96 | AK89: 0.0474 | AM89: 080 | AN89: Dudley | AO89: 0.4094435231 | AP89: 40.94 | AQ89: 7521654 | AR89: -5.518431317
A90: 81 | B90: Dunstable | C90: 551243500 | D90: 2062229.156 | E90: 201001000 | F90: 2972619.219 | G90: 5034848 | H90: 5931844.964 | I90: 0.8487828037 | J90: 4893772 | K90: 4893772 | L90: 82.5 | N90: 4617537 | O90: 0.0427 | P90: 4814706 | Q90: 81.167091 | R90: 1.332909 | S90: 0 | T90: 0 | U90: 0 | V90: 0 | W90: 0 | X90: =MIN(H90*parameters!C$22,ROUND(P90+T90-V90+W90,0)) -> 4814706 | Y90: 81.167091 | AA90: -79066 | AB90: -79066 | AC90: 0 | AD90: -1.332909 | AF90: -0.01615645355 | AG90: -1.332909 | AH90: 0 | AK90: 0.0427 | AM90: 081 | AN90: Dunstable | AO90: 0.8487828037 | AP90: 82.5 | AQ90: 4814706 | AR90: -1.332909
A91: 82 | B91: Duxbury | C91: 4265308000 | D91: 15956727.87 | E91: 1535883000 | F91: 22714291.59 | G91: 38671019 | H91: 31043749.91 | I91: 1.245694193 | J91: 25611094 | K91: 25611094 | L91: 82.5 | N91: 25091221 | O91: 0.0405 | P91: 26107415 | Q91: 84.09878019 | R91: 0 | S91: 0 | T91: 0 | U91: 496321 | V91: 496321 | W91: 0 | X91: =MIN(H91*parameters!C$22,ROUND(P91+T91-V91+W91,0)) -> 25611094 | Y91: 82.50000104 | AA91: 0 | AB91: 0 | AC91: 0 | AD91: 1.039444342e-06 | AF91: 0.01937914093 | AG91: 1.598780186 | AH91: 0 | AK91: 0.0405 | AM91: 082 | AN91: Duxbury | AO91: 1.245694193 | AP91: 82.5 | AQ91: 25611094 | AR91: 1.039444342e-06
A92: 83 | B92: East Bridgewater | C92: 1751566500 | D92: 6552696.776 | E92: 507518000 | F92: 7505722.661 | G92: 14058419 | H92: 25366372.16 | I92: 0.5542148049 | J92: 20927257 | K92: 14058419 | L92: 55.42 | N92: 12903991 | O92: 0.0368 | P92: 13378858 | Q92: 52.7424967 | R92: 2.677503302 | S92: 0.01 | T92: 129040 | U92: 0 | V92: 0 | W92: 0 | X92: =MIN(H92*parameters!C$22,ROUND(P92+T92-V92+W92,0)) -> 13507898 | Y92: 53.25120168 | AA92: -679561 | AB92: -550521 | AC92: 0 | AD92: -2.168798316 | AF92: -0.04833836579 | AG92: -2.677503302 | AH92: 0 | AK92: 0.0368 | AM92: 083 | AN92: East Bridgewater | AO92: 0.5542148049 | AP92: 55.42 | AQ92: 13507898 | AR92: -2.168798316
A93: 84 | B93: East Brookfield | C93: 253517600 | D93: 948421.8613 | E93: 70811000 | F93: 1047229.315 | G93: 1995651 | H93: 3866858.232 | I93: 0.5160910694 | J93: 3190158 | K93: 1995651 | L93: 51.61 | N93: 1754382 | O93: 0.0398 | P93: 1824206 | Q93: 47.17540418 | R93: 4.434595819 | S93: 0.01 | T93: 17544 | U93: 0 | V93: 0 | W93: 0 | X93: =MIN(H93*parameters!C$22,ROUND(P93+T93-V93+W93,0)) -> 1841750 | Y93: 47.62910584 | AA93: -171445 | AB93: -153901 | AC93: 0 | AD93: -3.980894159 | AF93: -0.08590930979 | AG93: -4.434595819 | AH93: 17543.82 | AK93: 0.0398 | AM93: 084 | AN93: East Brookfield | AO93: 0.5160910694 | AP93: 51.61 | AQ93: 1841750 | AR93: -3.980894159
A94: 85 | B94: Eastham | C94: 2976889500 | D94: 11136690.63 | E94: 175156000 | F94: 2590395.53 | G94: 13727086 | H94: 5345795.18 | I94: 2.567828646 | J94: 4410281 | K94: 4410281 | L94: 82.5 | N94: 4191229 | O94: 0.0315 | P94: 4323253 | Q94: 80.87202848 | R94: 1.627971522 | S94: 0 | T94: 0 | U94: 0 | V94: 0 | W94: 87028 | X94: =MIN(H94*parameters!C$22,ROUND(P94+T94-V94+W94,0)) -> 4410281 | Y94: 82.49999957 | AA94: -87028 | AB94: 0 | AC94: 0 | AD94: -4.334283261e-07 | AF94: -0.019732983 | AG94: -1.627971522 | AH94: 0 | AK94: 0.0315 | AM94: 085 | AN94: Eastham | AO94: 2.567828646 | AP94: 82.5 | AQ94: 4410281 | AR94: -4.334283261e-07
A95: 86 | B95: Easthampton | C95: 1554415700 | D95: 5815145.897 | E95: 489491000 | F95: 7239119.975 | G95: 13054266 | H95: 20235912.76 | I95: 0.6451038881 | J95: 16694628 | K95: 13054266 | L95: 64.51 | N95: 12320207 | O95: 0.0431 | P95: 12851208 | Q95: 63.50693518 | R95: 1.003064818 | S95: 0 | T95: 0 | U95: 0 | V95: 0 | W95: 0 | X95: =MIN(H95*parameters!C$22,ROUND(P95+T95-V95+W95,0)) -> 12851208 | Y95: 63.50693518 | AA95: -203058 | AB95: -203058 | AC95: 0 | AD95: -1.003064818 | AF95: -0.01555491515 | AG95: -1.003064818 | AH95: 0 | AK95: 0.0431 | AM95: 086 | AN95: Easthampton | AO95: 0.6451038881 | AP95: 64.51 | AQ95: 12851208 | AR95: -1.003064818
A96: 87 | B96: East Longmeadow | C96: 1986089000 | D96: 7430057.03 | E96: 733231000 | F96: 10843809.55 | G96: 18273867 | H96: 29273598.25 | I96: 0.6242439636 | J96: 24150719 | K96: 18273867 | L96: 62.42 | N96: 16848895 | O96: 0.0383 | P96: 17494208 | Q96: 59.76104424 | R96: 2.658955763 | S96: 0.01 | T96: 168489 | U96: 0 | V96: 0 | W96: 0 | X96: =MIN(H96*parameters!C$22,ROUND(P96+T96-V96+W96,0)) -> 17662697 | Y96: 60.33661065 | AA96: -779659 | AB96: -611170 | AC96: 0 | AD96: -2.083389348 | AF96: -0.04266524431 | AG96: -2.658955763 | AH96: 0 | AK96: 0.0383 | AM96: 087 | AN96: East Longmeadow | AO96: 0.6242439636 | AP96: 62.42 | AQ96: 17662697 | AR96: -2.083389348
A97: 88 | B97: Easton | C97: 3609247100 | D97: 13502371.64 | E97: 1223595000 | F97: 18095840.38 | G97: 31598212 | H97: 39577427.17 | I97: 0.7983897453 | J97: 32651377 | K97: 31598212 | L97: 79.84 | N97: 29808094 | O97: 0.0423 | P97: 31068976 | Q97: 78.50175775 | R97: 1.338242253 | S97: 0 | T97: 0 | U97: 0 | V97: 0 | W97: 0 | X97: =MIN(H97*parameters!C$22,ROUND(P97+T97-V97+W97,0)) -> 31068976 | Y97: 78.50175775 | AA97: -529236 | AB97: -529236 | AC97: 0 | AD97: -1.338242253 | AF97: -0.01674892238 | AG97: -1.338242253 | AH97: 0 | AK97: 0.0423 | AM97: 088 | AN97: Easton | AO97: 0.7983897453 | AP97: 79.84 | AQ97: 31068976 | AR97: -1.338242253
A98: 89 | B98: Edgartown | C98: 8635274400 | D98: 32304987.97 | E98: 254220000 | F98: 3759679.095 | G98: 36064667 | H98: 8013274.362 | I98: 4.500615525 | J98: 6610951 | K98: 6610951 | L98: 82.5 | N98: 6134598 | O98: 0.0458 | P98: 6415563 | Q98: 80.06169151 | R98: 2.438308487 | S98: 0 | T98: 0 | U98: 0 | V98: 0 | W98: 195388 | X98: =MIN(H98*parameters!C$22,ROUND(P98+T98-V98+W98,0)) -> 6610951 | Y98: 82.49999565 | AA98: -195388 | AB98: 0 | AC98: 0 | AD98: -4.354054312e-06 | AF98: -0.02955520318 | AG98: -2.438308487 | AH98: 0 | AK98: 0.0458 | AM98: 089 | AN98: Edgartown | AO98: 4.500615525 | AP98: 82.5 | AQ98: 6610951 | AR98: -4.354054312e-06
A99: 90 | B99: Egremont | C99: 447001500 | D99: 1672254.686 | E99: 36419000 | F99: 538603.3867 | G99: 2210858 | H99: 892329.6837 | I99: 2.477624627 | J99: 736172 | K99: 736172 | L99: 82.5 | N99: 811544 | O99: 0.0296 | P99: 835566 | Q99: 93.63870946 | R99: 0 | S99: 0 | T99: 0 | U99: 99394 | V99: 99394 | W99: 0 | X99: =MIN(H99*parameters!C$22,ROUND(P99+T99-V99+W99,0)) -> 736172 | Y99: 82.50000122 | AA99: 0 | AB99: 0 | AC99: 0 | AD99: 1.224753106e-06 | AF99: 0.1350146433 | AG99: 11.13870946 | AH99: 0 | AK99: 0.0296 | AM99: 090 | AN99: Egremont | AO99: 2.477624627 | AP99: 82.5 | AQ99: 736172 | AR99: 1.224753106e-06
A100: 91 | B100: Erving | C100: 895171300 | D100: 3348880.04 | E100: 37645000 | F100: 556734.7948 | G100: 3905615 | H100: 2888910.896 | I100: 1.351933355 | J100: 2383351 | K100: 2383351 | L100: 82.5 | N100: 2319479 | O100: 0.0223 | P100: 2371203 | Q100: 82.07947858 | R100: 0.4205214191 | S100: 0 | T100: 0 | U100: 0 | V100: 0 | W100: 0 | X100: =MIN(H100*parameters!C$22,ROUND(P100+T100-V100+W100,0)) -> 2371203 | Y100: 82.07947858 | AA100: -12148 | AB100: -12148 | AC100: 0 | AD100: -0.4205214191 | AF100: -0.005097025155 | AG100: -0.4205214191 | AH100: 0 | AK100: 0.0223 | AM100: 091 | AN100: Erving | AO100: 1.351933355 | AP100: 82.5 | AQ100: 2371203 | AR100: -0.4205214191
A101: 92 | B101: Essex | C101: 867344300 | D101: 3244777.859 | E101: 234934000 | F101: 3474456.961 | G101: 6719235 | H101: 5913037.775 | I101: 1.136342309 | J101: 4878256 | K101: 4878256 | L101: 82.5 | N101: 4666078 | O101: 0.0348 | P101: 4828458 | Q101: 81.65782434 | R101: 0.8421756578 | S101: 0 | T101: 0 | U101: 0 | V101: 0 | W101: 0 | X101: =MIN(H101*parameters!C$22,ROUND(P101+T101-V101+W101,0)) -> 4828458 | Y101: 81.65782434 | AA101: -49798 | AB101: -49798 | AC101: 0 | AD101: -0.8421756578 | AF101: -0.01020815636 | AG101: -0.8421756578 | AH101: 0 | AK101: 0.0348 | AM101: 092 | AN101: Essex | AO101: 1.136342309 | AP101: 82.5 | AQ101: 4828458 | AR101: -0.8421756578
A102: 93 | B102: Everett | C102: 5767100400 | D102: 21575007.4 | E102: 1013265000 | F102: 14985253.87 | G102: 36560261 | H102: 117442393.2 | I102: 0.3113037807 | J102: 96889974 | K102: 36560261 | L102: 31.13 | N102: 30615794 | O102: 0.231 | P102: 37688042 | Q102: 32.09066248 | R102: 0 | S102: 0 | T102: 0 | U102: 1127781 | V102: 1127781 | W102: 0 | X102: =MIN(H102*parameters!C$22,ROUND(P102+T102-V102+W102,0)) -> 36560261 | Y102: 31.13037807 | AA102: 0 | AB102: 0 | AC102: 0 | AD102: 0.0003780654838 | AF102: 0.03084718132 | AG102: 0.9606624821 | AH102: 0 | AK102: 0.231 | AM102: 093 | AN102: Everett | AO102: 0.3113037807 | AP102: 31.13 | AQ102: 36560261 | AR102: 0.0003780654838
A103: 94 | B103: Fairhaven | C103: 2181956700 | D103: 8162807.768 | E103: 473118000 | F103: 6996978.421 | G103: 15159786 | H103: 24574747.37 | I103: 0.6168847138 | J103: 20274167 | K103: 15159786 | L103: 61.69 | N103: 14259144 | O103: 0.0482 | P103: 14946435 | Q103: 60.82029969 | R103: 0.8697003131 | S103: 0 | T103: 0 | U103: 0 | V103: 0 | W103: 0 | X103: =MIN(H103*parameters!C$22,ROUND(P103+T103-V103+W103,0)) -> 14946435 | Y103: 60.82029969 | AA103: -213351 | AB103: -213351 | AC103: 0 | AD103: -0.8697003131 | AF103: -0.01407348362 | AG103: -0.8697003131 | AH103: 0 | AK103: 0.0482 | AM103: 094 | AN103: Fairhaven | AO103: 0.6168847138 | AP103: 61.69 | AQ103: 14946435 | AR103: -0.8697003131
A104: 95 | B104: Fall River | C104: 5571429500 | D104: 20842992.9 | E104: 1594437000 | F104: 23580251.19 | G104: 44423244 | H104: 196813138.1 | I104: 0.2257127976 | J104: 162370839 | K104: 44423244 | L104: 22.57 | N104: 34953619 | O104: 0.043 | P104: 36456625 | Q104: 18.52347122 | R104: 4.046528777 | S104: 0.01 | T104: 349536 | U104: 0 | V104: 0 | W104: 0 | X104: =MIN(H104*parameters!C$22,ROUND(P104+T104-V104+W104,0)) -> 36806161 | Y104: 18.70106912 | AA104: -7966619 | AB104: -7617083 | AC104: 0 | AD104: -3.868930878 | AF104: -0.1793344718 | AG104: -4.046528777 | AH104: 699072.38 | AK104: 0.043 | AM104: 095 | AN104: Fall River | AO104: 0.2257127976 | AP104: 22.57 | AQ104: 36806161 | AR104: -3.868930878
A105: 96 | B105: Falmouth | C105: 12342275400 | D105: 46173061.78 | E105: 1375556000 | F105: 20343203.28 | G105: 66516265 | H105: 41420949.2 | I105: 1.605860471 | J105: 34172283 | K105: 34172283 | L105: 82.5 | N105: 33905680 | O105: 0.0387 | P105: 35217830 | Q105: 85.02419833 | R105: 0 | S105: 0 | T105: 0 | U105: 1045547 | V105: 1045547 | W105: 0 | X105: =MIN(H105*parameters!C$22,ROUND(P105+T105-V105+W105,0)) -> 34172283 | Y105: 82.49999978 | AA105: 0 | AB105: 0 | AC105: 0 | AD105: -2.17250232e-07 | AF105: 0.03059634617 | AG105: 2.524198335 | AH105: 0 | AK105: 0.0387 | AM105: 096 | AN105: Falmouth | AO105: 1.605860471 | AP105: 82.5 | AQ105: 34172283 | AR105: -2.17250232e-07
A106: 97 | B106: Fitchburg | C106: 2522862600 | D106: 9438153.576 | E106: 826755000 | F106: 12226943.16 | G106: 21665097 | H106: 86791354.78 | I106: 0.2496227539 | J106: 71602868 | K106: 21665097 | L106: 24.96 | N106: 20239310 | O106: 0.0465 | P106: 21180438 | Q106: 24.40385687 | R106: 0.5561431265 | S106: 0 | T106: 0 | U106: 0 | V106: 0 | W106: 0 | X106: =MIN(H106*parameters!C$22,ROUND(P106+T106-V106+W106,0)) -> 21180438 | Y106: 24.40385687 | AA106: -484659 | AB106: -484659 | AC106: 0 | AD106: -0.5561431265 | AF106: -0.02237049758 | AG106: -0.5561431265 | AH106: 0 | AK106: 0.0465 | AM106: 097 | AN106: Fitchburg | AO106: 0.2496227539 | AP106: 24.96 | AQ106: 21180438 | AR106: -0.5561431265
